Workbook

Sheet Tariffs (hidden)
A1: Rider Kor | B1: Y7111 | D1: Y0114 | F1: Y0115 | H1: Y0121 | J1: Y1111 | L1: Y1103 | N1: Y1114 | P1: Y0116
A2: 0 | B2: n/a | D2: n/a | F2: n/a | H2: n/a | J2: n/a | L2: n/a | N2: n/a | P2: n/a
A3: 1 | B3: 0.00086865 | D3: 0.0018 | F3: 0.002 | H3: 0.0244201 | J3: 0.07344 | L3: 0.00102 | N3: 0.00114 | P3: n/a
A4: 2 | B4: 0.00086865 | D4: 0.0018 | F4: 0.002 | H4: 0.0244201 | J4: 0.07344 | L4: 0.00102 | N4: 0.00114 | P4: n/a
A5: 3 | B5: 0.00086865 | D5: 0.0018 | F5: 0.002 | H5: 0.0244201 | J5: 0.07344 | L5: 0.00102 | N5: 0.00114 | P5: n/a
A6: 4 | B6: 0.00086865 | D6: 0.0018 | F6: 0.002 | H6: 0.0244201 | J6: 0.07344 | L6: 0.00102 | N6: 0.00114 | P6: n/a
A7: 5 | B7: 0.00086865 | D7: 0.0018 | F7: 0.002 | H7: 0.0244201 | J7: 0.07344 | L7: 0.00102 | N7: 0.00114 | P7: n/a
A8: 6 | B8: 0.00086865 | D8: 0.0018 | F8: 0.002 | H8: 0.0244201 | J8: 0.07344 | L8: 0.00102 | N8: 0.00114 | P8: n/a
A9: 7 | B9: 0.00086865 | D9: 0.0018 | F9: 0.002 | H9: 0.0244201 | J9: 0.07344 | L9: 0.00102 | N9: 0.00114 | P9: n/a
A10: 8 | B10: 0.00086865 | D10: 0.0018 | F10: 0.002 | H10: 0.0244201 | J10: 0.07344 | L10: 0.00102 | N10: 0.00114 | P10: n/a
A11: 9 | B11: 0.00086865 | D11: 0.0018 | F11: 0.002 | H11: 0.0244201 | J11: 0.07344 | L11: 0.00102 | N11: 0.00114 | P11: n/a
A12: 10 | B12: 0.00086865 | D12: 0.0018 | F12: 0.002 | H12: 0.0244201 | J12: 0.07344 | L12: 0.00102 | N12: 0.00114 | P12: n/a
A13: 11 | B13: 0.00086865 | D13: 0.0018 | F13: 0.002 | H13: 0.0244201 | J13: 0.07344 | L13: 0.00102 | N13: 0.00114 | P13: n/a
A14: 12 | B14: 0.00086865 | D14: 0.0018 | F14: 0.002 | H14: 0.0244201 | J14: 0.07344 | L14: 0.00102 | N14: 0.00114 | P14: n/a
A15: 13 | B15: 0.00086865 | D15: 0.0018 | F15: 0.002 | H15: 0.0244201 | J15: 0.07344 | L15: 0.00102 | N15: 0.00114 | P15: n/a
A16: 14 | B16: 0.00086865 | D16: 0.0018 | F16: 0.002 | H16: 0.0244201 | J16: 0.07344 | L16: 0.00102 | N16: 0.00114 | P16: n/a
A17: 15 | B17: 0.00086865 | D17: 0.0018 | F17: 0.002 | H17: 0.0244201 | J17: 0.07344 | L17: 0.00102 | N17: 0.00114 | P17: n/a
A18: 16 | B18: 0.00086865 | D18: 0.0018 | F18: 0.002 | H18: 0.0244201 | J18: 0.07344 | L18: 0.00102 | N18: 0.00114 | P18: n/a
A19: 17 | B19: 0.00086865 | D19: 0.0018 | F19: 0.002 | H19: 0.0244201 | J19: 0.07344 | L19: 0.00102 | N19: 0.00114 | P19: n/a
A20: 18 | B20: 0.00086865 | D20: 0.0018 | F20: 0.002 | H20: 0.0244201 | J20: 0.07344 | L20: 0.00102 | N20: 0.00114 | P20: =8223271.875/1000000 -> 8.223271875
A21: 19 | B21: 0.00107499 | D21: 0.0018 | F21: 0.002 | H21: 0.0244201 | J21: 0.07344 | L21: 0.00102 | N21: 0.001254 | P21: =8223271.875/1000000 -> 8.223271875
A22: 20 | B22: 0.00125865 | D22: 0.0018 | F22: 0.002 | H22: 0.0244201 | J22: 0.07344 | L22: 0.00102 | N22: 0.001368 | P22: 8.223271875
A23: 21 | B23: 0.00140246 | D23: 0.0018 | F23: 0.002 | H23: 0.0244201 | J23: 0.07344 | L23: 0.00102 | N23: 0.0014991 | P23: 8.223271875
A24: 22 | B24: 0.0015692 | D24: 0.0018 | F24: 0.002 | H24: 0.0244201 | J24: 0.0816 | L24: 0.00102 | N24: 0.0016131 | P24: 8.223271875
A25: 23 | B25: 0.00155624 | D25: 0.0018 | F25: 0.002 | H25: 0.0244201 | J25: 0.09078 | L25: 0.00102 | N25: 0.0017442 | P25: 8.223271875
A26: 24 | B26: 0.0015436 | D26: 0.0018 | F26: 0.002 | H26: 0.0244201 | J26: 0.09486 | L26: 0.00102 | N26: 0.0018753 | P26: 8.223271875
A27: 25 | B27: 0.00159482 | D27: 0.0018 | F27: 0.002 | H27: 0.0244201 | J27: 0.09996 | L27: 0.00102 | N27: 0.0019893 | P27: 8.223271875
A28: 26 | B28: 0.00162521 | D28: 0.0018 | F28: 0.002 | H28: 0.0244201 | J28: 0.10506 | L28: 0.00102 | N28: 0.0022173 | P28: 8.223271875
A29: 27 | B29: 0.00165019 | D29: 0.0018 | F29: 0.002 | H29: 0.0244201 | J29: 0.10914 | L29: 0.00102 | N29: 0.0024453 | P29: 8.223271875
A30: 28 | B30: 0.00182991 | D30: 0.0018 | F30: 0.002 | H30: 0.0244201 | J30: 0.1122 | L30: 0.00102 | N30: 0.0027702 | P30: 8.223271875
A31: 29 | B31: 0.00190462 | D31: 0.0018 | F31: 0.002 | H31: 0.0244201 | J31: 0.11526 | L31: 0.00102 | N31: 0.0029982 | P31: 8.223271875
A32: 30 | B32: 0.00198976 | D32: 0.0018 | F32: 0.002 | H32: 0.0244201 | J32: 0.1173 | L32: 0.001122 | N32: 0.0033402 | P32: 8.223271875
A33: 31 | B33: 0.00210349 | D33: 0.0018 | F33: 0.002 | H33: 0.0244201 | J33: 0.11934 | L33: 0.001224 | N33: 0.0037449 | P33: 8.223271875
A34: 32 | B34: 0.00242659 | D34: 0.0018 | F34: 0.002 | H34: 0.0244201 | J34: 0.12138 | L34: 0.001326 | N34: 0.0042978 | P34: 8.223271875
A35: 33 | B35: 0.00279824 | D35: 0.0018 | F35: 0.002 | H35: 0.0244201 | J35: 0.12342 | L35: 0.001428 | N35: 0.0048336 | P35: 8.223271875
A36: 34 | B36: 0.0031881 | D36: 0.0018 | F36: 0.002 | H36: 0.0244201 | J36: 0.12546 | L36: 0.00153 | N36: 0.0052554 | P36: 8.223271875
A37: 35 | B37: 0.00361175 | D37: 0.0018 | F37: 0.002 | H37: 0.0244201 | J37: 0.1275 | L37: 0.001632 | N37: 0.0057912 | P37: 8.223271875
A38: 36 | B38: 0.00406027 | D38: 0.0018 | F38: 0.002 | H38: 0.0244201 | J38: 0.12954 | L38: 0.001734 | N38: 0.0068628 | P38: 8.223271875
A39: 37 | B39: 0.00454136 | D39: 0.0018 | F39: 0.002 | H39: 0.0244201 | J39: 0.13158 | L39: 0.001836 | N39: 0.0080142 | P39: 8.223271875
A40: 38 | B40: 0.00505635 | D40: 0.0018 | F40: 0.002 | H40: 0.0244201 | J40: 0.13362 | L40: 0.00204 | N40: 0.0093936 | P40: 8.223271875
A41: 39 | B41: 0.00558983 | D41: 0.0018 | F41: 0.002 | H41: 0.0244201 | J41: 0.13566 | L41: 0.002244 | N41: 0.0107901 | P41: 8.223271875
A42: 40 | B42: 0.00615677 | D42: 0.0018 | F42: 0.002 | H42: 0.0244201 | J42: 0.1377 | L42: 0.002448 | N42: 0.0123975 | P42: 8.223271875
A43: 41 | B43: 0.00673855 | D43: 0.0018 | F43: 0.002 | H43: 0.0244201 | J43: 0.13974 | L43: 0.002652 | N43: 0.0146205 | P43: 8.223271875
A44: 42 | B44: 0.00733836 | D44: 0.0018 | F44: 0.002 | H44: 0.0244201 | J44: 0.14178 | L44: 0.002958 | N44: 0.0167637 | P44: 8.223271875
A45: 43 | B45: 0.00797331 | D45: 0.0018 | F45: 0.002 | H45: 0.0244201 | J45: 0.14382 | L45: 0.003162 | N45: 0.0190836 | P45: 8.223271875
A46: 44 | B46: 0.00862473 | D46: 0.0018 | F46: 0.002 | H46: 0.0244201 | J46: 0.14586 | L46: 0.00357 | N46: 0.0213237 | P46: 8.223271875
A47: 45 | B47: 0.00933119 | D47: 0.0018 | F47: 0.002 | H47: 0.0244201 | J47: 0.1479 | L47: 0.003978 | N47: 0.0235638 | P47: 8.223271875
A48: 46 | B48: 0.01005665 | D48: 0.0018 | F48: 0.002 | H48: 0.0244201 | J48: 0.14994 | L48: 0.004386 | N48: 0.0259977 | P48: 8.223271875
A49: 47 | B49: 0.01081047 | D49: 0.0018 | F49: 0.002 | H49: 0.0244201 | J49: 0.15198 | L49: 0.004998 | N49: 0.0283347 | P49: 8.223271875
A50: 48 | B50: 0.01158424 | D50: 0.0018 | F50: 0.002 | H50: 0.0244201 | J50: 0.153 | L50: 0.005712 | N50: 0.0307515 | P50: 8.223271875
A51: 49 | B51: 0.01243453 | D51: 0.0018 | F51: 0.002 | H51: 0.0244201 | J51: 0.15402 | L51: 0.006528 | N51: 0.0332823 | P51: 8.223271875
A52: 50 | B52: 0.01334987 | D52: 0.0018 | F52: 0.002 | H52: 0.0244201 | J52: 0.15504 | L52: 0.007548 | N52: 0.03591 | P52: 8.223271875
A53: 51 | B53: 0.01433671 | D53: 0.0018 | F53: 0.002 | H53: 0.0244201 | J53: 0.15606 | L53: 0.00867 | N53: 0.0383439 | P53: 8.223271875
A54: 52 | B54: 0.01619569 | D54: 0.0018 | F54: 0.002 | H54: 0.0244201 | J54: 0.15708 | L54: 0.009996 | N54: 0.0408918 | P54: 8.223271875
A55: 53 | B55: 0.01821469 | D55: 0.0018 | F55: 0.002 | H55: 0.0244201 | J55: 0.1581 | L55: 0.011424 | N55: 0.0433428 | P55: 8.223271875
A56: 54 | B56: 0.02047327 | D56: 0.0018 | F56: 0.002 | H56: 0.0244201 | J56: 0.15912 | L56: 0.013056 | N56: 0.0458736 | P56: 8.223271875
A57: 55 | B57: 0.02289864 | D57: 0.0018 | F57: 0.002 | H57: 0.0244201 | J57: 0.16014 | L57: 0.014892 | N57: 0.0484215 | P57: 8.223271875
A58: 56 | B58: 0.02547645 | D58: 0.0018 | F58: 0.002 | H58: 0.0244201 | J58: 0.16116 | L58: 0.016932 | N58: 0.0513627 | P58: 8.223271875
A59: 57 | B59: 0.0282128 | D59: 0.0018 | F59: 0.002 | H59: 0.0244201 | J59: 0.16218 | L59: 0.019074 | N59: 0.0545148 | P59: 8.223271875
A60: 58 | B60: 0.03116693 | D60: 0.0018 | F60: 0.002 | H60: 0.0244201 | J60: 0.1632 | L60: 0.02142 | N60: 0.0582027 | P60: 8.223271875
A61: 59 | B61: 0.03439433 | D61: 0.0018 | F61: 0.002 | H61: 0.0244201 | J61: 0.16422 | L61: 0.024072 | N61: 0.0625404 | P61: 8.223271875
A62: 60 | B62: 0.03799174 | D62: 0.0018 | F62: 0.002 | H62: 0.0244201 | J62: 0.16524 | L62: 0.02703 | N62: 0.0672999 | P62: 8.223271875
A63: 61 | B63: 0.04192828 | D63: 0.0018 | F63: 0.002 | H63: 0.0244201 | J63: 0.16626 | L63: 0.030396 | N63: 0.0725781 | P63: 8.223271875
A64: 62 | B64: 0.04618608 | D64: 0.0018 | F64: 0.002 | H64: 0.0244201 | J64: 0.16728 | L64: 0.034068 | N64: 0.0779874 | P64: 8.223271875
A65: 63 | B65: 0.05083093 | D65: 0.0018 | F65: 0.002 | H65: 0.0244201 | J65: 0.1683 | L65: 0.037944 | N65: 0.0836076 | P65: 8.223271875
A66: 64 | B66: 0.05596237 | D66: 0.0018 | F66: 0.002 | H66: 0.0244201 | J66: 0.16932 | L66: 0.041922 | N66: 0.0892278 | P66: 8.223271875
A67: 65 | B67: 0.06172996 | D67: 0.0018 | F67: 0.002 | H67: 0.0244201 | J67: 0.17034 | L67: 0.0459 | N67: 0.0946371 | P67: 8.223271875
A68: 66 | B68: 0.06689249 | D68: 0.0018 | F68: 0.002 | H68: 0.0244201 | J68: n/a | L68: n/a | N68: n/a | P68: n/a
A69: 67 | B69: 0.07211804 | D69: 0.0018 | F69: 0.002 | H69: 0.0244201 | J69: n/a | L69: n/a | N69: n/a | P69: n/a
A70: 68 | B70: 0.07775705 | D70: 0.0018 | F70: 0.002 | H70: 0.0244201 | J70: n/a | L70: n/a | N70: n/a | P70: n/a
A71: 69 | B71: 0.08368732 | D71: 0.0018 | F71: 0.002 | H71: 0.0244201 | J71: n/a | L71: n/a | N71: n/a | P71: n/a
A72: 70 | B72: 0.09011444 | D72: 0.0018 | F72: 0.002 | H72: 0.0244201 | J72: n/a | L72: n/a | N72: n/a | P72: n/a
A73: 71 | B73: 0.09678561 | D73: 0.0018 | F73: 0.002 | H73: 0.0244201 | J73: n/a | L73: n/a | N73: n/a | P73: n/a
A74: 72 | B74: 0.10364597 | D74: 0.0018 | F74: 0.002 | H74: 0.0244201 | J74: n/a | L74: n/a | N74: n/a | P74: n/a
A75: 73 | B75: 0.11119359 | D75: 0.0018 | F75: 0.002 | H75: 0.0244201 | J75: n/a | L75: n/a | N75: n/a | P75: n/a
A76: 74 | B76: 0.11981548 | D76: 0.0018 | F76: 0.002 | H76: 0.0244201 | J76: n/a | L76: n/a | N76: n/a | P76: n/a
A77: 75 | B77: 0.12985081 | D77: 0.0018 | F77: 0.002 | H77: 0.0244201 | J77: n/a | L77: n/a | N77: n/a | P77: n/a
A78: 76 | B78: 0.0036 | D78: 0.0018 | F78: n/a | H78: n/a | J78: n/a | L78: n/a | N78: n/a | P78: n/a
A79: 77 | B79: 0.0036 | D79: 0.0018 | F79: n/a | H79: n/a | J79: n/a | L79: n/a | N79: n/a | P79: n/a
A80: 78 | B80: 0.0036 | D80: 0.0018 | F80: n/a | H80: n/a | J80: n/a | L80: n/a | N80: n/a | P80: n/a
A81: 79 | B81: 0.0036 | D81: 0.0018 | F81: n/a | H81: n/a | J81: n/a | L81: n/a | N81: n/a | P81: n/a
A82: 80 | B82: 0.0036 | D82: 0.0018 | F82: n/a | H82: n/a | J82: n/a | L82: n/a | N82: n/a | P82: n/a
A83: 81 | B83: 0.0036 | D83: 0.0018 | F83: n/a | H83: n/a | J83: n/a | L83: n/a | N83: n/a | P83: n/a
A84: 82 | B84: 0.0036 | D84: 0.0018 | F84: n/a | H84: n/a | J84: n/a | L84: n/a | N84: n/a | P84: n/a
A85: 83 | B85: 0.0036 | D85: 0.0018 | F85: n/a | H85: n/a | J85: n/a | L85: n/a | N85: n/a | P85: n/a
A86: 84 | B86: 0.0036 | D86: 0.0018 | F86: n/a | H86: n/a | J86: n/a | L86: n/a | N86: n/a | P86: n/a
A87: 85 | B87: 0.0036 | D87: 0.0018 | F87: n/a | H87: n/a | J87: n/a | L87: n/a | N87: n/a | P87: n/a
A88: 86 | B88: 0.0036 | D88: 0.0018 | F88: n/a | H88: n/a | J88: n/a | L88: n/a | N88: n/a | P88: n/a
A89: 87 | B89: 0.0036 | D89: 0.0018 | F89: n/a | H89: n/a | J89: n/a | L89: n/a | N89: n/a | P89: n/a
A90: 88 | B90: 0.0036 | D90: 0.0018 | F90: n/a | H90: n/a | J90: n/a | L90: n/a | N90: n/a | P90: n/a
A91: 89 | B91: 0.0036 | D91: 0.0018 | F91: n/a | H91: n/a | J91: n/a | L91: n/a | N91: n/a | P91: n/a
A92: 90 | B92: 0.0036 | D92: 0.0018 | F92: n/a | H92: n/a | J92: n/a | L92: n/a | N92: n/a | P92: n/a
A93: 91 | B93: 0.0036 | D93: 0.0018 | F93: n/a | H93: n/a | J93: n/a | L93: n/a | N93: n/a | P93: n/a
A94: 92 | B94: 0.0036 | D94: 0.0018 | F94: n/a | H94: n/a | J94: n/a | L94: n/a | N94: n/a | P94: n/a
A95: 93 | B95: 0.0036 | D95: 0.0018 | F95: n/a | H95: n/a | J95: n/a | L95: n/a | N95: n/a | P95: n/a
A96: 94 | B96: 0.0036 | D96: 0.0018 | F96: n/a | H96: n/a | J96: n/a | L96: n/a | N96: n/a | P96: n/a
A97: 95 | B97: 0.0036 | D97: 0.0018 | F97: n/a | H97: n/a | J97: n/a | L97: n/a | N97: n/a | P97: n/a
A98: 96 | B98: 0.0036 | D98: 0.0018 | F98: n/a | H98: n/a | J98: n/a | L98: n/a | N98: n/a | P98: n/a
A99: 97 | B99: 0.0036 | D99: 0.0018 | F99: n/a | H99: n/a | J99: n/a | L99: n/a | N99: n/a | P99: n/a
A100: 98 | B100: 0.0036 | D100: 0.0018 | F100: n/a | H100: n/a | J100: n/a | L100: n/a | N100: n/a | P100: n/a
A101: 99 | B101: 0.0036 | D101: 0.0018 | F101: n/a | H101: n/a | J101: n/a | L101: n/a | N101: n/a | P101: n/a
A102: 100 | B102: 0.0036 | D102: 0.0018 | F102: n/a | H102: n/a | J102: n/a | L102: n/a | N102: n/a | P102: n/a
A103: 101 | B103: 0.0036 | D103: 0.0018 | F103: n/a | H103: n/a | J103: n/a | L103: n/a | N103: n/a | P103: n/a
A104: 102 | B104: 0.0036 | D104: 0.0018 | F104: n/a | H104: n/a | J104: n/a | L104: n/a | N104: n/a | P104: n/a
A105: 103 | B105: 0.0036 | D105: 0.0018 | F105: n/a | H105: n/a | J105: n/a | L105: n/a | N105: n/a | P105: n/a
A106: 104 | B106: 0.0036 | D106: 0.0018 | F106: n/a | H106: n/a | J106: n/a | L106: n/a | N106: n/a | P106: n/a
A107: 105 | B107: 0.0036 | D107: 0.0018 | F107: n/a | H107: n/a | J107: n/a | L107: n/a | N107: n/a | P107: n/a
A108: 106 | B108: 0.0036 | D108: 0.0018 | F108: n/a | H108: n/a | J108: n/a | L108: n/a | N108: n/a | P108: n/a
A109: 107 | B109: 0.0036 | D109: 0.0018 | F109: n/a | H109: n/a | J109: n/a | L109: n/a | N109: n/a | P109: n/a
A110: 108 | B110: 0.0036 | D110: 0.0018 | F110: n/a | H110: n/a | J110: n/a | L110: n/a | N110: n/a | P110: n/a
A111: 109 | B111: 0.0036 | D111: 0.0018 | F111: n/a | H111: n/a | J111: n/a | L111: n/a | N111: n/a | P111: n/a
A112: 110 | B112: 0.0036 | D112: 0.0018 | F112: n/a | H112: n/a | J112: n/a | L112: n/a | N112: n/a | P112: n/a

Sheet Parameters (hidden)
B2: HUF | C2: Fedezet neve | D2: Alap | E2: Junior | F2: Családfenntartó | G2: Vállalkozói | H2: Női | I2: Sport | K2: Biztosítási összeg | L2: Kock.elb. limit 1 | M2: Kock.elb. limit 2 | N2: Kock.elb. 1 | O2: Kock.elb. 2 | P2: Belépési kor | Q2: Kilépési kor | R2: Min BÖ | S2: Max BÖ | T2: Min fedezetenkénti díj | U2: Min éves díj
B3: Y7111 | C3: Haláleseti | D3: 100000 | E3: 100000 | F3: 200000 | G3: 200000 | H3: 200000 | I3: 200000 | K3: =IF(MainForm!C25="HUF",MainForm!$C250,"") -> - | L3: 20000000 | M3: 50000000 | N3: MED I. vizsgálat | O3: MED II. vizsgálat + pénzügyi és utazási kérdőív | P3: 1 | Q3: 110 | T3: 1500 | U3: 6000
B4: Y0114 | C4: Baleseti halál kiemelt térítéssel | D4: 100000 | E4: 100000 | F4: 200000 | G4: 200000 | H4: 200000 | I4: 200000 | K4: =IF(MainForm!C25="HUF",MainForm!$C251,"") -> - | L4: 40000000 | M4: 50000000 | N4: Eü nyilatkozat | O4: Eü nyilatkozat + pénzügyi és utazási kérdőív | P4: 1 | Q4: 110 | T4: 1500 | U4: 6000
B5: Y0115 | C5: Baleseti rokkantság kiemelt térítéssel | D5: 200000 | E5: 200000 | F5: 400000 | G5: 400000 | H5: 400000 | I5: 400000 | K5: =IF(MainForm!C25="HUF",MainForm!$C252,"") -> - | L5: 40000000 | M5: 50000000 | N5: Eü nyilatkozat | O5: Eü nyilatkozat + pénzügyi és utazási kérdőív | P5: 1 | Q5: 75 | T5: 1500 | U5: 6000
B6: Y0121 | C6: Baleseti műtéti térítés | D6: 0 | E6: 20000 | F6: 20000 | G6: 20000 | H6: 10000 | I6: 20000 | K6: =IF(MainForm!C25="HUF",MainForm!$C253,"") -> - | L6: 2000000 | M6: 3000000 | N6: Eü nyilatkozat | O6: Eü nyilatkozat + pénzügyi és utazási kérdőív | P6: 1 | Q6: 75 | T6: 1500 | U6: 6000
B7: Y1111 | C7: Műtéti térítés | D7: 0 | E7: 0 | F7: 0 | G7: 0 | H7: 10000 | I7: 0 | K7: =IF(MainForm!C25="HUF",MainForm!$C254,"") -> - | L7: 2000000 | M7: 3000000 | N7: MED I. vizsgálat | O7: MED II. vizsgálat + pénzügyi és utazási kérdőív | P7: 1 | Q7: 65 | T7: 1500 | U7: 6000
B8: Y1103 | C8: Végleges rokkantság (I., II.) | D8: 0 | E8: 0 | F8: 0 | G8: 200000 | H8: 0 | I8: 200000 | K8: =IF(MainForm!C25="HUF",MainForm!$C255,"") -> - | L8: 20000000 | M8: 25000000 | N8: MED I. vizsgálat | O8: MED II. vizsgálat + pénzügyi és utazási kérdőív | P8: 1 | Q8: 65 | T8: 1500 | U8: 6000
B9: Y0116 | C9: Baleseti keresőképtelenség | D9: 0 | E9: 0 | F9: 0 | G9: 0 | H9: 0 | I9: 0 | P9: 18 | Q9: 65 | R9: 1000 | S9: 20000 | T9: 1500 | U9: 6000
B10: Y1114 | C10: Kritikus betegségek | D10: 0 | E10: 0 | F10: 100000 | G10: 200000 | H10: 0 | I10: 0 | K10: =IF(MainForm!C25="HUF",MainForm!$C257,"") -> - | L10: 20000000 | M10: 50000000 | N10: MED I. vizsgálat | O10: MED II. vizsgálat + pénzügyi és utazási kérdőív | P10: 1 | Q10: 65 | T10: 1500 | U10: 6000
B11: Y8111 | C11: Haláleseti díjátvállalás | D11: 0 | E11: 0 | F11: 0 | G11: 0 | H11: 0 | I11: 0 | P11: 18 | Q11: 60 | T11: 1500 | U11: 6000
B13: EUR | C13: Fedezet neve | D13: Alap | E13: Junior | F13: Családfenntartó | G13: Vállalkozói | H13: Női | I13: Sport | K13: Biztosítási összeg | L13: Kock.elb. limit 1 | M13: Kock.elb. limit 2 | N13: Kock.elb. 1 | O13: Kock.elb. 2 | P13: Belépési kor | Q13: Kilépési kor | R13: Min BÖ | S13: Max BÖ | T13: Min fedezetenkénti díj | U13: Min éves díj
B14: Y7111 | C14: Haláleseti | D14: 400 | E14: 400 | F14: 800 | G14: 800 | H14: 800 | I14: 800 | K14: =IF(MainForm!C25="EUR",MainForm!$C250,"") ->  | L14: 80000 | M14: 200000 | N14: MED I. vizsgálat | O14: MED II. vizsgálat + pénzügyi és utazási kérdőív | P14: 1 | Q14: 110 | T14: 6 | U14: 25
B15: Y0114 | C15: Baleseti halál kiemelt térítéssel | D15: 400 | E15: 400 | F15: 800 | G15: 800 | H15: 800 | I15: 800 | K15: =IF(MainForm!C25="EUR",MainForm!$C251,"") ->  | L15: 160000 | M15: 200000 | N15: Eü nyilatkozat | O15: Eü nyilatkozat + pénzügyi és utazási kérdőív | P15: 1 | Q15: 110 | T15: 6 | U15: 25
B16: Y0115 | C16: Baleseti rokkantság kiemelt térítéssel | D16: 800 | E16: 800 | F16: 1600 | G16: 1600 | H16: 1600 | I16: 1600 | K16: =IF(MainForm!C25="EUR",MainForm!$C252,"") ->  | L16: 160000 | M16: 200000 | N16: Eü nyilatkozat | O16: Eü nyilatkozat + pénzügyi és utazási kérdőív | P16: 1 | Q16: 75 | T16: 6 | U16: 25
B17: Y0121 | C17: Baleseti műtéti térítés | D17: 0 | E17: 80 | F17: 80 | G17: 80 | H17: 40 | I17: 80 | K17: =IF(MainForm!C25="EUR",MainForm!$C253,"") ->  | L17: 8000 | M17: 12000 | N17: Eü nyilatkozat | O17: Eü nyilatkozat + pénzügyi és utazási kérdőív | P17: 1 | Q17: 75 | T17: 6 | U17: 25
B18: Y1111 | C18: Műtéti térítés | D18: 0 | E18: 0 | F18: 0 | G18: 0 | H18: 40 | I18: 0 | K18: =IF(MainForm!C25="EUR",MainForm!$C254,"") ->  | L18: 8000 | M18: 12000 | N18: MED I. vizsgálat | O18: MED II. vizsgálat + pénzügyi és utazási kérdőív | P18: 1 | Q18: 65 | T18: 6 | U18: 25
B19: Y1103 | C19: Végleges rokkantság (I., II.) | D19: 0 | E19: 0 | F19: 0 | G19: 800 | H19: 0 | I19: 800 | K19: =IF(MainForm!C25="EUR",MainForm!$C255,"") ->  | L19: 80000 | M19: 120000 | N19: MED I. vizsgálat | O19: MED II. vizsgálat + pénzügyi és utazási kérdőív | P19: 1 | Q19: 65 | T19: 6 | U19: 25
B20: Y0116 | C20: Baleseti keresőképtelenség | D20: 0 | E20: 0 | F20: 0 | G20: 0 | H20: 0 | I20: 0 | P20: 18 | Q20: 65 | R20: 4 | S20: 70 | T20: 6 | U20: 25
B21: Y1114 | C21: Kritikus betegségek | D21: 0 | E21: 0 | F21: 400 | G21: 800 | H21: 0 | I21: 0 | K21: =IF(MainForm!C25="EUR",MainForm!$C257,"") ->  | L21: 80000 | M21: 200000 | N21: MED I. vizsgálat | O21: MED II. vizsgálat + pénzügyi és utazási kérdőív | P21: 1 | Q21: 65 | T21: 6 | U21: 25
B22: Y8111 | C22: Haláleseseti díjátvállalás | D22: 0 | E22: 0 | F22: 0 | G22: 0 | H22: 0 | I22: 0 | K22: =IF(MainForm!C26="EUR",MainForm!#REF!,"") ->  | P22: 18 | Q22: 60 | T22: 1500 | U22: 6000
B24: KOMPLEX | C24: Díjtétel | D24: Max éves díj limit | E24: HUF | F24: EUR | G24: Belépési kor | H24: Kilépési kor
B25: Komplex I. | C25: 0.05 | D25: 1000000 | E25: =MainForm!$C$31*24 -> 7200000 | F25: =MainForm!$C$31*24/MainForm!$C$233 -> 23902.00179 | G25: 18 | H25: 65
B26: Komplex II. | C26: 0.08 | D26: 700000 | E26: =MainForm!C31*44 -> 13200000 | F26: =MainForm!$C$31*44/MainForm!$C$233 -> 43820.33662 | G26: 18 | H26: 65
B27: Komplex III. | C27: 0.1 | D27: 500000 | E27: =MainForm!C31*64 -> 19200000 | F27: =MainForm!$C$31*64/MainForm!$C$233 -> 63738.67145 | G27: 18 | H27: 65
B28: Nem kérek | C28: 0 | D28: - | E28: 50000000 | F28: 200000 | G28: - | H28: -
B30: WOP tartam
B31: Nem kérek
B32: 5
B33: 6
B34: 7
B35: 8
B36: 9
B37: 10
B38: 11
B39: 12
B40: 13
B41: 14
B42: 15
B43: 16
B44: 17
B45: 18
B46: 19
B47: 20
B49: Éves díj | C49: HUF | D49: EUR
B50: 0 | C50: 1000000 | D50: 3500
B51: 0 | C51: 1000000 | D51: 3500
B52: 0 | C52: 1000000 | D52: 3500
B54: Kumulált limitek
B55: Haláleseti | C55: WOP BÖ (tartam*éves díj => haláleseti) + halálesetik
B56: Rokkantsági | C56: roki limitek

Sheet Y8111 tariffs (hidden)
A1: Belépési kor / Tartam | B1: 5 | C1: 6 | D1: 7 | E1: 8 | F1: 9 | G1: 10 | H1: 11 | I1: 12 | J1: 13 | K1: 14 | L1: 15 | M1: 16 | N1: 17 | O1: 18 | P1: 19 | Q1: 20
A2: 18 | B2: 0.0040991835 | C2: 0.0046451277 | D2: 0.0052028865 | E2: 0.0057658633 | F2: 0.0063316549 | G2: 0.0068991073 | H2: 0.007467354 | I2: 0.0080357817 | J2: 0.0086039493 | K2: 0.0091714421 | L2: 0.0097380367 | M2: 0.0103036205 | N2: 0.0109462387 | O2: 0.0115901351 | P2: 0.0122340315 | Q2: 0.0128779279
A3: 19 | B3: 0.0046422931 | C3: 0.0052590055 | D3: 0.0058863568 | E3: 0.0065187594 | F3: 0.007153879 | G3: 0.0077902555 | H3: 0.0084269594 | I3: 0.009063364 | J3: 0.0096989035 | K3: 0.0103332938 | L3: 0.0109663919 | M3: 0.0115982508 | N3: 0.012240712 | O3: 0.0129607539 | P3: 0.0136807958 | Q3: 0.0144008377
A4: 20 | B4: 0.0052200319 | C4: 0.0059019981 | D4: 0.0065957304 | E4: 0.007295165 | F4: 0.0079972214 | G4: 0.0087002282 | H4: 0.0094031749 | I4: 0.0101052209 | J4: 0.0108059667 | K4: 0.0115052217 | L4: 0.0122030501 | M4: 0.0128995944 | N4: 0.013595069 | O4: 0.0143346343 | P4: 0.0151310029 | Q4: 0.0159273715
A5: 21 | B5: 0.0055017146 | C5: 0.0062172637 | D5: 0.0069454368 | E5: 0.0076791355 | F5: 0.0084151037 | G5: 0.0091516528 | H5: 0.0098875567 | I5: 0.010622262 | J5: 0.0113555123 | K5: 0.0120873793 | L5: 0.012818009 | M5: 0.0135476163 | N5: 0.0142910811 | O5: 0.0151317329 | P5: 0.0159723847 | Q5: 0.0168130366
A6: 22 | B6: 0.0058446618 | C6: 0.0065989588 | D6: 0.0073666212 | E6: 0.0081398572 | F6: 0.0089152082 | G6: 0.0096906117 | H6: 0.01046519 | I6: 0.0112385396 | J6: 0.0120107053 | K6: 0.0127818272 | L6: 0.0135521105 | M6: 0.0143217649 | N6: 0.0151831617 | O6: 0.0160762889 | P6: 0.016969416 | Q6: 0.0178625432
A7: 23 | B7: 0.0060956701 | C7: 0.006882198 | D7: 0.0076822243 | E7: 0.0084876853 | F7: 0.0092946544 | G7: 0.0101015898 | H7: 0.0109078093 | I7: 0.011713271 | J7: 0.0125180651 | K7: 0.0133223678 | L7: 0.0141263449 | M7: 0.0150289899 | N7: 0.0159683018 | O7: 0.0169076137 | P7: 0.0178469256 | Q7: 0.0187862374
A8: 24 | B8: 0.0063417311 | C8: 0.0071661269 | D8: 0.0080032864 | E8: 0.0088447911 | F8: 0.0096875874 | G8: 0.0105304395 | H8: 0.0113731326 | I8: 0.0122156604 | J8: 0.0130581379 | K8: 0.013900678 | L8: 0.0148568751 | M8: 0.0158473334 | N8: 0.0168377917 | O8: 0.0178282501 | P8: 0.0188187084 | Q8: 0.0198091668
A9: 25 | B9: 0.0069832781 | C9: 0.0078825218 | D9: 0.0087947527 | E9: 0.0097119395 | F9: 0.0106310268 | G9: 0.0115511944 | H9: 0.0124721425 | I9: 0.0133938172 | J9: 0.0143162043 | K9: 0.0152430635 | L9: 0.0163318537 | M9: 0.017420644 | N9: 0.0185094342 | O9: 0.0195982244 | P9: 0.0206870147 | Q9: 0.0217758049
A10: 26 | B10: 0.0075549096 | C10: 0.0085221183 | D10: 0.0095042109 | E10: 0.0104926542 | F10: 0.0114847086 | G10: 0.0124792466 | H10: 0.01347579 | I10: 0.0144740412 | J10: 0.0154737918 | K10: 0.0165788167 | L10: 0.0177630179 | M10: 0.0189472191 | N10: 0.0201314202 | O10: 0.0213156214 | P10: 0.0224998226 | Q10: 0.0236840238
A11: 27 | B11: 0.008145803 | C11: 0.0091894911 | D11: 0.0102504992 | E11: 0.0113203015 | F11: 0.0123954982 | G11: 0.013474626 | H11: 0.0145568454 | I11: 0.0156415983 | J11: 0.0167666183 | K11: 0.0180563581 | L11: 0.019346098 | M11: 0.0206358379 | N11: 0.0219255777 | O11: 0.0232153176 | P11: 0.0245050575 | Q11: 0.0257947973
A12: 28 | B12: 0.0089597751 | C12: 0.0101096328 | D12: 0.0112811716 | E12: 0.0124641359 | F12: 0.0136543916 | G12: 0.0148498921 | H12: 0.0160494271 | I12: 0.0172522822 | J12: 0.0185884952 | K12: 0.0200183794 | L12: 0.0214482637 | M12: 0.0228781479 | N12: 0.0243080321 | O12: 0.0257379164 | P12: 0.0271678006 | Q12: 0.0285976849
A13: 29 | B13: 0.0099857565 | C13: 0.0112744901 | D13: 0.0125892062 | E13: 0.0139179611 | F13: 0.0152556182 | G13: 0.0165995898 | H13: 0.017948464 | I13: 0.0193012699 | J13: 0.0208637125 | K13: 0.0224686135 | L13: 0.0240735145 | M13: 0.0256784154 | N13: 0.0272833164 | O13: 0.0288882174 | P13: 0.0304931183 | Q13: 0.0320980193
A14: 30 | B14: 0.0112595791 | C14: 0.0127256586 | D14: 0.0142216647 | E14: 0.01573376 | F14: 0.0172559687 | G14: 0.0187854446 | H14: 0.0203204589 | I14: 0.0218599547 | J14: 0.0236603904 | K14: 0.0254804204 | L14: 0.0273004504 | M14: 0.0291204805 | N14: 0.0309405105 | O14: 0.0327605405 | P14: 0.0345805706 | Q14: 0.0364006006
A15: 31 | B15: 0.0130376619 | C15: 0.0147404756 | D15: 0.0164780362 | E15: 0.0182341734 | F15: 0.0200021503 | G15: 0.0217785074 | H15: 0.0235613217 | I15: 0.0253493537 | J15: 0.0273452474 | K15: 0.029448728 | L15: 0.0315522086 | M15: 0.0336556891 | N15: 0.0357591697 | O15: 0.0378626503 | P15: 0.0399661308 | Q15: 0.0420696114
A16: 32 | B16: 0.0150872911 | C16: 0.0170625601 | D16: 0.0190775796 | E16: 0.0211141291 | F16: 0.0231642406 | G16: 0.0252240675 | H16: 0.0272913798 | I16: 0.0293646263 | J16: 0.0315454771 | K16: 0.0339720523 | L16: 0.0363986274 | M16: 0.0388252026 | N16: 0.0412517777 | O16: 0.0436783529 | P16: 0.0461049281 | Q16: 0.0485315032
A17: 33 | B17: 0.0175028417 | C17: 0.0197915477 | D17: 0.0221269031 | E17: 0.0244873339 | F17: 0.0268637516 | G17: 0.0292516236 | H17: 0.031648154 | I17: 0.0340515771 | J17: 0.0364605221 | K17: 0.0391752197 | L17: 0.0419734496 | M17: 0.0447716796 | N17: 0.0475699096 | O17: 0.0503681396 | P17: 0.0531663695 | Q17: 0.0559645995
A18: 34 | B18: 0.0200210198 | C18: 0.0226404933 | D18: 0.0253133587 | E18: 0.0280152546 | F18: 0.030735685 | G18: 0.0334691624 | H18: 0.0362125462 | I18: 0.0389635853 | J18: 0.0417208169 | K18: 0.0446331066 | L18: 0.0478211856 | M18: 0.0510092647 | N18: 0.0541973437 | O18: 0.0573854228 | P18: 0.0605735018 | Q18: 0.0637615808
A19: 35 | B19: 0.0227775085 | C19: 0.0257575325 | D19: 0.0287989845 | E19: 0.0318739254 | F19: 0.0349699308 | G19: 0.0380808349 | H19: 0.0412027283 | I19: 0.0443332005 | J19: 0.0474706099 | K19: 0.0506138231 | L19: 0.054175935 | M19: 0.057787664 | N19: 0.061399393 | O19: 0.065011122 | P19: 0.068622851 | Q19: 0.07223458
A20: 36 | B20: 0.0256921054 | C20: 0.0290563553 | D20: 0.0324903772 | E20: 0.0359620173 | F20: 0.0394574462 | G20: 0.0429692512 | H20: 0.0464932664 | I20: 0.0500268147 | J20: 0.0535681154 | K20: 0.0571157065 | L20: 0.0609036092 | M20: 0.0649638498 | N20: 0.0690240904 | O20: 0.073084331 | P20: 0.0771445716 | Q20: 0.0812048122
A21: 37 | B21: 0.0288356213 | C21: 0.032614591 | D21: 0.0364714599 | E21: 0.0403705653 | F21: 0.0442957534 | G21: 0.0482390964 | H21: 0.0521959838 | I21: 0.0561635095 | J21: 0.0601394232 | K21: 0.0641220604 | L21: 0.0681199444 | M21: 0.072661274 | N21: 0.0772026036 | O21: 0.0817439332 | P21: 0.0862852629 | Q21: 0.0908265925
A22: 38 | B22: 0.0322306319 | C22: 0.0364542667 | D22: 0.0407651834 | E22: 0.0451225477 | F22: 0.0495089053 | G22: 0.0539154629 | H22: 0.058337181 | I22: 0.0627704449 | J22: 0.0672127039 | K22: 0.0716621018 | L22: 0.0761172385 | M22: 0.0809009566 | N22: 0.0859572664 | O22: 0.0910135762 | P22: 0.096069886 | Q22: 0.1011261958
A23: 39 | B23: 0.0357391812 | C23: 0.0404251316 | D23: 0.0452064969 | E23: 0.0500391448 | F23: 0.0549038547 | G23: 0.0597910392 | H23: 0.0646945929 | I23: 0.0696104723 | J23: 0.0745358639 | K23: 0.079468722 | L23: 0.0844076764 | M23: 0.089436631 | N23: 0.0950264204 | O23: 0.1006162098 | P23: 0.1062059993 | Q23: 0.1117957887
A24: 40 | B24: 0.039503255 | C24: 0.0446787709 | D24: 0.0499599787 | E24: 0.0552981238 | F24: 0.0606720829 | G24: 0.0660704452 | H24: 0.0714863943 | I24: 0.0769154698 | J24: 0.0823545695 | K24: 0.0878016668 | L24: 0.0932553497 | M24: 0.0987147356 | N24: 0.1046642865 | O24: 0.1108210093 | P24: 0.116977732 | Q24: 0.1231344548
A25: 41 | B25: 0.0433495518 | C25: 0.0490268128 | D25: 0.0548206871 | E25: 0.0606777483 | F25: 0.0665735724 | G25: 0.0724955588 | H25: 0.0784362514 | I25: 0.0843907718 | J25: 0.0903560316 | K25: 0.0963299343 | L25: 0.1023110916 | M25: 0.1082986576 | N25: 0.1145544737 | O25: 0.1212929721 | P25: 0.1280314706 | Q25: 0.134769969
A26: 42 | B26: 0.0472918133 | C26: 0.0534871014 | D26: 0.0598105536 | E26: 0.0662020559 | F26: 0.0726349638 | G26: 0.0790956253 | H26: 0.0855759613 | I26: 0.0920710933 | J26: 0.0985778188 | K26: 0.1050940548 | L26: 0.1116184356 | M26: 0.1181500885 | N26: 0.1247512165 | O26: 0.1320895234 | P26: 0.1394278303 | Q26: 0.1467661371
A27: 43 | B27: 0.0514842863 | C27: 0.0582294466 | D27: 0.0651128902 | E27: 0.0720692996 | F27: 0.0790698492 | G27: 0.0860997661 | H27: 0.0931508622 | I27: 0.1002180259 | J27: 0.1072980169 | K27: 0.1143887374 | L27: 0.121488744 | M27: 0.1285969656 | N27: 0.135712613 | O27: 0.1435185906 | P27: 0.1514918456 | Q27: 0.1594651006
A28: 44 | B28: 0.0557451311 | C28: 0.0630543033 | D28: 0.0705109039 | E28: 0.078044955 | F28: 0.0856255663 | G28: 0.0932376732 | H28: 0.1008726908 | I28: 0.1085254069 | J28: 0.1161925203 | K28: 0.1238717974 | L28: 0.1315615061 | M28: 0.139260291 | N28: 0.1469670702 | O28: 0.1552440358 | P28: 0.1638687044 | Q28: 0.1724933731
A29: 45 | B29: 0.0604400389 | C29: 0.0683573509 | D29: 0.0764330599 | E29: 0.0845916287 | F29: 0.0928007776 | G29: 0.101044422 | H29: 0.1093135865 | I29: 0.1176028106 | J29: 0.1259084967 | K29: 0.1342279543 | L29: 0.142559024 | M29: 0.15089993 | N29: 0.1592494402 | O29: 0.1679601821 | P29: 0.1772913033 | Q29: 0.1866224246
A30: 46 | B30: 0.0652311529 | C30: 0.0737671244 | D30: 0.0824732767 | E30: 0.0912696254 | F30: 0.1001214397 | G30: 0.109011661 | H30: 0.1179307402 | I30: 0.1268726711 | J30: 0.1358331602 | K30: 0.1448089092 | L30: 0.1537971836 | M30: 0.1627959927 | N30: 0.1718040384 | O30: 0.1810184402 | P30: 0.1910750202 | Q30: n/a
A31: 47 | B31: 0.0701759086 | C31: 0.079349115 | D31: 0.0887075353 | E31: 0.0981647221 | F31: 0.1076834562 | G31: 0.1172453942 | H31: 0.1268399921 | I31: 0.1364601744 | J31: 0.1461007805 | K31: 0.1557577385 | L31: 0.165428025 | M31: 0.1751095502 | N31: 0.1848008873 | O31: 0.1945869417 | P31: n/a | Q31: n/a
A32: 48 | B32: 0.07514634 | C32: 0.0849748547 | D32: 0.0950035178 | E32: 0.1051400423 | F32: 0.1153445983 | G32: 0.1255971736 | H32: 0.1358856724 | I32: 0.1462018522 | J32: 0.156539565 | K32: 0.166894407 | L32: 0.1772632542 | M32: 0.1876438636 | N32: 0.1980346226 | O32: n/a | P32: n/a | Q32: n/a
A33: 49 | B33: 0.080650983 | C33: 0.0912044651 | D33: 0.1019754938 | E33: 0.1128649199 | F33: 0.1238294122 | G33: 0.1348463802 | H33: 0.1459019951 | I33: 0.1569866559 | J33: 0.1680937804 | K33: 0.1792188401 | L33: 0.1903585098 | M33: 0.2015103006 | N33: n/a | O33: n/a | P33: n/a | Q33: n/a
A34: 50 | B34: 0.0865852891 | C34: 0.0979259072 | D34: 0.1095029889 | E34: 0.1212093359 | F34: 0.132996967 | G34: 0.1448406049 | H34: 0.1567245247 | I34: 0.1686385675 | J34: 0.180576009 | K34: 0.192532073 | L34: 0.2045031206 | M34: n/a | N34: n/a | O34: n/a | P34: n/a | Q34: n/a
A35: 51 | B35: 0.0930175661 | C35: 0.1052156595 | D35: 0.1176696372 | E35: 0.1302625723 | F35: 0.1429417833 | G35: 0.1556791459 | H35: 0.1684581638 | I35: 0.1812684925 | J35: 0.1941030809 | K35: 0.2069567474 | L35: n/a | M35: n/a | N35: n/a | O35: n/a | P35: n/a | Q35: n/a
A36: 52 | B36: 0.1000959256 | C36: 0.1132309012 | D36: 0.126640869 | E36: 0.1401986368 | F36: 0.1538463785 | G36: 0.1675545719 | H36: 0.1813063213 | I36: 0.1950907476 | J36: 0.2089002025 | K36: n/a | L36: n/a | M36: n/a | N36: n/a | O36: n/a | P36: n/a | Q36: n/a
A37: 53 | B37: 0.1074904029 | C37: 0.1216047424 | D37: 0.1360110555 | E37: 0.1505717737 | F37: 0.165226253 | G37: 0.1799441201 | H37: 0.1947076012 | I37: 0.2095049355 | J37: n/a | K37: n/a | L37: n/a | M37: n/a | N37: n/a | O37: n/a | P37: n/a | Q37: n/a
A38: 54 | B38: 0.1153254514 | C38: 0.1304647613 | D38: 0.1459114709 | E38: 0.1615205224 | F38: 0.1772287554 | G38: 0.1930039911 | H38: 0.208826965 | I38: n/a | J38: n/a | K38: n/a | L38: n/a | M38: n/a | N38: n/a | O38: n/a | P38: n/a | Q38: n/a
A39: 55 | B39: 0.1233938313 | C39: 0.1395740955 | D39: 0.1560801976 | E39: 0.1727593744 | F39: 0.1895442544 | G39: 0.2063999021 | H39: n/a | I39: n/a | J39: n/a | K39: n/a | L39: n/a | M39: n/a | N39: n/a | O39: n/a | P39: n/a | Q39: n/a
A40: 56 | B40: 0.1315139851 | C40: 0.1487366035 | D40: 0.1663077242 | E40: 0.1840639774 | F40: 0.2019324153 | G40: n/a | H40: n/a | I40: n/a | J40: n/a | K40: n/a | L40: n/a | M40: n/a | N40: n/a | O40: n/a | P40: n/a | Q40: n/a
A41: 57 | B41: 0.1396312237 | C41: 0.1579064332 | D41: 0.1765535314 | E41: 0.1953969141 | F41: n/a | G41: n/a | H41: n/a | I41: n/a | J41: n/a | K41: n/a | L41: n/a | M41: n/a | N41: n/a | O41: n/a | P41: n/a | Q41: n/a
A42: 58 | B42: 0.1480472344 | C42: 0.16742669 | D42: 0.1871996322 | E42: n/a | F42: n/a | G42: n/a | H42: n/a | I42: n/a | J42: n/a | K42: n/a | L42: n/a | M42: n/a | N42: n/a | O42: n/a | P42: n/a | Q42: n/a
A43: 59 | B43: 0.157018548 | C43: 0.1775836018 | D43: n/a | E43: n/a | F43: n/a | G43: n/a | H43: n/a | I43: n/a | J43: n/a | K43: n/a | L43: n/a | M43: n/a | N43: n/a | O43: n/a | P43: n/a | Q43: n/a
A44: 60 | B44: 0.1670659598 | C44: n/a | D44: n/a | E44: n/a | F44: n/a | G44: n/a | H44: n/a | I44: n/a | J44: n/a | K44: n/a | L44: n/a | M44: n/a | N44: n/a | O44: n/a | P44: n/a | Q44: n/a

Sheet Felhaszn. útmutató
A1: Az AXA Biztosító Zrt. Aktív Max befektetési egységekhez kötött nyugdíjbiztosítási termékének számlaérték kalkulátorának Felhasználói útmutatója
B4: Verzió: 2014.01.10
A5: 0. | B5: Makrók engedélyezése
B6: 0.1. | C6: Makrók engedélyezése - Office 2007-ben
B11: Kiválasztás: "Tartalom engedélyezése"
B33: 0.2. | C33: Makrók engedélyezése - Office 2010/2013-ban
B35: Kiválasztás: "Tartalom engedélyezése"
A43: 1. | B43: Felület használata
B45: Az oldalsó "+/-" jelekre kattintva lehet kinyitni/összecsukni a kívánt részeket
B58: Összecsukott állapotban is dinamikusan megjelennek az adott pont lényeges információi
B76: A munkafüzet egyes lapjai elrejthetőek
A79: 2. | B79: Adatok megadása
B80: A tarifáló felület a felhasználók érdekei miatt védett, így csak azokba a mezőkbe lehet írni, amelyek nem tartalmaznak képletet!
B82: A narancssárga hátterű mezőkbe lehet adatokat beírni
B91: Azok a megadott adatok, amelyek logikailag nem értelmezhetőek a kalkuláció során: szürke színnel kerülnek megjelölésre és nem kerülnek figyelembevételre
F96: Pl. Eseti egységekre adott allokációs rendelkezés csak akkor értelmezhető, ha meg lett adva eseti befizetés a kalkuláció során
B101: Azok a megadott adatok, amelyek a termék feltételek szerint hibásak, külön kerülnek megjelölésre a hiba rövid leírásával, ami összecsukott állapotban is látszik

Sheet Termékismertető

Sheet MainForm
A1: Jelen kalkulátor által megjelenített adatok, számítások, illetve bármilyen információk - sem elektronikus sem kinyomtatott, írásos formában - nem minősülnek ajánlatnak, illetve az ajánlat részének, valamint nem tekinthető a biztosítókról és a biztosítási tevékenységről szóló 2003. évi LX. törvény 166. § (2) bekezdése szerinti ügyfél tájékoztatásnak. A kalkulátor nagyfokú feltételezésen alapul, ezért a Biztosító jogilag nem tartozik sem közvetve sem közvetlenül vagy más módon felelősséggel a kalkulátor által bármilyen formában megjelentetett adatok, számítások, illetve bármilyen információk valódiságáért. A Biztosító semmilyen garanciát nem vállal az itt feltüntetett hozamok és számlaértékek eléréséért.
A5: ← | B5: =UPPER("Nyugdíj előtakarékosság célja") -> NYUGDÍJ ELŐTAKARÉKOSSÁG CÉLJA | F5: =IF( IF(LEN(D6)>0,1,0)+ IF(LEN(D8)>0,1,0)+ IF(LEN(D11)>0,1,0)+ IF(LEN(D13)>0,1,0) >0, IF(LEN(D6)>0,1,0)+ IF(LEN(D8)>0,1,0)+ IF(LEN(D11)>0,1,0)+ IF(LEN(D13)>0,1,0) &" hiba!","") -> 
A6: ↑ | B6: Kalkuláció beállítása: | C6: Öregségi nyugdíjkorhatár elérésekori számlaérték | D6: =IF(OR($C$6="Öregségi nyugdíjkorhatár elérésekori számlaérték",$C$6="Havi megtakarítási összeg",$C$6="Havi járadék célérték"),"","Kérem válasszon a listából!") ->  | E6: ↑
B7: =IF($D$6="","Kívánt "&LOWER($C$6)&":","Kalkuláció célértéke:") -> Kívánt öregségi nyugdíjkorhatár elérésekori számlaérték: | C7: 50000000
B8: Járadék hónapok száma: | C8: 120 | D8: =IF(MAX(MIN(C8,300),0)=C8,"","Kérem adja meg a kívánt járadék hónapok számát!") -> 
A9: ↑ | B9: Szerződő születési dátuma: | C9: 1960-01-01 | D9: =IF(C9="","Kérem adja meg a születési dátumot!", IF(DATEDIF(C9,TODAY(),"y")<18,"Min. kor: 18. betöltött életév", IF(DATEDIF(C9,TODAY(),"y")>54,"Max. kor: be nem betöltött 55. életév", ""))) ->  | E9: ↑
B10: Öregségi nyugdíjkorhatár elérése: | C10: =DATE(YEAR(C9)+65,MONTH(C9),DAY(C9)) -> 2025-01-01
B11: Megtakarítási időszak: | C11: =COUNTIF('Cash flow CALC'!$D:$D,"Nem") -> 131
B12: Kezdeti éves díj: | C12: =$C$31 -> 300000
A13: ↑ | B13: Megjelenítés: | C13: Nominális jövőérték | E13: ↑
B14: ="Megtakarítási időszak végi számlaérték:" -> Megtakarítási időszak végi számlaérték: | C14: =IF(C13="Nominális jövőérték",$C$177, IF(C13="Jelenérték",INDIRECT(ADDRESS($C$11+1,MATCH("DV",'Cash flow CALC'!$1:$1,0),1,1,"Cash flow CALC")), "n/a")) -> 5212284.85
B15: Havi járadék összeg: | C15: =IFERROR(IF($C$8>1,$C$177/$C$8*IF(C13="Jelenérték",INDIRECT(ADDRESS($C$11+1,MATCH(1,'Cash flow CALC'!$1:$1,0),1,1,"Cash flow CALC")),1),"n/a"),"n/a") -> 43435.70709
A16: ↑ | B16: A számított Havi járadék összege hozam feltételezés nélkül került kiszámításra. A kalkulált értékek jelenérték számítása során az évenkénti inflációs feltételezés megegyezik a megadott értékkövetés mértékével. A Kívánt öregségi nyugdíjkorhatár elérésekori számlaérték valamint a Havi járadék célérték elérésére, a Biztosító nem vállal garanciát a számítás során figyelembe vett nagyszámú feltételezés miatt, különös tekintettel a hozam feltételezésekre. | E16: ↑
A18: ↑ | E18: ↑
A20: ↑ | B20: ↑ | C20: ↑ | D20: ↑ | E20: ↑
A21: ← | B21: =UPPER("Szerződés adatai ("&IF($C$24<>"",$C$24,"n/a")&" - "&$C$25&")") -> SZERZŐDÉS ADATAI (JÁNOS VITÉZ - HUF) | F21: =IF( IF(LEN(D23)>0,1,0)+ IF(LEN(D24)>0,1,0)+ IF(LEN(D25)>0,1,0)+ IF(LEN(D26)>0,1,0) >0, IF(LEN(D23)>0,1,0)+ IF(LEN(D24)>0,1,0)+ IF(LEN(D25)>0,1,0)+ IF(LEN(D26)>0,1,0)&" hiba!","") -> 
A22: ↑ | B22: Dátum: | C22: =TODAY() -> 2014-02-18 | E22: ↑
B23: Szerződő típusa: | C23: Természetes személy | D23: =IF(OR($C$23="Természetes személy",$C$23="Jogi személy"),"","Kérem válasszon a listából!") -> 
B24: Szerződő neve: | C24: János Vitéz | D24: =IF($C$24<>"","","Kérem adja meg a Szerződő nevét!") -> 
B25: Szerződés devizája: | C25: HUF | D25: =IF(OR($C$25="HUF",$C$25="EUR"),"","Kérem válasszon a listából devizanemet!") -> 
A26: ↑ | B26: EUR eladási árfolyam: | C26: 301.23 | D26: =IF($C$26>0,"","Kérem adja meg az EUR átváltási árfolyamot") ->  | E26: ↑
B27: ↑ | C27: ↑ | D27: ↑
A28: ← | B28: =UPPER("Díjfizetési adatok ("&IF(C31<>0,TEXT(C31,"# ##0"),"n/a")&" Ft" &IF(Devizanem="EUR"," / "&TEXT($C$32,"# ##0"" €"""),"")& " éves díj; "&C36*100&"% értékkövetés; "&C35&"; "&C30&IF(SUM(C48:C94)>0,"; ∑: "&TEXT(SUM(C48:C94),"# ##0 Ft")&" eseti díj","")&")") -> DÍJFIZETÉSI ADATOK (300 000 FT ÉVES DÍJ; 4% ÉRTÉKKÖVETÉS; POSTAI CSEKK; HAVI) | C28: -5.39186078e+49 | F28: =IF( IF(LEN(D29)>0,1,0)+ IF(LEN(D30)>0,1,0)+ IF(LEN(D31)>0,1,0)+ IF(LEN(D33)>0,1,0)+ IF(LEN(D34)>0,1,0)+ IF(LEN(D36)>0,1,0)+ IF(LEN(D35)>0,1,0)+ IF(LEN(D37)>0,1,0)+ IF(LEN(D48)>0,1,0)+ IF(LEN(D49)>0,1,0)+ IF(LEN(D50)>0,1,0)+ IF(LEN(D51)>0,1,0)+ IF(LEN(D52)>0,1,0)+ IF(LEN(D53)>0,1,0)+ IF(LEN(D54)>0,1,0)+ IF(LEN(D55)>0,1,0)+ IF(LEN(D56)>0,1,0)+ IF(LEN(D57)>0,1,0)+ IF(LEN(D58)>0,1,0)+ IF(LEN(D59)>0,1,0)+ IF(LEN(D60)>0,1,0)+ IF(LEN(D61)>0,1,0)+ IF(LEN(D62)>0,1,0)+ IF(LEN(D63)>0,1,0)+ IF(LEN(D64)>0,1,0)+ IF(LEN(D65)>0,1,0)+ IF(LEN(D66)>0,1,0)+ IF(LEN(D67)>0,1,0)+ IF(LEN(D68)>0,1,0)+ IF(LEN(D69)>0,1,0)+ IF(LEN(D70)>0,1,0)+ IF(LEN(D71)>0,1,0)+ IF(LEN(D72)>0,1,0)+ IF(LEN(D74)>0,1,0)+ IF(LEN(D76)>0,1,0)+ IF(LEN(D77)>0,1,0)+ IF(LEN(D78)>0,1,0)+ IF(LEN(D79)>0,1,0)+ IF(LEN(D80)>0,1,0)+ IF(LEN(D81)>0,1,0)+ IF(LEN(D82)>0,1,0)+ IF(LEN(D83)>0,1,0)+ IF(LEN(D84)>0,1,0)+ IF(LEN(D85)>0,1,0)+ IF(LEN(D86)>0,1,0)+ IF(LEN(D87)>0,1,0)+ IF(LEN(D88)>0,1,0)+ IF(LEN(D89)>0,1,0)+ IF(LEN(D90)>0,1,0)+ IF(LEN(D91)>0,1,0)+ IF(LEN(D92)>0,1,0)+ IF(LEN(D93)>0,1,0)+ IF(LEN(D94)>0,1,0) >0, IF(LEN(D29)>0,1,0)+ IF(LEN(D30)>0,1,0)+ IF(LEN(D31)>0,1,0)+ IF(LEN(D33)>0,1,0)+ IF(LEN(D34)>0,1,0)+ IF(LEN(D36)>0,1,0)+ IF(LEN(D35)>0,1,0)+ IF(LEN(D37)>0,1,0)+ IF(LEN(D48)>0,1,0)+ IF(LEN(D49)>0,1,0)+ IF(LEN(D50)>0,1,0)+ IF(LEN(D51)>0,1,0)+ IF(LEN(D52)>0,1,0)+ IF(LEN(D53)>0,1,0)+ IF(LEN(D54)>0,1,0)+ IF(LEN(D55)>0,1,0)+ IF(LEN(D56)>0,1,0)+ IF(LEN(D57)>0,1,0)+ IF(LEN(D58)>0,1,0)+ IF(LEN(D59)>0,1,0)+ IF(LEN(D60)>0,1,0)+ IF(LEN(D61)>0,1,0)+ IF(LEN(D62)>0,1,0)+ IF(LEN(D63)>0,1,0)+ IF(LEN(D64)>0,1,0)+ IF(LEN(D65)>0,1,0)+ IF(LEN(D66)>0,1,0)+ IF(LEN(D67)>0,1,0)+ IF(LEN(D68)>0,1,0)+ IF(LEN(D69)>0,1,0)+ IF(LEN(D70)>0,1,0)+ IF(LEN(D71)>0,1,0)+ IF(LEN(D72)>0,1,0)+ IF(LEN(D74)>0,1,0)+ IF(LEN(D76)>0,1,0)+ IF(LEN(D77)>0,1,0)+ IF(LEN(D78)>0,1,0)+ IF(LEN(D79)>0,1,0)+ IF(LEN(D80)>0,1,0)+ IF(LEN(D81)>0,1,0)+ IF(LEN(D82)>0,1,0)+ IF(LEN(D83)>0,1,0)+ IF(LEN(D84)>0,1,0)+ IF(LEN(D85)>0,1,0)+ IF(LEN(D86)>0,1,0)+ IF(LEN(D87)>0,1,0)+ IF(LEN(D88)>0,1,0)+ IF(LEN(D89)>0,1,0)+ IF(LEN(D90)>0,1,0)+ IF(LEN(D91)>0,1,0)+ IF(LEN(D92)>0,1,0)+ IF(LEN(D93)>0,1,0)+ IF(LEN(D94)>0,1,0) &" hiba!","") -> 
A29: ↑ | B29: Gyakoriság szerinti díj: | C29: 25000 | D29: =IF(C29>0,"","Kérem adja meg a gyakoriság szerinti díjat!") ->  | E29: ↑
B30: Fizetési gyakoriság: | C30: Havi | D30: =IFERROR(IF(VLOOKUP(C30,'CF parameters'!A1:B5,2,FALSE)>0,"","n/a"),"Kérem válasszon a listából díjfizetési gyakoriságot!") -> 
B31: Éves biztosítási díj: | C31: =IFERROR(VLOOKUP($C$30,'CF parameters'!A1:C5,2,FALSE)*$C$29,"n/a") -> 300000 | D31: =IF(C31<150000,"Minimális éves díj: 150 000 Ft!", IF(AND(DATEDIF(C9,TODAY(),"y")>50,C31<300000),"Minimális éves díj betöltött 51. életév felett: 300 000 Ft!", "")) -> 
A32: ↑ | B32: Éves biztosítási díj a szerződés devizájában: | C32: =C31/Exhange_rate -> 300000 | E32: ↑
B33: Kiegészítők éves biztosítási díja: | C33: =$C$231 -> 0
B34: Kiegészítő biztosítások aránya: | C34: =IFERROR(C33/C32,"n/a") -> 0 | D34: =IF(AND(ISNUMBER(C34),C34>0.2),"Kiegészítő biztosítások aránya maximum 20%!","") -> 
A35: ↑ | B35: Fizetési mód: | C35: Postai csekk | D35: =IF(OR($C$35="Postai csekk",$C$35="Banki utalás",$C$35="Csoportos beszedés"),"","Kérem válasszon a listából!") ->  | E35: ↑
B36: Állandó értékkövetés mértéke: | C36: 0.04 | D36: =IF(C36>0,"","Kérem válasszon a listából!") -> 
B37: Adó jóváírás igénybevétele: | C37: Igen | D37: =IF(OR(C37="Igen",C37="Nem"),"","Kérem válasszon a listából!") -> 
A38: ↑ | B38: ="Lehetséges SZJA adójóváírás mértéke "&YEAR(TODAY())+1&"-ben:" -> Lehetséges SZJA adójóváírás mértéke 2015-ben: | C38: =MIN(SUM(IF(YEAR('Cash flow CALC'!$C$2:$C$565)=YEAR(TODAY()),'Cash flow CALC'!$F$2:$F$565,0))*0.2,130000) -> 55000 | E38: ↑
B39: ="Adójóváírások mértéke összesen"&IF(ISNUMBER(IFERROR($C$11/12,"n/a"))," ("&ROUNDDOWN($C$11/12,0)&" év alatt)","")&":" -> Adójóváírások mértéke összesen (10 év alatt): | C39: =SUM(INDIRECT(ADDRESS(1,MATCH("TAX CREDIT",'Cash flow CALC'!$1:$1,0),1,1,"Cash flow CALC")):INDIRECT(ADDRESS(C11,MATCH("TAX CREDIT",'Cash flow CALC'!$1:$1,0),1,1,"Cash flow CALC")))*Exhange_rate -> 713249.8683
B40: Az adójóváírás eseti befektetési egységként a termék Különös feltételeinek 2. sz. mellékletében szereplő, a Biztosító által legkisebb kockázatúnak ítélt alapba kerül befektetésre. Az alábbi esetekben a biztosítási tartam alatt igénybe vett adójóváírás teljes összege 20%-kal növelten fizetendő vissza, ha: a szerződés nem biztosítási esemény miatt szűnik meg (visszavásárlás, díjnemfizetés), a szerződésről pénzkivonás történik, vagy a szerződés a továbbiakban nem minősül nyugdíjbiztosításnak (különösen a társadalombiztosítási nyugellátásról szóló jogszabály szerinti nyugdíjszolgáltatásra való jogosultságának megszerzése, ha a biztosítási szolgáltatás a szerződéskötéstől számított 10 éven belül, egyösszegben kerül kifizetésre.) A visszafizetendő összeget a Biztosító a kifizetésekből a fenti esetekben levonja. Amennyiben a kifizetés nem nyújt teljes mértékben fedezetet a levonásra, a le nem vonható részt a Szerződő köteles megfizetni az adóhatóság felé. "Az adójóváírás mértéke összesen" számítás azon a feltételezésen alapul, hogy a vonatkozó adójogszabályok nem változnak, és az ügyfél nem veszti el a szerződésre vonatkozóan az adójóváírásra való jogosultságot.
A41: ↑ | E41: ↑
A44: ↑ | E44: ↑
A47: ↑ | B47: ← | C47: =UPPER("Eseti díjak"&IF(SUM(C48:C94)>0," (∑: "&TEXT(SUM(C48:C94),"# ##0 Ft")&")","")) -> ESETI DÍJAK | E47: ↑
B48: Eseti díj befizetés kötvényesítéskor: | C48: 0 | D48: =IF(C48="","Kérem adjon meg legalább 0 (nulla) értéket!", IF(AND(C48>0,C48<20000),"Eseti díj befizetés minimuma: 20 000 Ft","")) -> 
B49: 1 | C49: 0 | D49: =IF(AND(C49>0,C49<20000),"Eseti díj befizetés minimuma: 20 000 Ft","") -> 
A50: ↑ | B50: 2 | C50: 0 | E50: ↑
B51: 3 | C51: 0
B52: 4 | C52: 0
B53: 5 | C53: 0
B54: 6 | C54: 0
A55: ↑ | B55: 7 | C55: 0 | E55: ↑
B56: 8 | C56: 0
B57: 9 | C57: 0
B58: 10 | C58: 0
B59: 11 | C59: 0
A60: ↑ | B60: 12 | C60: 0 | E60: ↑
B61: 13 | C61: 0
B62: 14 | C62: 0
B63: 15 | C63: 0 | D63: =IF(AND(C63>0,C63<20000),"Eseti díj befizetés minimuma: 20 000 Ft","") -> 
B64: 16 | C64: 0
A65: ↑ | B65: 17 | C65: 0 | E65: ↑
B66: 18 | C66: 0
B67: 19 | C67: 0
B68: 20 | C68: 0
B69: 21 | C69: 0
A70: ↑ | B70: 22 | C70: 0 | E70: ↑
B71: 23 | C71: 0
B72: 24 | C72: 0
B73: 25 | C73: 0
B74: 26 | C74: 0
A75: ↑ | B75: 27 | C75: 0 | E75: ↑
B76: 28 | C76: 0
B77: 29 | C77: 0
B78: 30 | C78: 0
B79: 31 | C79: 0
A80: ↑ | B80: 32 | C80: 0 | E80: ↑
B81: 33 | C81: 0
B82: 34 | C82: 0
B83: 35 | C83: 0 | D83: =IF(AND(C83>0,C83<20000),"Eseti díj befizetés minimuma: 20 000 Ft","") -> 
B84: 36 | C84: 0
A85: ↑ | B85: 37 | C85: 0 | E85: ↑
B86: 38 | C86: 0
B87: 39 | C87: 0
B88: 40 | C88: 0 | D88: =IF(AND(C88>0,C88<20000),"Eseti díj befizetés minimuma: 20 000 Ft","") -> 
B89: 41 | C89: 0
A90: ↑ | B90: 42 | C90: 0 | E90: ↑
B91: 43 | C91: 0
B92: 44 | C92: 0
B93: 45 | C93: 0
B94: 46 | C94: 0
A95: ↑ | B95: ↑ | C95: ↑ | D95: ↑ | E95: ↑
A96: ← | B96: =UPPER(IFERROR("Bónusz jóváírások (∑: "& IF(Devizanem="HUF",TEXT(ROUND(C103,0),"# ##0 Ft"), IF(Devizanem="EUR",TEXT(ROUND(C103,0),"# ##0"" €"""), "n/a"))&" kezdeti éves díj " &ROUND(C104,2)*100&"%-a)","Bónusz jóváírások")) -> BÓNUSZ JÓVÁÍRÁSOK (∑: 1 864 571 FT KEZDETI ÉVES DÍJ 622%-A)
A97: ↑ | B97: Induló bónusz: | C97: ='Cash flow CALC'!$Q$2 -> 60000 | D97: =IFERROR("Kezdeti éves díj "&TEXT(VLOOKUP(C31,'CF parameters'!J2:K6,2,TRUE),"0%")&"-a","Éves díjtól függő %-os érték") -> Kezdeti éves díj 20%-a | E97: ↑
B98: 5. éves hűségbónusz: | C98: ='Cash flow CALC'!$Q$61 -> 97493.80608 | D98: ="5 év átlagos éves díjának "&TEXT('CF parameters'!H2,"0%")&"-a" -> 5 év átlagos éves díjának 30%-a
B99: 10. éves hűségbónusz: | C99: ='Cash flow CALC'!$Q$121 -> 360183.2137 | D99: ="10 év átlagos éves díjának "&TEXT('CF parameters'!H3,"0%")&"-a" -> 10 év átlagos éves díjának 100%-a
A100: ↑ | B100: 15. éves hűségbónusz: | C100: ='Cash flow CALC'!$Q$181 -> 400471.7528 | D100: ="15 év átlagos éves díjának "&TEXT('CF parameters'!H4,"0%")&"-a" -> 15 év átlagos éves díjának 100%-a | E100: ↑
B101: 20. éves hűségbónusz: | C101: ='Cash flow CALC'!$Q$241 -> 446671.1786 | D101: ="20 év átlagos éves díjának "&TEXT('CF parameters'!H5,"0%")&"-a" -> 20 év átlagos éves díjának 100%-a
B102: 25. éves hűségbónusz: | C102: ='Cash flow CALC'!$Q$301 -> 499750.8994 | D102: ="25 év átlagos éves díjának "&TEXT('CF parameters'!H6,"0%")&"-a" -> 25 év átlagos éves díjának 100%-a
A103: ↑ | B103: Bónusz jóváírások összesen: | C103: =SUM($C$97:$C$102) -> 1864570.851 | E103: ↑
B104: Bónusz jóváírások az 1. éves díjhoz képest: | C104: =IFERROR($C$103*Exhange_rate/$C$31,"n/a") -> 6.215236169
B105: ="Adójóváírások mértéke összesen"&IF(ISNUMBER(IFERROR($C$11/12,"n/a"))," ("&ROUNDDOWN($C$11/12,0)&" év alatt)","")&":" -> Adójóváírások mértéke összesen (10 év alatt): | C105: =SUM(INDIRECT(ADDRESS(1,MATCH("TAX CREDIT",'Cash flow CALC'!$1:$1,0),1,1,"Cash flow CALC")):INDIRECT(ADDRESS(C11,MATCH("TAX CREDIT",'Cash flow CALC'!$1:$1,0),1,1,"Cash flow CALC"))) -> 713249.8683
B106: A feltüntetett hűségbónusz jóváírások alapja a szerződés kezdetétől számított, a jóváírás napjáig befizetett és befektetett rendszeres díjak - az esetleges pénzkivonások értékével csökkentett összegének - évesített átlaga. Ennek megfelelően a várható hűségbónusz jóváírásokat módosítják az alábbi rendelkezések: éves díj módosítása, értékkövetés módosítása, díjszüneteltetés, visszavásárlás rendszeres egységekből. A kalkulátor a biztosítás teljes tartama alatt mindvégig számol a befizetések után jelenleg igénybe vehető 20%-os SZJA-kedvezménnyel évente legfeljebb 130 000 Ft összeghatárig. Az igénybevett SZJA-adókedvezményt a Biztosító eseti egységek formájában tartja nyilván és az eseti befizetésekre vonatkozó feltételeket alkalmazza. A kalkulátor a jóváírással minden évben a szerződés júniusi hónapfordulóján számol.
A107: ↑ | E107: ↑
A112: ↑ | B112: ↑ | C112: ↑ | D112: ↑ | E112: ↑
A113: ← | B113: =UPPER("Eszközalap allokáció (rendszeres díjak: "& IF(Devizanem="HUF",C116, IF(Devizanem="EUR",C131, "n/a"))&" válogatás"& IF(SUM(C48:C94)>0,"; eseti díjak: "& IF(Devizanem="HUF",C141, IF(Devizanem="EUR",C156, "n/a"))& " válogatás",")")) -> ESZKÖZALAP ALLOKÁCIÓ (RENDSZERES DÍJAK: MEGFONTOLT VÁLOGATÁS) | F113: =IF( IF(LEN(D116)>0,1,0)+ IF(LEN(D131)>0,1,0)+ IF(LEN(D141)>0,1,0)+ IF(LEN(D156)>0,1,0) >0, IF(LEN(D116)>0,1,0)+ IF(LEN(D131)>0,1,0)+ IF(LEN(D141)>0,1,0)+ IF(LEN(D156)>0,1,0) &" hiba!","") -> 
A114: ↑ | B114: ← | C114: =UPPER(IF(Devizanem="HUF",C116&" ",IF(Devizanem="EUR",C131&" ",""))&"Eszközalap allokáció rendszeres díjakra") -> MEGFONTOLT ESZKÖZALAP ALLOKÁCIÓ RENDSZERES DÍJAKRA | E114: ↑
B115: HUF DEVIZANEM ESETÉN
B116: Eszközalap válogatás: | C116: Megfontolt | D116: =IF(AND(Devizanem="HUF",$C116="egyéni",SUM($D117:$D129)<>1),"A megadott rendelkezés nincs meg 100% ("&SUM($D117:$D129)*100&"%)!", IF(AND(Devizanem="HUF",$C116="egyéni",D129>0,C31<300000),"Iránytű eszközalap esetén min éves díj 300 000 Ft!","")) -> 
A117: ↑ | B117: Pénzpiaci | C117: =IFERROR(VLOOKUP(B117,Funds!$A$1:$F$14,MATCH($C$116,Funds!$A$1:$F$1,0),FALSE),"") -> 0.5 | D117: 0 | E117: ↑
B118: Hazai kötvény | C118: =IFERROR(VLOOKUP(B118,Funds!$A$1:$F$14,MATCH($C$116,Funds!$A$1:$F$1,0),FALSE),"") -> 0.3 | D118: 0
B119: Globális részvény | C119: =IFERROR(VLOOKUP(B119,Funds!$A$1:$F$14,MATCH($C$116,Funds!$A$1:$F$1,0),FALSE),"") -> 0.2 | D119: 0
A120: ↑ | B120: Auróra | C120: =IFERROR(VLOOKUP(B120,Funds!$A$1:$F$14,MATCH($C$116,Funds!$A$1:$F$1,0),FALSE),"") -> 0 | D120: 0 | E120: ↑
B121: Ázsiai | C121: =IFERROR(VLOOKUP(B121,Funds!$A$1:$F$14,MATCH($C$116,Funds!$A$1:$F$1,0),FALSE),"") -> 0 | D121: 0
B122: Dél Csillagai | C122: =IFERROR(VLOOKUP(B122,Funds!$A$1:$F$14,MATCH($C$116,Funds!$A$1:$F$1,0),FALSE),"") -> 0 | D122: 0
A123: ↑ | B123: Kincskereső | C123: =IFERROR(VLOOKUP(B123,Funds!$A$1:$F$14,MATCH($C$116,Funds!$A$1:$F$1,0),FALSE),"") -> 0 | D123: 0 | E123: ↑
B124: Arany | C124: =IFERROR(VLOOKUP(B124,Funds!$A$1:$F$14,MATCH($C$116,Funds!$A$1:$F$1,0),FALSE),"") -> 0 | D124: 0
B125: Ingatlan | C125: =IFERROR(VLOOKUP(B125,Funds!$A$1:$F$14,MATCH($C$116,Funds!$A$1:$F$1,0),FALSE),"") -> 0 | D125: 0
A126: ↑ | B126: Fashion Bond | C126: =IFERROR(VLOOKUP(B126,Funds!$A$1:$F$14,MATCH($C$116,Funds!$A$1:$F$1,0),FALSE),"") -> 0 | D126: 0 | E126: ↑
B127: Vogue | C127: =IFERROR(VLOOKUP(B127,Funds!$A$1:$F$14,MATCH($C$116,Funds!$A$1:$F$1,0),FALSE),"") -> 0 | D127: 0
B128: Best Selection | C128: =IFERROR(VLOOKUP(B128,Funds!$A$1:$F$14,MATCH($C$116,Funds!$A$1:$F$1,0),FALSE),"") -> 0 | D128: 0
A129: ↑ | B129: Iránytű | C129: =IFERROR(VLOOKUP(B129,Funds!$A$1:$F$14,MATCH($C$116,Funds!$A$1:$F$1,0),FALSE),"") -> 0 | D129: 1 | E129: ↑
B130: EUR DEVIZANEM ESETÉN
B131: Eszközalap válogatás: | C131: Megfontolt | D131: =IF(AND(Devizanem="EUR",$C131="egyéni",SUM($D132:$D138)<>1),"A megadott rendelkezés nincs meg 100% ("&SUM($D132:$D138)*100&"%)!", IF(AND(Devizanem="EUR",$C131="egyéni",D138>0,C31<300000),"Iránytű eszközalap esetén min éves díj 300 000 Ft!","")) -> 
A132: ↑ | B132: Brüsszel | C132: =IFERROR(VLOOKUP(B132,Funds!$A$14:$F$22,MATCH($C$131,Funds!$A$1:$F$1,0),FALSE),"") -> 0.8 | D132: 0 | E132: ↑
B133: Globális részvény | C133: =IFERROR(VLOOKUP(B133,Funds!$A$14:$F$22,MATCH($C$131,Funds!$A$1:$F$1,0),FALSE),"") -> 0.2 | D133: 0
B134: Auróra | C134: =IFERROR(VLOOKUP(B134,Funds!$A$14:$F$22,MATCH($C$131,Funds!$A$1:$F$1,0),FALSE),"") -> 0 | D134: 0
A135: ↑ | B135: Ázsiai | C135: =IFERROR(VLOOKUP(B135,Funds!$A$14:$F$22,MATCH($C$131,Funds!$A$1:$F$1,0),FALSE),"") -> 0 | D135: 0 | E135: ↑
B136: Dél Csillagai | C136: =IFERROR(VLOOKUP(B136,Funds!$A$14:$F$22,MATCH($C$131,Funds!$A$1:$F$1,0),FALSE),"") -> 0 | D136: 0
B137: Best Selection | C137: =IFERROR(VLOOKUP(B137,Funds!$A$14:$F$22,MATCH($C$131,Funds!$A$1:$F$1,0),FALSE),"") -> 0 | D137: 0
A138: ↑ | B138: Iránytű | C138: =IFERROR(VLOOKUP(B138,Funds!$A$14:$F$22,MATCH($C$131,Funds!$A$1:$F$1,0),FALSE),"") -> 0 | D138: 1 | E138: ↑
A139: ↑ | B139: ← | C139: =UPPER(IF(Devizanem="HUF",C141&" ",IF(Devizanem="EUR",C156&" ",""))&"Eszközalap allokáció eseti díjakra") -> MEGFONTOLT ESZKÖZALAP ALLOKÁCIÓ ESETI DÍJAKRA | E139: ↑
B140: HUF DEVIZANEM ESETÉN
B141: Eszközalap válogatás: | C141: Megfontolt | D141: =IF(AND(SUM(C48:C94)>0,Devizanem="HUF",$C141="egyéni",SUM($D142:$D154)<>1),"A megadott rendelkezés nincs meg 100% ("&SUM($D142:$D154)*100&"%)!", IF(AND(Devizanem="HUF",$C141="egyéni",D154>0,SUM(C48:C94)<1000000),"Iránytű eszközalap esetén min eseti díj 1 000 000 Ft!","")) -> 
A142: ↑ | B142: Pénzpiaci | C142: =IFERROR(VLOOKUP(B142,Funds!$A$1:$F$14,MATCH($C$141,Funds!$A$1:$F$1,0),FALSE),"") -> 0.5 | D142: 0 | E142: ↑
B143: Hazai kötvény | C143: =IFERROR(VLOOKUP(B143,Funds!$A$1:$F$14,MATCH($C$141,Funds!$A$1:$F$1,0),FALSE),"") -> 0.3 | D143: 0
B144: Globális részvény | C144: =IFERROR(VLOOKUP(B144,Funds!$A$1:$F$14,MATCH($C$141,Funds!$A$1:$F$1,0),FALSE),"") -> 0.2 | D144: 0
A145: ↑ | B145: Auróra | C145: =IFERROR(VLOOKUP(B145,Funds!$A$1:$F$14,MATCH($C$141,Funds!$A$1:$F$1,0),FALSE),"") -> 0 | D145: 0 | E145: ↑
B146: Ázsiai | C146: =IFERROR(VLOOKUP(B146,Funds!$A$1:$F$14,MATCH($C$141,Funds!$A$1:$F$1,0),FALSE),"") -> 0 | D146: 0
B147: Dél Csillagai | C147: =IFERROR(VLOOKUP(B147,Funds!$A$1:$F$14,MATCH($C$141,Funds!$A$1:$F$1,0),FALSE),"") -> 0 | D147: 0
A148: ↑ | B148: Kincskereső | C148: =IFERROR(VLOOKUP(B148,Funds!$A$1:$F$14,MATCH($C$141,Funds!$A$1:$F$1,0),FALSE),"") -> 0 | D148: 0 | E148: ↑
B149: Arany | C149: =IFERROR(VLOOKUP(B149,Funds!$A$1:$F$14,MATCH($C$141,Funds!$A$1:$F$1,0),FALSE),"") -> 0 | D149: 0
B150: Ingatlan | C150: =IFERROR(VLOOKUP(B150,Funds!$A$1:$F$14,MATCH($C$141,Funds!$A$1:$F$1,0),FALSE),"") -> 0 | D150: 0
A151: ↑ | B151: Fashion Bond | C151: =IFERROR(VLOOKUP(B151,Funds!$A$1:$F$14,MATCH($C$141,Funds!$A$1:$F$1,0),FALSE),"") -> 0 | D151: 0 | E151: ↑
B152: Vogue | C152: =IFERROR(VLOOKUP(B152,Funds!$A$1:$F$14,MATCH($C$141,Funds!$A$1:$F$1,0),FALSE),"") -> 0 | D152: 0
B153: Best Selection | C153: =IFERROR(VLOOKUP(B153,Funds!$A$1:$F$14,MATCH($C$141,Funds!$A$1:$F$1,0),FALSE),"") -> 0 | D153: 0
A154: ↑ | B154: Iránytű | C154: =IFERROR(VLOOKUP(B154,Funds!$A$1:$F$14,MATCH($C$141,Funds!$A$1:$F$1,0),FALSE),"") -> 0 | D154: 1 | E154: ↑
B155: EUR DEVIZANEM ESETÉN
B156: Eszközalap válogatás: | C156: Megfontolt | D156: =IF(AND(SUM(C48:C94)>0,Devizanem="EUR",$C156="egyéni",SUM($D157:$D163)<>1),"A megadott rendelkezés nincs meg 100% ("&SUM($D157:$D163)*100&"%)!", IF(AND(Devizanem="EUR",$C156="egyéni",D163>0,SUM(C48:C94)<1000000,SUM(C48:C94)>0),"Iránytű eszközalap esetén min eseti díj 1 000 000 Ft!","")) -> 
A157: ↑ | B157: Brüsszel | C157: =IFERROR(VLOOKUP(B157,Funds!$A$14:$F$22,MATCH($C$156,Funds!$A$1:$F$1,0),FALSE),"") -> 0.8 | D157: 0 | E157: ↑
B158: Globális részvény | C158: =IFERROR(VLOOKUP(B158,Funds!$A$14:$F$22,MATCH($C$156,Funds!$A$1:$F$1,0),FALSE),"") -> 0.2 | D158: 0
B159: Auróra | C159: =IFERROR(VLOOKUP(B159,Funds!$A$14:$F$22,MATCH($C$156,Funds!$A$1:$F$1,0),FALSE),"") -> 0 | D159: 0
A160: ↑ | B160: Ázsiai | C160: =IFERROR(VLOOKUP(B160,Funds!$A$14:$F$22,MATCH($C$156,Funds!$A$1:$F$1,0),FALSE),"") -> 0 | D160: 0 | E160: ↑
B161: Dél Csillagai | C161: =IFERROR(VLOOKUP(B161,Funds!$A$14:$F$22,MATCH($C$156,Funds!$A$1:$F$1,0),FALSE),"") -> 0 | D161: 0
B162: Best Selection | C162: =IFERROR(VLOOKUP(B162,Funds!$A$14:$F$22,MATCH($C$156,Funds!$A$1:$F$1,0),FALSE),"") -> 0 | D162: 0
A163: ↑ | B163: Iránytű | C163: =IFERROR(VLOOKUP(B163,Funds!$A$14:$F$22,MATCH($C$156,Funds!$A$1:$F$1,0),FALSE),"") -> 0 | D163: 1 | E163: ↑
B164: ↑ | C164: ↑ | D164: ↑
A165: ← | B165: =UPPER("Átlagos számlaérték öregségi nyugdíjkorhatár elérésekor "& "("&YEAR(C10)&"): "& IF(AND(Devizanem="HUF",C177>0),TEXT(ROUND(C177/1000000,2),"# ##0,00")&"M Ft", IF(AND(Devizanem="EUR",C177>0),TEXT(ROUND(C177,2),"# ##0"" €"""),""))) -> ÁTLAGOS SZÁMLAÉRTÉK ÖREGSÉGI NYUGDÍJKORHATÁR ELÉRÉSEKOR (2025): 5,21M FT
A166: ↑ | B166: =UPPER("Rendszeres díjak számlaérték számítása") -> RENDSZERES DÍJAK SZÁMLAÉRTÉK SZÁMÍTÁSA | E166: ↑
B167: Átlagos múltbeli nettó éves hozam: | C167: =Funds!$M$4 -> 0.07839
B168: Nettó hozamérték számlaérték számításhoz: | C168: 0.04
A169: ↑ | B169: =UPPER("Eseti díjak számlaértékének számítása") -> ESETI DÍJAK SZÁMLAÉRTÉKÉNEK SZÁMÍTÁSA | E169: ↑
B170: Átlagos múltbeli nettó éves hozam: | C170: =Funds!$M$15 -> 0.07839
B171: Nettó hozamérték számlaérték számításhoz: | C171: 0.06
A172: ↑ | B172: =UPPER("Átlagos számlaérték rendszeres és eseti díjakra összesen") -> ÁTLAGOS SZÁMLAÉRTÉK RENDSZERES ÉS ESETI DÍJAKRA ÖSSZESEN | E172: ↑
B173: 10 | C173: =INDIRECT(ADDRESS(B173*12+1,MATCH("GRAPH AVG",'Cash flow CALC'!$1:$1,0),1,1,"Cash flow CALC")) -> 4621410.697
B174: 15 | C174: =INDIRECT(ADDRESS(B174*12+1,MATCH("GRAPH AVG",'Cash flow CALC'!$1:$1,0),1,1,"Cash flow CALC")) -> 0
A175: ↑ | B175: 20 | C175: =INDIRECT(ADDRESS(B175*12+1,MATCH("GRAPH AVG",'Cash flow CALC'!$1:$1,0),1,1,"Cash flow CALC")) -> 0 | E175: ↑
B176: 25 | C176: =INDIRECT(ADDRESS(B176*12+1,MATCH("GRAPH AVG",'Cash flow CALC'!$1:$1,0),1,1,"Cash flow CALC")) -> 0
B177: =IFERROR(C11/12,"n/a") -> 10.91666667 | C177: =IFERROR(INDIRECT(ADDRESS(C11,MATCH("GRAPH AVG",'Cash flow CALC'!$1:$1,0),1,1,"Cash flow CALC")),"n/a") -> 5212284.85 | D177: Öregségi nyugdíjkorhatár elérésekor
A179: ↑ | E179: ↑
A182: ↑ | E182: ↑
A185: ↑ | E185: ↑
A188: ↑ | E188: ↑
A191: ↑ | E191: ↑
A194: ↑ | E194: ↑
A197: ↑ | E197: ↑
B199: Az „Átlagos múltbeli nettó éves hozam" a választott eszközalapokra vonatkozóan a Biztosító saját szakértőinek elemzése alapján, a kiválasztott eszközalapok mögöttes benchmark-jainak múltbeli hozam és szórás értékei * alapján kalkulált összeg. A "Várható számlaérték" c. grafikon az adott szerződés egyedi paramétereire, különösen a rendszeres és eseti biztosítási díjakra és az erre vonatkozó eszközalap allokációkra, az esetleges díjszüneteltetett évekre, rendszeres vagy eseti díjakra vonatkozó pénzkivonásokra, és az évenként megadott értékkövetési értékekre tekintettel 25 éves időtávon ad előrejelzést a megadott „Nettó hozamérték számlaérték számításhoz” éves hozamértékek alapján. A mutatott számlaérték a szerződés kezdeti időszakában a termék feltételeinek megfelelően eltérhet a tényleges visszavásárlási értéktől. Az "Várható számlaérték" diagramon feltüntetett értéke a "Nettó hozamérték számlaérték számításhoz" értékek folyamatos teljesülése esetén lehetséges, melyet a grafikonban a piros szaggatott vonal mutat be. A Biztosító nem vállal semmilyen felelősséget arra vonatkozóan, hogy a "Nettó hozamérték számlaérték számításhoz" az ügyfél által megadott értékek hogyan fognak teljesülni a szerződés tekintetében. A befektetési eredmény jövőbeli bizonytalanságát a benchmark szórás adatoknak megfelelő arányban a legyezőszerűen szétnyíló grafikon mutatja, az eszközalap allokáció kockázatosságától függően. Ezeket érzékeltetik a sötétebb és világosabb kék sávok. Az értékeket a szerződés devizájában kell érteni. A modell figyelembe veszi a hűségbónusz-jóváírásokat és a szerződésre vonatkozó alábbi költséglevonásokat: első időszakban esedékes elvonás, szerződéskötési költség, számlakezelési költség, csekkes díjfizetéshez kapcsolódó költség, és a kiegészítő biztosítások esetleges költségei. A modell nem veszi figyelembe a kifizetéssel járó feltételek szerinti bármilyen költségeket (pld. pénzkivonási, visszavásárlási). A modell állandónak feltételezi az aktuális éves rendszeres díj és a kiegészítő biztosítások arányát, a devizaárfolyamot, valamint nem számol a költségek változásával. A "Várható számlaérték" c. grafikon nem veszi figyelembe a Befektetési politika esetleges jövőbeli változásait, és annak alapján jeleníti meg az adatokat, hogy a díjfizetésben, indexálásban nem lesz eltérés, pénzkivonásra semmilyen formában nem kerül sor és a hűségbónusz is kifizetésre kerül, valamint levonja a költségeket szintén változatlan formában. A grafikon adatai a fentieknek megfelelően, nagyszámú feltételezésen alapulnak, míg a valóságot a feltételezéstől eltérő tényleges körülmények és az ügyfél jövőbeni döntései is befolyásolják, így a várható számlaérték teljesüléséért az AXA Biztosító Zrt. semminemű felelősséget nem vállal, és a grafikonon feltüntetett adatok nem jelentenek semmilyen garanciát a befektetés, hozamok, illetve szolgáltatások jövőbeni alakulására nézve. * A benchmark hozam és szórás adatok 2003/01/31 - 2013/01/31 közötti időszakra (10 év) lettek kiszámolva (kivéve Ingatlan eszközalap, ahol az idősor rövidebb volt, itt 2007/01/31-2013/01/31 közötti időszak (6 év) lett kiválasztva). Az adatok HUF és EUR devizában, az eszközalap denominációjának megfelelően lettek kiszámítva, azaz ha az eszközalap denominációja HUF, de a benchmark dollárban nyilvántartott, akkor a benchmark forintosításra került és az így kapott értékekből lettek kalkulálva a hozam és szórás adatok. A hozamok évesítettek, az évesítéshez 10 év (Ingatlan eszközalap esetében 6 év) lett alkalmazva (egyszerű hozamszámítás: végdátum értéke/kezdeti dátum értéke és ez évesítve). A szórások napi hozamadatokból lettek kalkulálva, szintén évesítve vannak, az évesítéshez 252 munkanap lett beállítva (Ingatlan eszközalap esetében rövidebb az idősor értelemszerűen). Az Auróra (HUF, EUR) eszközalapok esetében a korábbi benchmark (DXRPUS Index) lett felhasználva, mivel abból hosszabb idősor állt rendelkezésre mint az új benchmarkból (MVRSXTR Index) a köztük lévő korreláció szignifikánsan nagy (>98%), mely lehetővé teszi a helyettesítést. Bruttó: Az egyes eszközalapok benchmarkon alapuló indikatív teljesítménye a következőképpen lett kiszámítva: a befektetési politikában meghatározott súlyokkal súlyozott benchmark teljesítmény lett évesítve. A hozamadatok bruttó teljesítményt tükröznek, így a díjak és jutalékok nagy mértékben csökkenthetik azokat. Nettó: Az egyes eszközalapok benchmarkon alapuló indikatív nettó teljesítménye a következőképpen lett kiszámítva: a befektetési politikában meghatározott súlyokkal súlyozott benchmark indexek napi teljesítményének költségekkel korrigált lánc szorzata lett évesítve. A levont költségek: alapkezelési díj, vagyonkezelői díj, letétkezelési díj. Az eszközalapok teljesítményét tovább rontják a tranzakciós díjak és jutalékok is, melyek az eszközalapban történő pénzáramlások (ki- és befizetések) okozta üzletkötések függvényében kerülnek levonásra. Az egyes eszközalapok indikatív bruttó teljesítménye a következőképpen lett kiszámítva: a befektetési politikában meghatározott súlyokkal súlyozott benchmark teljesítmény lett évesítve. Az egyes eszközalapok indikatív nettó teljesítménye a következőképpen lett kiszámítva: a befektetési politikában meghatározott súlyokkal súlyozott, költségekkel csökkentett benchmark teljesítmény lett évesítve. Az egyes eszközalapok indikatív szórásai a következőképpen lettek kiszámítva: az egyes benchmark elemek forintban számolt szórás adatai (10 éves periódus, napi hozamok) évesítve lettek (252 munkanapot használva), majd ezek lettek alkalmazva a portfólió szórásának meghatározása során. A portfólió szórása nem a benne szereplő eszközök szórásának súlyozott átlaga! Minél magasabb egy portfólió (eszközalap) szórása annál magasabb árfolyam ingadozás jellemzi, annál magasabb a kockázata. Az itt megjelent hozamadatok a múltat reprezentálják, azok a jövőre vonatkozóan nem jelentenek garanciát (kicsi a valószínűsége, hogy megismétlődnek) így az Alapkezelő és a Biztosító semmilyen garanciát nem vállal az itt feltüntetett hozamok eléréséért.
A200: ↑ | E200: ↑
A203: ↑ | E203: ↑
A206: ↑ | E206: ↑
A209: ↑ | E209: ↑
A212: ↑ | E212: ↑
A215: ↑ | E215: ↑
A218: ↑ | E218: ↑
A221: ↑ | E221: ↑
A224: ↑ | E224: ↑
A229: ↑ | B229: ↑ | C229: ↑ | D229: ↑ | E229: ↑
A230: ← | B230: =UPPER("Kiegészítő biztosítások ("& IF(OR($C$235<>"",$C$236<>""),1,0)+ IF(OR($C$264<>"",$C$265<>""),1,0)+ IF(OR($C$287<>"",$C$288<>""),1,0)+ IF(OR($C$310<>"",$C$311<>""),1,0)+ IF(OR($C$333<>"",$C$334<>""),1,0)+ IF(OR($C$356<>"",$C$357<>""),1,0)+ IF(OR($C$379<>"",$C$380<>""),1,0)+ IF(OR($C$402<>"",$C$403<>""),1,0)+ IF(OR($C$425<>"",$C$426<>""),1,0)+ IF(OR($C$448<>"",$C$449<>""),1,0)+ IF(OR($C$471<>"",$C$472<>""),1,0)&" biztosított; "& IF(Devizanem="HUF",TEXT(C231,"# ##0 Ft"), IF(Devizanem="EUR",TEXT(C231,"# ##0"" €"""),"")) &" értékben; "& TEXT(C231/C32,"# ##0,00%")&")") -> KIEGÉSZÍTŐ BIZTOSÍTÁSOK (1 BIZTOSÍTOTT; 0 FT ÉRTÉKBEN; 0,00%)
B231: Kiegészítők éves biztosítási díja: | C231: =SUM($C$262,$C$285,$C$308,$C$331,$C$354,$C$377,$C$400,$C$423,$C$446,$C$469,$C$492) -> 0
B232: Dátum | C232: =TODAY() -> 2014-02-18
B233: EUR | C233: =$C$26 -> 301.23
B234: ← | C234: =UPPER( "1. Főbiztosított ("& C235&"; "& IF(COUNTIF($D250:$D258,"<>-")>0, COUNTIF($D250:$D258,"<>-")&" választott fedezet; "& IF(Devizanem="HUF",TEXT(C262,"# ##0 Ft"), IF(Devizanem="EUR",TEXT(C262,"# ##0"" €"""),"")) &" értékben)", "Nincs választott fedezet)")) -> 1. FŐBIZTOSÍTOTT (JÁNOS VITÉZ; NINCS VÁLASZTOTT FEDEZET) | F234: =IF( IF(LEN(D235)>0,1,0)+ IF(LEN(D236)>0,1,0)+ IF(LEN(D237)>0,1,0)+ IF(LEN(D239)>0,1,0)+ IF(LEN(D240)>0,1,0)+ IF(LEN(D241)>0,1,0)+ IF(LEN(D242)>0,1,0)+ IF(LEN(D243)>0,1,0)+ IF(LEN(D244)>0,1,0)+ IF(LEN(D245)>0,1,0)+ IF(LEN(D246)>0,1,0)+ IF(LEN(D247)>0,1,0)+ IF(LEN(D259)>0,1,0) >0, IF(LEN(D235)>0,1,0)+ IF(LEN(D236)>0,1,0)+ IF(LEN(D237)>0,1,0)+ IF(LEN(D239)>0,1,0)+ IF(LEN(D240)>0,1,0)+ IF(LEN(D241)>0,1,0)+ IF(LEN(D242)>0,1,0)+ IF(LEN(D243)>0,1,0)+ IF(LEN(D244)>0,1,0)+ IF(LEN(D245)>0,1,0)+ IF(LEN(D246)>0,1,0)+ IF(LEN(D247)>0,1,0)+ IF(LEN(D259)>0,1,0) &" hiba!","") -> 
B235: Biztosított neve: | C235: =$C$24 -> János Vitéz | D235: =IF($C235<>"","","Kérem adjon meg egy nevet!") -> 
B236: Biztosított születési dátuma: | C236: =IF(C9<>"",C9,"n/a") -> 1960-01-01
B237: Biztosított életkora | C237: =IFERROR(IF(C236<>"",YEAR(TODAY())-YEAR($C236),""),"n/a") -> 54 | D237: =IF(AND($C236<>"",$C237<=1),"Min életkor: 1 év!","") -> 
C238: Egyedi fedezetek:
A239: Y7111 | B239: Haláleseti | C239: 0 | D239: =IF($C237<VLOOKUP($A239,Csomag_limitek,15,FALSE),"Belépési kor ("&VLOOKUP($A239,Csomag_limitek,15,FALSE)&" év) alatt!", IF($C237>VLOOKUP($A239,Csomag_limitek,16,FALSE),"Belépési kor ("&VLOOKUP($A239,Csomag_limitek,16,FALSE)&" év) felett!", IF( AND( IFERROR($C239*VLOOKUP($C237,Tariffs!$A:$B,2,FALSE),0)>0, IFERROR($C239*VLOOKUP($C237,Tariffs!$A:$B,2,FALSE),0)<=VLOOKUP($A239,Csomag_limitek,19,FALSE)), "Egyedi fedezet limit ("& TEXT( VLOOKUP($A239,Csomag_limitek,19,FALSE), IF(Devizanem="HUF","# ##0\ [$Ft-1]", IF(Devizanem="EUR","# ##0\ [$€-1]", ))) &") alatt!", ""))) -> 
A240: Y0114 | B240: Baleseti halál kiemelt térítéssel | C240: 0 | D240: =IF($C237<VLOOKUP($A240,Csomag_limitek,15,FALSE),"Belépési kor ("&VLOOKUP($A240,Csomag_limitek,15,FALSE)&" év) alatt!", IF($C237>VLOOKUP($A240,Csomag_limitek,16,FALSE),"Belépési kor ("&VLOOKUP($A240,Csomag_limitek,16,FALSE)&" év) felett!", IF( AND( IFERROR($C240*VLOOKUP($C237,Tariffs!$A:$D,4,FALSE),0)>0, IFERROR($C240*VLOOKUP($C237,Tariffs!$A:$D,4,FALSE),0)<=VLOOKUP($A240,Csomag_limitek,19,FALSE)), "Egyedi fedezet limit ("& TEXT( VLOOKUP($A240,Csomag_limitek,19,FALSE), IF(Devizanem="HUF","# ##0\ [$Ft-1]", IF(Devizanem="EUR","# ##0\ [$€-1]", ))) &") alatt!",""))) -> 
A241: Y0115 | B241: Baleseti rokkantság kiemelt térítéssel | C241: 0 | D241: =IF($C237<VLOOKUP($A241,Csomag_limitek,15,FALSE),"Belépési kor ("&VLOOKUP($A241,Csomag_limitek,15,FALSE)&" év) alatt!", IF($C237>VLOOKUP($A241,Csomag_limitek,16,FALSE),"Belépési kor ("&VLOOKUP($A241,Csomag_limitek,16,FALSE)&" év) felett!", IF( AND( IFERROR($C241*VLOOKUP($C237,Tariffs!$A:$F,6,FALSE),0)>0, IFERROR($C241*VLOOKUP($C237,Tariffs!$A:$F,6,FALSE),0)<=VLOOKUP($A241,Csomag_limitek,19,FALSE)), "Egyedi fedezet limit ("& TEXT( VLOOKUP($A241,Csomag_limitek,19,FALSE), IF(Devizanem="HUF","# ##0\ [$Ft-1]", IF(Devizanem="EUR","# ##0\ [$€-1]", ))) &") alatt!",""))) -> 
A242: Y0121 | B242: Baleseti műtéti térítés | C242: 0 | D242: =IF($C237<VLOOKUP($A242,Csomag_limitek,15,FALSE),"Belépési kor ("&VLOOKUP($A242,Csomag_limitek,15,FALSE)&" év) alatt!", IF($C237>VLOOKUP($A242,Csomag_limitek,16,FALSE),"Belépési kor ("&VLOOKUP($A242,Csomag_limitek,16,FALSE)&" év) felett!", IF( AND( IFERROR($C242*VLOOKUP($C237,Tariffs!$A:$H,8,FALSE),0)>0, IFERROR($C242*VLOOKUP($C237,Tariffs!$A:$H,8,FALSE),0)<=VLOOKUP($A242,Csomag_limitek,19,FALSE)), "Egyedi fedezet limit ("& TEXT( VLOOKUP($A242,Csomag_limitek,19,FALSE), IF(Devizanem="HUF","# ##0\ [$Ft-1]", IF(Devizanem="EUR","# ##0\ [$€-1]", ))) &") alatt!",""))) -> 
A243: Y1111 | B243: Műtéti térítés | C243: 0 | D243: =IF($C237<VLOOKUP($A243,Csomag_limitek,15,FALSE),"Belépési kor ("&VLOOKUP($A243,Csomag_limitek,15,FALSE)&" év) alatt!", IF($C237>VLOOKUP($A243,Csomag_limitek,16,FALSE),"Belépési kor ("&VLOOKUP($A243,Csomag_limitek,16,FALSE)&" év) felett!", IF( AND( IFERROR($C243*VLOOKUP($C237,Tariffs!$A:$J,10,FALSE),0)>0, IFERROR($C243*VLOOKUP($C237,Tariffs!$A:$J,10,FALSE),0)<=VLOOKUP($A243,Csomag_limitek,19,FALSE)), "Egyedi fedezet limit ("& TEXT( VLOOKUP($A243,Csomag_limitek,19,FALSE), IF(Devizanem="HUF","# ##0\ [$Ft-1]", IF(Devizanem="EUR","# ##0\ [$€-1]", ))) &") alatt!",""))) -> 
A244: Y1114 | B244: Kritikus betegségek | C244: 0 | D244: =IF($C237<VLOOKUP($A244,Csomag_limitek,15,FALSE),"Belépési kor ("&VLOOKUP($A244,Csomag_limitek,15,FALSE)&" év) alatt!", IF($C237>VLOOKUP($A244,Csomag_limitek,16,FALSE),"Belépési kor ("&VLOOKUP($A244,Csomag_limitek,16,FALSE)&" év) felett!", IF( AND( IFERROR($C244*VLOOKUP($C237,Tariffs!$A:$N,14,FALSE),0)>0, IFERROR($C244*VLOOKUP($C237,Tariffs!$A:$N,14,FALSE),0)<=VLOOKUP($A244,Csomag_limitek,19,FALSE)), "Egyedi fedezet limit ("& TEXT( VLOOKUP($A244,Csomag_limitek,19,FALSE), IF(Devizanem="HUF","# ##0\ [$Ft-1]", IF(Devizanem="EUR","# ##0\ [$€-1]", ))) &") alatt!",""))) -> 
A245: Y0116 | B245: Baleseti keresőképtelenség | C245: 0 | D245: =IF($C237<VLOOKUP($A245,Csomag_limitek,15,FALSE),"Belépési kor ("&VLOOKUP($A245,Csomag_limitek,15,FALSE)&" év) alatt!", IF($C237>VLOOKUP($A245,Csomag_limitek,16,FALSE),"Belépési kor ("&VLOOKUP($A245,Csomag_limitek,16,FALSE)&" év) felett!", IF( AND( IFERROR($C245*VLOOKUP($C237,Tariffs!$A:$P,16,FALSE),0)>0, IFERROR($C245*VLOOKUP($C237,Tariffs!$A:$P,16,FALSE),0)<=VLOOKUP($A245,Csomag_limitek,19,FALSE)), "Egyedi fedezet limit ("& TEXT( VLOOKUP($A245,Csomag_limitek,19,FALSE), IF(Devizanem="HUF","# ##0\ [$Ft-1]", IF(Devizanem="EUR","# ##0\ [$€-1]", ))) &") alatt!", IF( AND( $C245>0, $C245<VLOOKUP($A245,Csomag_limitek,17,FALSE)), "Min BÖ ("& TEXT( VLOOKUP($A245,Csomag_limitek,17,FALSE), IF(Devizanem="HUF","# ##0\ [$Ft-1]", IF(Devizanem="EUR","# ##0\ [$€-1]", ))) &") alatt!", IF( AND( $C245>0, $C245>VLOOKUP($A245,Csomag_limitek,18,FALSE)), "Max BÖ ("& TEXT( VLOOKUP(A245,Csomag_limitek,18,FALSE), IF(Devizanem="HUF","# ##0\ [$Ft-1]", IF(Devizanem="EUR","# ##0\ [$€-1]", ))) &") felett!",""))))) -> 
A246: Y1103 | B246: Végleges rokkantság (D, E) | C246: 0 | D246: =IF($C237<VLOOKUP($A246,Csomag_limitek,15,FALSE),"Belépési kor ("&VLOOKUP($A246,Csomag_limitek,15,FALSE)&" év) alatt!", IF($C237>VLOOKUP($A246,Csomag_limitek,16,FALSE),"Belépési kor ("&VLOOKUP($A246,Csomag_limitek,16,FALSE)&" év) felett!", IF( AND( IFERROR($C246*VLOOKUP($C237,Tariffs!$A:$L,12,FALSE),0)>0, IFERROR($C246*VLOOKUP($C237,Tariffs!$A:$L,12,FALSE),0)<=VLOOKUP($A246,Csomag_limitek,19,FALSE)), "Egyedi fedezet limit ("& TEXT( VLOOKUP($A246,Csomag_limitek,19,FALSE), IF(Devizanem="HUF","# ##0\ [$Ft-1]", IF(Devizanem="EUR","# ##0\ [$€-1]", ))) &") alatt!",""))) -> 
A247: Komplex | B247: Komplex rokkantsági csomag | C247: Nem kérek | D247: =IF( AND( IFERROR(SEARCH("Komplex",C247,1),0)>0, $C237<VLOOKUP($C247,Komplex_parameterek,6,FALSE)), "Belépési kor ("&VLOOKUP($C247,Komplex_parameterek,6,FALSE)&" év) alatt!", IF( AND( IFERROR(SEARCH("Komplex",$C247,1),0)>0, $C237>VLOOKUP($C247,Komplex_parameterek,7,FALSE)), "Belépési kor ("&VLOOKUP($C247,Komplex_parameterek,7,FALSE)&" év) felett!", IF(MainForm!$C$31>VLOOKUP(MainForm!$C247,Parameters!$B$25:$D$28,3,FALSE), "Max éves díj ("&TEXT(VLOOKUP(MainForm!$C247,Parameters!$B$25:$D$28,3,FALSE),"# ## Ft")&") felett!", ""))) -> 
... 344 more rows

Sheet Cash flow
A1: Jelen kalkulátor által megjelenített adatok, számítások, illetve bármilyen információk - sem elektronikus sem kinyomtatott, írásos formában - nem minősülnek ajánlatnak, illetve az ajánlat részének, valamint nem tekinthető a biztosítókról és a biztosítási tevékenységről szóló 2003. évi LX. törvény 166. § (2) bekezdése szerinti ügyfél tájékoztatásnak. A kalkulátor nagyfokú feltételezésen alapul, ezért a Biztosító jogilag nem tartozik sem közvetve sem közvetlenül vagy más módon felelősséggel a kalkulátor által bármilyen formában megjelentetett adatok, számítások, illetve bármilyen információk valódiságáért. A Biztosító semmilyen garanciát nem vállal az itt feltüntetett hozamok és számlaértékek eléréséért.
B5: UL számla cash flow
B6: Rendszeres egységek cash flow | N6: Eseti egységek cash flow | Q6: TELJES SZÁMLAÉRTÉK **** | R6: Díjszüneteltetés
A7: Év | B7: Éves díj (HUF) | C7: Értékkövetés | D7: ="Éves díj a szerződés devizájában ("&MainForm!$C$25&")" -> Éves díj a szerződés devizájában (HUF) | E7: Összes befizetett rendszeres díj | F7: Első periódusban esedékes elvonás | G7: Szerződéskötési költség | H7: Számlakezelési költség | I7: Csekkes díjfizetés költsége | J7: Kiegészítő biztosítások díja* | K7: Bónusz jóváírások ** | L7: Hozam *** | M7: Felhalmozási egységek átlagos számlaértéke **** | N7: Adójóváírás mértéke | O7: Befizetett eseti díjak | P7: Eseti díjak átlagos számlaértéke ****
A8: 1 | B8: =IF(A8<=ROUNDDOWN(MainForm!$C$11/12,0), SUM(INDIRECT(ADDRESS((A8-1)*12+2,MATCH('Cash flow'!B$67,'Cash flow CALC'!$1:$1,0),1,1,"Cash flow CALC")):INDIRECT(ADDRESS(A8*12+1,MATCH('Cash flow'!B$67,'Cash flow CALC'!$1:$1,0),1,1,"Cash flow CALC"))), "-") -> 300000 | C8: =IF(A8<=ROUNDDOWN(MainForm!$C$11/12,0), VLOOKUP(A8,Indexation_full,2,FALSE), "-") -> 0.04 | D8: =IF(A8<=ROUNDDOWN(MainForm!$C$11/12,0), SUM(INDIRECT(ADDRESS((A8-1)*12+2,MATCH('Cash flow'!D$67,'Cash flow CALC'!$1:$1,0),1,1,"Cash flow CALC")):INDIRECT(ADDRESS(A8*12+1,MATCH('Cash flow'!D$67,'Cash flow CALC'!$1:$1,0),1,1,"Cash flow CALC"))), "-") -> 300000 | E8: =IF(A8<=ROUNDDOWN(MainForm!$C$11/12,0), SUM(INDIRECT(ADDRESS(($A$8-1)*12+2,MATCH('Cash flow'!E$67,'Cash flow CALC'!$1:$1,0),1,1,"Cash flow CALC")):INDIRECT(ADDRESS(A8*12+1,MATCH('Cash flow'!E$67,'Cash flow CALC'!$1:$1,0),1,1,"Cash flow CALC"))),"-") -> 300000 | F8: =IF(A8<=ROUNDDOWN(MainForm!$C$11/12,0), SUM(INDIRECT(ADDRESS((A8-1)*12+2,MATCH('Cash flow'!F$67,'Cash flow CALC'!$1:$1,0),1,1,"Cash flow CALC")):INDIRECT(ADDRESS(A8*12+1,MATCH('Cash flow'!F$67,'Cash flow CALC'!$1:$1,0),1,1,"Cash flow CALC"))),"-") -> 150000 | G8: =IF(A8<=ROUNDDOWN(MainForm!$C$11/12,0), SUM(INDIRECT(ADDRESS((A8-1)*12+2,MATCH('Cash flow'!G$67,'Cash flow CALC'!$1:$1,0),1,1,"Cash flow CALC")):INDIRECT(ADDRESS(A8*12+1,MATCH('Cash flow'!G$67,'Cash flow CALC'!$1:$1,0),1,1,"Cash flow CALC"))),"-") -> 30000 | H8: =IF(A8<=ROUNDDOWN(MainForm!$C$11/12,0), SUM(INDIRECT(ADDRESS((A8-1)*12+2,MATCH('Cash flow'!H$67,'Cash flow CALC'!$1:$1,0),1,1,"Cash flow CALC")):INDIRECT(ADDRESS(A8*12+1,MATCH('Cash flow'!H$67,'Cash flow CALC'!$1:$1,0),1,1,"Cash flow CALC"))),"-") -> 3600 | I8: =IF(A8<=ROUNDDOWN(MainForm!$C$11/12,0), SUM(INDIRECT(ADDRESS((A8-1)*12+2,MATCH('Cash flow'!I$67,'Cash flow CALC'!$1:$1,0),1,1,"Cash flow CALC")):INDIRECT(ADDRESS(A8*12+1,MATCH('Cash flow'!I$67,'Cash flow CALC'!$1:$1,0),1,1,"Cash flow CALC"))),"-") -> 3600 | J8: =IF(A8<=ROUNDDOWN(MainForm!$C$11/12,0), SUM(INDIRECT(ADDRESS((A8-1)*12+2,MATCH('Cash flow'!J$67,'Cash flow CALC'!$1:$1,0),1,1,"Cash flow CALC")):INDIRECT(ADDRESS(A8*12+1,MATCH('Cash flow'!J$67,'Cash flow CALC'!$1:$1,0),1,1,"Cash flow CALC"))),"-") -> 0 | K8: =IF(A8<=ROUNDDOWN(MainForm!$C$11/12,0), INDIRECT(ADDRESS((A8-1)*12+2,MATCH('Cash flow'!K$67,'Cash flow CALC'!$1:$1,0),1,1,"Cash flow CALC")),"-") -> 60000 | L8: =IF(A8<=ROUNDDOWN(MainForm!$C$11/12,0), SUM(INDIRECT(ADDRESS((A8-1)*12+2,MATCH('Cash flow'!L$67,'Cash flow CALC'!$1:$1,0),1,1,"Cash flow CALC")):INDIRECT(ADDRESS(A8*12+1,MATCH('Cash flow'!L$67,'Cash flow CALC'!$1:$1,0),1,1,"Cash flow CALC"))),"-") -> 4829.3558 | M8: =IF(A8<=ROUNDDOWN(MainForm!$C$11/12,0), INDIRECT(ADDRESS(A8*12+1,MATCH('Cash flow'!M$67,'Cash flow CALC'!$1:$1,0),1,1,"Cash flow CALC")),"-") -> 177629.3558 | N8: =IF(A8<=ROUNDDOWN(MainForm!$C$11/12,0), SUM(INDIRECT(ADDRESS((A8-1)*12+2,MATCH('Cash flow'!N$67,'Cash flow CALC'!$1:$1,0),1,1,"Cash flow CALC")):INDIRECT(ADDRESS(A8*12+1,MATCH('Cash flow'!N$67,'Cash flow CALC'!$1:$1,0),1,1,"Cash flow CALC"))),"-") -> 0 | O8: =IF(A8<=ROUNDDOWN(MainForm!$C$11/12,0), SUM(INDIRECT(ADDRESS((A8-1)*12+2,MATCH('Cash flow'!O$67,'Cash flow CALC'!$1:$1,0),1,1,"Cash flow CALC")):INDIRECT(ADDRESS(A8*12+1,MATCH('Cash flow'!O$67,'Cash flow CALC'!$1:$1,0),1,1,"Cash flow CALC"))),"-") -> 0 | P8: =IF(A8<=ROUNDDOWN(MainForm!$C$11/12,0), INDIRECT(ADDRESS(A8*12+1,MATCH('Cash flow'!P$67,'Cash flow CALC'!$1:$1,0),1,1,"Cash flow CALC")),"-") -> 0 | Q8: =IF(A8<=ROUNDDOWN(MainForm!$C$11/12,0), INDIRECT(ADDRESS(A8*12+1,MATCH('Cash flow'!Q$67,'Cash flow CALC'!$1:$1,0),1,1,"Cash flow CALC")),"-") -> 177629.3558 | R8: =IF(A8<=ROUNDDOWN(MainForm!$C$11/12,0), VLOOKUP(A8,Premium_suppression,2,FALSE),"-") -> Nem
A9: 2 | B9: =IF(A9<=ROUNDDOWN(MainForm!$C$11/12,0), SUM(INDIRECT(ADDRESS((A9-1)*12+2,MATCH('Cash flow'!B$67,'Cash flow CALC'!$1:$1,0),1,1,"Cash flow CALC")):INDIRECT(ADDRESS(A9*12+1,MATCH('Cash flow'!B$67,'Cash flow CALC'!$1:$1,0),1,1,"Cash flow CALC"))), "-") -> 312000 | C9: =IF(A9<=ROUNDDOWN(MainForm!$C$11/12,0), VLOOKUP(A9,Indexation_full,2,FALSE), "-") -> 0.04 | D9: =IF(A9<=ROUNDDOWN(MainForm!$C$11/12,0), SUM(INDIRECT(ADDRESS((A9-1)*12+2,MATCH('Cash flow'!D$67,'Cash flow CALC'!$1:$1,0),1,1,"Cash flow CALC")):INDIRECT(ADDRESS(A9*12+1,MATCH('Cash flow'!D$67,'Cash flow CALC'!$1:$1,0),1,1,"Cash flow CALC"))), "-") -> 312000 | E9: =IF(A9<=ROUNDDOWN(MainForm!$C$11/12,0), SUM(INDIRECT(ADDRESS(($A$8-1)*12+2,MATCH('Cash flow'!E$67,'Cash flow CALC'!$1:$1,0),1,1,"Cash flow CALC")):INDIRECT(ADDRESS(A9*12+1,MATCH('Cash flow'!E$67,'Cash flow CALC'!$1:$1,0),1,1,"Cash flow CALC"))),"-") -> 612000 | F9: =IF(A9<=ROUNDDOWN(MainForm!$C$11/12,0), SUM(INDIRECT(ADDRESS((A9-1)*12+2,MATCH('Cash flow'!F$67,'Cash flow CALC'!$1:$1,0),1,1,"Cash flow CALC")):INDIRECT(ADDRESS(A9*12+1,MATCH('Cash flow'!F$67,'Cash flow CALC'!$1:$1,0),1,1,"Cash flow CALC"))),"-") -> 150000 | G9: =IF(A9<=ROUNDDOWN(MainForm!$C$11/12,0), SUM(INDIRECT(ADDRESS((A9-1)*12+2,MATCH('Cash flow'!G$67,'Cash flow CALC'!$1:$1,0),1,1,"Cash flow CALC")):INDIRECT(ADDRESS(A9*12+1,MATCH('Cash flow'!G$67,'Cash flow CALC'!$1:$1,0),1,1,"Cash flow CALC"))),"-") -> 30000 | H9: =IF(A9<=ROUNDDOWN(MainForm!$C$11/12,0), SUM(INDIRECT(ADDRESS((A9-1)*12+2,MATCH('Cash flow'!H$67,'Cash flow CALC'!$1:$1,0),1,1,"Cash flow CALC")):INDIRECT(ADDRESS(A9*12+1,MATCH('Cash flow'!H$67,'Cash flow CALC'!$1:$1,0),1,1,"Cash flow CALC"))),"-") -> 3600 | I9: =IF(A9<=ROUNDDOWN(MainForm!$C$11/12,0), SUM(INDIRECT(ADDRESS((A9-1)*12+2,MATCH('Cash flow'!I$67,'Cash flow CALC'!$1:$1,0),1,1,"Cash flow CALC")):INDIRECT(ADDRESS(A9*12+1,MATCH('Cash flow'!I$67,'Cash flow CALC'!$1:$1,0),1,1,"Cash flow CALC"))),"-") -> 3600 | J9: =IF(A9<=ROUNDDOWN(MainForm!$C$11/12,0), SUM(INDIRECT(ADDRESS((A9-1)*12+2,MATCH('Cash flow'!J$67,'Cash flow CALC'!$1:$1,0),1,1,"Cash flow CALC")):INDIRECT(ADDRESS(A9*12+1,MATCH('Cash flow'!J$67,'Cash flow CALC'!$1:$1,0),1,1,"Cash flow CALC"))),"-") -> 0 | K9: =IF(A9<=ROUNDDOWN(MainForm!$C$11/12,0), INDIRECT(ADDRESS(A9*12+1,MATCH('Cash flow'!K$67,'Cash flow CALC'!$1:$1,0),1,1,"Cash flow CALC")),"-") -> 0 | L9: =IF(A9<=ROUNDDOWN(MainForm!$C$11/12,0), SUM(INDIRECT(ADDRESS((A9-1)*12+2,MATCH('Cash flow'!L$67,'Cash flow CALC'!$1:$1,0),1,1,"Cash flow CALC")):INDIRECT(ADDRESS(A9*12+1,MATCH('Cash flow'!L$67,'Cash flow CALC'!$1:$1,0),1,1,"Cash flow CALC"))),"-") -> 9792.972138 | M9: =IF(A9<=ROUNDDOWN(MainForm!$C$11/12,0), INDIRECT(ADDRESS(A9*12+1,MATCH('Cash flow'!M$67,'Cash flow CALC'!$1:$1,0),1,1,"Cash flow CALC")),"-") -> 312222.3279 | N9: =IF(A9<=ROUNDDOWN(MainForm!$C$11/12,0), SUM(INDIRECT(ADDRESS((A9-1)*12+2,MATCH('Cash flow'!N$67,'Cash flow CALC'!$1:$1,0),1,1,"Cash flow CALC")):INDIRECT(ADDRESS(A9*12+1,MATCH('Cash flow'!N$67,'Cash flow CALC'!$1:$1,0),1,1,"Cash flow CALC"))),"-") -> 55000 | O9: =IF(A9<=ROUNDDOWN(MainForm!$C$11/12,0), SUM(INDIRECT(ADDRESS((A9-1)*12+2,MATCH('Cash flow'!O$67,'Cash flow CALC'!$1:$1,0),1,1,"Cash flow CALC")):INDIRECT(ADDRESS(A9*12+1,MATCH('Cash flow'!O$67,'Cash flow CALC'!$1:$1,0),1,1,"Cash flow CALC"))),"-") -> 0 | P9: =IF(A9<=ROUNDDOWN(MainForm!$C$11/12,0), INDIRECT(ADDRESS(A9*12+1,MATCH('Cash flow'!P$67,'Cash flow CALC'!$1:$1,0),1,1,"Cash flow CALC")),"-") -> 56901.59553 | Q9: =IF(A9<=ROUNDDOWN(MainForm!$C$11/12,0), INDIRECT(ADDRESS(A9*12+1,MATCH('Cash flow'!Q$67,'Cash flow CALC'!$1:$1,0),1,1,"Cash flow CALC")),"-") -> 369123.9235 | R9: =IF(A9<=ROUNDDOWN(MainForm!$C$11/12,0), VLOOKUP(A9,Premium_suppression,2,FALSE),"-") -> Nem
A10: 3 | B10: =IF(A10<=ROUNDDOWN(MainForm!$C$11/12,0), SUM(INDIRECT(ADDRESS((A10-1)*12+2,MATCH('Cash flow'!B$67,'Cash flow CALC'!$1:$1,0),1,1,"Cash flow CALC")):INDIRECT(ADDRESS(A10*12+1,MATCH('Cash flow'!B$67,'Cash flow CALC'!$1:$1,0),1,1,"Cash flow CALC"))), "-") -> 324480 | C10: =IF(A10<=ROUNDDOWN(MainForm!$C$11/12,0), VLOOKUP(A10,Indexation_full,2,FALSE), "-") -> 0.04 | D10: =IF(A10<=ROUNDDOWN(MainForm!$C$11/12,0), SUM(INDIRECT(ADDRESS((A10-1)*12+2,MATCH('Cash flow'!D$67,'Cash flow CALC'!$1:$1,0),1,1,"Cash flow CALC")):INDIRECT(ADDRESS(A10*12+1,MATCH('Cash flow'!D$67,'Cash flow CALC'!$1:$1,0),1,1,"Cash flow CALC"))), "-") -> 324480 | E10: =IF(A10<=ROUNDDOWN(MainForm!$C$11/12,0), SUM(INDIRECT(ADDRESS(($A$8-1)*12+2,MATCH('Cash flow'!E$67,'Cash flow CALC'!$1:$1,0),1,1,"Cash flow CALC")):INDIRECT(ADDRESS(A10*12+1,MATCH('Cash flow'!E$67,'Cash flow CALC'!$1:$1,0),1,1,"Cash flow CALC"))),"-") -> 936480 | F10: =IF(A10<=ROUNDDOWN(MainForm!$C$11/12,0), SUM(INDIRECT(ADDRESS((A10-1)*12+2,MATCH('Cash flow'!F$67,'Cash flow CALC'!$1:$1,0),1,1,"Cash flow CALC")):INDIRECT(ADDRESS(A10*12+1,MATCH('Cash flow'!F$67,'Cash flow CALC'!$1:$1,0),1,1,"Cash flow CALC"))),"-") -> 150000 | G10: =IF(A10<=ROUNDDOWN(MainForm!$C$11/12,0), SUM(INDIRECT(ADDRESS((A10-1)*12+2,MATCH('Cash flow'!G$67,'Cash flow CALC'!$1:$1,0),1,1,"Cash flow CALC")):INDIRECT(ADDRESS(A10*12+1,MATCH('Cash flow'!G$67,'Cash flow CALC'!$1:$1,0),1,1,"Cash flow CALC"))),"-") -> 30000 | H10: =IF(A10<=ROUNDDOWN(MainForm!$C$11/12,0), SUM(INDIRECT(ADDRESS((A10-1)*12+2,MATCH('Cash flow'!H$67,'Cash flow CALC'!$1:$1,0),1,1,"Cash flow CALC")):INDIRECT(ADDRESS(A10*12+1,MATCH('Cash flow'!H$67,'Cash flow CALC'!$1:$1,0),1,1,"Cash flow CALC"))),"-") -> 4256.023245 | I10: =IF(A10<=ROUNDDOWN(MainForm!$C$11/12,0), SUM(INDIRECT(ADDRESS((A10-1)*12+2,MATCH('Cash flow'!I$67,'Cash flow CALC'!$1:$1,0),1,1,"Cash flow CALC")):INDIRECT(ADDRESS(A10*12+1,MATCH('Cash flow'!I$67,'Cash flow CALC'!$1:$1,0),1,1,"Cash flow CALC"))),"-") -> 3600 | J10: =IF(A10<=ROUNDDOWN(MainForm!$C$11/12,0), SUM(INDIRECT(ADDRESS((A10-1)*12+2,MATCH('Cash flow'!J$67,'Cash flow CALC'!$1:$1,0),1,1,"Cash flow CALC")):INDIRECT(ADDRESS(A10*12+1,MATCH('Cash flow'!J$67,'Cash flow CALC'!$1:$1,0),1,1,"Cash flow CALC"))),"-") -> 0 | K10: =IF(A10<=ROUNDDOWN(MainForm!$C$11/12,0), INDIRECT(ADDRESS(A10*12+1,MATCH('Cash flow'!K$67,'Cash flow CALC'!$1:$1,0),1,1,"Cash flow CALC")),"-") -> 0 | L10: =IF(A10<=ROUNDDOWN(MainForm!$C$11/12,0), SUM(INDIRECT(ADDRESS((A10-1)*12+2,MATCH('Cash flow'!L$67,'Cash flow CALC'!$1:$1,0),1,1,"Cash flow CALC")):INDIRECT(ADDRESS(A10*12+1,MATCH('Cash flow'!L$67,'Cash flow CALC'!$1:$1,0),1,1,"Cash flow CALC"))),"-") -> 15436.62489 | M10: =IF(A10<=ROUNDDOWN(MainForm!$C$11/12,0), INDIRECT(ADDRESS(A10*12+1,MATCH('Cash flow'!M$67,'Cash flow CALC'!$1:$1,0),1,1,"Cash flow CALC")),"-") -> 464282.9296 | N10: =IF(A10<=ROUNDDOWN(MainForm!$C$11/12,0), SUM(INDIRECT(ADDRESS((A10-1)*12+2,MATCH('Cash flow'!N$67,'Cash flow CALC'!$1:$1,0),1,1,"Cash flow CALC")):INDIRECT(ADDRESS(A10*12+1,MATCH('Cash flow'!N$67,'Cash flow CALC'!$1:$1,0),1,1,"Cash flow CALC"))),"-") -> 62200 | O10: =IF(A10<=ROUNDDOWN(MainForm!$C$11/12,0), SUM(INDIRECT(ADDRESS((A10-1)*12+2,MATCH('Cash flow'!O$67,'Cash flow CALC'!$1:$1,0),1,1,"Cash flow CALC")):INDIRECT(ADDRESS(A10*12+1,MATCH('Cash flow'!O$67,'Cash flow CALC'!$1:$1,0),1,1,"Cash flow CALC"))),"-") -> 0 | P10: =IF(A10<=ROUNDDOWN(MainForm!$C$11/12,0), INDIRECT(ADDRESS(A10*12+1,MATCH('Cash flow'!P$67,'Cash flow CALC'!$1:$1,0),1,1,"Cash flow CALC")),"-") -> 124666.2229 | Q10: =IF(A10<=ROUNDDOWN(MainForm!$C$11/12,0), INDIRECT(ADDRESS(A10*12+1,MATCH('Cash flow'!Q$67,'Cash flow CALC'!$1:$1,0),1,1,"Cash flow CALC")),"-") -> 588949.1525 | R10: =IF(A10<=ROUNDDOWN(MainForm!$C$11/12,0), VLOOKUP(A10,Premium_suppression,2,FALSE),"-") -> Nem
A11: 4 | B11: =IF(A11<=ROUNDDOWN(MainForm!$C$11/12,0), SUM(INDIRECT(ADDRESS((A11-1)*12+2,MATCH('Cash flow'!B$67,'Cash flow CALC'!$1:$1,0),1,1,"Cash flow CALC")):INDIRECT(ADDRESS(A11*12+1,MATCH('Cash flow'!B$67,'Cash flow CALC'!$1:$1,0),1,1,"Cash flow CALC"))), "-") -> 337459.2 | C11: =IF(A11<=ROUNDDOWN(MainForm!$C$11/12,0), VLOOKUP(A11,Indexation_full,2,FALSE), "-") -> 0.04 | D11: =IF(A11<=ROUNDDOWN(MainForm!$C$11/12,0), SUM(INDIRECT(ADDRESS((A11-1)*12+2,MATCH('Cash flow'!D$67,'Cash flow CALC'!$1:$1,0),1,1,"Cash flow CALC")):INDIRECT(ADDRESS(A11*12+1,MATCH('Cash flow'!D$67,'Cash flow CALC'!$1:$1,0),1,1,"Cash flow CALC"))), "-") -> 337459.2 | E11: =IF(A11<=ROUNDDOWN(MainForm!$C$11/12,0), SUM(INDIRECT(ADDRESS(($A$8-1)*12+2,MATCH('Cash flow'!E$67,'Cash flow CALC'!$1:$1,0),1,1,"Cash flow CALC")):INDIRECT(ADDRESS(A11*12+1,MATCH('Cash flow'!E$67,'Cash flow CALC'!$1:$1,0),1,1,"Cash flow CALC"))),"-") -> 1273939.2 | F11: =IF(A11<=ROUNDDOWN(MainForm!$C$11/12,0), SUM(INDIRECT(ADDRESS((A11-1)*12+2,MATCH('Cash flow'!F$67,'Cash flow CALC'!$1:$1,0),1,1,"Cash flow CALC")):INDIRECT(ADDRESS(A11*12+1,MATCH('Cash flow'!F$67,'Cash flow CALC'!$1:$1,0),1,1,"Cash flow CALC"))),"-") -> 120000 | G11: =IF(A11<=ROUNDDOWN(MainForm!$C$11/12,0), SUM(INDIRECT(ADDRESS((A11-1)*12+2,MATCH('Cash flow'!G$67,'Cash flow CALC'!$1:$1,0),1,1,"Cash flow CALC")):INDIRECT(ADDRESS(A11*12+1,MATCH('Cash flow'!G$67,'Cash flow CALC'!$1:$1,0),1,1,"Cash flow CALC"))),"-") -> 0 | H11: =IF(A11<=ROUNDDOWN(MainForm!$C$11/12,0), SUM(INDIRECT(ADDRESS((A11-1)*12+2,MATCH('Cash flow'!H$67,'Cash flow CALC'!$1:$1,0),1,1,"Cash flow CALC")):INDIRECT(ADDRESS(A11*12+1,MATCH('Cash flow'!H$67,'Cash flow CALC'!$1:$1,0),1,1,"Cash flow CALC"))),"-") -> 6342.174354 | I11: =IF(A11<=ROUNDDOWN(MainForm!$C$11/12,0), SUM(INDIRECT(ADDRESS((A11-1)*12+2,MATCH('Cash flow'!I$67,'Cash flow CALC'!$1:$1,0),1,1,"Cash flow CALC")):INDIRECT(ADDRESS(A11*12+1,MATCH('Cash flow'!I$67,'Cash flow CALC'!$1:$1,0),1,1,"Cash flow CALC"))),"-") -> 3600 | J11: =IF(A11<=ROUNDDOWN(MainForm!$C$11/12,0), SUM(INDIRECT(ADDRESS((A11-1)*12+2,MATCH('Cash flow'!J$67,'Cash flow CALC'!$1:$1,0),1,1,"Cash flow CALC")):INDIRECT(ADDRESS(A11*12+1,MATCH('Cash flow'!J$67,'Cash flow CALC'!$1:$1,0),1,1,"Cash flow CALC"))),"-") -> 0 | K11: =IF(A11<=ROUNDDOWN(MainForm!$C$11/12,0), INDIRECT(ADDRESS(A11*12+1,MATCH('Cash flow'!K$67,'Cash flow CALC'!$1:$1,0),1,1,"Cash flow CALC")),"-") -> 0 | L11: =IF(A11<=ROUNDDOWN(MainForm!$C$11/12,0), SUM(INDIRECT(ADDRESS((A11-1)*12+2,MATCH('Cash flow'!L$67,'Cash flow CALC'!$1:$1,0),1,1,"Cash flow CALC")):INDIRECT(ADDRESS(A11*12+1,MATCH('Cash flow'!L$67,'Cash flow CALC'!$1:$1,0),1,1,"Cash flow CALC"))),"-") -> 23048.82458 | M11: =IF(A11<=ROUNDDOWN(MainForm!$C$11/12,0), INDIRECT(ADDRESS(A11*12+1,MATCH('Cash flow'!M$67,'Cash flow CALC'!$1:$1,0),1,1,"Cash flow CALC")),"-") -> 694848.7798 | N11: =IF(A11<=ROUNDDOWN(MainForm!$C$11/12,0), SUM(INDIRECT(ADDRESS((A11-1)*12+2,MATCH('Cash flow'!N$67,'Cash flow CALC'!$1:$1,0),1,1,"Cash flow CALC")):INDIRECT(ADDRESS(A11*12+1,MATCH('Cash flow'!N$67,'Cash flow CALC'!$1:$1,0),1,1,"Cash flow CALC"))),"-") -> 64688 | O11: =IF(A11<=ROUNDDOWN(MainForm!$C$11/12,0), SUM(INDIRECT(ADDRESS((A11-1)*12+2,MATCH('Cash flow'!O$67,'Cash flow CALC'!$1:$1,0),1,1,"Cash flow CALC")):INDIRECT(ADDRESS(A11*12+1,MATCH('Cash flow'!O$67,'Cash flow CALC'!$1:$1,0),1,1,"Cash flow CALC"))),"-") -> 0 | P11: =IF(A11<=ROUNDDOWN(MainForm!$C$11/12,0), INDIRECT(ADDRESS(A11*12+1,MATCH('Cash flow'!P$67,'Cash flow CALC'!$1:$1,0),1,1,"Cash flow CALC")),"-") -> 199070.7492 | Q11: =IF(A11<=ROUNDDOWN(MainForm!$C$11/12,0), INDIRECT(ADDRESS(A11*12+1,MATCH('Cash flow'!Q$67,'Cash flow CALC'!$1:$1,0),1,1,"Cash flow CALC")),"-") -> 893919.529 | R11: =IF(A11<=ROUNDDOWN(MainForm!$C$11/12,0), VLOOKUP(A11,Premium_suppression,2,FALSE),"-") -> Nem
A12: 5 | B12: =IF(A12<=ROUNDDOWN(MainForm!$C$11/12,0), SUM(INDIRECT(ADDRESS((A12-1)*12+2,MATCH('Cash flow'!B$67,'Cash flow CALC'!$1:$1,0),1,1,"Cash flow CALC")):INDIRECT(ADDRESS(A12*12+1,MATCH('Cash flow'!B$67,'Cash flow CALC'!$1:$1,0),1,1,"Cash flow CALC"))), "-") -> 350957.568 | C12: =IF(A12<=ROUNDDOWN(MainForm!$C$11/12,0), VLOOKUP(A12,Indexation_full,2,FALSE), "-") -> 0.04 | D12: =IF(A12<=ROUNDDOWN(MainForm!$C$11/12,0), SUM(INDIRECT(ADDRESS((A12-1)*12+2,MATCH('Cash flow'!D$67,'Cash flow CALC'!$1:$1,0),1,1,"Cash flow CALC")):INDIRECT(ADDRESS(A12*12+1,MATCH('Cash flow'!D$67,'Cash flow CALC'!$1:$1,0),1,1,"Cash flow CALC"))), "-") -> 350957.568 | E12: =IF(A12<=ROUNDDOWN(MainForm!$C$11/12,0), SUM(INDIRECT(ADDRESS(($A$8-1)*12+2,MATCH('Cash flow'!E$67,'Cash flow CALC'!$1:$1,0),1,1,"Cash flow CALC")):INDIRECT(ADDRESS(A12*12+1,MATCH('Cash flow'!E$67,'Cash flow CALC'!$1:$1,0),1,1,"Cash flow CALC"))),"-") -> 1624896.768 | F12: =IF(A12<=ROUNDDOWN(MainForm!$C$11/12,0), SUM(INDIRECT(ADDRESS((A12-1)*12+2,MATCH('Cash flow'!F$67,'Cash flow CALC'!$1:$1,0),1,1,"Cash flow CALC")):INDIRECT(ADDRESS(A12*12+1,MATCH('Cash flow'!F$67,'Cash flow CALC'!$1:$1,0),1,1,"Cash flow CALC"))),"-") -> 0 | G12: =IF(A12<=ROUNDDOWN(MainForm!$C$11/12,0), SUM(INDIRECT(ADDRESS((A12-1)*12+2,MATCH('Cash flow'!G$67,'Cash flow CALC'!$1:$1,0),1,1,"Cash flow CALC")):INDIRECT(ADDRESS(A12*12+1,MATCH('Cash flow'!G$67,'Cash flow CALC'!$1:$1,0),1,1,"Cash flow CALC"))),"-") -> 0 | H12: =IF(A12<=ROUNDDOWN(MainForm!$C$11/12,0), SUM(INDIRECT(ADDRESS((A12-1)*12+2,MATCH('Cash flow'!H$67,'Cash flow CALC'!$1:$1,0),1,1,"Cash flow CALC")):INDIRECT(ADDRESS(A12*12+1,MATCH('Cash flow'!H$67,'Cash flow CALC'!$1:$1,0),1,1,"Cash flow CALC"))),"-") -> 9652.807694 | I12: =IF(A12<=ROUNDDOWN(MainForm!$C$11/12,0), SUM(INDIRECT(ADDRESS((A12-1)*12+2,MATCH('Cash flow'!I$67,'Cash flow CALC'!$1:$1,0),1,1,"Cash flow CALC")):INDIRECT(ADDRESS(A12*12+1,MATCH('Cash flow'!I$67,'Cash flow CALC'!$1:$1,0),1,1,"Cash flow CALC"))),"-") -> 3600 | J12: =IF(A12<=ROUNDDOWN(MainForm!$C$11/12,0), SUM(INDIRECT(ADDRESS((A12-1)*12+2,MATCH('Cash flow'!J$67,'Cash flow CALC'!$1:$1,0),1,1,"Cash flow CALC")):INDIRECT(ADDRESS(A12*12+1,MATCH('Cash flow'!J$67,'Cash flow CALC'!$1:$1,0),1,1,"Cash flow CALC"))),"-") -> 0 | K12: =IF(A12<=ROUNDDOWN(MainForm!$C$11/12,0), INDIRECT(ADDRESS(A12*12+1,MATCH('Cash flow'!K$67,'Cash flow CALC'!$1:$1,0),1,1,"Cash flow CALC")),"-") -> 97493.80608 | L12: =IF(A12<=ROUNDDOWN(MainForm!$C$11/12,0), SUM(INDIRECT(ADDRESS((A12-1)*12+2,MATCH('Cash flow'!L$67,'Cash flow CALC'!$1:$1,0),1,1,"Cash flow CALC")):INDIRECT(ADDRESS(A12*12+1,MATCH('Cash flow'!L$67,'Cash flow CALC'!$1:$1,0),1,1,"Cash flow CALC"))),"-") -> 35080.37762 | M12: =IF(A12<=ROUNDDOWN(MainForm!$C$11/12,0), INDIRECT(ADDRESS(A12*12+1,MATCH('Cash flow'!M$67,'Cash flow CALC'!$1:$1,0),1,1,"Cash flow CALC")),"-") -> 1165127.724 | N12: =IF(A12<=ROUNDDOWN(MainForm!$C$11/12,0), SUM(INDIRECT(ADDRESS((A12-1)*12+2,MATCH('Cash flow'!N$67,'Cash flow CALC'!$1:$1,0),1,1,"Cash flow CALC")):INDIRECT(ADDRESS(A12*12+1,MATCH('Cash flow'!N$67,'Cash flow CALC'!$1:$1,0),1,1,"Cash flow CALC"))),"-") -> 67275.52 | O12: =IF(A12<=ROUNDDOWN(MainForm!$C$11/12,0), SUM(INDIRECT(ADDRESS((A12-1)*12+2,MATCH('Cash flow'!O$67,'Cash flow CALC'!$1:$1,0),1,1,"Cash flow CALC")):INDIRECT(ADDRESS(A12*12+1,MATCH('Cash flow'!O$67,'Cash flow CALC'!$1:$1,0),1,1,"Cash flow CALC"))),"-") -> 0 | P12: =IF(A12<=ROUNDDOWN(MainForm!$C$11/12,0), INDIRECT(ADDRESS(A12*12+1,MATCH('Cash flow'!P$67,'Cash flow CALC'!$1:$1,0),1,1,"Cash flow CALC")),"-") -> 280616.5292 | Q12: =IF(A12<=ROUNDDOWN(MainForm!$C$11/12,0), INDIRECT(ADDRESS(A12*12+1,MATCH('Cash flow'!Q$67,'Cash flow CALC'!$1:$1,0),1,1,"Cash flow CALC")),"-") -> 1445744.253 | R12: =IF(A12<=ROUNDDOWN(MainForm!$C$11/12,0), VLOOKUP(A12,Premium_suppression,2,FALSE),"-") -> Nem
A13: 6 | B13: =IF(A13<=ROUNDDOWN(MainForm!$C$11/12,0), SUM(INDIRECT(ADDRESS((A13-1)*12+2,MATCH('Cash flow'!B$67,'Cash flow CALC'!$1:$1,0),1,1,"Cash flow CALC")):INDIRECT(ADDRESS(A13*12+1,MATCH('Cash flow'!B$67,'Cash flow CALC'!$1:$1,0),1,1,"Cash flow CALC"))), "-") -> 364995.8707 | C13: =IF(A13<=ROUNDDOWN(MainForm!$C$11/12,0), VLOOKUP(A13,Indexation_full,2,FALSE), "-") -> 0.04 | D13: =IF(A13<=ROUNDDOWN(MainForm!$C$11/12,0), SUM(INDIRECT(ADDRESS((A13-1)*12+2,MATCH('Cash flow'!D$67,'Cash flow CALC'!$1:$1,0),1,1,"Cash flow CALC")):INDIRECT(ADDRESS(A13*12+1,MATCH('Cash flow'!D$67,'Cash flow CALC'!$1:$1,0),1,1,"Cash flow CALC"))), "-") -> 364995.8707 | E13: =IF(A13<=ROUNDDOWN(MainForm!$C$11/12,0), SUM(INDIRECT(ADDRESS(($A$8-1)*12+2,MATCH('Cash flow'!E$67,'Cash flow CALC'!$1:$1,0),1,1,"Cash flow CALC")):INDIRECT(ADDRESS(A13*12+1,MATCH('Cash flow'!E$67,'Cash flow CALC'!$1:$1,0),1,1,"Cash flow CALC"))),"-") -> 1989892.639 | F13: =IF(A13<=ROUNDDOWN(MainForm!$C$11/12,0), SUM(INDIRECT(ADDRESS((A13-1)*12+2,MATCH('Cash flow'!F$67,'Cash flow CALC'!$1:$1,0),1,1,"Cash flow CALC")):INDIRECT(ADDRESS(A13*12+1,MATCH('Cash flow'!F$67,'Cash flow CALC'!$1:$1,0),1,1,"Cash flow CALC"))),"-") -> 0 | G13: =IF(A13<=ROUNDDOWN(MainForm!$C$11/12,0), SUM(INDIRECT(ADDRESS((A13-1)*12+2,MATCH('Cash flow'!G$67,'Cash flow CALC'!$1:$1,0),1,1,"Cash flow CALC")):INDIRECT(ADDRESS(A13*12+1,MATCH('Cash flow'!G$67,'Cash flow CALC'!$1:$1,0),1,1,"Cash flow CALC"))),"-") -> 0 | H13: =IF(A13<=ROUNDDOWN(MainForm!$C$11/12,0), SUM(INDIRECT(ADDRESS((A13-1)*12+2,MATCH('Cash flow'!H$67,'Cash flow CALC'!$1:$1,0),1,1,"Cash flow CALC")):INDIRECT(ADDRESS(A13*12+1,MATCH('Cash flow'!H$67,'Cash flow CALC'!$1:$1,0),1,1,"Cash flow CALC"))),"-") -> 14881.41577 | I13: =IF(A13<=ROUNDDOWN(MainForm!$C$11/12,0), SUM(INDIRECT(ADDRESS((A13-1)*12+2,MATCH('Cash flow'!I$67,'Cash flow CALC'!$1:$1,0),1,1,"Cash flow CALC")):INDIRECT(ADDRESS(A13*12+1,MATCH('Cash flow'!I$67,'Cash flow CALC'!$1:$1,0),1,1,"Cash flow CALC"))),"-") -> 3600 | J13: =IF(A13<=ROUNDDOWN(MainForm!$C$11/12,0), SUM(INDIRECT(ADDRESS((A13-1)*12+2,MATCH('Cash flow'!J$67,'Cash flow CALC'!$1:$1,0),1,1,"Cash flow CALC")):INDIRECT(ADDRESS(A13*12+1,MATCH('Cash flow'!J$67,'Cash flow CALC'!$1:$1,0),1,1,"Cash flow CALC"))),"-") -> 0 | K13: =IF(A13<=ROUNDDOWN(MainForm!$C$11/12,0), INDIRECT(ADDRESS(A13*12+1,MATCH('Cash flow'!K$67,'Cash flow CALC'!$1:$1,0),1,1,"Cash flow CALC")),"-") -> 0 | L13: =IF(A13<=ROUNDDOWN(MainForm!$C$11/12,0), SUM(INDIRECT(ADDRESS((A13-1)*12+2,MATCH('Cash flow'!L$67,'Cash flow CALC'!$1:$1,0),1,1,"Cash flow CALC")):INDIRECT(ADDRESS(A13*12+1,MATCH('Cash flow'!L$67,'Cash flow CALC'!$1:$1,0),1,1,"Cash flow CALC"))),"-") -> 54082.26304 | M13: =IF(A13<=ROUNDDOWN(MainForm!$C$11/12,0), INDIRECT(ADDRESS(A13*12+1,MATCH('Cash flow'!M$67,'Cash flow CALC'!$1:$1,0),1,1,"Cash flow CALC")),"-") -> 1565724.442 | N13: =IF(A13<=ROUNDDOWN(MainForm!$C$11/12,0), SUM(INDIRECT(ADDRESS((A13-1)*12+2,MATCH('Cash flow'!N$67,'Cash flow CALC'!$1:$1,0),1,1,"Cash flow CALC")):INDIRECT(ADDRESS(A13*12+1,MATCH('Cash flow'!N$67,'Cash flow CALC'!$1:$1,0),1,1,"Cash flow CALC"))),"-") -> 69966.5408 | O13: =IF(A13<=ROUNDDOWN(MainForm!$C$11/12,0), SUM(INDIRECT(ADDRESS((A13-1)*12+2,MATCH('Cash flow'!O$67,'Cash flow CALC'!$1:$1,0),1,1,"Cash flow CALC")):INDIRECT(ADDRESS(A13*12+1,MATCH('Cash flow'!O$67,'Cash flow CALC'!$1:$1,0),1,1,"Cash flow CALC"))),"-") -> 0 | P13: =IF(A13<=ROUNDDOWN(MainForm!$C$11/12,0), INDIRECT(ADDRESS(A13*12+1,MATCH('Cash flow'!P$67,'Cash flow CALC'!$1:$1,0),1,1,"Cash flow CALC")),"-") -> 369839.1175 | Q13: =IF(A13<=ROUNDDOWN(MainForm!$C$11/12,0), INDIRECT(ADDRESS(A13*12+1,MATCH('Cash flow'!Q$67,'Cash flow CALC'!$1:$1,0),1,1,"Cash flow CALC")),"-") -> 1935563.559 | R13: =IF(A13<=ROUNDDOWN(MainForm!$C$11/12,0), VLOOKUP(A13,Premium_suppression,2,FALSE),"-") -> Nem
A14: 7 | B14: =IF(A14<=ROUNDDOWN(MainForm!$C$11/12,0), SUM(INDIRECT(ADDRESS((A14-1)*12+2,MATCH('Cash flow'!B$67,'Cash flow CALC'!$1:$1,0),1,1,"Cash flow CALC")):INDIRECT(ADDRESS(A14*12+1,MATCH('Cash flow'!B$67,'Cash flow CALC'!$1:$1,0),1,1,"Cash flow CALC"))), "-") -> 379595.7055 | C14: =IF(A14<=ROUNDDOWN(MainForm!$C$11/12,0), VLOOKUP(A14,Indexation_full,2,FALSE), "-") -> 0.04 | D14: =IF(A14<=ROUNDDOWN(MainForm!$C$11/12,0), SUM(INDIRECT(ADDRESS((A14-1)*12+2,MATCH('Cash flow'!D$67,'Cash flow CALC'!$1:$1,0),1,1,"Cash flow CALC")):INDIRECT(ADDRESS(A14*12+1,MATCH('Cash flow'!D$67,'Cash flow CALC'!$1:$1,0),1,1,"Cash flow CALC"))), "-") -> 379595.7055 | E14: =IF(A14<=ROUNDDOWN(MainForm!$C$11/12,0), SUM(INDIRECT(ADDRESS(($A$8-1)*12+2,MATCH('Cash flow'!E$67,'Cash flow CALC'!$1:$1,0),1,1,"Cash flow CALC")):INDIRECT(ADDRESS(A14*12+1,MATCH('Cash flow'!E$67,'Cash flow CALC'!$1:$1,0),1,1,"Cash flow CALC"))),"-") -> 2369488.344 | F14: =IF(A14<=ROUNDDOWN(MainForm!$C$11/12,0), SUM(INDIRECT(ADDRESS((A14-1)*12+2,MATCH('Cash flow'!F$67,'Cash flow CALC'!$1:$1,0),1,1,"Cash flow CALC")):INDIRECT(ADDRESS(A14*12+1,MATCH('Cash flow'!F$67,'Cash flow CALC'!$1:$1,0),1,1,"Cash flow CALC"))),"-") -> 0 | G14: =IF(A14<=ROUNDDOWN(MainForm!$C$11/12,0), SUM(INDIRECT(ADDRESS((A14-1)*12+2,MATCH('Cash flow'!G$67,'Cash flow CALC'!$1:$1,0),1,1,"Cash flow CALC")):INDIRECT(ADDRESS(A14*12+1,MATCH('Cash flow'!G$67,'Cash flow CALC'!$1:$1,0),1,1,"Cash flow CALC"))),"-") -> 0 | H14: =IF(A14<=ROUNDDOWN(MainForm!$C$11/12,0), SUM(INDIRECT(ADDRESS((A14-1)*12+2,MATCH('Cash flow'!H$67,'Cash flow CALC'!$1:$1,0),1,1,"Cash flow CALC")):INDIRECT(ADDRESS(A14*12+1,MATCH('Cash flow'!H$67,'Cash flow CALC'!$1:$1,0),1,1,"Cash flow CALC"))),"-") -> 19350.87852 | I14: =IF(A14<=ROUNDDOWN(MainForm!$C$11/12,0), SUM(INDIRECT(ADDRESS((A14-1)*12+2,MATCH('Cash flow'!I$67,'Cash flow CALC'!$1:$1,0),1,1,"Cash flow CALC")):INDIRECT(ADDRESS(A14*12+1,MATCH('Cash flow'!I$67,'Cash flow CALC'!$1:$1,0),1,1,"Cash flow CALC"))),"-") -> 3600 | J14: =IF(A14<=ROUNDDOWN(MainForm!$C$11/12,0), SUM(INDIRECT(ADDRESS((A14-1)*12+2,MATCH('Cash flow'!J$67,'Cash flow CALC'!$1:$1,0),1,1,"Cash flow CALC")):INDIRECT(ADDRESS(A14*12+1,MATCH('Cash flow'!J$67,'Cash flow CALC'!$1:$1,0),1,1,"Cash flow CALC"))),"-") -> 0 | K14: =IF(A14<=ROUNDDOWN(MainForm!$C$11/12,0), INDIRECT(ADDRESS(A14*12+1,MATCH('Cash flow'!K$67,'Cash flow CALC'!$1:$1,0),1,1,"Cash flow CALC")),"-") -> 0 | L14: =IF(A14<=ROUNDDOWN(MainForm!$C$11/12,0), SUM(INDIRECT(ADDRESS((A14-1)*12+2,MATCH('Cash flow'!L$67,'Cash flow CALC'!$1:$1,0),1,1,"Cash flow CALC")):INDIRECT(ADDRESS(A14*12+1,MATCH('Cash flow'!L$67,'Cash flow CALC'!$1:$1,0),1,1,"Cash flow CALC"))),"-") -> 70325.2512 | M14: =IF(A14<=ROUNDDOWN(MainForm!$C$11/12,0), INDIRECT(ADDRESS(A14*12+1,MATCH('Cash flow'!M$67,'Cash flow CALC'!$1:$1,0),1,1,"Cash flow CALC")),"-") -> 1992694.52 | N14: =IF(A14<=ROUNDDOWN(MainForm!$C$11/12,0), SUM(INDIRECT(ADDRESS((A14-1)*12+2,MATCH('Cash flow'!N$67,'Cash flow CALC'!$1:$1,0),1,1,"Cash flow CALC")):INDIRECT(ADDRESS(A14*12+1,MATCH('Cash flow'!N$67,'Cash flow CALC'!$1:$1,0),1,1,"Cash flow CALC"))),"-") -> 72765.20243 | O14: =IF(A14<=ROUNDDOWN(MainForm!$C$11/12,0), SUM(INDIRECT(ADDRESS((A14-1)*12+2,MATCH('Cash flow'!O$67,'Cash flow CALC'!$1:$1,0),1,1,"Cash flow CALC")):INDIRECT(ADDRESS(A14*12+1,MATCH('Cash flow'!O$67,'Cash flow CALC'!$1:$1,0),1,1,"Cash flow CALC"))),"-") -> 0 | P14: =IF(A14<=ROUNDDOWN(MainForm!$C$11/12,0), INDIRECT(ADDRESS(A14*12+1,MATCH('Cash flow'!P$67,'Cash flow CALC'!$1:$1,0),1,1,"Cash flow CALC")),"-") -> 467310.4848 | Q14: =IF(A14<=ROUNDDOWN(MainForm!$C$11/12,0), INDIRECT(ADDRESS(A14*12+1,MATCH('Cash flow'!Q$67,'Cash flow CALC'!$1:$1,0),1,1,"Cash flow CALC")),"-") -> 2460005.005 | R14: =IF(A14<=ROUNDDOWN(MainForm!$C$11/12,0), VLOOKUP(A14,Premium_suppression,2,FALSE),"-") -> Nem
A15: 8 | B15: =IF(A15<=ROUNDDOWN(MainForm!$C$11/12,0), SUM(INDIRECT(ADDRESS((A15-1)*12+2,MATCH('Cash flow'!B$67,'Cash flow CALC'!$1:$1,0),1,1,"Cash flow CALC")):INDIRECT(ADDRESS(A15*12+1,MATCH('Cash flow'!B$67,'Cash flow CALC'!$1:$1,0),1,1,"Cash flow CALC"))), "-") -> 394779.5338 | C15: =IF(A15<=ROUNDDOWN(MainForm!$C$11/12,0), VLOOKUP(A15,Indexation_full,2,FALSE), "-") -> 0.04 | D15: =IF(A15<=ROUNDDOWN(MainForm!$C$11/12,0), SUM(INDIRECT(ADDRESS((A15-1)*12+2,MATCH('Cash flow'!D$67,'Cash flow CALC'!$1:$1,0),1,1,"Cash flow CALC")):INDIRECT(ADDRESS(A15*12+1,MATCH('Cash flow'!D$67,'Cash flow CALC'!$1:$1,0),1,1,"Cash flow CALC"))), "-") -> 394779.5338 | E15: =IF(A15<=ROUNDDOWN(MainForm!$C$11/12,0), SUM(INDIRECT(ADDRESS(($A$8-1)*12+2,MATCH('Cash flow'!E$67,'Cash flow CALC'!$1:$1,0),1,1,"Cash flow CALC")):INDIRECT(ADDRESS(A15*12+1,MATCH('Cash flow'!E$67,'Cash flow CALC'!$1:$1,0),1,1,"Cash flow CALC"))),"-") -> 2764267.878 | F15: =IF(A15<=ROUNDDOWN(MainForm!$C$11/12,0), SUM(INDIRECT(ADDRESS((A15-1)*12+2,MATCH('Cash flow'!F$67,'Cash flow CALC'!$1:$1,0),1,1,"Cash flow CALC")):INDIRECT(ADDRESS(A15*12+1,MATCH('Cash flow'!F$67,'Cash flow CALC'!$1:$1,0),1,1,"Cash flow CALC"))),"-") -> 0 | G15: =IF(A15<=ROUNDDOWN(MainForm!$C$11/12,0), SUM(INDIRECT(ADDRESS((A15-1)*12+2,MATCH('Cash flow'!G$67,'Cash flow CALC'!$1:$1,0),1,1,"Cash flow CALC")):INDIRECT(ADDRESS(A15*12+1,MATCH('Cash flow'!G$67,'Cash flow CALC'!$1:$1,0),1,1,"Cash flow CALC"))),"-") -> 0 | H15: =IF(A15<=ROUNDDOWN(MainForm!$C$11/12,0), SUM(INDIRECT(ADDRESS((A15-1)*12+2,MATCH('Cash flow'!H$67,'Cash flow CALC'!$1:$1,0),1,1,"Cash flow CALC")):INDIRECT(ADDRESS(A15*12+1,MATCH('Cash flow'!H$67,'Cash flow CALC'!$1:$1,0),1,1,"Cash flow CALC"))),"-") -> 24112.36334 | I15: =IF(A15<=ROUNDDOWN(MainForm!$C$11/12,0), SUM(INDIRECT(ADDRESS((A15-1)*12+2,MATCH('Cash flow'!I$67,'Cash flow CALC'!$1:$1,0),1,1,"Cash flow CALC")):INDIRECT(ADDRESS(A15*12+1,MATCH('Cash flow'!I$67,'Cash flow CALC'!$1:$1,0),1,1,"Cash flow CALC"))),"-") -> 3600 | J15: =IF(A15<=ROUNDDOWN(MainForm!$C$11/12,0), SUM(INDIRECT(ADDRESS((A15-1)*12+2,MATCH('Cash flow'!J$67,'Cash flow CALC'!$1:$1,0),1,1,"Cash flow CALC")):INDIRECT(ADDRESS(A15*12+1,MATCH('Cash flow'!J$67,'Cash flow CALC'!$1:$1,0),1,1,"Cash flow CALC"))),"-") -> 0 | K15: =IF(A15<=ROUNDDOWN(MainForm!$C$11/12,0), INDIRECT(ADDRESS(A15*12+1,MATCH('Cash flow'!K$67,'Cash flow CALC'!$1:$1,0),1,1,"Cash flow CALC")),"-") -> 0 | L15: =IF(A15<=ROUNDDOWN(MainForm!$C$11/12,0), SUM(INDIRECT(ADDRESS((A15-1)*12+2,MATCH('Cash flow'!L$67,'Cash flow CALC'!$1:$1,0),1,1,"Cash flow CALC")):INDIRECT(ADDRESS(A15*12+1,MATCH('Cash flow'!L$67,'Cash flow CALC'!$1:$1,0),1,1,"Cash flow CALC"))),"-") -> 87629.51031 | M15: =IF(A15<=ROUNDDOWN(MainForm!$C$11/12,0), INDIRECT(ADDRESS(A15*12+1,MATCH('Cash flow'!M$67,'Cash flow CALC'!$1:$1,0),1,1,"Cash flow CALC")),"-") -> 2447391.201 | N15: =IF(A15<=ROUNDDOWN(MainForm!$C$11/12,0), SUM(INDIRECT(ADDRESS((A15-1)*12+2,MATCH('Cash flow'!N$67,'Cash flow CALC'!$1:$1,0),1,1,"Cash flow CALC")):INDIRECT(ADDRESS(A15*12+1,MATCH('Cash flow'!N$67,'Cash flow CALC'!$1:$1,0),1,1,"Cash flow CALC"))),"-") -> 75675.81053 | O15: =IF(A15<=ROUNDDOWN(MainForm!$C$11/12,0), SUM(INDIRECT(ADDRESS((A15-1)*12+2,MATCH('Cash flow'!O$67,'Cash flow CALC'!$1:$1,0),1,1,"Cash flow CALC")):INDIRECT(ADDRESS(A15*12+1,MATCH('Cash flow'!O$67,'Cash flow CALC'!$1:$1,0),1,1,"Cash flow CALC"))),"-") -> 0 | P15: =IF(A15<=ROUNDDOWN(MainForm!$C$11/12,0), INDIRECT(ADDRESS(A15*12+1,MATCH('Cash flow'!P$67,'Cash flow CALC'!$1:$1,0),1,1,"Cash flow CALC")),"-") -> 573641.375 | Q15: =IF(A15<=ROUNDDOWN(MainForm!$C$11/12,0), INDIRECT(ADDRESS(A15*12+1,MATCH('Cash flow'!Q$67,'Cash flow CALC'!$1:$1,0),1,1,"Cash flow CALC")),"-") -> 3021032.576 | R15: =IF(A15<=ROUNDDOWN(MainForm!$C$11/12,0), VLOOKUP(A15,Premium_suppression,2,FALSE),"-") -> Nem
A16: 9 | B16: =IF(A16<=ROUNDDOWN(MainForm!$C$11/12,0), SUM(INDIRECT(ADDRESS((A16-1)*12+2,MATCH('Cash flow'!B$67,'Cash flow CALC'!$1:$1,0),1,1,"Cash flow CALC")):INDIRECT(ADDRESS(A16*12+1,MATCH('Cash flow'!B$67,'Cash flow CALC'!$1:$1,0),1,1,"Cash flow CALC"))), "-") -> 410570.7151 | C16: =IF(A16<=ROUNDDOWN(MainForm!$C$11/12,0), VLOOKUP(A16,Indexation_full,2,FALSE), "-") -> 0.04 | D16: =IF(A16<=ROUNDDOWN(MainForm!$C$11/12,0), SUM(INDIRECT(ADDRESS((A16-1)*12+2,MATCH('Cash flow'!D$67,'Cash flow CALC'!$1:$1,0),1,1,"Cash flow CALC")):INDIRECT(ADDRESS(A16*12+1,MATCH('Cash flow'!D$67,'Cash flow CALC'!$1:$1,0),1,1,"Cash flow CALC"))), "-") -> 410570.7151 | E16: =IF(A16<=ROUNDDOWN(MainForm!$C$11/12,0), SUM(INDIRECT(ADDRESS(($A$8-1)*12+2,MATCH('Cash flow'!E$67,'Cash flow CALC'!$1:$1,0),1,1,"Cash flow CALC")):INDIRECT(ADDRESS(A16*12+1,MATCH('Cash flow'!E$67,'Cash flow CALC'!$1:$1,0),1,1,"Cash flow CALC"))),"-") -> 3174838.593 | F16: =IF(A16<=ROUNDDOWN(MainForm!$C$11/12,0), SUM(INDIRECT(ADDRESS((A16-1)*12+2,MATCH('Cash flow'!F$67,'Cash flow CALC'!$1:$1,0),1,1,"Cash flow CALC")):INDIRECT(ADDRESS(A16*12+1,MATCH('Cash flow'!F$67,'Cash flow CALC'!$1:$1,0),1,1,"Cash flow CALC"))),"-") -> 0 | G16: =IF(A16<=ROUNDDOWN(MainForm!$C$11/12,0), SUM(INDIRECT(ADDRESS((A16-1)*12+2,MATCH('Cash flow'!G$67,'Cash flow CALC'!$1:$1,0),1,1,"Cash flow CALC")):INDIRECT(ADDRESS(A16*12+1,MATCH('Cash flow'!G$67,'Cash flow CALC'!$1:$1,0),1,1,"Cash flow CALC"))),"-") -> 0 | H16: =IF(A16<=ROUNDDOWN(MainForm!$C$11/12,0), SUM(INDIRECT(ADDRESS((A16-1)*12+2,MATCH('Cash flow'!H$67,'Cash flow CALC'!$1:$1,0),1,1,"Cash flow CALC")):INDIRECT(ADDRESS(A16*12+1,MATCH('Cash flow'!H$67,'Cash flow CALC'!$1:$1,0),1,1,"Cash flow CALC"))),"-") -> 29180.81518 | I16: =IF(A16<=ROUNDDOWN(MainForm!$C$11/12,0), SUM(INDIRECT(ADDRESS((A16-1)*12+2,MATCH('Cash flow'!I$67,'Cash flow CALC'!$1:$1,0),1,1,"Cash flow CALC")):INDIRECT(ADDRESS(A16*12+1,MATCH('Cash flow'!I$67,'Cash flow CALC'!$1:$1,0),1,1,"Cash flow CALC"))),"-") -> 3600 | J16: =IF(A16<=ROUNDDOWN(MainForm!$C$11/12,0), SUM(INDIRECT(ADDRESS((A16-1)*12+2,MATCH('Cash flow'!J$67,'Cash flow CALC'!$1:$1,0),1,1,"Cash flow CALC")):INDIRECT(ADDRESS(A16*12+1,MATCH('Cash flow'!J$67,'Cash flow CALC'!$1:$1,0),1,1,"Cash flow CALC"))),"-") -> 0 | K16: =IF(A16<=ROUNDDOWN(MainForm!$C$11/12,0), INDIRECT(ADDRESS(A16*12+1,MATCH('Cash flow'!K$67,'Cash flow CALC'!$1:$1,0),1,1,"Cash flow CALC")),"-") -> 0 | L16: =IF(A16<=ROUNDDOWN(MainForm!$C$11/12,0), SUM(INDIRECT(ADDRESS((A16-1)*12+2,MATCH('Cash flow'!L$67,'Cash flow CALC'!$1:$1,0),1,1,"Cash flow CALC")):INDIRECT(ADDRESS(A16*12+1,MATCH('Cash flow'!L$67,'Cash flow CALC'!$1:$1,0),1,1,"Cash flow CALC"))),"-") -> 106049.3535 | M16: =IF(A16<=ROUNDDOWN(MainForm!$C$11/12,0), INDIRECT(ADDRESS(A16*12+1,MATCH('Cash flow'!M$67,'Cash flow CALC'!$1:$1,0),1,1,"Cash flow CALC")),"-") -> 2931230.454 | N16: =IF(A16<=ROUNDDOWN(MainForm!$C$11/12,0), SUM(INDIRECT(ADDRESS((A16-1)*12+2,MATCH('Cash flow'!N$67,'Cash flow CALC'!$1:$1,0),1,1,"Cash flow CALC")):INDIRECT(ADDRESS(A16*12+1,MATCH('Cash flow'!N$67,'Cash flow CALC'!$1:$1,0),1,1,"Cash flow CALC"))),"-") -> 78702.84295 | O16: =IF(A16<=ROUNDDOWN(MainForm!$C$11/12,0), SUM(INDIRECT(ADDRESS((A16-1)*12+2,MATCH('Cash flow'!O$67,'Cash flow CALC'!$1:$1,0),1,1,"Cash flow CALC")):INDIRECT(ADDRESS(A16*12+1,MATCH('Cash flow'!O$67,'Cash flow CALC'!$1:$1,0),1,1,"Cash flow CALC"))),"-") -> 0 | P16: =IF(A16<=ROUNDDOWN(MainForm!$C$11/12,0), INDIRECT(ADDRESS(A16*12+1,MATCH('Cash flow'!P$67,'Cash flow CALC'!$1:$1,0),1,1,"Cash flow CALC")),"-") -> 689483.8091 | Q16: =IF(A16<=ROUNDDOWN(MainForm!$C$11/12,0), INDIRECT(ADDRESS(A16*12+1,MATCH('Cash flow'!Q$67,'Cash flow CALC'!$1:$1,0),1,1,"Cash flow CALC")),"-") -> 3620714.263 | R16: =IF(A16<=ROUNDDOWN(MainForm!$C$11/12,0), VLOOKUP(A16,Premium_suppression,2,FALSE),"-") -> Nem
A17: 10 | B17: =IF(A17<=ROUNDDOWN(MainForm!$C$11/12,0), SUM(INDIRECT(ADDRESS((A17-1)*12+2,MATCH('Cash flow'!B$67,'Cash flow CALC'!$1:$1,0),1,1,"Cash flow CALC")):INDIRECT(ADDRESS(A17*12+1,MATCH('Cash flow'!B$67,'Cash flow CALC'!$1:$1,0),1,1,"Cash flow CALC"))), "-") -> 426993.5437 | C17: =IF(A17<=ROUNDDOWN(MainForm!$C$11/12,0), VLOOKUP(A17,Indexation_full,2,FALSE), "-") -> 0.04 | D17: =IF(A17<=ROUNDDOWN(MainForm!$C$11/12,0), SUM(INDIRECT(ADDRESS((A17-1)*12+2,MATCH('Cash flow'!D$67,'Cash flow CALC'!$1:$1,0),1,1,"Cash flow CALC")):INDIRECT(ADDRESS(A17*12+1,MATCH('Cash flow'!D$67,'Cash flow CALC'!$1:$1,0),1,1,"Cash flow CALC"))), "-") -> 426993.5437 | E17: =IF(A17<=ROUNDDOWN(MainForm!$C$11/12,0), SUM(INDIRECT(ADDRESS(($A$8-1)*12+2,MATCH('Cash flow'!E$67,'Cash flow CALC'!$1:$1,0),1,1,"Cash flow CALC")):INDIRECT(ADDRESS(A17*12+1,MATCH('Cash flow'!E$67,'Cash flow CALC'!$1:$1,0),1,1,"Cash flow CALC"))),"-") -> 3601832.137 | F17: =IF(A17<=ROUNDDOWN(MainForm!$C$11/12,0), SUM(INDIRECT(ADDRESS((A17-1)*12+2,MATCH('Cash flow'!F$67,'Cash flow CALC'!$1:$1,0),1,1,"Cash flow CALC")):INDIRECT(ADDRESS(A17*12+1,MATCH('Cash flow'!F$67,'Cash flow CALC'!$1:$1,0),1,1,"Cash flow CALC"))),"-") -> 0 | G17: =IF(A17<=ROUNDDOWN(MainForm!$C$11/12,0), SUM(INDIRECT(ADDRESS((A17-1)*12+2,MATCH('Cash flow'!G$67,'Cash flow CALC'!$1:$1,0),1,1,"Cash flow CALC")):INDIRECT(ADDRESS(A17*12+1,MATCH('Cash flow'!G$67,'Cash flow CALC'!$1:$1,0),1,1,"Cash flow CALC"))),"-") -> 0 | H17: =IF(A17<=ROUNDDOWN(MainForm!$C$11/12,0), SUM(INDIRECT(ADDRESS((A17-1)*12+2,MATCH('Cash flow'!H$67,'Cash flow CALC'!$1:$1,0),1,1,"Cash flow CALC")):INDIRECT(ADDRESS(A17*12+1,MATCH('Cash flow'!H$67,'Cash flow CALC'!$1:$1,0),1,1,"Cash flow CALC"))),"-") -> 34571.87086 | I17: =IF(A17<=ROUNDDOWN(MainForm!$C$11/12,0), SUM(INDIRECT(ADDRESS((A17-1)*12+2,MATCH('Cash flow'!I$67,'Cash flow CALC'!$1:$1,0),1,1,"Cash flow CALC")):INDIRECT(ADDRESS(A17*12+1,MATCH('Cash flow'!I$67,'Cash flow CALC'!$1:$1,0),1,1,"Cash flow CALC"))),"-") -> 3600 | J17: =IF(A17<=ROUNDDOWN(MainForm!$C$11/12,0), SUM(INDIRECT(ADDRESS((A17-1)*12+2,MATCH('Cash flow'!J$67,'Cash flow CALC'!$1:$1,0),1,1,"Cash flow CALC")):INDIRECT(ADDRESS(A17*12+1,MATCH('Cash flow'!J$67,'Cash flow CALC'!$1:$1,0),1,1,"Cash flow CALC"))),"-") -> 0 | K17: =IF(A17<=ROUNDDOWN(MainForm!$C$11/12,0), INDIRECT(ADDRESS(A17*12+1,MATCH('Cash flow'!K$67,'Cash flow CALC'!$1:$1,0),1,1,"Cash flow CALC")),"-") -> 360183.2137 | L17: =IF(A17<=ROUNDDOWN(MainForm!$C$11/12,0), SUM(INDIRECT(ADDRESS((A17-1)*12+2,MATCH('Cash flow'!L$67,'Cash flow CALC'!$1:$1,0),1,1,"Cash flow CALC")):INDIRECT(ADDRESS(A17*12+1,MATCH('Cash flow'!L$67,'Cash flow CALC'!$1:$1,0),1,1,"Cash flow CALC"))),"-") -> 125641.6085 | M17: =IF(A17<=ROUNDDOWN(MainForm!$C$11/12,0), INDIRECT(ADDRESS(A17*12+1,MATCH('Cash flow'!M$67,'Cash flow CALC'!$1:$1,0),1,1,"Cash flow CALC")),"-") -> 3805876.949 | N17: =IF(A17<=ROUNDDOWN(MainForm!$C$11/12,0), SUM(INDIRECT(ADDRESS((A17-1)*12+2,MATCH('Cash flow'!N$67,'Cash flow CALC'!$1:$1,0),1,1,"Cash flow CALC")):INDIRECT(ADDRESS(A17*12+1,MATCH('Cash flow'!N$67,'Cash flow CALC'!$1:$1,0),1,1,"Cash flow CALC"))),"-") -> 81850.95667 | O17: =IF(A17<=ROUNDDOWN(MainForm!$C$11/12,0), SUM(INDIRECT(ADDRESS((A17-1)*12+2,MATCH('Cash flow'!O$67,'Cash flow CALC'!$1:$1,0),1,1,"Cash flow CALC")):INDIRECT(ADDRESS(A17*12+1,MATCH('Cash flow'!O$67,'Cash flow CALC'!$1:$1,0),1,1,"Cash flow CALC"))),"-") -> 0 | P17: =IF(A17<=ROUNDDOWN(MainForm!$C$11/12,0), INDIRECT(ADDRESS(A17*12+1,MATCH('Cash flow'!P$67,'Cash flow CALC'!$1:$1,0),1,1,"Cash flow CALC")),"-") -> 815533.7473 | Q17: =IF(A17<=ROUNDDOWN(MainForm!$C$11/12,0), INDIRECT(ADDRESS(A17*12+1,MATCH('Cash flow'!Q$67,'Cash flow CALC'!$1:$1,0),1,1,"Cash flow CALC")),"-") -> 4621410.697 | R17: =IF(A17<=ROUNDDOWN(MainForm!$C$11/12,0), VLOOKUP(A17,Premium_suppression,2,FALSE),"-") -> Nem
A18: 11 | B18: =IF(A18<=ROUNDDOWN(MainForm!$C$11/12,0), SUM(INDIRECT(ADDRESS((A18-1)*12+2,MATCH('Cash flow'!B$67,'Cash flow CALC'!$1:$1,0),1,1,"Cash flow CALC")):INDIRECT(ADDRESS(A18*12+1,MATCH('Cash flow'!B$67,'Cash flow CALC'!$1:$1,0),1,1,"Cash flow CALC"))), "-") -> - | C18: =IF(A18<=ROUNDDOWN(MainForm!$C$11/12,0), VLOOKUP(A18,Indexation_full,2,FALSE), "-") -> - | D18: =IF(A18<=ROUNDDOWN(MainForm!$C$11/12,0), SUM(INDIRECT(ADDRESS((A18-1)*12+2,MATCH('Cash flow'!D$67,'Cash flow CALC'!$1:$1,0),1,1,"Cash flow CALC")):INDIRECT(ADDRESS(A18*12+1,MATCH('Cash flow'!D$67,'Cash flow CALC'!$1:$1,0),1,1,"Cash flow CALC"))), "-") -> - | E18: =IF(A18<=ROUNDDOWN(MainForm!$C$11/12,0), SUM(INDIRECT(ADDRESS(($A$8-1)*12+2,MATCH('Cash flow'!E$67,'Cash flow CALC'!$1:$1,0),1,1,"Cash flow CALC")):INDIRECT(ADDRESS(A18*12+1,MATCH('Cash flow'!E$67,'Cash flow CALC'!$1:$1,0),1,1,"Cash flow CALC"))),"-") -> - | F18: =IF(A18<=ROUNDDOWN(MainForm!$C$11/12,0), SUM(INDIRECT(ADDRESS((A18-1)*12+2,MATCH('Cash flow'!F$67,'Cash flow CALC'!$1:$1,0),1,1,"Cash flow CALC")):INDIRECT(ADDRESS(A18*12+1,MATCH('Cash flow'!F$67,'Cash flow CALC'!$1:$1,0),1,1,"Cash flow CALC"))),"-") -> - | G18: =IF(A18<=ROUNDDOWN(MainForm!$C$11/12,0), SUM(INDIRECT(ADDRESS((A18-1)*12+2,MATCH('Cash flow'!G$67,'Cash flow CALC'!$1:$1,0),1,1,"Cash flow CALC")):INDIRECT(ADDRESS(A18*12+1,MATCH('Cash flow'!G$67,'Cash flow CALC'!$1:$1,0),1,1,"Cash flow CALC"))),"-") -> - | H18: =IF(A18<=ROUNDDOWN(MainForm!$C$11/12,0), SUM(INDIRECT(ADDRESS((A18-1)*12+2,MATCH('Cash flow'!H$67,'Cash flow CALC'!$1:$1,0),1,1,"Cash flow CALC")):INDIRECT(ADDRESS(A18*12+1,MATCH('Cash flow'!H$67,'Cash flow CALC'!$1:$1,0),1,1,"Cash flow CALC"))),"-") -> - | I18: =IF(A18<=ROUNDDOWN(MainForm!$C$11/12,0), SUM(INDIRECT(ADDRESS((A18-1)*12+2,MATCH('Cash flow'!I$67,'Cash flow CALC'!$1:$1,0),1,1,"Cash flow CALC")):INDIRECT(ADDRESS(A18*12+1,MATCH('Cash flow'!I$67,'Cash flow CALC'!$1:$1,0),1,1,"Cash flow CALC"))),"-") -> - | J18: =IF(A18<=ROUNDDOWN(MainForm!$C$11/12,0), SUM(INDIRECT(ADDRESS((A18-1)*12+2,MATCH('Cash flow'!J$67,'Cash flow CALC'!$1:$1,0),1,1,"Cash flow CALC")):INDIRECT(ADDRESS(A18*12+1,MATCH('Cash flow'!J$67,'Cash flow CALC'!$1:$1,0),1,1,"Cash flow CALC"))),"-") -> - | K18: =IF(A18<=ROUNDDOWN(MainForm!$C$11/12,0), INDIRECT(ADDRESS(A18*12+1,MATCH('Cash flow'!K$67,'Cash flow CALC'!$1:$1,0),1,1,"Cash flow CALC")),"-") -> - | L18: =IF(A18<=ROUNDDOWN(MainForm!$C$11/12,0), SUM(INDIRECT(ADDRESS((A18-1)*12+2,MATCH('Cash flow'!L$67,'Cash flow CALC'!$1:$1,0),1,1,"Cash flow CALC")):INDIRECT(ADDRESS(A18*12+1,MATCH('Cash flow'!L$67,'Cash flow CALC'!$1:$1,0),1,1,"Cash flow CALC"))),"-") -> - | M18: =IF(A18<=ROUNDDOWN(MainForm!$C$11/12,0), INDIRECT(ADDRESS(A18*12+1,MATCH('Cash flow'!M$67,'Cash flow CALC'!$1:$1,0),1,1,"Cash flow CALC")),"-") -> - | N18: =IF(A18<=ROUNDDOWN(MainForm!$C$11/12,0), SUM(INDIRECT(ADDRESS((A18-1)*12+2,MATCH('Cash flow'!N$67,'Cash flow CALC'!$1:$1,0),1,1,"Cash flow CALC")):INDIRECT(ADDRESS(A18*12+1,MATCH('Cash flow'!N$67,'Cash flow CALC'!$1:$1,0),1,1,"Cash flow CALC"))),"-") -> - | O18: =IF(A18<=ROUNDDOWN(MainForm!$C$11/12,0), SUM(INDIRECT(ADDRESS((A18-1)*12+2,MATCH('Cash flow'!O$67,'Cash flow CALC'!$1:$1,0),1,1,"Cash flow CALC")):INDIRECT(ADDRESS(A18*12+1,MATCH('Cash flow'!O$67,'Cash flow CALC'!$1:$1,0),1,1,"Cash flow CALC"))),"-") -> - | P18: =IF(A18<=ROUNDDOWN(MainForm!$C$11/12,0), INDIRECT(ADDRESS(A18*12+1,MATCH('Cash flow'!P$67,'Cash flow CALC'!$1:$1,0),1,1,"Cash flow CALC")),"-") -> - | Q18: =IF(A18<=ROUNDDOWN(MainForm!$C$11/12,0), INDIRECT(ADDRESS(A18*12+1,MATCH('Cash flow'!Q$67,'Cash flow CALC'!$1:$1,0),1,1,"Cash flow CALC")),"-") -> - | R18: =IF(A18<=ROUNDDOWN(MainForm!$C$11/12,0), VLOOKUP(A18,Premium_suppression,2,FALSE),"-") -> -
A19: 12 | B19: =IF(A19<=ROUNDDOWN(MainForm!$C$11/12,0), SUM(INDIRECT(ADDRESS((A19-1)*12+2,MATCH('Cash flow'!B$67,'Cash flow CALC'!$1:$1,0),1,1,"Cash flow CALC")):INDIRECT(ADDRESS(A19*12+1,MATCH('Cash flow'!B$67,'Cash flow CALC'!$1:$1,0),1,1,"Cash flow CALC"))), "-") -> - | C19: =IF(A19<=ROUNDDOWN(MainForm!$C$11/12,0), VLOOKUP(A19,Indexation_full,2,FALSE), "-") -> - | D19: =IF(A19<=ROUNDDOWN(MainForm!$C$11/12,0), SUM(INDIRECT(ADDRESS((A19-1)*12+2,MATCH('Cash flow'!D$67,'Cash flow CALC'!$1:$1,0),1,1,"Cash flow CALC")):INDIRECT(ADDRESS(A19*12+1,MATCH('Cash flow'!D$67,'Cash flow CALC'!$1:$1,0),1,1,"Cash flow CALC"))), "-") -> - | E19: =IF(A19<=ROUNDDOWN(MainForm!$C$11/12,0), SUM(INDIRECT(ADDRESS(($A$8-1)*12+2,MATCH('Cash flow'!E$67,'Cash flow CALC'!$1:$1,0),1,1,"Cash flow CALC")):INDIRECT(ADDRESS(A19*12+1,MATCH('Cash flow'!E$67,'Cash flow CALC'!$1:$1,0),1,1,"Cash flow CALC"))),"-") -> - | F19: =IF(A19<=ROUNDDOWN(MainForm!$C$11/12,0), SUM(INDIRECT(ADDRESS((A19-1)*12+2,MATCH('Cash flow'!F$67,'Cash flow CALC'!$1:$1,0),1,1,"Cash flow CALC")):INDIRECT(ADDRESS(A19*12+1,MATCH('Cash flow'!F$67,'Cash flow CALC'!$1:$1,0),1,1,"Cash flow CALC"))),"-") -> - | G19: =IF(A19<=ROUNDDOWN(MainForm!$C$11/12,0), SUM(INDIRECT(ADDRESS((A19-1)*12+2,MATCH('Cash flow'!G$67,'Cash flow CALC'!$1:$1,0),1,1,"Cash flow CALC")):INDIRECT(ADDRESS(A19*12+1,MATCH('Cash flow'!G$67,'Cash flow CALC'!$1:$1,0),1,1,"Cash flow CALC"))),"-") -> - | H19: =IF(A19<=ROUNDDOWN(MainForm!$C$11/12,0), SUM(INDIRECT(ADDRESS((A19-1)*12+2,MATCH('Cash flow'!H$67,'Cash flow CALC'!$1:$1,0),1,1,"Cash flow CALC")):INDIRECT(ADDRESS(A19*12+1,MATCH('Cash flow'!H$67,'Cash flow CALC'!$1:$1,0),1,1,"Cash flow CALC"))),"-") -> - | I19: =IF(A19<=ROUNDDOWN(MainForm!$C$11/12,0), SUM(INDIRECT(ADDRESS((A19-1)*12+2,MATCH('Cash flow'!I$67,'Cash flow CALC'!$1:$1,0),1,1,"Cash flow CALC")):INDIRECT(ADDRESS(A19*12+1,MATCH('Cash flow'!I$67,'Cash flow CALC'!$1:$1,0),1,1,"Cash flow CALC"))),"-") -> - | J19: =IF(A19<=ROUNDDOWN(MainForm!$C$11/12,0), SUM(INDIRECT(ADDRESS((A19-1)*12+2,MATCH('Cash flow'!J$67,'Cash flow CALC'!$1:$1,0),1,1,"Cash flow CALC")):INDIRECT(ADDRESS(A19*12+1,MATCH('Cash flow'!J$67,'Cash flow CALC'!$1:$1,0),1,1,"Cash flow CALC"))),"-") -> - | K19: =IF(A19<=ROUNDDOWN(MainForm!$C$11/12,0), INDIRECT(ADDRESS(A19*12+1,MATCH('Cash flow'!K$67,'Cash flow CALC'!$1:$1,0),1,1,"Cash flow CALC")),"-") -> - | L19: =IF(A19<=ROUNDDOWN(MainForm!$C$11/12,0), SUM(INDIRECT(ADDRESS((A19-1)*12+2,MATCH('Cash flow'!L$67,'Cash flow CALC'!$1:$1,0),1,1,"Cash flow CALC")):INDIRECT(ADDRESS(A19*12+1,MATCH('Cash flow'!L$67,'Cash flow CALC'!$1:$1,0),1,1,"Cash flow CALC"))),"-") -> - | M19: =IF(A19<=ROUNDDOWN(MainForm!$C$11/12,0), INDIRECT(ADDRESS(A19*12+1,MATCH('Cash flow'!M$67,'Cash flow CALC'!$1:$1,0),1,1,"Cash flow CALC")),"-") -> - | N19: =IF(A19<=ROUNDDOWN(MainForm!$C$11/12,0), SUM(INDIRECT(ADDRESS((A19-1)*12+2,MATCH('Cash flow'!N$67,'Cash flow CALC'!$1:$1,0),1,1,"Cash flow CALC")):INDIRECT(ADDRESS(A19*12+1,MATCH('Cash flow'!N$67,'Cash flow CALC'!$1:$1,0),1,1,"Cash flow CALC"))),"-") -> - | O19: =IF(A19<=ROUNDDOWN(MainForm!$C$11/12,0), SUM(INDIRECT(ADDRESS((A19-1)*12+2,MATCH('Cash flow'!O$67,'Cash flow CALC'!$1:$1,0),1,1,"Cash flow CALC")):INDIRECT(ADDRESS(A19*12+1,MATCH('Cash flow'!O$67,'Cash flow CALC'!$1:$1,0),1,1,"Cash flow CALC"))),"-") -> - | P19: =IF(A19<=ROUNDDOWN(MainForm!$C$11/12,0), INDIRECT(ADDRESS(A19*12+1,MATCH('Cash flow'!P$67,'Cash flow CALC'!$1:$1,0),1,1,"Cash flow CALC")),"-") -> - | Q19: =IF(A19<=ROUNDDOWN(MainForm!$C$11/12,0), INDIRECT(ADDRESS(A19*12+1,MATCH('Cash flow'!Q$67,'Cash flow CALC'!$1:$1,0),1,1,"Cash flow CALC")),"-") -> - | R19: =IF(A19<=ROUNDDOWN(MainForm!$C$11/12,0), VLOOKUP(A19,Premium_suppression,2,FALSE),"-") -> -
A20: 13 | B20: =IF(A20<=ROUNDDOWN(MainForm!$C$11/12,0), SUM(INDIRECT(ADDRESS((A20-1)*12+2,MATCH('Cash flow'!B$67,'Cash flow CALC'!$1:$1,0),1,1,"Cash flow CALC")):INDIRECT(ADDRESS(A20*12+1,MATCH('Cash flow'!B$67,'Cash flow CALC'!$1:$1,0),1,1,"Cash flow CALC"))), "-") -> - | C20: =IF(A20<=ROUNDDOWN(MainForm!$C$11/12,0), VLOOKUP(A20,Indexation_full,2,FALSE), "-") -> - | D20: =IF(A20<=ROUNDDOWN(MainForm!$C$11/12,0), SUM(INDIRECT(ADDRESS((A20-1)*12+2,MATCH('Cash flow'!D$67,'Cash flow CALC'!$1:$1,0),1,1,"Cash flow CALC")):INDIRECT(ADDRESS(A20*12+1,MATCH('Cash flow'!D$67,'Cash flow CALC'!$1:$1,0),1,1,"Cash flow CALC"))), "-") -> - | E20: =IF(A20<=ROUNDDOWN(MainForm!$C$11/12,0), SUM(INDIRECT(ADDRESS(($A$8-1)*12+2,MATCH('Cash flow'!E$67,'Cash flow CALC'!$1:$1,0),1,1,"Cash flow CALC")):INDIRECT(ADDRESS(A20*12+1,MATCH('Cash flow'!E$67,'Cash flow CALC'!$1:$1,0),1,1,"Cash flow CALC"))),"-") -> - | F20: =IF(A20<=ROUNDDOWN(MainForm!$C$11/12,0), SUM(INDIRECT(ADDRESS((A20-1)*12+2,MATCH('Cash flow'!F$67,'Cash flow CALC'!$1:$1,0),1,1,"Cash flow CALC")):INDIRECT(ADDRESS(A20*12+1,MATCH('Cash flow'!F$67,'Cash flow CALC'!$1:$1,0),1,1,"Cash flow CALC"))),"-") -> - | G20: =IF(A20<=ROUNDDOWN(MainForm!$C$11/12,0), SUM(INDIRECT(ADDRESS((A20-1)*12+2,MATCH('Cash flow'!G$67,'Cash flow CALC'!$1:$1,0),1,1,"Cash flow CALC")):INDIRECT(ADDRESS(A20*12+1,MATCH('Cash flow'!G$67,'Cash flow CALC'!$1:$1,0),1,1,"Cash flow CALC"))),"-") -> - | H20: =IF(A20<=ROUNDDOWN(MainForm!$C$11/12,0), SUM(INDIRECT(ADDRESS((A20-1)*12+2,MATCH('Cash flow'!H$67,'Cash flow CALC'!$1:$1,0),1,1,"Cash flow CALC")):INDIRECT(ADDRESS(A20*12+1,MATCH('Cash flow'!H$67,'Cash flow CALC'!$1:$1,0),1,1,"Cash flow CALC"))),"-") -> - | I20: =IF(A20<=ROUNDDOWN(MainForm!$C$11/12,0), SUM(INDIRECT(ADDRESS((A20-1)*12+2,MATCH('Cash flow'!I$67,'Cash flow CALC'!$1:$1,0),1,1,"Cash flow CALC")):INDIRECT(ADDRESS(A20*12+1,MATCH('Cash flow'!I$67,'Cash flow CALC'!$1:$1,0),1,1,"Cash flow CALC"))),"-") -> - | J20: =IF(A20<=ROUNDDOWN(MainForm!$C$11/12,0), SUM(INDIRECT(ADDRESS((A20-1)*12+2,MATCH('Cash flow'!J$67,'Cash flow CALC'!$1:$1,0),1,1,"Cash flow CALC")):INDIRECT(ADDRESS(A20*12+1,MATCH('Cash flow'!J$67,'Cash flow CALC'!$1:$1,0),1,1,"Cash flow CALC"))),"-") -> - | K20: =IF(A20<=ROUNDDOWN(MainForm!$C$11/12,0), INDIRECT(ADDRESS(A20*12+1,MATCH('Cash flow'!K$67,'Cash flow CALC'!$1:$1,0),1,1,"Cash flow CALC")),"-") -> - | L20: =IF(A20<=ROUNDDOWN(MainForm!$C$11/12,0), SUM(INDIRECT(ADDRESS((A20-1)*12+2,MATCH('Cash flow'!L$67,'Cash flow CALC'!$1:$1,0),1,1,"Cash flow CALC")):INDIRECT(ADDRESS(A20*12+1,MATCH('Cash flow'!L$67,'Cash flow CALC'!$1:$1,0),1,1,"Cash flow CALC"))),"-") -> - | M20: =IF(A20<=ROUNDDOWN(MainForm!$C$11/12,0), INDIRECT(ADDRESS(A20*12+1,MATCH('Cash flow'!M$67,'Cash flow CALC'!$1:$1,0),1,1,"Cash flow CALC")),"-") -> - | N20: =IF(A20<=ROUNDDOWN(MainForm!$C$11/12,0), SUM(INDIRECT(ADDRESS((A20-1)*12+2,MATCH('Cash flow'!N$67,'Cash flow CALC'!$1:$1,0),1,1,"Cash flow CALC")):INDIRECT(ADDRESS(A20*12+1,MATCH('Cash flow'!N$67,'Cash flow CALC'!$1:$1,0),1,1,"Cash flow CALC"))),"-") -> - | O20: =IF(A20<=ROUNDDOWN(MainForm!$C$11/12,0), SUM(INDIRECT(ADDRESS((A20-1)*12+2,MATCH('Cash flow'!O$67,'Cash flow CALC'!$1:$1,0),1,1,"Cash flow CALC")):INDIRECT(ADDRESS(A20*12+1,MATCH('Cash flow'!O$67,'Cash flow CALC'!$1:$1,0),1,1,"Cash flow CALC"))),"-") -> - | P20: =IF(A20<=ROUNDDOWN(MainForm!$C$11/12,0), INDIRECT(ADDRESS(A20*12+1,MATCH('Cash flow'!P$67,'Cash flow CALC'!$1:$1,0),1,1,"Cash flow CALC")),"-") -> - | Q20: =IF(A20<=ROUNDDOWN(MainForm!$C$11/12,0), INDIRECT(ADDRESS(A20*12+1,MATCH('Cash flow'!Q$67,'Cash flow CALC'!$1:$1,0),1,1,"Cash flow CALC")),"-") -> - | R20: =IF(A20<=ROUNDDOWN(MainForm!$C$11/12,0), VLOOKUP(A20,Premium_suppression,2,FALSE),"-") -> -
A21: 14 | B21: =IF(A21<=ROUNDDOWN(MainForm!$C$11/12,0), SUM(INDIRECT(ADDRESS((A21-1)*12+2,MATCH('Cash flow'!B$67,'Cash flow CALC'!$1:$1,0),1,1,"Cash flow CALC")):INDIRECT(ADDRESS(A21*12+1,MATCH('Cash flow'!B$67,'Cash flow CALC'!$1:$1,0),1,1,"Cash flow CALC"))), "-") -> - | C21: =IF(A21<=ROUNDDOWN(MainForm!$C$11/12,0), VLOOKUP(A21,Indexation_full,2,FALSE), "-") -> - | D21: =IF(A21<=ROUNDDOWN(MainForm!$C$11/12,0), SUM(INDIRECT(ADDRESS((A21-1)*12+2,MATCH('Cash flow'!D$67,'Cash flow CALC'!$1:$1,0),1,1,"Cash flow CALC")):INDIRECT(ADDRESS(A21*12+1,MATCH('Cash flow'!D$67,'Cash flow CALC'!$1:$1,0),1,1,"Cash flow CALC"))), "-") -> - | E21: =IF(A21<=ROUNDDOWN(MainForm!$C$11/12,0), SUM(INDIRECT(ADDRESS(($A$8-1)*12+2,MATCH('Cash flow'!E$67,'Cash flow CALC'!$1:$1,0),1,1,"Cash flow CALC")):INDIRECT(ADDRESS(A21*12+1,MATCH('Cash flow'!E$67,'Cash flow CALC'!$1:$1,0),1,1,"Cash flow CALC"))),"-") -> - | F21: =IF(A21<=ROUNDDOWN(MainForm!$C$11/12,0), SUM(INDIRECT(ADDRESS((A21-1)*12+2,MATCH('Cash flow'!F$67,'Cash flow CALC'!$1:$1,0),1,1,"Cash flow CALC")):INDIRECT(ADDRESS(A21*12+1,MATCH('Cash flow'!F$67,'Cash flow CALC'!$1:$1,0),1,1,"Cash flow CALC"))),"-") -> - | G21: =IF(A21<=ROUNDDOWN(MainForm!$C$11/12,0), SUM(INDIRECT(ADDRESS((A21-1)*12+2,MATCH('Cash flow'!G$67,'Cash flow CALC'!$1:$1,0),1,1,"Cash flow CALC")):INDIRECT(ADDRESS(A21*12+1,MATCH('Cash flow'!G$67,'Cash flow CALC'!$1:$1,0),1,1,"Cash flow CALC"))),"-") -> - | H21: =IF(A21<=ROUNDDOWN(MainForm!$C$11/12,0), SUM(INDIRECT(ADDRESS((A21-1)*12+2,MATCH('Cash flow'!H$67,'Cash flow CALC'!$1:$1,0),1,1,"Cash flow CALC")):INDIRECT(ADDRESS(A21*12+1,MATCH('Cash flow'!H$67,'Cash flow CALC'!$1:$1,0),1,1,"Cash flow CALC"))),"-") -> - | I21: =IF(A21<=ROUNDDOWN(MainForm!$C$11/12,0), SUM(INDIRECT(ADDRESS((A21-1)*12+2,MATCH('Cash flow'!I$67,'Cash flow CALC'!$1:$1,0),1,1,"Cash flow CALC")):INDIRECT(ADDRESS(A21*12+1,MATCH('Cash flow'!I$67,'Cash flow CALC'!$1:$1,0),1,1,"Cash flow CALC"))),"-") -> - | J21: =IF(A21<=ROUNDDOWN(MainForm!$C$11/12,0), SUM(INDIRECT(ADDRESS((A21-1)*12+2,MATCH('Cash flow'!J$67,'Cash flow CALC'!$1:$1,0),1,1,"Cash flow CALC")):INDIRECT(ADDRESS(A21*12+1,MATCH('Cash flow'!J$67,'Cash flow CALC'!$1:$1,0),1,1,"Cash flow CALC"))),"-") -> - | K21: =IF(A21<=ROUNDDOWN(MainForm!$C$11/12,0), INDIRECT(ADDRESS(A21*12+1,MATCH('Cash flow'!K$67,'Cash flow CALC'!$1:$1,0),1,1,"Cash flow CALC")),"-") -> - | L21: =IF(A21<=ROUNDDOWN(MainForm!$C$11/12,0), SUM(INDIRECT(ADDRESS((A21-1)*12+2,MATCH('Cash flow'!L$67,'Cash flow CALC'!$1:$1,0),1,1,"Cash flow CALC")):INDIRECT(ADDRESS(A21*12+1,MATCH('Cash flow'!L$67,'Cash flow CALC'!$1:$1,0),1,1,"Cash flow CALC"))),"-") -> - | M21: =IF(A21<=ROUNDDOWN(MainForm!$C$11/12,0), INDIRECT(ADDRESS(A21*12+1,MATCH('Cash flow'!M$67,'Cash flow CALC'!$1:$1,0),1,1,"Cash flow CALC")),"-") -> - | N21: =IF(A21<=ROUNDDOWN(MainForm!$C$11/12,0), SUM(INDIRECT(ADDRESS((A21-1)*12+2,MATCH('Cash flow'!N$67,'Cash flow CALC'!$1:$1,0),1,1,"Cash flow CALC")):INDIRECT(ADDRESS(A21*12+1,MATCH('Cash flow'!N$67,'Cash flow CALC'!$1:$1,0),1,1,"Cash flow CALC"))),"-") -> - | O21: =IF(A21<=ROUNDDOWN(MainForm!$C$11/12,0), SUM(INDIRECT(ADDRESS((A21-1)*12+2,MATCH('Cash flow'!O$67,'Cash flow CALC'!$1:$1,0),1,1,"Cash flow CALC")):INDIRECT(ADDRESS(A21*12+1,MATCH('Cash flow'!O$67,'Cash flow CALC'!$1:$1,0),1,1,"Cash flow CALC"))),"-") -> - | P21: =IF(A21<=ROUNDDOWN(MainForm!$C$11/12,0), INDIRECT(ADDRESS(A21*12+1,MATCH('Cash flow'!P$67,'Cash flow CALC'!$1:$1,0),1,1,"Cash flow CALC")),"-") -> - | Q21: =IF(A21<=ROUNDDOWN(MainForm!$C$11/12,0), INDIRECT(ADDRESS(A21*12+1,MATCH('Cash flow'!Q$67,'Cash flow CALC'!$1:$1,0),1,1,"Cash flow CALC")),"-") -> - | R21: =IF(A21<=ROUNDDOWN(MainForm!$C$11/12,0), VLOOKUP(A21,Premium_suppression,2,FALSE),"-") -> -
A22: 15 | B22: =IF(A22<=ROUNDDOWN(MainForm!$C$11/12,0), SUM(INDIRECT(ADDRESS((A22-1)*12+2,MATCH('Cash flow'!B$67,'Cash flow CALC'!$1:$1,0),1,1,"Cash flow CALC")):INDIRECT(ADDRESS(A22*12+1,MATCH('Cash flow'!B$67,'Cash flow CALC'!$1:$1,0),1,1,"Cash flow CALC"))), "-") -> - | C22: =IF(A22<=ROUNDDOWN(MainForm!$C$11/12,0), VLOOKUP(A22,Indexation_full,2,FALSE), "-") -> - | D22: =IF(A22<=ROUNDDOWN(MainForm!$C$11/12,0), SUM(INDIRECT(ADDRESS((A22-1)*12+2,MATCH('Cash flow'!D$67,'Cash flow CALC'!$1:$1,0),1,1,"Cash flow CALC")):INDIRECT(ADDRESS(A22*12+1,MATCH('Cash flow'!D$67,'Cash flow CALC'!$1:$1,0),1,1,"Cash flow CALC"))), "-") -> - | E22: =IF(A22<=ROUNDDOWN(MainForm!$C$11/12,0), SUM(INDIRECT(ADDRESS(($A$8-1)*12+2,MATCH('Cash flow'!E$67,'Cash flow CALC'!$1:$1,0),1,1,"Cash flow CALC")):INDIRECT(ADDRESS(A22*12+1,MATCH('Cash flow'!E$67,'Cash flow CALC'!$1:$1,0),1,1,"Cash flow CALC"))),"-") -> - | F22: =IF(A22<=ROUNDDOWN(MainForm!$C$11/12,0), SUM(INDIRECT(ADDRESS((A22-1)*12+2,MATCH('Cash flow'!F$67,'Cash flow CALC'!$1:$1,0),1,1,"Cash flow CALC")):INDIRECT(ADDRESS(A22*12+1,MATCH('Cash flow'!F$67,'Cash flow CALC'!$1:$1,0),1,1,"Cash flow CALC"))),"-") -> - | G22: =IF(A22<=ROUNDDOWN(MainForm!$C$11/12,0), SUM(INDIRECT(ADDRESS((A22-1)*12+2,MATCH('Cash flow'!G$67,'Cash flow CALC'!$1:$1,0),1,1,"Cash flow CALC")):INDIRECT(ADDRESS(A22*12+1,MATCH('Cash flow'!G$67,'Cash flow CALC'!$1:$1,0),1,1,"Cash flow CALC"))),"-") -> - | H22: =IF(A22<=ROUNDDOWN(MainForm!$C$11/12,0), SUM(INDIRECT(ADDRESS((A22-1)*12+2,MATCH('Cash flow'!H$67,'Cash flow CALC'!$1:$1,0),1,1,"Cash flow CALC")):INDIRECT(ADDRESS(A22*12+1,MATCH('Cash flow'!H$67,'Cash flow CALC'!$1:$1,0),1,1,"Cash flow CALC"))),"-") -> - | I22: =IF(A22<=ROUNDDOWN(MainForm!$C$11/12,0), SUM(INDIRECT(ADDRESS((A22-1)*12+2,MATCH('Cash flow'!I$67,'Cash flow CALC'!$1:$1,0),1,1,"Cash flow CALC")):INDIRECT(ADDRESS(A22*12+1,MATCH('Cash flow'!I$67,'Cash flow CALC'!$1:$1,0),1,1,"Cash flow CALC"))),"-") -> - | J22: =IF(A22<=ROUNDDOWN(MainForm!$C$11/12,0), SUM(INDIRECT(ADDRESS((A22-1)*12+2,MATCH('Cash flow'!J$67,'Cash flow CALC'!$1:$1,0),1,1,"Cash flow CALC")):INDIRECT(ADDRESS(A22*12+1,MATCH('Cash flow'!J$67,'Cash flow CALC'!$1:$1,0),1,1,"Cash flow CALC"))),"-") -> - | K22: =IF(A22<=ROUNDDOWN(MainForm!$C$11/12,0), INDIRECT(ADDRESS(A22*12+1,MATCH('Cash flow'!K$67,'Cash flow CALC'!$1:$1,0),1,1,"Cash flow CALC")),"-") -> - | L22: =IF(A22<=ROUNDDOWN(MainForm!$C$11/12,0), SUM(INDIRECT(ADDRESS((A22-1)*12+2,MATCH('Cash flow'!L$67,'Cash flow CALC'!$1:$1,0),1,1,"Cash flow CALC")):INDIRECT(ADDRESS(A22*12+1,MATCH('Cash flow'!L$67,'Cash flow CALC'!$1:$1,0),1,1,"Cash flow CALC"))),"-") -> - | M22: =IF(A22<=ROUNDDOWN(MainForm!$C$11/12,0), INDIRECT(ADDRESS(A22*12+1,MATCH('Cash flow'!M$67,'Cash flow CALC'!$1:$1,0),1,1,"Cash flow CALC")),"-") -> - | N22: =IF(A22<=ROUNDDOWN(MainForm!$C$11/12,0), SUM(INDIRECT(ADDRESS((A22-1)*12+2,MATCH('Cash flow'!N$67,'Cash flow CALC'!$1:$1,0),1,1,"Cash flow CALC")):INDIRECT(ADDRESS(A22*12+1,MATCH('Cash flow'!N$67,'Cash flow CALC'!$1:$1,0),1,1,"Cash flow CALC"))),"-") -> - | O22: =IF(A22<=ROUNDDOWN(MainForm!$C$11/12,0), SUM(INDIRECT(ADDRESS((A22-1)*12+2,MATCH('Cash flow'!O$67,'Cash flow CALC'!$1:$1,0),1,1,"Cash flow CALC")):INDIRECT(ADDRESS(A22*12+1,MATCH('Cash flow'!O$67,'Cash flow CALC'!$1:$1,0),1,1,"Cash flow CALC"))),"-") -> - | P22: =IF(A22<=ROUNDDOWN(MainForm!$C$11/12,0), INDIRECT(ADDRESS(A22*12+1,MATCH('Cash flow'!P$67,'Cash flow CALC'!$1:$1,0),1,1,"Cash flow CALC")),"-") -> - | Q22: =IF(A22<=ROUNDDOWN(MainForm!$C$11/12,0), INDIRECT(ADDRESS(A22*12+1,MATCH('Cash flow'!Q$67,'Cash flow CALC'!$1:$1,0),1,1,"Cash flow CALC")),"-") -> - | R22: =IF(A22<=ROUNDDOWN(MainForm!$C$11/12,0), VLOOKUP(A22,Premium_suppression,2,FALSE),"-") -> -
A23: 16 | B23: =IF(A23<=ROUNDDOWN(MainForm!$C$11/12,0), SUM(INDIRECT(ADDRESS((A23-1)*12+2,MATCH('Cash flow'!B$67,'Cash flow CALC'!$1:$1,0),1,1,"Cash flow CALC")):INDIRECT(ADDRESS(A23*12+1,MATCH('Cash flow'!B$67,'Cash flow CALC'!$1:$1,0),1,1,"Cash flow CALC"))), "-") -> - | C23: =IF(A23<=ROUNDDOWN(MainForm!$C$11/12,0), VLOOKUP(A23,Indexation_full,2,FALSE), "-") -> - | D23: =IF(A23<=ROUNDDOWN(MainForm!$C$11/12,0), SUM(INDIRECT(ADDRESS((A23-1)*12+2,MATCH('Cash flow'!D$67,'Cash flow CALC'!$1:$1,0),1,1,"Cash flow CALC")):INDIRECT(ADDRESS(A23*12+1,MATCH('Cash flow'!D$67,'Cash flow CALC'!$1:$1,0),1,1,"Cash flow CALC"))), "-") -> - | E23: =IF(A23<=ROUNDDOWN(MainForm!$C$11/12,0), SUM(INDIRECT(ADDRESS(($A$8-1)*12+2,MATCH('Cash flow'!E$67,'Cash flow CALC'!$1:$1,0),1,1,"Cash flow CALC")):INDIRECT(ADDRESS(A23*12+1,MATCH('Cash flow'!E$67,'Cash flow CALC'!$1:$1,0),1,1,"Cash flow CALC"))),"-") -> - | F23: =IF(A23<=ROUNDDOWN(MainForm!$C$11/12,0), SUM(INDIRECT(ADDRESS((A23-1)*12+2,MATCH('Cash flow'!F$67,'Cash flow CALC'!$1:$1,0),1,1,"Cash flow CALC")):INDIRECT(ADDRESS(A23*12+1,MATCH('Cash flow'!F$67,'Cash flow CALC'!$1:$1,0),1,1,"Cash flow CALC"))),"-") -> - | G23: =IF(A23<=ROUNDDOWN(MainForm!$C$11/12,0), SUM(INDIRECT(ADDRESS((A23-1)*12+2,MATCH('Cash flow'!G$67,'Cash flow CALC'!$1:$1,0),1,1,"Cash flow CALC")):INDIRECT(ADDRESS(A23*12+1,MATCH('Cash flow'!G$67,'Cash flow CALC'!$1:$1,0),1,1,"Cash flow CALC"))),"-") -> - | H23: =IF(A23<=ROUNDDOWN(MainForm!$C$11/12,0), SUM(INDIRECT(ADDRESS((A23-1)*12+2,MATCH('Cash flow'!H$67,'Cash flow CALC'!$1:$1,0),1,1,"Cash flow CALC")):INDIRECT(ADDRESS(A23*12+1,MATCH('Cash flow'!H$67,'Cash flow CALC'!$1:$1,0),1,1,"Cash flow CALC"))),"-") -> - | I23: =IF(A23<=ROUNDDOWN(MainForm!$C$11/12,0), SUM(INDIRECT(ADDRESS((A23-1)*12+2,MATCH('Cash flow'!I$67,'Cash flow CALC'!$1:$1,0),1,1,"Cash flow CALC")):INDIRECT(ADDRESS(A23*12+1,MATCH('Cash flow'!I$67,'Cash flow CALC'!$1:$1,0),1,1,"Cash flow CALC"))),"-") -> - | J23: =IF(A23<=ROUNDDOWN(MainForm!$C$11/12,0), SUM(INDIRECT(ADDRESS((A23-1)*12+2,MATCH('Cash flow'!J$67,'Cash flow CALC'!$1:$1,0),1,1,"Cash flow CALC")):INDIRECT(ADDRESS(A23*12+1,MATCH('Cash flow'!J$67,'Cash flow CALC'!$1:$1,0),1,1,"Cash flow CALC"))),"-") -> - | K23: =IF(A23<=ROUNDDOWN(MainForm!$C$11/12,0), INDIRECT(ADDRESS(A23*12+1,MATCH('Cash flow'!K$67,'Cash flow CALC'!$1:$1,0),1,1,"Cash flow CALC")),"-") -> - | L23: =IF(A23<=ROUNDDOWN(MainForm!$C$11/12,0), SUM(INDIRECT(ADDRESS((A23-1)*12+2,MATCH('Cash flow'!L$67,'Cash flow CALC'!$1:$1,0),1,1,"Cash flow CALC")):INDIRECT(ADDRESS(A23*12+1,MATCH('Cash flow'!L$67,'Cash flow CALC'!$1:$1,0),1,1,"Cash flow CALC"))),"-") -> - | M23: =IF(A23<=ROUNDDOWN(MainForm!$C$11/12,0), INDIRECT(ADDRESS(A23*12+1,MATCH('Cash flow'!M$67,'Cash flow CALC'!$1:$1,0),1,1,"Cash flow CALC")),"-") -> - | N23: =IF(A23<=ROUNDDOWN(MainForm!$C$11/12,0), SUM(INDIRECT(ADDRESS((A23-1)*12+2,MATCH('Cash flow'!N$67,'Cash flow CALC'!$1:$1,0),1,1,"Cash flow CALC")):INDIRECT(ADDRESS(A23*12+1,MATCH('Cash flow'!N$67,'Cash flow CALC'!$1:$1,0),1,1,"Cash flow CALC"))),"-") -> - | O23: =IF(A23<=ROUNDDOWN(MainForm!$C$11/12,0), SUM(INDIRECT(ADDRESS((A23-1)*12+2,MATCH('Cash flow'!O$67,'Cash flow CALC'!$1:$1,0),1,1,"Cash flow CALC")):INDIRECT(ADDRESS(A23*12+1,MATCH('Cash flow'!O$67,'Cash flow CALC'!$1:$1,0),1,1,"Cash flow CALC"))),"-") -> - | P23: =IF(A23<=ROUNDDOWN(MainForm!$C$11/12,0), INDIRECT(ADDRESS(A23*12+1,MATCH('Cash flow'!P$67,'Cash flow CALC'!$1:$1,0),1,1,"Cash flow CALC")),"-") -> - | Q23: =IF(A23<=ROUNDDOWN(MainForm!$C$11/12,0), INDIRECT(ADDRESS(A23*12+1,MATCH('Cash flow'!Q$67,'Cash flow CALC'!$1:$1,0),1,1,"Cash flow CALC")),"-") -> - | R23: =IF(A23<=ROUNDDOWN(MainForm!$C$11/12,0), VLOOKUP(A23,Premium_suppression,2,FALSE),"-") -> -
A24: 17 | B24: =IF(A24<=ROUNDDOWN(MainForm!$C$11/12,0), SUM(INDIRECT(ADDRESS((A24-1)*12+2,MATCH('Cash flow'!B$67,'Cash flow CALC'!$1:$1,0),1,1,"Cash flow CALC")):INDIRECT(ADDRESS(A24*12+1,MATCH('Cash flow'!B$67,'Cash flow CALC'!$1:$1,0),1,1,"Cash flow CALC"))), "-") -> - | C24: =IF(A24<=ROUNDDOWN(MainForm!$C$11/12,0), VLOOKUP(A24,Indexation_full,2,FALSE), "-") -> - | D24: =IF(A24<=ROUNDDOWN(MainForm!$C$11/12,0), SUM(INDIRECT(ADDRESS((A24-1)*12+2,MATCH('Cash flow'!D$67,'Cash flow CALC'!$1:$1,0),1,1,"Cash flow CALC")):INDIRECT(ADDRESS(A24*12+1,MATCH('Cash flow'!D$67,'Cash flow CALC'!$1:$1,0),1,1,"Cash flow CALC"))), "-") -> - | E24: =IF(A24<=ROUNDDOWN(MainForm!$C$11/12,0), SUM(INDIRECT(ADDRESS(($A$8-1)*12+2,MATCH('Cash flow'!E$67,'Cash flow CALC'!$1:$1,0),1,1,"Cash flow CALC")):INDIRECT(ADDRESS(A24*12+1,MATCH('Cash flow'!E$67,'Cash flow CALC'!$1:$1,0),1,1,"Cash flow CALC"))),"-") -> - | F24: =IF(A24<=ROUNDDOWN(MainForm!$C$11/12,0), SUM(INDIRECT(ADDRESS((A24-1)*12+2,MATCH('Cash flow'!F$67,'Cash flow CALC'!$1:$1,0),1,1,"Cash flow CALC")):INDIRECT(ADDRESS(A24*12+1,MATCH('Cash flow'!F$67,'Cash flow CALC'!$1:$1,0),1,1,"Cash flow CALC"))),"-") -> - | G24: =IF(A24<=ROUNDDOWN(MainForm!$C$11/12,0), SUM(INDIRECT(ADDRESS((A24-1)*12+2,MATCH('Cash flow'!G$67,'Cash flow CALC'!$1:$1,0),1,1,"Cash flow CALC")):INDIRECT(ADDRESS(A24*12+1,MATCH('Cash flow'!G$67,'Cash flow CALC'!$1:$1,0),1,1,"Cash flow CALC"))),"-") -> - | H24: =IF(A24<=ROUNDDOWN(MainForm!$C$11/12,0), SUM(INDIRECT(ADDRESS((A24-1)*12+2,MATCH('Cash flow'!H$67,'Cash flow CALC'!$1:$1,0),1,1,"Cash flow CALC")):INDIRECT(ADDRESS(A24*12+1,MATCH('Cash flow'!H$67,'Cash flow CALC'!$1:$1,0),1,1,"Cash flow CALC"))),"-") -> - | I24: =IF(A24<=ROUNDDOWN(MainForm!$C$11/12,0), SUM(INDIRECT(ADDRESS((A24-1)*12+2,MATCH('Cash flow'!I$67,'Cash flow CALC'!$1:$1,0),1,1,"Cash flow CALC")):INDIRECT(ADDRESS(A24*12+1,MATCH('Cash flow'!I$67,'Cash flow CALC'!$1:$1,0),1,1,"Cash flow CALC"))),"-") -> - | J24: =IF(A24<=ROUNDDOWN(MainForm!$C$11/12,0), SUM(INDIRECT(ADDRESS((A24-1)*12+2,MATCH('Cash flow'!J$67,'Cash flow CALC'!$1:$1,0),1,1,"Cash flow CALC")):INDIRECT(ADDRESS(A24*12+1,MATCH('Cash flow'!J$67,'Cash flow CALC'!$1:$1,0),1,1,"Cash flow CALC"))),"-") -> - | K24: =IF(A24<=ROUNDDOWN(MainForm!$C$11/12,0), INDIRECT(ADDRESS(A24*12+1,MATCH('Cash flow'!K$67,'Cash flow CALC'!$1:$1,0),1,1,"Cash flow CALC")),"-") -> - | L24: =IF(A24<=ROUNDDOWN(MainForm!$C$11/12,0), SUM(INDIRECT(ADDRESS((A24-1)*12+2,MATCH('Cash flow'!L$67,'Cash flow CALC'!$1:$1,0),1,1,"Cash flow CALC")):INDIRECT(ADDRESS(A24*12+1,MATCH('Cash flow'!L$67,'Cash flow CALC'!$1:$1,0),1,1,"Cash flow CALC"))),"-") -> - | M24: =IF(A24<=ROUNDDOWN(MainForm!$C$11/12,0), INDIRECT(ADDRESS(A24*12+1,MATCH('Cash flow'!M$67,'Cash flow CALC'!$1:$1,0),1,1,"Cash flow CALC")),"-") -> - | N24: =IF(A24<=ROUNDDOWN(MainForm!$C$11/12,0), SUM(INDIRECT(ADDRESS((A24-1)*12+2,MATCH('Cash flow'!N$67,'Cash flow CALC'!$1:$1,0),1,1,"Cash flow CALC")):INDIRECT(ADDRESS(A24*12+1,MATCH('Cash flow'!N$67,'Cash flow CALC'!$1:$1,0),1,1,"Cash flow CALC"))),"-") -> - | O24: =IF(A24<=ROUNDDOWN(MainForm!$C$11/12,0), SUM(INDIRECT(ADDRESS((A24-1)*12+2,MATCH('Cash flow'!O$67,'Cash flow CALC'!$1:$1,0),1,1,"Cash flow CALC")):INDIRECT(ADDRESS(A24*12+1,MATCH('Cash flow'!O$67,'Cash flow CALC'!$1:$1,0),1,1,"Cash flow CALC"))),"-") -> - | P24: =IF(A24<=ROUNDDOWN(MainForm!$C$11/12,0), INDIRECT(ADDRESS(A24*12+1,MATCH('Cash flow'!P$67,'Cash flow CALC'!$1:$1,0),1,1,"Cash flow CALC")),"-") -> - | Q24: =IF(A24<=ROUNDDOWN(MainForm!$C$11/12,0), INDIRECT(ADDRESS(A24*12+1,MATCH('Cash flow'!Q$67,'Cash flow CALC'!$1:$1,0),1,1,"Cash flow CALC")),"-") -> - | R24: =IF(A24<=ROUNDDOWN(MainForm!$C$11/12,0), VLOOKUP(A24,Premium_suppression,2,FALSE),"-") -> -
A25: 18 | B25: =IF(A25<=ROUNDDOWN(MainForm!$C$11/12,0), SUM(INDIRECT(ADDRESS((A25-1)*12+2,MATCH('Cash flow'!B$67,'Cash flow CALC'!$1:$1,0),1,1,"Cash flow CALC")):INDIRECT(ADDRESS(A25*12+1,MATCH('Cash flow'!B$67,'Cash flow CALC'!$1:$1,0),1,1,"Cash flow CALC"))), "-") -> - | C25: =IF(A25<=ROUNDDOWN(MainForm!$C$11/12,0), VLOOKUP(A25,Indexation_full,2,FALSE), "-") -> - | D25: =IF(A25<=ROUNDDOWN(MainForm!$C$11/12,0), SUM(INDIRECT(ADDRESS((A25-1)*12+2,MATCH('Cash flow'!D$67,'Cash flow CALC'!$1:$1,0),1,1,"Cash flow CALC")):INDIRECT(ADDRESS(A25*12+1,MATCH('Cash flow'!D$67,'Cash flow CALC'!$1:$1,0),1,1,"Cash flow CALC"))), "-") -> - | E25: =IF(A25<=ROUNDDOWN(MainForm!$C$11/12,0), SUM(INDIRECT(ADDRESS(($A$8-1)*12+2,MATCH('Cash flow'!E$67,'Cash flow CALC'!$1:$1,0),1,1,"Cash flow CALC")):INDIRECT(ADDRESS(A25*12+1,MATCH('Cash flow'!E$67,'Cash flow CALC'!$1:$1,0),1,1,"Cash flow CALC"))),"-") -> - | F25: =IF(A25<=ROUNDDOWN(MainForm!$C$11/12,0), SUM(INDIRECT(ADDRESS((A25-1)*12+2,MATCH('Cash flow'!F$67,'Cash flow CALC'!$1:$1,0),1,1,"Cash flow CALC")):INDIRECT(ADDRESS(A25*12+1,MATCH('Cash flow'!F$67,'Cash flow CALC'!$1:$1,0),1,1,"Cash flow CALC"))),"-") -> - | G25: =IF(A25<=ROUNDDOWN(MainForm!$C$11/12,0), SUM(INDIRECT(ADDRESS((A25-1)*12+2,MATCH('Cash flow'!G$67,'Cash flow CALC'!$1:$1,0),1,1,"Cash flow CALC")):INDIRECT(ADDRESS(A25*12+1,MATCH('Cash flow'!G$67,'Cash flow CALC'!$1:$1,0),1,1,"Cash flow CALC"))),"-") -> - | H25: =IF(A25<=ROUNDDOWN(MainForm!$C$11/12,0), SUM(INDIRECT(ADDRESS((A25-1)*12+2,MATCH('Cash flow'!H$67,'Cash flow CALC'!$1:$1,0),1,1,"Cash flow CALC")):INDIRECT(ADDRESS(A25*12+1,MATCH('Cash flow'!H$67,'Cash flow CALC'!$1:$1,0),1,1,"Cash flow CALC"))),"-") -> - | I25: =IF(A25<=ROUNDDOWN(MainForm!$C$11/12,0), SUM(INDIRECT(ADDRESS((A25-1)*12+2,MATCH('Cash flow'!I$67,'Cash flow CALC'!$1:$1,0),1,1,"Cash flow CALC")):INDIRECT(ADDRESS(A25*12+1,MATCH('Cash flow'!I$67,'Cash flow CALC'!$1:$1,0),1,1,"Cash flow CALC"))),"-") -> - | J25: =IF(A25<=ROUNDDOWN(MainForm!$C$11/12,0), SUM(INDIRECT(ADDRESS((A25-1)*12+2,MATCH('Cash flow'!J$67,'Cash flow CALC'!$1:$1,0),1,1,"Cash flow CALC")):INDIRECT(ADDRESS(A25*12+1,MATCH('Cash flow'!J$67,'Cash flow CALC'!$1:$1,0),1,1,"Cash flow CALC"))),"-") -> - | K25: =IF(A25<=ROUNDDOWN(MainForm!$C$11/12,0), INDIRECT(ADDRESS(A25*12+1,MATCH('Cash flow'!K$67,'Cash flow CALC'!$1:$1,0),1,1,"Cash flow CALC")),"-") -> - | L25: =IF(A25<=ROUNDDOWN(MainForm!$C$11/12,0), SUM(INDIRECT(ADDRESS((A25-1)*12+2,MATCH('Cash flow'!L$67,'Cash flow CALC'!$1:$1,0),1,1,"Cash flow CALC")):INDIRECT(ADDRESS(A25*12+1,MATCH('Cash flow'!L$67,'Cash flow CALC'!$1:$1,0),1,1,"Cash flow CALC"))),"-") -> - | M25: =IF(A25<=ROUNDDOWN(MainForm!$C$11/12,0), INDIRECT(ADDRESS(A25*12+1,MATCH('Cash flow'!M$67,'Cash flow CALC'!$1:$1,0),1,1,"Cash flow CALC")),"-") -> - | N25: =IF(A25<=ROUNDDOWN(MainForm!$C$11/12,0), SUM(INDIRECT(ADDRESS((A25-1)*12+2,MATCH('Cash flow'!N$67,'Cash flow CALC'!$1:$1,0),1,1,"Cash flow CALC")):INDIRECT(ADDRESS(A25*12+1,MATCH('Cash flow'!N$67,'Cash flow CALC'!$1:$1,0),1,1,"Cash flow CALC"))),"-") -> - | O25: =IF(A25<=ROUNDDOWN(MainForm!$C$11/12,0), SUM(INDIRECT(ADDRESS((A25-1)*12+2,MATCH('Cash flow'!O$67,'Cash flow CALC'!$1:$1,0),1,1,"Cash flow CALC")):INDIRECT(ADDRESS(A25*12+1,MATCH('Cash flow'!O$67,'Cash flow CALC'!$1:$1,0),1,1,"Cash flow CALC"))),"-") -> - | P25: =IF(A25<=ROUNDDOWN(MainForm!$C$11/12,0), INDIRECT(ADDRESS(A25*12+1,MATCH('Cash flow'!P$67,'Cash flow CALC'!$1:$1,0),1,1,"Cash flow CALC")),"-") -> - | Q25: =IF(A25<=ROUNDDOWN(MainForm!$C$11/12,0), INDIRECT(ADDRESS(A25*12+1,MATCH('Cash flow'!Q$67,'Cash flow CALC'!$1:$1,0),1,1,"Cash flow CALC")),"-") -> - | R25: =IF(A25<=ROUNDDOWN(MainForm!$C$11/12,0), VLOOKUP(A25,Premium_suppression,2,FALSE),"-") -> -
A26: 19 | B26: =IF(A26<=ROUNDDOWN(MainForm!$C$11/12,0), SUM(INDIRECT(ADDRESS((A26-1)*12+2,MATCH('Cash flow'!B$67,'Cash flow CALC'!$1:$1,0),1,1,"Cash flow CALC")):INDIRECT(ADDRESS(A26*12+1,MATCH('Cash flow'!B$67,'Cash flow CALC'!$1:$1,0),1,1,"Cash flow CALC"))), "-") -> - | C26: =IF(A26<=ROUNDDOWN(MainForm!$C$11/12,0), VLOOKUP(A26,Indexation_full,2,FALSE), "-") -> - | D26: =IF(A26<=ROUNDDOWN(MainForm!$C$11/12,0), SUM(INDIRECT(ADDRESS((A26-1)*12+2,MATCH('Cash flow'!D$67,'Cash flow CALC'!$1:$1,0),1,1,"Cash flow CALC")):INDIRECT(ADDRESS(A26*12+1,MATCH('Cash flow'!D$67,'Cash flow CALC'!$1:$1,0),1,1,"Cash flow CALC"))), "-") -> - | E26: =IF(A26<=ROUNDDOWN(MainForm!$C$11/12,0), SUM(INDIRECT(ADDRESS(($A$8-1)*12+2,MATCH('Cash flow'!E$67,'Cash flow CALC'!$1:$1,0),1,1,"Cash flow CALC")):INDIRECT(ADDRESS(A26*12+1,MATCH('Cash flow'!E$67,'Cash flow CALC'!$1:$1,0),1,1,"Cash flow CALC"))),"-") -> - | F26: =IF(A26<=ROUNDDOWN(MainForm!$C$11/12,0), SUM(INDIRECT(ADDRESS((A26-1)*12+2,MATCH('Cash flow'!F$67,'Cash flow CALC'!$1:$1,0),1,1,"Cash flow CALC")):INDIRECT(ADDRESS(A26*12+1,MATCH('Cash flow'!F$67,'Cash flow CALC'!$1:$1,0),1,1,"Cash flow CALC"))),"-") -> - | G26: =IF(A26<=ROUNDDOWN(MainForm!$C$11/12,0), SUM(INDIRECT(ADDRESS((A26-1)*12+2,MATCH('Cash flow'!G$67,'Cash flow CALC'!$1:$1,0),1,1,"Cash flow CALC")):INDIRECT(ADDRESS(A26*12+1,MATCH('Cash flow'!G$67,'Cash flow CALC'!$1:$1,0),1,1,"Cash flow CALC"))),"-") -> - | H26: =IF(A26<=ROUNDDOWN(MainForm!$C$11/12,0), SUM(INDIRECT(ADDRESS((A26-1)*12+2,MATCH('Cash flow'!H$67,'Cash flow CALC'!$1:$1,0),1,1,"Cash flow CALC")):INDIRECT(ADDRESS(A26*12+1,MATCH('Cash flow'!H$67,'Cash flow CALC'!$1:$1,0),1,1,"Cash flow CALC"))),"-") -> - | I26: =IF(A26<=ROUNDDOWN(MainForm!$C$11/12,0), SUM(INDIRECT(ADDRESS((A26-1)*12+2,MATCH('Cash flow'!I$67,'Cash flow CALC'!$1:$1,0),1,1,"Cash flow CALC")):INDIRECT(ADDRESS(A26*12+1,MATCH('Cash flow'!I$67,'Cash flow CALC'!$1:$1,0),1,1,"Cash flow CALC"))),"-") -> - | J26: =IF(A26<=ROUNDDOWN(MainForm!$C$11/12,0), SUM(INDIRECT(ADDRESS((A26-1)*12+2,MATCH('Cash flow'!J$67,'Cash flow CALC'!$1:$1,0),1,1,"Cash flow CALC")):INDIRECT(ADDRESS(A26*12+1,MATCH('Cash flow'!J$67,'Cash flow CALC'!$1:$1,0),1,1,"Cash flow CALC"))),"-") -> - | K26: =IF(A26<=ROUNDDOWN(MainForm!$C$11/12,0), INDIRECT(ADDRESS(A26*12+1,MATCH('Cash flow'!K$67,'Cash flow CALC'!$1:$1,0),1,1,"Cash flow CALC")),"-") -> - | L26: =IF(A26<=ROUNDDOWN(MainForm!$C$11/12,0), SUM(INDIRECT(ADDRESS((A26-1)*12+2,MATCH('Cash flow'!L$67,'Cash flow CALC'!$1:$1,0),1,1,"Cash flow CALC")):INDIRECT(ADDRESS(A26*12+1,MATCH('Cash flow'!L$67,'Cash flow CALC'!$1:$1,0),1,1,"Cash flow CALC"))),"-") -> - | M26: =IF(A26<=ROUNDDOWN(MainForm!$C$11/12,0), INDIRECT(ADDRESS(A26*12+1,MATCH('Cash flow'!M$67,'Cash flow CALC'!$1:$1,0),1,1,"Cash flow CALC")),"-") -> - | N26: =IF(A26<=ROUNDDOWN(MainForm!$C$11/12,0), SUM(INDIRECT(ADDRESS((A26-1)*12+2,MATCH('Cash flow'!N$67,'Cash flow CALC'!$1:$1,0),1,1,"Cash flow CALC")):INDIRECT(ADDRESS(A26*12+1,MATCH('Cash flow'!N$67,'Cash flow CALC'!$1:$1,0),1,1,"Cash flow CALC"))),"-") -> - | O26: =IF(A26<=ROUNDDOWN(MainForm!$C$11/12,0), SUM(INDIRECT(ADDRESS((A26-1)*12+2,MATCH('Cash flow'!O$67,'Cash flow CALC'!$1:$1,0),1,1,"Cash flow CALC")):INDIRECT(ADDRESS(A26*12+1,MATCH('Cash flow'!O$67,'Cash flow CALC'!$1:$1,0),1,1,"Cash flow CALC"))),"-") -> - | P26: =IF(A26<=ROUNDDOWN(MainForm!$C$11/12,0), INDIRECT(ADDRESS(A26*12+1,MATCH('Cash flow'!P$67,'Cash flow CALC'!$1:$1,0),1,1,"Cash flow CALC")),"-") -> - | Q26: =IF(A26<=ROUNDDOWN(MainForm!$C$11/12,0), INDIRECT(ADDRESS(A26*12+1,MATCH('Cash flow'!Q$67,'Cash flow CALC'!$1:$1,0),1,1,"Cash flow CALC")),"-") -> - | R26: =IF(A26<=ROUNDDOWN(MainForm!$C$11/12,0), VLOOKUP(A26,Premium_suppression,2,FALSE),"-") -> -
A27: 20 | B27: =IF(A27<=ROUNDDOWN(MainForm!$C$11/12,0), SUM(INDIRECT(ADDRESS((A27-1)*12+2,MATCH('Cash flow'!B$67,'Cash flow CALC'!$1:$1,0),1,1,"Cash flow CALC")):INDIRECT(ADDRESS(A27*12+1,MATCH('Cash flow'!B$67,'Cash flow CALC'!$1:$1,0),1,1,"Cash flow CALC"))), "-") -> - | C27: =IF(A27<=ROUNDDOWN(MainForm!$C$11/12,0), VLOOKUP(A27,Indexation_full,2,FALSE), "-") -> - | D27: =IF(A27<=ROUNDDOWN(MainForm!$C$11/12,0), SUM(INDIRECT(ADDRESS((A27-1)*12+2,MATCH('Cash flow'!D$67,'Cash flow CALC'!$1:$1,0),1,1,"Cash flow CALC")):INDIRECT(ADDRESS(A27*12+1,MATCH('Cash flow'!D$67,'Cash flow CALC'!$1:$1,0),1,1,"Cash flow CALC"))), "-") -> - | E27: =IF(A27<=ROUNDDOWN(MainForm!$C$11/12,0), SUM(INDIRECT(ADDRESS(($A$8-1)*12+2,MATCH('Cash flow'!E$67,'Cash flow CALC'!$1:$1,0),1,1,"Cash flow CALC")):INDIRECT(ADDRESS(A27*12+1,MATCH('Cash flow'!E$67,'Cash flow CALC'!$1:$1,0),1,1,"Cash flow CALC"))),"-") -> - | F27: =IF(A27<=ROUNDDOWN(MainForm!$C$11/12,0), SUM(INDIRECT(ADDRESS((A27-1)*12+2,MATCH('Cash flow'!F$67,'Cash flow CALC'!$1:$1,0),1,1,"Cash flow CALC")):INDIRECT(ADDRESS(A27*12+1,MATCH('Cash flow'!F$67,'Cash flow CALC'!$1:$1,0),1,1,"Cash flow CALC"))),"-") -> - | G27: =IF(A27<=ROUNDDOWN(MainForm!$C$11/12,0), SUM(INDIRECT(ADDRESS((A27-1)*12+2,MATCH('Cash flow'!G$67,'Cash flow CALC'!$1:$1,0),1,1,"Cash flow CALC")):INDIRECT(ADDRESS(A27*12+1,MATCH('Cash flow'!G$67,'Cash flow CALC'!$1:$1,0),1,1,"Cash flow CALC"))),"-") -> - | H27: =IF(A27<=ROUNDDOWN(MainForm!$C$11/12,0), SUM(INDIRECT(ADDRESS((A27-1)*12+2,MATCH('Cash flow'!H$67,'Cash flow CALC'!$1:$1,0),1,1,"Cash flow CALC")):INDIRECT(ADDRESS(A27*12+1,MATCH('Cash flow'!H$67,'Cash flow CALC'!$1:$1,0),1,1,"Cash flow CALC"))),"-") -> - | I27: =IF(A27<=ROUNDDOWN(MainForm!$C$11/12,0), SUM(INDIRECT(ADDRESS((A27-1)*12+2,MATCH('Cash flow'!I$67,'Cash flow CALC'!$1:$1,0),1,1,"Cash flow CALC")):INDIRECT(ADDRESS(A27*12+1,MATCH('Cash flow'!I$67,'Cash flow CALC'!$1:$1,0),1,1,"Cash flow CALC"))),"-") -> - | J27: =IF(A27<=ROUNDDOWN(MainForm!$C$11/12,0), SUM(INDIRECT(ADDRESS((A27-1)*12+2,MATCH('Cash flow'!J$67,'Cash flow CALC'!$1:$1,0),1,1,"Cash flow CALC")):INDIRECT(ADDRESS(A27*12+1,MATCH('Cash flow'!J$67,'Cash flow CALC'!$1:$1,0),1,1,"Cash flow CALC"))),"-") -> - | K27: =IF(A27<=ROUNDDOWN(MainForm!$C$11/12,0), INDIRECT(ADDRESS(A27*12+1,MATCH('Cash flow'!K$67,'Cash flow CALC'!$1:$1,0),1,1,"Cash flow CALC")),"-") -> - | L27: =IF(A27<=ROUNDDOWN(MainForm!$C$11/12,0), SUM(INDIRECT(ADDRESS((A27-1)*12+2,MATCH('Cash flow'!L$67,'Cash flow CALC'!$1:$1,0),1,1,"Cash flow CALC")):INDIRECT(ADDRESS(A27*12+1,MATCH('Cash flow'!L$67,'Cash flow CALC'!$1:$1,0),1,1,"Cash flow CALC"))),"-") -> - | M27: =IF(A27<=ROUNDDOWN(MainForm!$C$11/12,0), INDIRECT(ADDRESS(A27*12+1,MATCH('Cash flow'!M$67,'Cash flow CALC'!$1:$1,0),1,1,"Cash flow CALC")),"-") -> - | N27: =IF(A27<=ROUNDDOWN(MainForm!$C$11/12,0), SUM(INDIRECT(ADDRESS((A27-1)*12+2,MATCH('Cash flow'!N$67,'Cash flow CALC'!$1:$1,0),1,1,"Cash flow CALC")):INDIRECT(ADDRESS(A27*12+1,MATCH('Cash flow'!N$67,'Cash flow CALC'!$1:$1,0),1,1,"Cash flow CALC"))),"-") -> - | O27: =IF(A27<=ROUNDDOWN(MainForm!$C$11/12,0), SUM(INDIRECT(ADDRESS((A27-1)*12+2,MATCH('Cash flow'!O$67,'Cash flow CALC'!$1:$1,0),1,1,"Cash flow CALC")):INDIRECT(ADDRESS(A27*12+1,MATCH('Cash flow'!O$67,'Cash flow CALC'!$1:$1,0),1,1,"Cash flow CALC"))),"-") -> - | P27: =IF(A27<=ROUNDDOWN(MainForm!$C$11/12,0), INDIRECT(ADDRESS(A27*12+1,MATCH('Cash flow'!P$67,'Cash flow CALC'!$1:$1,0),1,1,"Cash flow CALC")),"-") -> - | Q27: =IF(A27<=ROUNDDOWN(MainForm!$C$11/12,0), INDIRECT(ADDRESS(A27*12+1,MATCH('Cash flow'!Q$67,'Cash flow CALC'!$1:$1,0),1,1,"Cash flow CALC")),"-") -> - | R27: =IF(A27<=ROUNDDOWN(MainForm!$C$11/12,0), VLOOKUP(A27,Premium_suppression,2,FALSE),"-") -> -
A28: 21 | B28: =IF(A28<=ROUNDDOWN(MainForm!$C$11/12,0), SUM(INDIRECT(ADDRESS((A28-1)*12+2,MATCH('Cash flow'!B$67,'Cash flow CALC'!$1:$1,0),1,1,"Cash flow CALC")):INDIRECT(ADDRESS(A28*12+1,MATCH('Cash flow'!B$67,'Cash flow CALC'!$1:$1,0),1,1,"Cash flow CALC"))), "-") -> - | C28: =IF(A28<=ROUNDDOWN(MainForm!$C$11/12,0), VLOOKUP(A28,Indexation_full,2,FALSE), "-") -> - | D28: =IF(A28<=ROUNDDOWN(MainForm!$C$11/12,0), SUM(INDIRECT(ADDRESS((A28-1)*12+2,MATCH('Cash flow'!D$67,'Cash flow CALC'!$1:$1,0),1,1,"Cash flow CALC")):INDIRECT(ADDRESS(A28*12+1,MATCH('Cash flow'!D$67,'Cash flow CALC'!$1:$1,0),1,1,"Cash flow CALC"))), "-") -> - | E28: =IF(A28<=ROUNDDOWN(MainForm!$C$11/12,0), SUM(INDIRECT(ADDRESS(($A$8-1)*12+2,MATCH('Cash flow'!E$67,'Cash flow CALC'!$1:$1,0),1,1,"Cash flow CALC")):INDIRECT(ADDRESS(A28*12+1,MATCH('Cash flow'!E$67,'Cash flow CALC'!$1:$1,0),1,1,"Cash flow CALC"))),"-") -> - | F28: =IF(A28<=ROUNDDOWN(MainForm!$C$11/12,0), SUM(INDIRECT(ADDRESS((A28-1)*12+2,MATCH('Cash flow'!F$67,'Cash flow CALC'!$1:$1,0),1,1,"Cash flow CALC")):INDIRECT(ADDRESS(A28*12+1,MATCH('Cash flow'!F$67,'Cash flow CALC'!$1:$1,0),1,1,"Cash flow CALC"))),"-") -> - | G28: =IF(A28<=ROUNDDOWN(MainForm!$C$11/12,0), SUM(INDIRECT(ADDRESS((A28-1)*12+2,MATCH('Cash flow'!G$67,'Cash flow CALC'!$1:$1,0),1,1,"Cash flow CALC")):INDIRECT(ADDRESS(A28*12+1,MATCH('Cash flow'!G$67,'Cash flow CALC'!$1:$1,0),1,1,"Cash flow CALC"))),"-") -> - | H28: =IF(A28<=ROUNDDOWN(MainForm!$C$11/12,0), SUM(INDIRECT(ADDRESS((A28-1)*12+2,MATCH('Cash flow'!H$67,'Cash flow CALC'!$1:$1,0),1,1,"Cash flow CALC")):INDIRECT(ADDRESS(A28*12+1,MATCH('Cash flow'!H$67,'Cash flow CALC'!$1:$1,0),1,1,"Cash flow CALC"))),"-") -> - | I28: =IF(A28<=ROUNDDOWN(MainForm!$C$11/12,0), SUM(INDIRECT(ADDRESS((A28-1)*12+2,MATCH('Cash flow'!I$67,'Cash flow CALC'!$1:$1,0),1,1,"Cash flow CALC")):INDIRECT(ADDRESS(A28*12+1,MATCH('Cash flow'!I$67,'Cash flow CALC'!$1:$1,0),1,1,"Cash flow CALC"))),"-") -> - | J28: =IF(A28<=ROUNDDOWN(MainForm!$C$11/12,0), SUM(INDIRECT(ADDRESS((A28-1)*12+2,MATCH('Cash flow'!J$67,'Cash flow CALC'!$1:$1,0),1,1,"Cash flow CALC")):INDIRECT(ADDRESS(A28*12+1,MATCH('Cash flow'!J$67,'Cash flow CALC'!$1:$1,0),1,1,"Cash flow CALC"))),"-") -> - | K28: =IF(A28<=ROUNDDOWN(MainForm!$C$11/12,0), INDIRECT(ADDRESS(A28*12+1,MATCH('Cash flow'!K$67,'Cash flow CALC'!$1:$1,0),1,1,"Cash flow CALC")),"-") -> - | L28: =IF(A28<=ROUNDDOWN(MainForm!$C$11/12,0), SUM(INDIRECT(ADDRESS((A28-1)*12+2,MATCH('Cash flow'!L$67,'Cash flow CALC'!$1:$1,0),1,1,"Cash flow CALC")):INDIRECT(ADDRESS(A28*12+1,MATCH('Cash flow'!L$67,'Cash flow CALC'!$1:$1,0),1,1,"Cash flow CALC"))),"-") -> - | M28: =IF(A28<=ROUNDDOWN(MainForm!$C$11/12,0), INDIRECT(ADDRESS(A28*12+1,MATCH('Cash flow'!M$67,'Cash flow CALC'!$1:$1,0),1,1,"Cash flow CALC")),"-") -> - | N28: =IF(A28<=ROUNDDOWN(MainForm!$C$11/12,0), SUM(INDIRECT(ADDRESS((A28-1)*12+2,MATCH('Cash flow'!N$67,'Cash flow CALC'!$1:$1,0),1,1,"Cash flow CALC")):INDIRECT(ADDRESS(A28*12+1,MATCH('Cash flow'!N$67,'Cash flow CALC'!$1:$1,0),1,1,"Cash flow CALC"))),"-") -> - | O28: =IF(A28<=ROUNDDOWN(MainForm!$C$11/12,0), SUM(INDIRECT(ADDRESS((A28-1)*12+2,MATCH('Cash flow'!O$67,'Cash flow CALC'!$1:$1,0),1,1,"Cash flow CALC")):INDIRECT(ADDRESS(A28*12+1,MATCH('Cash flow'!O$67,'Cash flow CALC'!$1:$1,0),1,1,"Cash flow CALC"))),"-") -> - | P28: =IF(A28<=ROUNDDOWN(MainForm!$C$11/12,0), INDIRECT(ADDRESS(A28*12+1,MATCH('Cash flow'!P$67,'Cash flow CALC'!$1:$1,0),1,1,"Cash flow CALC")),"-") -> - | Q28: =IF(A28<=ROUNDDOWN(MainForm!$C$11/12,0), INDIRECT(ADDRESS(A28*12+1,MATCH('Cash flow'!Q$67,'Cash flow CALC'!$1:$1,0),1,1,"Cash flow CALC")),"-") -> - | R28: =IF(A28<=ROUNDDOWN(MainForm!$C$11/12,0), VLOOKUP(A28,Premium_suppression,2,FALSE),"-") -> -
A29: 22 | B29: =IF(A29<=ROUNDDOWN(MainForm!$C$11/12,0), SUM(INDIRECT(ADDRESS((A29-1)*12+2,MATCH('Cash flow'!B$67,'Cash flow CALC'!$1:$1,0),1,1,"Cash flow CALC")):INDIRECT(ADDRESS(A29*12+1,MATCH('Cash flow'!B$67,'Cash flow CALC'!$1:$1,0),1,1,"Cash flow CALC"))), "-") -> - | C29: =IF(A29<=ROUNDDOWN(MainForm!$C$11/12,0), VLOOKUP(A29,Indexation_full,2,FALSE), "-") -> - | D29: =IF(A29<=ROUNDDOWN(MainForm!$C$11/12,0), SUM(INDIRECT(ADDRESS((A29-1)*12+2,MATCH('Cash flow'!D$67,'Cash flow CALC'!$1:$1,0),1,1,"Cash flow CALC")):INDIRECT(ADDRESS(A29*12+1,MATCH('Cash flow'!D$67,'Cash flow CALC'!$1:$1,0),1,1,"Cash flow CALC"))), "-") -> - | E29: =IF(A29<=ROUNDDOWN(MainForm!$C$11/12,0), SUM(INDIRECT(ADDRESS(($A$8-1)*12+2,MATCH('Cash flow'!E$67,'Cash flow CALC'!$1:$1,0),1,1,"Cash flow CALC")):INDIRECT(ADDRESS(A29*12+1,MATCH('Cash flow'!E$67,'Cash flow CALC'!$1:$1,0),1,1,"Cash flow CALC"))),"-") -> - | F29: =IF(A29<=ROUNDDOWN(MainForm!$C$11/12,0), SUM(INDIRECT(ADDRESS((A29-1)*12+2,MATCH('Cash flow'!F$67,'Cash flow CALC'!$1:$1,0),1,1,"Cash flow CALC")):INDIRECT(ADDRESS(A29*12+1,MATCH('Cash flow'!F$67,'Cash flow CALC'!$1:$1,0),1,1,"Cash flow CALC"))),"-") -> - | G29: =IF(A29<=ROUNDDOWN(MainForm!$C$11/12,0), SUM(INDIRECT(ADDRESS((A29-1)*12+2,MATCH('Cash flow'!G$67,'Cash flow CALC'!$1:$1,0),1,1,"Cash flow CALC")):INDIRECT(ADDRESS(A29*12+1,MATCH('Cash flow'!G$67,'Cash flow CALC'!$1:$1,0),1,1,"Cash flow CALC"))),"-") -> - | H29: =IF(A29<=ROUNDDOWN(MainForm!$C$11/12,0), SUM(INDIRECT(ADDRESS((A29-1)*12+2,MATCH('Cash flow'!H$67,'Cash flow CALC'!$1:$1,0),1,1,"Cash flow CALC")):INDIRECT(ADDRESS(A29*12+1,MATCH('Cash flow'!H$67,'Cash flow CALC'!$1:$1,0),1,1,"Cash flow CALC"))),"-") -> - | I29: =IF(A29<=ROUNDDOWN(MainForm!$C$11/12,0), SUM(INDIRECT(ADDRESS((A29-1)*12+2,MATCH('Cash flow'!I$67,'Cash flow CALC'!$1:$1,0),1,1,"Cash flow CALC")):INDIRECT(ADDRESS(A29*12+1,MATCH('Cash flow'!I$67,'Cash flow CALC'!$1:$1,0),1,1,"Cash flow CALC"))),"-") -> - | J29: =IF(A29<=ROUNDDOWN(MainForm!$C$11/12,0), SUM(INDIRECT(ADDRESS((A29-1)*12+2,MATCH('Cash flow'!J$67,'Cash flow CALC'!$1:$1,0),1,1,"Cash flow CALC")):INDIRECT(ADDRESS(A29*12+1,MATCH('Cash flow'!J$67,'Cash flow CALC'!$1:$1,0),1,1,"Cash flow CALC"))),"-") -> - | K29: =IF(A29<=ROUNDDOWN(MainForm!$C$11/12,0), INDIRECT(ADDRESS(A29*12+1,MATCH('Cash flow'!K$67,'Cash flow CALC'!$1:$1,0),1,1,"Cash flow CALC")),"-") -> - | L29: =IF(A29<=ROUNDDOWN(MainForm!$C$11/12,0), SUM(INDIRECT(ADDRESS((A29-1)*12+2,MATCH('Cash flow'!L$67,'Cash flow CALC'!$1:$1,0),1,1,"Cash flow CALC")):INDIRECT(ADDRESS(A29*12+1,MATCH('Cash flow'!L$67,'Cash flow CALC'!$1:$1,0),1,1,"Cash flow CALC"))),"-") -> - | M29: =IF(A29<=ROUNDDOWN(MainForm!$C$11/12,0), INDIRECT(ADDRESS(A29*12+1,MATCH('Cash flow'!M$67,'Cash flow CALC'!$1:$1,0),1,1,"Cash flow CALC")),"-") -> - | N29: =IF(A29<=ROUNDDOWN(MainForm!$C$11/12,0), SUM(INDIRECT(ADDRESS((A29-1)*12+2,MATCH('Cash flow'!N$67,'Cash flow CALC'!$1:$1,0),1,1,"Cash flow CALC")):INDIRECT(ADDRESS(A29*12+1,MATCH('Cash flow'!N$67,'Cash flow CALC'!$1:$1,0),1,1,"Cash flow CALC"))),"-") -> - | O29: =IF(A29<=ROUNDDOWN(MainForm!$C$11/12,0), SUM(INDIRECT(ADDRESS((A29-1)*12+2,MATCH('Cash flow'!O$67,'Cash flow CALC'!$1:$1,0),1,1,"Cash flow CALC")):INDIRECT(ADDRESS(A29*12+1,MATCH('Cash flow'!O$67,'Cash flow CALC'!$1:$1,0),1,1,"Cash flow CALC"))),"-") -> - | P29: =IF(A29<=ROUNDDOWN(MainForm!$C$11/12,0), INDIRECT(ADDRESS(A29*12+1,MATCH('Cash flow'!P$67,'Cash flow CALC'!$1:$1,0),1,1,"Cash flow CALC")),"-") -> - | Q29: =IF(A29<=ROUNDDOWN(MainForm!$C$11/12,0), INDIRECT(ADDRESS(A29*12+1,MATCH('Cash flow'!Q$67,'Cash flow CALC'!$1:$1,0),1,1,"Cash flow CALC")),"-") -> - | R29: =IF(A29<=ROUNDDOWN(MainForm!$C$11/12,0), VLOOKUP(A29,Premium_suppression,2,FALSE),"-") -> -
A30: 23 | B30: =IF(A30<=ROUNDDOWN(MainForm!$C$11/12,0), SUM(INDIRECT(ADDRESS((A30-1)*12+2,MATCH('Cash flow'!B$67,'Cash flow CALC'!$1:$1,0),1,1,"Cash flow CALC")):INDIRECT(ADDRESS(A30*12+1,MATCH('Cash flow'!B$67,'Cash flow CALC'!$1:$1,0),1,1,"Cash flow CALC"))), "-") -> - | C30: =IF(A30<=ROUNDDOWN(MainForm!$C$11/12,0), VLOOKUP(A30,Indexation_full,2,FALSE), "-") -> - | D30: =IF(A30<=ROUNDDOWN(MainForm!$C$11/12,0), SUM(INDIRECT(ADDRESS((A30-1)*12+2,MATCH('Cash flow'!D$67,'Cash flow CALC'!$1:$1,0),1,1,"Cash flow CALC")):INDIRECT(ADDRESS(A30*12+1,MATCH('Cash flow'!D$67,'Cash flow CALC'!$1:$1,0),1,1,"Cash flow CALC"))), "-") -> - | E30: =IF(A30<=ROUNDDOWN(MainForm!$C$11/12,0), SUM(INDIRECT(ADDRESS(($A$8-1)*12+2,MATCH('Cash flow'!E$67,'Cash flow CALC'!$1:$1,0),1,1,"Cash flow CALC")):INDIRECT(ADDRESS(A30*12+1,MATCH('Cash flow'!E$67,'Cash flow CALC'!$1:$1,0),1,1,"Cash flow CALC"))),"-") -> - | F30: =IF(A30<=ROUNDDOWN(MainForm!$C$11/12,0), SUM(INDIRECT(ADDRESS((A30-1)*12+2,MATCH('Cash flow'!F$67,'Cash flow CALC'!$1:$1,0),1,1,"Cash flow CALC")):INDIRECT(ADDRESS(A30*12+1,MATCH('Cash flow'!F$67,'Cash flow CALC'!$1:$1,0),1,1,"Cash flow CALC"))),"-") -> - | G30: =IF(A30<=ROUNDDOWN(MainForm!$C$11/12,0), SUM(INDIRECT(ADDRESS((A30-1)*12+2,MATCH('Cash flow'!G$67,'Cash flow CALC'!$1:$1,0),1,1,"Cash flow CALC")):INDIRECT(ADDRESS(A30*12+1,MATCH('Cash flow'!G$67,'Cash flow CALC'!$1:$1,0),1,1,"Cash flow CALC"))),"-") -> - | H30: =IF(A30<=ROUNDDOWN(MainForm!$C$11/12,0), SUM(INDIRECT(ADDRESS((A30-1)*12+2,MATCH('Cash flow'!H$67,'Cash flow CALC'!$1:$1,0),1,1,"Cash flow CALC")):INDIRECT(ADDRESS(A30*12+1,MATCH('Cash flow'!H$67,'Cash flow CALC'!$1:$1,0),1,1,"Cash flow CALC"))),"-") -> - | I30: =IF(A30<=ROUNDDOWN(MainForm!$C$11/12,0), SUM(INDIRECT(ADDRESS((A30-1)*12+2,MATCH('Cash flow'!I$67,'Cash flow CALC'!$1:$1,0),1,1,"Cash flow CALC")):INDIRECT(ADDRESS(A30*12+1,MATCH('Cash flow'!I$67,'Cash flow CALC'!$1:$1,0),1,1,"Cash flow CALC"))),"-") -> - | J30: =IF(A30<=ROUNDDOWN(MainForm!$C$11/12,0), SUM(INDIRECT(ADDRESS((A30-1)*12+2,MATCH('Cash flow'!J$67,'Cash flow CALC'!$1:$1,0),1,1,"Cash flow CALC")):INDIRECT(ADDRESS(A30*12+1,MATCH('Cash flow'!J$67,'Cash flow CALC'!$1:$1,0),1,1,"Cash flow CALC"))),"-") -> - | K30: =IF(A30<=ROUNDDOWN(MainForm!$C$11/12,0), INDIRECT(ADDRESS(A30*12+1,MATCH('Cash flow'!K$67,'Cash flow CALC'!$1:$1,0),1,1,"Cash flow CALC")),"-") -> - | L30: =IF(A30<=ROUNDDOWN(MainForm!$C$11/12,0), SUM(INDIRECT(ADDRESS((A30-1)*12+2,MATCH('Cash flow'!L$67,'Cash flow CALC'!$1:$1,0),1,1,"Cash flow CALC")):INDIRECT(ADDRESS(A30*12+1,MATCH('Cash flow'!L$67,'Cash flow CALC'!$1:$1,0),1,1,"Cash flow CALC"))),"-") -> - | M30: =IF(A30<=ROUNDDOWN(MainForm!$C$11/12,0), INDIRECT(ADDRESS(A30*12+1,MATCH('Cash flow'!M$67,'Cash flow CALC'!$1:$1,0),1,1,"Cash flow CALC")),"-") -> - | N30: =IF(A30<=ROUNDDOWN(MainForm!$C$11/12,0), SUM(INDIRECT(ADDRESS((A30-1)*12+2,MATCH('Cash flow'!N$67,'Cash flow CALC'!$1:$1,0),1,1,"Cash flow CALC")):INDIRECT(ADDRESS(A30*12+1,MATCH('Cash flow'!N$67,'Cash flow CALC'!$1:$1,0),1,1,"Cash flow CALC"))),"-") -> - | O30: =IF(A30<=ROUNDDOWN(MainForm!$C$11/12,0), SUM(INDIRECT(ADDRESS((A30-1)*12+2,MATCH('Cash flow'!O$67,'Cash flow CALC'!$1:$1,0),1,1,"Cash flow CALC")):INDIRECT(ADDRESS(A30*12+1,MATCH('Cash flow'!O$67,'Cash flow CALC'!$1:$1,0),1,1,"Cash flow CALC"))),"-") -> - | P30: =IF(A30<=ROUNDDOWN(MainForm!$C$11/12,0), INDIRECT(ADDRESS(A30*12+1,MATCH('Cash flow'!P$67,'Cash flow CALC'!$1:$1,0),1,1,"Cash flow CALC")),"-") -> - | Q30: =IF(A30<=ROUNDDOWN(MainForm!$C$11/12,0), INDIRECT(ADDRESS(A30*12+1,MATCH('Cash flow'!Q$67,'Cash flow CALC'!$1:$1,0),1,1,"Cash flow CALC")),"-") -> - | R30: =IF(A30<=ROUNDDOWN(MainForm!$C$11/12,0), VLOOKUP(A30,Premium_suppression,2,FALSE),"-") -> -
A31: 24 | B31: =IF(A31<=ROUNDDOWN(MainForm!$C$11/12,0), SUM(INDIRECT(ADDRESS((A31-1)*12+2,MATCH('Cash flow'!B$67,'Cash flow CALC'!$1:$1,0),1,1,"Cash flow CALC")):INDIRECT(ADDRESS(A31*12+1,MATCH('Cash flow'!B$67,'Cash flow CALC'!$1:$1,0),1,1,"Cash flow CALC"))), "-") -> - | C31: =IF(A31<=ROUNDDOWN(MainForm!$C$11/12,0), VLOOKUP(A31,Indexation_full,2,FALSE), "-") -> - | D31: =IF(A31<=ROUNDDOWN(MainForm!$C$11/12,0), SUM(INDIRECT(ADDRESS((A31-1)*12+2,MATCH('Cash flow'!D$67,'Cash flow CALC'!$1:$1,0),1,1,"Cash flow CALC")):INDIRECT(ADDRESS(A31*12+1,MATCH('Cash flow'!D$67,'Cash flow CALC'!$1:$1,0),1,1,"Cash flow CALC"))), "-") -> - | E31: =IF(A31<=ROUNDDOWN(MainForm!$C$11/12,0), SUM(INDIRECT(ADDRESS(($A$8-1)*12+2,MATCH('Cash flow'!E$67,'Cash flow CALC'!$1:$1,0),1,1,"Cash flow CALC")):INDIRECT(ADDRESS(A31*12+1,MATCH('Cash flow'!E$67,'Cash flow CALC'!$1:$1,0),1,1,"Cash flow CALC"))),"-") -> - | F31: =IF(A31<=ROUNDDOWN(MainForm!$C$11/12,0), SUM(INDIRECT(ADDRESS((A31-1)*12+2,MATCH('Cash flow'!F$67,'Cash flow CALC'!$1:$1,0),1,1,"Cash flow CALC")):INDIRECT(ADDRESS(A31*12+1,MATCH('Cash flow'!F$67,'Cash flow CALC'!$1:$1,0),1,1,"Cash flow CALC"))),"-") -> - | G31: =IF(A31<=ROUNDDOWN(MainForm!$C$11/12,0), SUM(INDIRECT(ADDRESS((A31-1)*12+2,MATCH('Cash flow'!G$67,'Cash flow CALC'!$1:$1,0),1,1,"Cash flow CALC")):INDIRECT(ADDRESS(A31*12+1,MATCH('Cash flow'!G$67,'Cash flow CALC'!$1:$1,0),1,1,"Cash flow CALC"))),"-") -> - | H31: =IF(A31<=ROUNDDOWN(MainForm!$C$11/12,0), SUM(INDIRECT(ADDRESS((A31-1)*12+2,MATCH('Cash flow'!H$67,'Cash flow CALC'!$1:$1,0),1,1,"Cash flow CALC")):INDIRECT(ADDRESS(A31*12+1,MATCH('Cash flow'!H$67,'Cash flow CALC'!$1:$1,0),1,1,"Cash flow CALC"))),"-") -> - | I31: =IF(A31<=ROUNDDOWN(MainForm!$C$11/12,0), SUM(INDIRECT(ADDRESS((A31-1)*12+2,MATCH('Cash flow'!I$67,'Cash flow CALC'!$1:$1,0),1,1,"Cash flow CALC")):INDIRECT(ADDRESS(A31*12+1,MATCH('Cash flow'!I$67,'Cash flow CALC'!$1:$1,0),1,1,"Cash flow CALC"))),"-") -> - | J31: =IF(A31<=ROUNDDOWN(MainForm!$C$11/12,0), SUM(INDIRECT(ADDRESS((A31-1)*12+2,MATCH('Cash flow'!J$67,'Cash flow CALC'!$1:$1,0),1,1,"Cash flow CALC")):INDIRECT(ADDRESS(A31*12+1,MATCH('Cash flow'!J$67,'Cash flow CALC'!$1:$1,0),1,1,"Cash flow CALC"))),"-") -> - | K31: =IF(A31<=ROUNDDOWN(MainForm!$C$11/12,0), INDIRECT(ADDRESS(A31*12+1,MATCH('Cash flow'!K$67,'Cash flow CALC'!$1:$1,0),1,1,"Cash flow CALC")),"-") -> - | L31: =IF(A31<=ROUNDDOWN(MainForm!$C$11/12,0), SUM(INDIRECT(ADDRESS((A31-1)*12+2,MATCH('Cash flow'!L$67,'Cash flow CALC'!$1:$1,0),1,1,"Cash flow CALC")):INDIRECT(ADDRESS(A31*12+1,MATCH('Cash flow'!L$67,'Cash flow CALC'!$1:$1,0),1,1,"Cash flow CALC"))),"-") -> - | M31: =IF(A31<=ROUNDDOWN(MainForm!$C$11/12,0), INDIRECT(ADDRESS(A31*12+1,MATCH('Cash flow'!M$67,'Cash flow CALC'!$1:$1,0),1,1,"Cash flow CALC")),"-") -> - | N31: =IF(A31<=ROUNDDOWN(MainForm!$C$11/12,0), SUM(INDIRECT(ADDRESS((A31-1)*12+2,MATCH('Cash flow'!N$67,'Cash flow CALC'!$1:$1,0),1,1,"Cash flow CALC")):INDIRECT(ADDRESS(A31*12+1,MATCH('Cash flow'!N$67,'Cash flow CALC'!$1:$1,0),1,1,"Cash flow CALC"))),"-") -> - | O31: =IF(A31<=ROUNDDOWN(MainForm!$C$11/12,0), SUM(INDIRECT(ADDRESS((A31-1)*12+2,MATCH('Cash flow'!O$67,'Cash flow CALC'!$1:$1,0),1,1,"Cash flow CALC")):INDIRECT(ADDRESS(A31*12+1,MATCH('Cash flow'!O$67,'Cash flow CALC'!$1:$1,0),1,1,"Cash flow CALC"))),"-") -> - | P31: =IF(A31<=ROUNDDOWN(MainForm!$C$11/12,0), INDIRECT(ADDRESS(A31*12+1,MATCH('Cash flow'!P$67,'Cash flow CALC'!$1:$1,0),1,1,"Cash flow CALC")),"-") -> - | Q31: =IF(A31<=ROUNDDOWN(MainForm!$C$11/12,0), INDIRECT(ADDRESS(A31*12+1,MATCH('Cash flow'!Q$67,'Cash flow CALC'!$1:$1,0),1,1,"Cash flow CALC")),"-") -> - | R31: =IF(A31<=ROUNDDOWN(MainForm!$C$11/12,0), VLOOKUP(A31,Premium_suppression,2,FALSE),"-") -> -
A32: 25 | B32: =IF(A32<=ROUNDDOWN(MainForm!$C$11/12,0), SUM(INDIRECT(ADDRESS((A32-1)*12+2,MATCH('Cash flow'!B$67,'Cash flow CALC'!$1:$1,0),1,1,"Cash flow CALC")):INDIRECT(ADDRESS(A32*12+1,MATCH('Cash flow'!B$67,'Cash flow CALC'!$1:$1,0),1,1,"Cash flow CALC"))), "-") -> - | C32: =IF(A32<=ROUNDDOWN(MainForm!$C$11/12,0), VLOOKUP(A32,Indexation_full,2,FALSE), "-") -> - | D32: =IF(A32<=ROUNDDOWN(MainForm!$C$11/12,0), SUM(INDIRECT(ADDRESS((A32-1)*12+2,MATCH('Cash flow'!D$67,'Cash flow CALC'!$1:$1,0),1,1,"Cash flow CALC")):INDIRECT(ADDRESS(A32*12+1,MATCH('Cash flow'!D$67,'Cash flow CALC'!$1:$1,0),1,1,"Cash flow CALC"))), "-") -> - | E32: =IF(A32<=ROUNDDOWN(MainForm!$C$11/12,0), SUM(INDIRECT(ADDRESS(($A$8-1)*12+2,MATCH('Cash flow'!E$67,'Cash flow CALC'!$1:$1,0),1,1,"Cash flow CALC")):INDIRECT(ADDRESS(A32*12+1,MATCH('Cash flow'!E$67,'Cash flow CALC'!$1:$1,0),1,1,"Cash flow CALC"))),"-") -> - | F32: =IF(A32<=ROUNDDOWN(MainForm!$C$11/12,0), SUM(INDIRECT(ADDRESS((A32-1)*12+2,MATCH('Cash flow'!F$67,'Cash flow CALC'!$1:$1,0),1,1,"Cash flow CALC")):INDIRECT(ADDRESS(A32*12+1,MATCH('Cash flow'!F$67,'Cash flow CALC'!$1:$1,0),1,1,"Cash flow CALC"))),"-") -> - | G32: =IF(A32<=ROUNDDOWN(MainForm!$C$11/12,0), SUM(INDIRECT(ADDRESS((A32-1)*12+2,MATCH('Cash flow'!G$67,'Cash flow CALC'!$1:$1,0),1,1,"Cash flow CALC")):INDIRECT(ADDRESS(A32*12+1,MATCH('Cash flow'!G$67,'Cash flow CALC'!$1:$1,0),1,1,"Cash flow CALC"))),"-") -> - | H32: =IF(A32<=ROUNDDOWN(MainForm!$C$11/12,0), SUM(INDIRECT(ADDRESS((A32-1)*12+2,MATCH('Cash flow'!H$67,'Cash flow CALC'!$1:$1,0),1,1,"Cash flow CALC")):INDIRECT(ADDRESS(A32*12+1,MATCH('Cash flow'!H$67,'Cash flow CALC'!$1:$1,0),1,1,"Cash flow CALC"))),"-") -> - | I32: =IF(A32<=ROUNDDOWN(MainForm!$C$11/12,0), SUM(INDIRECT(ADDRESS((A32-1)*12+2,MATCH('Cash flow'!I$67,'Cash flow CALC'!$1:$1,0),1,1,"Cash flow CALC")):INDIRECT(ADDRESS(A32*12+1,MATCH('Cash flow'!I$67,'Cash flow CALC'!$1:$1,0),1,1,"Cash flow CALC"))),"-") -> - | J32: =IF(A32<=ROUNDDOWN(MainForm!$C$11/12,0), SUM(INDIRECT(ADDRESS((A32-1)*12+2,MATCH('Cash flow'!J$67,'Cash flow CALC'!$1:$1,0),1,1,"Cash flow CALC")):INDIRECT(ADDRESS(A32*12+1,MATCH('Cash flow'!J$67,'Cash flow CALC'!$1:$1,0),1,1,"Cash flow CALC"))),"-") -> - | K32: =IF(A32<=ROUNDDOWN(MainForm!$C$11/12,0), INDIRECT(ADDRESS(A32*12+1,MATCH('Cash flow'!K$67,'Cash flow CALC'!$1:$1,0),1,1,"Cash flow CALC")),"-") -> - | L32: =IF(A32<=ROUNDDOWN(MainForm!$C$11/12,0), SUM(INDIRECT(ADDRESS((A32-1)*12+2,MATCH('Cash flow'!L$67,'Cash flow CALC'!$1:$1,0),1,1,"Cash flow CALC")):INDIRECT(ADDRESS(A32*12+1,MATCH('Cash flow'!L$67,'Cash flow CALC'!$1:$1,0),1,1,"Cash flow CALC"))),"-") -> - | M32: =IF(A32<=ROUNDDOWN(MainForm!$C$11/12,0), INDIRECT(ADDRESS(A32*12+1,MATCH('Cash flow'!M$67,'Cash flow CALC'!$1:$1,0),1,1,"Cash flow CALC")),"-") -> - | N32: =IF(A32<=ROUNDDOWN(MainForm!$C$11/12,0), SUM(INDIRECT(ADDRESS((A32-1)*12+2,MATCH('Cash flow'!N$67,'Cash flow CALC'!$1:$1,0),1,1,"Cash flow CALC")):INDIRECT(ADDRESS(A32*12+1,MATCH('Cash flow'!N$67,'Cash flow CALC'!$1:$1,0),1,1,"Cash flow CALC"))),"-") -> - | O32: =IF(A32<=ROUNDDOWN(MainForm!$C$11/12,0), SUM(INDIRECT(ADDRESS((A32-1)*12+2,MATCH('Cash flow'!O$67,'Cash flow CALC'!$1:$1,0),1,1,"Cash flow CALC")):INDIRECT(ADDRESS(A32*12+1,MATCH('Cash flow'!O$67,'Cash flow CALC'!$1:$1,0),1,1,"Cash flow CALC"))),"-") -> - | P32: =IF(A32<=ROUNDDOWN(MainForm!$C$11/12,0), INDIRECT(ADDRESS(A32*12+1,MATCH('Cash flow'!P$67,'Cash flow CALC'!$1:$1,0),1,1,"Cash flow CALC")),"-") -> - | Q32: =IF(A32<=ROUNDDOWN(MainForm!$C$11/12,0), INDIRECT(ADDRESS(A32*12+1,MATCH('Cash flow'!Q$67,'Cash flow CALC'!$1:$1,0),1,1,"Cash flow CALC")),"-") -> - | R32: =IF(A32<=ROUNDDOWN(MainForm!$C$11/12,0), VLOOKUP(A32,Premium_suppression,2,FALSE),"-") -> -
A33: 26 | B33: =IF(A33<=ROUNDDOWN(MainForm!$C$11/12,0), SUM(INDIRECT(ADDRESS((A33-1)*12+2,MATCH('Cash flow'!B$67,'Cash flow CALC'!$1:$1,0),1,1,"Cash flow CALC")):INDIRECT(ADDRESS(A33*12+1,MATCH('Cash flow'!B$67,'Cash flow CALC'!$1:$1,0),1,1,"Cash flow CALC"))), "-") -> - | C33: =IF(A33<=ROUNDDOWN(MainForm!$C$11/12,0), VLOOKUP(A33,Indexation_full,2,FALSE), "-") -> - | D33: =IF(A33<=ROUNDDOWN(MainForm!$C$11/12,0), SUM(INDIRECT(ADDRESS((A33-1)*12+2,MATCH('Cash flow'!D$67,'Cash flow CALC'!$1:$1,0),1,1,"Cash flow CALC")):INDIRECT(ADDRESS(A33*12+1,MATCH('Cash flow'!D$67,'Cash flow CALC'!$1:$1,0),1,1,"Cash flow CALC"))), "-") -> - | E33: =IF(A33<=ROUNDDOWN(MainForm!$C$11/12,0), SUM(INDIRECT(ADDRESS(($A$8-1)*12+2,MATCH('Cash flow'!E$67,'Cash flow CALC'!$1:$1,0),1,1,"Cash flow CALC")):INDIRECT(ADDRESS(A33*12+1,MATCH('Cash flow'!E$67,'Cash flow CALC'!$1:$1,0),1,1,"Cash flow CALC"))),"-") -> - | F33: =IF(A33<=ROUNDDOWN(MainForm!$C$11/12,0), SUM(INDIRECT(ADDRESS((A33-1)*12+2,MATCH('Cash flow'!F$67,'Cash flow CALC'!$1:$1,0),1,1,"Cash flow CALC")):INDIRECT(ADDRESS(A33*12+1,MATCH('Cash flow'!F$67,'Cash flow CALC'!$1:$1,0),1,1,"Cash flow CALC"))),"-") -> - | G33: =IF(A33<=ROUNDDOWN(MainForm!$C$11/12,0), SUM(INDIRECT(ADDRESS((A33-1)*12+2,MATCH('Cash flow'!G$67,'Cash flow CALC'!$1:$1,0),1,1,"Cash flow CALC")):INDIRECT(ADDRESS(A33*12+1,MATCH('Cash flow'!G$67,'Cash flow CALC'!$1:$1,0),1,1,"Cash flow CALC"))),"-") -> - | H33: =IF(A33<=ROUNDDOWN(MainForm!$C$11/12,0), SUM(INDIRECT(ADDRESS((A33-1)*12+2,MATCH('Cash flow'!H$67,'Cash flow CALC'!$1:$1,0),1,1,"Cash flow CALC")):INDIRECT(ADDRESS(A33*12+1,MATCH('Cash flow'!H$67,'Cash flow CALC'!$1:$1,0),1,1,"Cash flow CALC"))),"-") -> - | I33: =IF(A33<=ROUNDDOWN(MainForm!$C$11/12,0), SUM(INDIRECT(ADDRESS((A33-1)*12+2,MATCH('Cash flow'!I$67,'Cash flow CALC'!$1:$1,0),1,1,"Cash flow CALC")):INDIRECT(ADDRESS(A33*12+1,MATCH('Cash flow'!I$67,'Cash flow CALC'!$1:$1,0),1,1,"Cash flow CALC"))),"-") -> - | J33: =IF(A33<=ROUNDDOWN(MainForm!$C$11/12,0), SUM(INDIRECT(ADDRESS((A33-1)*12+2,MATCH('Cash flow'!J$67,'Cash flow CALC'!$1:$1,0),1,1,"Cash flow CALC")):INDIRECT(ADDRESS(A33*12+1,MATCH('Cash flow'!J$67,'Cash flow CALC'!$1:$1,0),1,1,"Cash flow CALC"))),"-") -> - | K33: =IF(A33<=ROUNDDOWN(MainForm!$C$11/12,0), INDIRECT(ADDRESS(A33*12+1,MATCH('Cash flow'!K$67,'Cash flow CALC'!$1:$1,0),1,1,"Cash flow CALC")),"-") -> - | L33: =IF(A33<=ROUNDDOWN(MainForm!$C$11/12,0), SUM(INDIRECT(ADDRESS((A33-1)*12+2,MATCH('Cash flow'!L$67,'Cash flow CALC'!$1:$1,0),1,1,"Cash flow CALC")):INDIRECT(ADDRESS(A33*12+1,MATCH('Cash flow'!L$67,'Cash flow CALC'!$1:$1,0),1,1,"Cash flow CALC"))),"-") -> - | M33: =IF(A33<=ROUNDDOWN(MainForm!$C$11/12,0), INDIRECT(ADDRESS(A33*12+1,MATCH('Cash flow'!M$67,'Cash flow CALC'!$1:$1,0),1,1,"Cash flow CALC")),"-") -> - | N33: =IF(A33<=ROUNDDOWN(MainForm!$C$11/12,0), SUM(INDIRECT(ADDRESS((A33-1)*12+2,MATCH('Cash flow'!N$67,'Cash flow CALC'!$1:$1,0),1,1,"Cash flow CALC")):INDIRECT(ADDRESS(A33*12+1,MATCH('Cash flow'!N$67,'Cash flow CALC'!$1:$1,0),1,1,"Cash flow CALC"))),"-") -> - | O33: =IF(A33<=ROUNDDOWN(MainForm!$C$11/12,0), SUM(INDIRECT(ADDRESS((A33-1)*12+2,MATCH('Cash flow'!O$67,'Cash flow CALC'!$1:$1,0),1,1,"Cash flow CALC")):INDIRECT(ADDRESS(A33*12+1,MATCH('Cash flow'!O$67,'Cash flow CALC'!$1:$1,0),1,1,"Cash flow CALC"))),"-") -> - | P33: =IF(A33<=ROUNDDOWN(MainForm!$C$11/12,0), INDIRECT(ADDRESS(A33*12+1,MATCH('Cash flow'!P$67,'Cash flow CALC'!$1:$1,0),1,1,"Cash flow CALC")),"-") -> - | Q33: =IF(A33<=ROUNDDOWN(MainForm!$C$11/12,0), INDIRECT(ADDRESS(A33*12+1,MATCH('Cash flow'!Q$67,'Cash flow CALC'!$1:$1,0),1,1,"Cash flow CALC")),"-") -> - | R33: =IF(A33<=ROUNDDOWN(MainForm!$C$11/12,0), VLOOKUP(A33,Premium_suppression,2,FALSE),"-") -> -
A34: 27 | B34: =IF(A34<=ROUNDDOWN(MainForm!$C$11/12,0), SUM(INDIRECT(ADDRESS((A34-1)*12+2,MATCH('Cash flow'!B$67,'Cash flow CALC'!$1:$1,0),1,1,"Cash flow CALC")):INDIRECT(ADDRESS(A34*12+1,MATCH('Cash flow'!B$67,'Cash flow CALC'!$1:$1,0),1,1,"Cash flow CALC"))), "-") -> - | C34: =IF(A34<=ROUNDDOWN(MainForm!$C$11/12,0), VLOOKUP(A34,Indexation_full,2,FALSE), "-") -> - | D34: =IF(A34<=ROUNDDOWN(MainForm!$C$11/12,0), SUM(INDIRECT(ADDRESS((A34-1)*12+2,MATCH('Cash flow'!D$67,'Cash flow CALC'!$1:$1,0),1,1,"Cash flow CALC")):INDIRECT(ADDRESS(A34*12+1,MATCH('Cash flow'!D$67,'Cash flow CALC'!$1:$1,0),1,1,"Cash flow CALC"))), "-") -> - | E34: =IF(A34<=ROUNDDOWN(MainForm!$C$11/12,0), SUM(INDIRECT(ADDRESS(($A$8-1)*12+2,MATCH('Cash flow'!E$67,'Cash flow CALC'!$1:$1,0),1,1,"Cash flow CALC")):INDIRECT(ADDRESS(A34*12+1,MATCH('Cash flow'!E$67,'Cash flow CALC'!$1:$1,0),1,1,"Cash flow CALC"))),"-") -> - | F34: =IF(A34<=ROUNDDOWN(MainForm!$C$11/12,0), SUM(INDIRECT(ADDRESS((A34-1)*12+2,MATCH('Cash flow'!F$67,'Cash flow CALC'!$1:$1,0),1,1,"Cash flow CALC")):INDIRECT(ADDRESS(A34*12+1,MATCH('Cash flow'!F$67,'Cash flow CALC'!$1:$1,0),1,1,"Cash flow CALC"))),"-") -> - | G34: =IF(A34<=ROUNDDOWN(MainForm!$C$11/12,0), SUM(INDIRECT(ADDRESS((A34-1)*12+2,MATCH('Cash flow'!G$67,'Cash flow CALC'!$1:$1,0),1,1,"Cash flow CALC")):INDIRECT(ADDRESS(A34*12+1,MATCH('Cash flow'!G$67,'Cash flow CALC'!$1:$1,0),1,1,"Cash flow CALC"))),"-") -> - | H34: =IF(A34<=ROUNDDOWN(MainForm!$C$11/12,0), SUM(INDIRECT(ADDRESS((A34-1)*12+2,MATCH('Cash flow'!H$67,'Cash flow CALC'!$1:$1,0),1,1,"Cash flow CALC")):INDIRECT(ADDRESS(A34*12+1,MATCH('Cash flow'!H$67,'Cash flow CALC'!$1:$1,0),1,1,"Cash flow CALC"))),"-") -> - | I34: =IF(A34<=ROUNDDOWN(MainForm!$C$11/12,0), SUM(INDIRECT(ADDRESS((A34-1)*12+2,MATCH('Cash flow'!I$67,'Cash flow CALC'!$1:$1,0),1,1,"Cash flow CALC")):INDIRECT(ADDRESS(A34*12+1,MATCH('Cash flow'!I$67,'Cash flow CALC'!$1:$1,0),1,1,"Cash flow CALC"))),"-") -> - | J34: =IF(A34<=ROUNDDOWN(MainForm!$C$11/12,0), SUM(INDIRECT(ADDRESS((A34-1)*12+2,MATCH('Cash flow'!J$67,'Cash flow CALC'!$1:$1,0),1,1,"Cash flow CALC")):INDIRECT(ADDRESS(A34*12+1,MATCH('Cash flow'!J$67,'Cash flow CALC'!$1:$1,0),1,1,"Cash flow CALC"))),"-") -> - | K34: =IF(A34<=ROUNDDOWN(MainForm!$C$11/12,0), INDIRECT(ADDRESS(A34*12+1,MATCH('Cash flow'!K$67,'Cash flow CALC'!$1:$1,0),1,1,"Cash flow CALC")),"-") -> - | L34: =IF(A34<=ROUNDDOWN(MainForm!$C$11/12,0), SUM(INDIRECT(ADDRESS((A34-1)*12+2,MATCH('Cash flow'!L$67,'Cash flow CALC'!$1:$1,0),1,1,"Cash flow CALC")):INDIRECT(ADDRESS(A34*12+1,MATCH('Cash flow'!L$67,'Cash flow CALC'!$1:$1,0),1,1,"Cash flow CALC"))),"-") -> - | M34: =IF(A34<=ROUNDDOWN(MainForm!$C$11/12,0), INDIRECT(ADDRESS(A34*12+1,MATCH('Cash flow'!M$67,'Cash flow CALC'!$1:$1,0),1,1,"Cash flow CALC")),"-") -> - | N34: =IF(A34<=ROUNDDOWN(MainForm!$C$11/12,0), SUM(INDIRECT(ADDRESS((A34-1)*12+2,MATCH('Cash flow'!N$67,'Cash flow CALC'!$1:$1,0),1,1,"Cash flow CALC")):INDIRECT(ADDRESS(A34*12+1,MATCH('Cash flow'!N$67,'Cash flow CALC'!$1:$1,0),1,1,"Cash flow CALC"))),"-") -> - | O34: =IF(A34<=ROUNDDOWN(MainForm!$C$11/12,0), SUM(INDIRECT(ADDRESS((A34-1)*12+2,MATCH('Cash flow'!O$67,'Cash flow CALC'!$1:$1,0),1,1,"Cash flow CALC")):INDIRECT(ADDRESS(A34*12+1,MATCH('Cash flow'!O$67,'Cash flow CALC'!$1:$1,0),1,1,"Cash flow CALC"))),"-") -> - | P34: =IF(A34<=ROUNDDOWN(MainForm!$C$11/12,0), INDIRECT(ADDRESS(A34*12+1,MATCH('Cash flow'!P$67,'Cash flow CALC'!$1:$1,0),1,1,"Cash flow CALC")),"-") -> - | Q34: =IF(A34<=ROUNDDOWN(MainForm!$C$11/12,0), INDIRECT(ADDRESS(A34*12+1,MATCH('Cash flow'!Q$67,'Cash flow CALC'!$1:$1,0),1,1,"Cash flow CALC")),"-") -> - | R34: =IF(A34<=ROUNDDOWN(MainForm!$C$11/12,0), VLOOKUP(A34,Premium_suppression,2,FALSE),"-") -> -
A35: 28 | B35: =IF(A35<=ROUNDDOWN(MainForm!$C$11/12,0), SUM(INDIRECT(ADDRESS((A35-1)*12+2,MATCH('Cash flow'!B$67,'Cash flow CALC'!$1:$1,0),1,1,"Cash flow CALC")):INDIRECT(ADDRESS(A35*12+1,MATCH('Cash flow'!B$67,'Cash flow CALC'!$1:$1,0),1,1,"Cash flow CALC"))), "-") -> - | C35: =IF(A35<=ROUNDDOWN(MainForm!$C$11/12,0), VLOOKUP(A35,Indexation_full,2,FALSE), "-") -> - | D35: =IF(A35<=ROUNDDOWN(MainForm!$C$11/12,0), SUM(INDIRECT(ADDRESS((A35-1)*12+2,MATCH('Cash flow'!D$67,'Cash flow CALC'!$1:$1,0),1,1,"Cash flow CALC")):INDIRECT(ADDRESS(A35*12+1,MATCH('Cash flow'!D$67,'Cash flow CALC'!$1:$1,0),1,1,"Cash flow CALC"))), "-") -> - | E35: =IF(A35<=ROUNDDOWN(MainForm!$C$11/12,0), SUM(INDIRECT(ADDRESS(($A$8-1)*12+2,MATCH('Cash flow'!E$67,'Cash flow CALC'!$1:$1,0),1,1,"Cash flow CALC")):INDIRECT(ADDRESS(A35*12+1,MATCH('Cash flow'!E$67,'Cash flow CALC'!$1:$1,0),1,1,"Cash flow CALC"))),"-") -> - | F35: =IF(A35<=ROUNDDOWN(MainForm!$C$11/12,0), SUM(INDIRECT(ADDRESS((A35-1)*12+2,MATCH('Cash flow'!F$67,'Cash flow CALC'!$1:$1,0),1,1,"Cash flow CALC")):INDIRECT(ADDRESS(A35*12+1,MATCH('Cash flow'!F$67,'Cash flow CALC'!$1:$1,0),1,1,"Cash flow CALC"))),"-") -> - | G35: =IF(A35<=ROUNDDOWN(MainForm!$C$11/12,0), SUM(INDIRECT(ADDRESS((A35-1)*12+2,MATCH('Cash flow'!G$67,'Cash flow CALC'!$1:$1,0),1,1,"Cash flow CALC")):INDIRECT(ADDRESS(A35*12+1,MATCH('Cash flow'!G$67,'Cash flow CALC'!$1:$1,0),1,1,"Cash flow CALC"))),"-") -> - | H35: =IF(A35<=ROUNDDOWN(MainForm!$C$11/12,0), SUM(INDIRECT(ADDRESS((A35-1)*12+2,MATCH('Cash flow'!H$67,'Cash flow CALC'!$1:$1,0),1,1,"Cash flow CALC")):INDIRECT(ADDRESS(A35*12+1,MATCH('Cash flow'!H$67,'Cash flow CALC'!$1:$1,0),1,1,"Cash flow CALC"))),"-") -> - | I35: =IF(A35<=ROUNDDOWN(MainForm!$C$11/12,0), SUM(INDIRECT(ADDRESS((A35-1)*12+2,MATCH('Cash flow'!I$67,'Cash flow CALC'!$1:$1,0),1,1,"Cash flow CALC")):INDIRECT(ADDRESS(A35*12+1,MATCH('Cash flow'!I$67,'Cash flow CALC'!$1:$1,0),1,1,"Cash flow CALC"))),"-") -> - | J35: =IF(A35<=ROUNDDOWN(MainForm!$C$11/12,0), SUM(INDIRECT(ADDRESS((A35-1)*12+2,MATCH('Cash flow'!J$67,'Cash flow CALC'!$1:$1,0),1,1,"Cash flow CALC")):INDIRECT(ADDRESS(A35*12+1,MATCH('Cash flow'!J$67,'Cash flow CALC'!$1:$1,0),1,1,"Cash flow CALC"))),"-") -> - | K35: =IF(A35<=ROUNDDOWN(MainForm!$C$11/12,0), INDIRECT(ADDRESS(A35*12+1,MATCH('Cash flow'!K$67,'Cash flow CALC'!$1:$1,0),1,1,"Cash flow CALC")),"-") -> - | L35: =IF(A35<=ROUNDDOWN(MainForm!$C$11/12,0), SUM(INDIRECT(ADDRESS((A35-1)*12+2,MATCH('Cash flow'!L$67,'Cash flow CALC'!$1:$1,0),1,1,"Cash flow CALC")):INDIRECT(ADDRESS(A35*12+1,MATCH('Cash flow'!L$67,'Cash flow CALC'!$1:$1,0),1,1,"Cash flow CALC"))),"-") -> - | M35: =IF(A35<=ROUNDDOWN(MainForm!$C$11/12,0), INDIRECT(ADDRESS(A35*12+1,MATCH('Cash flow'!M$67,'Cash flow CALC'!$1:$1,0),1,1,"Cash flow CALC")),"-") -> - | N35: =IF(A35<=ROUNDDOWN(MainForm!$C$11/12,0), SUM(INDIRECT(ADDRESS((A35-1)*12+2,MATCH('Cash flow'!N$67,'Cash flow CALC'!$1:$1,0),1,1,"Cash flow CALC")):INDIRECT(ADDRESS(A35*12+1,MATCH('Cash flow'!N$67,'Cash flow CALC'!$1:$1,0),1,1,"Cash flow CALC"))),"-") -> - | O35: =IF(A35<=ROUNDDOWN(MainForm!$C$11/12,0), SUM(INDIRECT(ADDRESS((A35-1)*12+2,MATCH('Cash flow'!O$67,'Cash flow CALC'!$1:$1,0),1,1,"Cash flow CALC")):INDIRECT(ADDRESS(A35*12+1,MATCH('Cash flow'!O$67,'Cash flow CALC'!$1:$1,0),1,1,"Cash flow CALC"))),"-") -> - | P35: =IF(A35<=ROUNDDOWN(MainForm!$C$11/12,0), INDIRECT(ADDRESS(A35*12+1,MATCH('Cash flow'!P$67,'Cash flow CALC'!$1:$1,0),1,1,"Cash flow CALC")),"-") -> - | Q35: =IF(A35<=ROUNDDOWN(MainForm!$C$11/12,0), INDIRECT(ADDRESS(A35*12+1,MATCH('Cash flow'!Q$67,'Cash flow CALC'!$1:$1,0),1,1,"Cash flow CALC")),"-") -> - | R35: =IF(A35<=ROUNDDOWN(MainForm!$C$11/12,0), VLOOKUP(A35,Premium_suppression,2,FALSE),"-") -> -
A36: 29 | B36: =IF(A36<=ROUNDDOWN(MainForm!$C$11/12,0), SUM(INDIRECT(ADDRESS((A36-1)*12+2,MATCH('Cash flow'!B$67,'Cash flow CALC'!$1:$1,0),1,1,"Cash flow CALC")):INDIRECT(ADDRESS(A36*12+1,MATCH('Cash flow'!B$67,'Cash flow CALC'!$1:$1,0),1,1,"Cash flow CALC"))), "-") -> - | C36: =IF(A36<=ROUNDDOWN(MainForm!$C$11/12,0), VLOOKUP(A36,Indexation_full,2,FALSE), "-") -> - | D36: =IF(A36<=ROUNDDOWN(MainForm!$C$11/12,0), SUM(INDIRECT(ADDRESS((A36-1)*12+2,MATCH('Cash flow'!D$67,'Cash flow CALC'!$1:$1,0),1,1,"Cash flow CALC")):INDIRECT(ADDRESS(A36*12+1,MATCH('Cash flow'!D$67,'Cash flow CALC'!$1:$1,0),1,1,"Cash flow CALC"))), "-") -> - | E36: =IF(A36<=ROUNDDOWN(MainForm!$C$11/12,0), SUM(INDIRECT(ADDRESS(($A$8-1)*12+2,MATCH('Cash flow'!E$67,'Cash flow CALC'!$1:$1,0),1,1,"Cash flow CALC")):INDIRECT(ADDRESS(A36*12+1,MATCH('Cash flow'!E$67,'Cash flow CALC'!$1:$1,0),1,1,"Cash flow CALC"))),"-") -> - | F36: =IF(A36<=ROUNDDOWN(MainForm!$C$11/12,0), SUM(INDIRECT(ADDRESS((A36-1)*12+2,MATCH('Cash flow'!F$67,'Cash flow CALC'!$1:$1,0),1,1,"Cash flow CALC")):INDIRECT(ADDRESS(A36*12+1,MATCH('Cash flow'!F$67,'Cash flow CALC'!$1:$1,0),1,1,"Cash flow CALC"))),"-") -> - | G36: =IF(A36<=ROUNDDOWN(MainForm!$C$11/12,0), SUM(INDIRECT(ADDRESS((A36-1)*12+2,MATCH('Cash flow'!G$67,'Cash flow CALC'!$1:$1,0),1,1,"Cash flow CALC")):INDIRECT(ADDRESS(A36*12+1,MATCH('Cash flow'!G$67,'Cash flow CALC'!$1:$1,0),1,1,"Cash flow CALC"))),"-") -> - | H36: =IF(A36<=ROUNDDOWN(MainForm!$C$11/12,0), SUM(INDIRECT(ADDRESS((A36-1)*12+2,MATCH('Cash flow'!H$67,'Cash flow CALC'!$1:$1,0),1,1,"Cash flow CALC")):INDIRECT(ADDRESS(A36*12+1,MATCH('Cash flow'!H$67,'Cash flow CALC'!$1:$1,0),1,1,"Cash flow CALC"))),"-") -> - | I36: =IF(A36<=ROUNDDOWN(MainForm!$C$11/12,0), SUM(INDIRECT(ADDRESS((A36-1)*12+2,MATCH('Cash flow'!I$67,'Cash flow CALC'!$1:$1,0),1,1,"Cash flow CALC")):INDIRECT(ADDRESS(A36*12+1,MATCH('Cash flow'!I$67,'Cash flow CALC'!$1:$1,0),1,1,"Cash flow CALC"))),"-") -> - | J36: =IF(A36<=ROUNDDOWN(MainForm!$C$11/12,0), SUM(INDIRECT(ADDRESS((A36-1)*12+2,MATCH('Cash flow'!J$67,'Cash flow CALC'!$1:$1,0),1,1,"Cash flow CALC")):INDIRECT(ADDRESS(A36*12+1,MATCH('Cash flow'!J$67,'Cash flow CALC'!$1:$1,0),1,1,"Cash flow CALC"))),"-") -> - | K36: =IF(A36<=ROUNDDOWN(MainForm!$C$11/12,0), INDIRECT(ADDRESS(A36*12+1,MATCH('Cash flow'!K$67,'Cash flow CALC'!$1:$1,0),1,1,"Cash flow CALC")),"-") -> - | L36: =IF(A36<=ROUNDDOWN(MainForm!$C$11/12,0), SUM(INDIRECT(ADDRESS((A36-1)*12+2,MATCH('Cash flow'!L$67,'Cash flow CALC'!$1:$1,0),1,1,"Cash flow CALC")):INDIRECT(ADDRESS(A36*12+1,MATCH('Cash flow'!L$67,'Cash flow CALC'!$1:$1,0),1,1,"Cash flow CALC"))),"-") -> - | M36: =IF(A36<=ROUNDDOWN(MainForm!$C$11/12,0), INDIRECT(ADDRESS(A36*12+1,MATCH('Cash flow'!M$67,'Cash flow CALC'!$1:$1,0),1,1,"Cash flow CALC")),"-") -> - | N36: =IF(A36<=ROUNDDOWN(MainForm!$C$11/12,0), SUM(INDIRECT(ADDRESS((A36-1)*12+2,MATCH('Cash flow'!N$67,'Cash flow CALC'!$1:$1,0),1,1,"Cash flow CALC")):INDIRECT(ADDRESS(A36*12+1,MATCH('Cash flow'!N$67,'Cash flow CALC'!$1:$1,0),1,1,"Cash flow CALC"))),"-") -> - | O36: =IF(A36<=ROUNDDOWN(MainForm!$C$11/12,0), SUM(INDIRECT(ADDRESS((A36-1)*12+2,MATCH('Cash flow'!O$67,'Cash flow CALC'!$1:$1,0),1,1,"Cash flow CALC")):INDIRECT(ADDRESS(A36*12+1,MATCH('Cash flow'!O$67,'Cash flow CALC'!$1:$1,0),1,1,"Cash flow CALC"))),"-") -> - | P36: =IF(A36<=ROUNDDOWN(MainForm!$C$11/12,0), INDIRECT(ADDRESS(A36*12+1,MATCH('Cash flow'!P$67,'Cash flow CALC'!$1:$1,0),1,1,"Cash flow CALC")),"-") -> - | Q36: =IF(A36<=ROUNDDOWN(MainForm!$C$11/12,0), INDIRECT(ADDRESS(A36*12+1,MATCH('Cash flow'!Q$67,'Cash flow CALC'!$1:$1,0),1,1,"Cash flow CALC")),"-") -> - | R36: =IF(A36<=ROUNDDOWN(MainForm!$C$11/12,0), VLOOKUP(A36,Premium_suppression,2,FALSE),"-") -> -
A37: 30 | B37: =IF(A37<=ROUNDDOWN(MainForm!$C$11/12,0), SUM(INDIRECT(ADDRESS((A37-1)*12+2,MATCH('Cash flow'!B$67,'Cash flow CALC'!$1:$1,0),1,1,"Cash flow CALC")):INDIRECT(ADDRESS(A37*12+1,MATCH('Cash flow'!B$67,'Cash flow CALC'!$1:$1,0),1,1,"Cash flow CALC"))), "-") -> - | C37: =IF(A37<=ROUNDDOWN(MainForm!$C$11/12,0), VLOOKUP(A37,Indexation_full,2,FALSE), "-") -> - | D37: =IF(A37<=ROUNDDOWN(MainForm!$C$11/12,0), SUM(INDIRECT(ADDRESS((A37-1)*12+2,MATCH('Cash flow'!D$67,'Cash flow CALC'!$1:$1,0),1,1,"Cash flow CALC")):INDIRECT(ADDRESS(A37*12+1,MATCH('Cash flow'!D$67,'Cash flow CALC'!$1:$1,0),1,1,"Cash flow CALC"))), "-") -> - | E37: =IF(A37<=ROUNDDOWN(MainForm!$C$11/12,0), SUM(INDIRECT(ADDRESS(($A$8-1)*12+2,MATCH('Cash flow'!E$67,'Cash flow CALC'!$1:$1,0),1,1,"Cash flow CALC")):INDIRECT(ADDRESS(A37*12+1,MATCH('Cash flow'!E$67,'Cash flow CALC'!$1:$1,0),1,1,"Cash flow CALC"))),"-") -> - | F37: =IF(A37<=ROUNDDOWN(MainForm!$C$11/12,0), SUM(INDIRECT(ADDRESS((A37-1)*12+2,MATCH('Cash flow'!F$67,'Cash flow CALC'!$1:$1,0),1,1,"Cash flow CALC")):INDIRECT(ADDRESS(A37*12+1,MATCH('Cash flow'!F$67,'Cash flow CALC'!$1:$1,0),1,1,"Cash flow CALC"))),"-") -> - | G37: =IF(A37<=ROUNDDOWN(MainForm!$C$11/12,0), SUM(INDIRECT(ADDRESS((A37-1)*12+2,MATCH('Cash flow'!G$67,'Cash flow CALC'!$1:$1,0),1,1,"Cash flow CALC")):INDIRECT(ADDRESS(A37*12+1,MATCH('Cash flow'!G$67,'Cash flow CALC'!$1:$1,0),1,1,"Cash flow CALC"))),"-") -> - | H37: =IF(A37<=ROUNDDOWN(MainForm!$C$11/12,0), SUM(INDIRECT(ADDRESS((A37-1)*12+2,MATCH('Cash flow'!H$67,'Cash flow CALC'!$1:$1,0),1,1,"Cash flow CALC")):INDIRECT(ADDRESS(A37*12+1,MATCH('Cash flow'!H$67,'Cash flow CALC'!$1:$1,0),1,1,"Cash flow CALC"))),"-") -> - | I37: =IF(A37<=ROUNDDOWN(MainForm!$C$11/12,0), SUM(INDIRECT(ADDRESS((A37-1)*12+2,MATCH('Cash flow'!I$67,'Cash flow CALC'!$1:$1,0),1,1,"Cash flow CALC")):INDIRECT(ADDRESS(A37*12+1,MATCH('Cash flow'!I$67,'Cash flow CALC'!$1:$1,0),1,1,"Cash flow CALC"))),"-") -> - | J37: =IF(A37<=ROUNDDOWN(MainForm!$C$11/12,0), SUM(INDIRECT(ADDRESS((A37-1)*12+2,MATCH('Cash flow'!J$67,'Cash flow CALC'!$1:$1,0),1,1,"Cash flow CALC")):INDIRECT(ADDRESS(A37*12+1,MATCH('Cash flow'!J$67,'Cash flow CALC'!$1:$1,0),1,1,"Cash flow CALC"))),"-") -> - | K37: =IF(A37<=ROUNDDOWN(MainForm!$C$11/12,0), INDIRECT(ADDRESS(A37*12+1,MATCH('Cash flow'!K$67,'Cash flow CALC'!$1:$1,0),1,1,"Cash flow CALC")),"-") -> - | L37: =IF(A37<=ROUNDDOWN(MainForm!$C$11/12,0), SUM(INDIRECT(ADDRESS((A37-1)*12+2,MATCH('Cash flow'!L$67,'Cash flow CALC'!$1:$1,0),1,1,"Cash flow CALC")):INDIRECT(ADDRESS(A37*12+1,MATCH('Cash flow'!L$67,'Cash flow CALC'!$1:$1,0),1,1,"Cash flow CALC"))),"-") -> - | M37: =IF(A37<=ROUNDDOWN(MainForm!$C$11/12,0), INDIRECT(ADDRESS(A37*12+1,MATCH('Cash flow'!M$67,'Cash flow CALC'!$1:$1,0),1,1,"Cash flow CALC")),"-") -> - | N37: =IF(A37<=ROUNDDOWN(MainForm!$C$11/12,0), SUM(INDIRECT(ADDRESS((A37-1)*12+2,MATCH('Cash flow'!N$67,'Cash flow CALC'!$1:$1,0),1,1,"Cash flow CALC")):INDIRECT(ADDRESS(A37*12+1,MATCH('Cash flow'!N$67,'Cash flow CALC'!$1:$1,0),1,1,"Cash flow CALC"))),"-") -> - | O37: =IF(A37<=ROUNDDOWN(MainForm!$C$11/12,0), SUM(INDIRECT(ADDRESS((A37-1)*12+2,MATCH('Cash flow'!O$67,'Cash flow CALC'!$1:$1,0),1,1,"Cash flow CALC")):INDIRECT(ADDRESS(A37*12+1,MATCH('Cash flow'!O$67,'Cash flow CALC'!$1:$1,0),1,1,"Cash flow CALC"))),"-") -> - | P37: =IF(A37<=ROUNDDOWN(MainForm!$C$11/12,0), INDIRECT(ADDRESS(A37*12+1,MATCH('Cash flow'!P$67,'Cash flow CALC'!$1:$1,0),1,1,"Cash flow CALC")),"-") -> - | Q37: =IF(A37<=ROUNDDOWN(MainForm!$C$11/12,0), INDIRECT(ADDRESS(A37*12+1,MATCH('Cash flow'!Q$67,'Cash flow CALC'!$1:$1,0),1,1,"Cash flow CALC")),"-") -> - | R37: =IF(A37<=ROUNDDOWN(MainForm!$C$11/12,0), VLOOKUP(A37,Premium_suppression,2,FALSE),"-") -> -
A38: 31 | B38: =IF(A38<=ROUNDDOWN(MainForm!$C$11/12,0), SUM(INDIRECT(ADDRESS((A38-1)*12+2,MATCH('Cash flow'!B$67,'Cash flow CALC'!$1:$1,0),1,1,"Cash flow CALC")):INDIRECT(ADDRESS(A38*12+1,MATCH('Cash flow'!B$67,'Cash flow CALC'!$1:$1,0),1,1,"Cash flow CALC"))), "-") -> - | C38: =IF(A38<=ROUNDDOWN(MainForm!$C$11/12,0), VLOOKUP(A38,Indexation_full,2,FALSE), "-") -> - | D38: =IF(A38<=ROUNDDOWN(MainForm!$C$11/12,0), SUM(INDIRECT(ADDRESS((A38-1)*12+2,MATCH('Cash flow'!D$67,'Cash flow CALC'!$1:$1,0),1,1,"Cash flow CALC")):INDIRECT(ADDRESS(A38*12+1,MATCH('Cash flow'!D$67,'Cash flow CALC'!$1:$1,0),1,1,"Cash flow CALC"))), "-") -> - | E38: =IF(A38<=ROUNDDOWN(MainForm!$C$11/12,0), SUM(INDIRECT(ADDRESS(($A$8-1)*12+2,MATCH('Cash flow'!E$67,'Cash flow CALC'!$1:$1,0),1,1,"Cash flow CALC")):INDIRECT(ADDRESS(A38*12+1,MATCH('Cash flow'!E$67,'Cash flow CALC'!$1:$1,0),1,1,"Cash flow CALC"))),"-") -> - | F38: =IF(A38<=ROUNDDOWN(MainForm!$C$11/12,0), SUM(INDIRECT(ADDRESS((A38-1)*12+2,MATCH('Cash flow'!F$67,'Cash flow CALC'!$1:$1,0),1,1,"Cash flow CALC")):INDIRECT(ADDRESS(A38*12+1,MATCH('Cash flow'!F$67,'Cash flow CALC'!$1:$1,0),1,1,"Cash flow CALC"))),"-") -> - | G38: =IF(A38<=ROUNDDOWN(MainForm!$C$11/12,0), SUM(INDIRECT(ADDRESS((A38-1)*12+2,MATCH('Cash flow'!G$67,'Cash flow CALC'!$1:$1,0),1,1,"Cash flow CALC")):INDIRECT(ADDRESS(A38*12+1,MATCH('Cash flow'!G$67,'Cash flow CALC'!$1:$1,0),1,1,"Cash flow CALC"))),"-") -> - | H38: =IF(A38<=ROUNDDOWN(MainForm!$C$11/12,0), SUM(INDIRECT(ADDRESS((A38-1)*12+2,MATCH('Cash flow'!H$67,'Cash flow CALC'!$1:$1,0),1,1,"Cash flow CALC")):INDIRECT(ADDRESS(A38*12+1,MATCH('Cash flow'!H$67,'Cash flow CALC'!$1:$1,0),1,1,"Cash flow CALC"))),"-") -> - | I38: =IF(A38<=ROUNDDOWN(MainForm!$C$11/12,0), SUM(INDIRECT(ADDRESS((A38-1)*12+2,MATCH('Cash flow'!I$67,'Cash flow CALC'!$1:$1,0),1,1,"Cash flow CALC")):INDIRECT(ADDRESS(A38*12+1,MATCH('Cash flow'!I$67,'Cash flow CALC'!$1:$1,0),1,1,"Cash flow CALC"))),"-") -> - | J38: =IF(A38<=ROUNDDOWN(MainForm!$C$11/12,0), SUM(INDIRECT(ADDRESS((A38-1)*12+2,MATCH('Cash flow'!J$67,'Cash flow CALC'!$1:$1,0),1,1,"Cash flow CALC")):INDIRECT(ADDRESS(A38*12+1,MATCH('Cash flow'!J$67,'Cash flow CALC'!$1:$1,0),1,1,"Cash flow CALC"))),"-") -> - | K38: =IF(A38<=ROUNDDOWN(MainForm!$C$11/12,0), INDIRECT(ADDRESS(A38*12+1,MATCH('Cash flow'!K$67,'Cash flow CALC'!$1:$1,0),1,1,"Cash flow CALC")),"-") -> - | L38: =IF(A38<=ROUNDDOWN(MainForm!$C$11/12,0), SUM(INDIRECT(ADDRESS((A38-1)*12+2,MATCH('Cash flow'!L$67,'Cash flow CALC'!$1:$1,0),1,1,"Cash flow CALC")):INDIRECT(ADDRESS(A38*12+1,MATCH('Cash flow'!L$67,'Cash flow CALC'!$1:$1,0),1,1,"Cash flow CALC"))),"-") -> - | M38: =IF(A38<=ROUNDDOWN(MainForm!$C$11/12,0), INDIRECT(ADDRESS(A38*12+1,MATCH('Cash flow'!M$67,'Cash flow CALC'!$1:$1,0),1,1,"Cash flow CALC")),"-") -> - | N38: =IF(A38<=ROUNDDOWN(MainForm!$C$11/12,0), SUM(INDIRECT(ADDRESS((A38-1)*12+2,MATCH('Cash flow'!N$67,'Cash flow CALC'!$1:$1,0),1,1,"Cash flow CALC")):INDIRECT(ADDRESS(A38*12+1,MATCH('Cash flow'!N$67,'Cash flow CALC'!$1:$1,0),1,1,"Cash flow CALC"))),"-") -> - | O38: =IF(A38<=ROUNDDOWN(MainForm!$C$11/12,0), SUM(INDIRECT(ADDRESS((A38-1)*12+2,MATCH('Cash flow'!O$67,'Cash flow CALC'!$1:$1,0),1,1,"Cash flow CALC")):INDIRECT(ADDRESS(A38*12+1,MATCH('Cash flow'!O$67,'Cash flow CALC'!$1:$1,0),1,1,"Cash flow CALC"))),"-") -> - | P38: =IF(A38<=ROUNDDOWN(MainForm!$C$11/12,0), INDIRECT(ADDRESS(A38*12+1,MATCH('Cash flow'!P$67,'Cash flow CALC'!$1:$1,0),1,1,"Cash flow CALC")),"-") -> - | Q38: =IF(A38<=ROUNDDOWN(MainForm!$C$11/12,0), INDIRECT(ADDRESS(A38*12+1,MATCH('Cash flow'!Q$67,'Cash flow CALC'!$1:$1,0),1,1,"Cash flow CALC")),"-") -> - | R38: =IF(A38<=ROUNDDOWN(MainForm!$C$11/12,0), VLOOKUP(A38,Premium_suppression,2,FALSE),"-") -> -
A39: 32 | B39: =IF(A39<=ROUNDDOWN(MainForm!$C$11/12,0), SUM(INDIRECT(ADDRESS((A39-1)*12+2,MATCH('Cash flow'!B$67,'Cash flow CALC'!$1:$1,0),1,1,"Cash flow CALC")):INDIRECT(ADDRESS(A39*12+1,MATCH('Cash flow'!B$67,'Cash flow CALC'!$1:$1,0),1,1,"Cash flow CALC"))), "-") -> - | C39: =IF(A39<=ROUNDDOWN(MainForm!$C$11/12,0), VLOOKUP(A39,Indexation_full,2,FALSE), "-") -> - | D39: =IF(A39<=ROUNDDOWN(MainForm!$C$11/12,0), SUM(INDIRECT(ADDRESS((A39-1)*12+2,MATCH('Cash flow'!D$67,'Cash flow CALC'!$1:$1,0),1,1,"Cash flow CALC")):INDIRECT(ADDRESS(A39*12+1,MATCH('Cash flow'!D$67,'Cash flow CALC'!$1:$1,0),1,1,"Cash flow CALC"))), "-") -> - | E39: =IF(A39<=ROUNDDOWN(MainForm!$C$11/12,0), SUM(INDIRECT(ADDRESS(($A$8-1)*12+2,MATCH('Cash flow'!E$67,'Cash flow CALC'!$1:$1,0),1,1,"Cash flow CALC")):INDIRECT(ADDRESS(A39*12+1,MATCH('Cash flow'!E$67,'Cash flow CALC'!$1:$1,0),1,1,"Cash flow CALC"))),"-") -> - | F39: =IF(A39<=ROUNDDOWN(MainForm!$C$11/12,0), SUM(INDIRECT(ADDRESS((A39-1)*12+2,MATCH('Cash flow'!F$67,'Cash flow CALC'!$1:$1,0),1,1,"Cash flow CALC")):INDIRECT(ADDRESS(A39*12+1,MATCH('Cash flow'!F$67,'Cash flow CALC'!$1:$1,0),1,1,"Cash flow CALC"))),"-") -> - | G39: =IF(A39<=ROUNDDOWN(MainForm!$C$11/12,0), SUM(INDIRECT(ADDRESS((A39-1)*12+2,MATCH('Cash flow'!G$67,'Cash flow CALC'!$1:$1,0),1,1,"Cash flow CALC")):INDIRECT(ADDRESS(A39*12+1,MATCH('Cash flow'!G$67,'Cash flow CALC'!$1:$1,0),1,1,"Cash flow CALC"))),"-") -> - | H39: =IF(A39<=ROUNDDOWN(MainForm!$C$11/12,0), SUM(INDIRECT(ADDRESS((A39-1)*12+2,MATCH('Cash flow'!H$67,'Cash flow CALC'!$1:$1,0),1,1,"Cash flow CALC")):INDIRECT(ADDRESS(A39*12+1,MATCH('Cash flow'!H$67,'Cash flow CALC'!$1:$1,0),1,1,"Cash flow CALC"))),"-") -> - | I39: =IF(A39<=ROUNDDOWN(MainForm!$C$11/12,0), SUM(INDIRECT(ADDRESS((A39-1)*12+2,MATCH('Cash flow'!I$67,'Cash flow CALC'!$1:$1,0),1,1,"Cash flow CALC")):INDIRECT(ADDRESS(A39*12+1,MATCH('Cash flow'!I$67,'Cash flow CALC'!$1:$1,0),1,1,"Cash flow CALC"))),"-") -> - | J39: =IF(A39<=ROUNDDOWN(MainForm!$C$11/12,0), SUM(INDIRECT(ADDRESS((A39-1)*12+2,MATCH('Cash flow'!J$67,'Cash flow CALC'!$1:$1,0),1,1,"Cash flow CALC")):INDIRECT(ADDRESS(A39*12+1,MATCH('Cash flow'!J$67,'Cash flow CALC'!$1:$1,0),1,1,"Cash flow CALC"))),"-") -> - | K39: =IF(A39<=ROUNDDOWN(MainForm!$C$11/12,0), INDIRECT(ADDRESS(A39*12+1,MATCH('Cash flow'!K$67,'Cash flow CALC'!$1:$1,0),1,1,"Cash flow CALC")),"-") -> - | L39: =IF(A39<=ROUNDDOWN(MainForm!$C$11/12,0), SUM(INDIRECT(ADDRESS((A39-1)*12+2,MATCH('Cash flow'!L$67,'Cash flow CALC'!$1:$1,0),1,1,"Cash flow CALC")):INDIRECT(ADDRESS(A39*12+1,MATCH('Cash flow'!L$67,'Cash flow CALC'!$1:$1,0),1,1,"Cash flow CALC"))),"-") -> - | M39: =IF(A39<=ROUNDDOWN(MainForm!$C$11/12,0), INDIRECT(ADDRESS(A39*12+1,MATCH('Cash flow'!M$67,'Cash flow CALC'!$1:$1,0),1,1,"Cash flow CALC")),"-") -> - | N39: =IF(A39<=ROUNDDOWN(MainForm!$C$11/12,0), SUM(INDIRECT(ADDRESS((A39-1)*12+2,MATCH('Cash flow'!N$67,'Cash flow CALC'!$1:$1,0),1,1,"Cash flow CALC")):INDIRECT(ADDRESS(A39*12+1,MATCH('Cash flow'!N$67,'Cash flow CALC'!$1:$1,0),1,1,"Cash flow CALC"))),"-") -> - | O39: =IF(A39<=ROUNDDOWN(MainForm!$C$11/12,0), SUM(INDIRECT(ADDRESS((A39-1)*12+2,MATCH('Cash flow'!O$67,'Cash flow CALC'!$1:$1,0),1,1,"Cash flow CALC")):INDIRECT(ADDRESS(A39*12+1,MATCH('Cash flow'!O$67,'Cash flow CALC'!$1:$1,0),1,1,"Cash flow CALC"))),"-") -> - | P39: =IF(A39<=ROUNDDOWN(MainForm!$C$11/12,0), INDIRECT(ADDRESS(A39*12+1,MATCH('Cash flow'!P$67,'Cash flow CALC'!$1:$1,0),1,1,"Cash flow CALC")),"-") -> - | Q39: =IF(A39<=ROUNDDOWN(MainForm!$C$11/12,0), INDIRECT(ADDRESS(A39*12+1,MATCH('Cash flow'!Q$67,'Cash flow CALC'!$1:$1,0),1,1,"Cash flow CALC")),"-") -> - | R39: =IF(A39<=ROUNDDOWN(MainForm!$C$11/12,0), VLOOKUP(A39,Premium_suppression,2,FALSE),"-") -> -
A40: 33 | B40: =IF(A40<=ROUNDDOWN(MainForm!$C$11/12,0), SUM(INDIRECT(ADDRESS((A40-1)*12+2,MATCH('Cash flow'!B$67,'Cash flow CALC'!$1:$1,0),1,1,"Cash flow CALC")):INDIRECT(ADDRESS(A40*12+1,MATCH('Cash flow'!B$67,'Cash flow CALC'!$1:$1,0),1,1,"Cash flow CALC"))), "-") -> - | C40: =IF(A40<=ROUNDDOWN(MainForm!$C$11/12,0), VLOOKUP(A40,Indexation_full,2,FALSE), "-") -> - | D40: =IF(A40<=ROUNDDOWN(MainForm!$C$11/12,0), SUM(INDIRECT(ADDRESS((A40-1)*12+2,MATCH('Cash flow'!D$67,'Cash flow CALC'!$1:$1,0),1,1,"Cash flow CALC")):INDIRECT(ADDRESS(A40*12+1,MATCH('Cash flow'!D$67,'Cash flow CALC'!$1:$1,0),1,1,"Cash flow CALC"))), "-") -> - | E40: =IF(A40<=ROUNDDOWN(MainForm!$C$11/12,0), SUM(INDIRECT(ADDRESS(($A$8-1)*12+2,MATCH('Cash flow'!E$67,'Cash flow CALC'!$1:$1,0),1,1,"Cash flow CALC")):INDIRECT(ADDRESS(A40*12+1,MATCH('Cash flow'!E$67,'Cash flow CALC'!$1:$1,0),1,1,"Cash flow CALC"))),"-") -> - | F40: =IF(A40<=ROUNDDOWN(MainForm!$C$11/12,0), SUM(INDIRECT(ADDRESS((A40-1)*12+2,MATCH('Cash flow'!F$67,'Cash flow CALC'!$1:$1,0),1,1,"Cash flow CALC")):INDIRECT(ADDRESS(A40*12+1,MATCH('Cash flow'!F$67,'Cash flow CALC'!$1:$1,0),1,1,"Cash flow CALC"))),"-") -> - | G40: =IF(A40<=ROUNDDOWN(MainForm!$C$11/12,0), SUM(INDIRECT(ADDRESS((A40-1)*12+2,MATCH('Cash flow'!G$67,'Cash flow CALC'!$1:$1,0),1,1,"Cash flow CALC")):INDIRECT(ADDRESS(A40*12+1,MATCH('Cash flow'!G$67,'Cash flow CALC'!$1:$1,0),1,1,"Cash flow CALC"))),"-") -> - | H40: =IF(A40<=ROUNDDOWN(MainForm!$C$11/12,0), SUM(INDIRECT(ADDRESS((A40-1)*12+2,MATCH('Cash flow'!H$67,'Cash flow CALC'!$1:$1,0),1,1,"Cash flow CALC")):INDIRECT(ADDRESS(A40*12+1,MATCH('Cash flow'!H$67,'Cash flow CALC'!$1:$1,0),1,1,"Cash flow CALC"))),"-") -> - | I40: =IF(A40<=ROUNDDOWN(MainForm!$C$11/12,0), SUM(INDIRECT(ADDRESS((A40-1)*12+2,MATCH('Cash flow'!I$67,'Cash flow CALC'!$1:$1,0),1,1,"Cash flow CALC")):INDIRECT(ADDRESS(A40*12+1,MATCH('Cash flow'!I$67,'Cash flow CALC'!$1:$1,0),1,1,"Cash flow CALC"))),"-") -> - | J40: =IF(A40<=ROUNDDOWN(MainForm!$C$11/12,0), SUM(INDIRECT(ADDRESS((A40-1)*12+2,MATCH('Cash flow'!J$67,'Cash flow CALC'!$1:$1,0),1,1,"Cash flow CALC")):INDIRECT(ADDRESS(A40*12+1,MATCH('Cash flow'!J$67,'Cash flow CALC'!$1:$1,0),1,1,"Cash flow CALC"))),"-") -> - | K40: =IF(A40<=ROUNDDOWN(MainForm!$C$11/12,0), INDIRECT(ADDRESS(A40*12+1,MATCH('Cash flow'!K$67,'Cash flow CALC'!$1:$1,0),1,1,"Cash flow CALC")),"-") -> - | L40: =IF(A40<=ROUNDDOWN(MainForm!$C$11/12,0), SUM(INDIRECT(ADDRESS((A40-1)*12+2,MATCH('Cash flow'!L$67,'Cash flow CALC'!$1:$1,0),1,1,"Cash flow CALC")):INDIRECT(ADDRESS(A40*12+1,MATCH('Cash flow'!L$67,'Cash flow CALC'!$1:$1,0),1,1,"Cash flow CALC"))),"-") -> - | M40: =IF(A40<=ROUNDDOWN(MainForm!$C$11/12,0), INDIRECT(ADDRESS(A40*12+1,MATCH('Cash flow'!M$67,'Cash flow CALC'!$1:$1,0),1,1,"Cash flow CALC")),"-") -> - | N40: =IF(A40<=ROUNDDOWN(MainForm!$C$11/12,0), SUM(INDIRECT(ADDRESS((A40-1)*12+2,MATCH('Cash flow'!N$67,'Cash flow CALC'!$1:$1,0),1,1,"Cash flow CALC")):INDIRECT(ADDRESS(A40*12+1,MATCH('Cash flow'!N$67,'Cash flow CALC'!$1:$1,0),1,1,"Cash flow CALC"))),"-") -> - | O40: =IF(A40<=ROUNDDOWN(MainForm!$C$11/12,0), SUM(INDIRECT(ADDRESS((A40-1)*12+2,MATCH('Cash flow'!O$67,'Cash flow CALC'!$1:$1,0),1,1,"Cash flow CALC")):INDIRECT(ADDRESS(A40*12+1,MATCH('Cash flow'!O$67,'Cash flow CALC'!$1:$1,0),1,1,"Cash flow CALC"))),"-") -> - | P40: =IF(A40<=ROUNDDOWN(MainForm!$C$11/12,0), INDIRECT(ADDRESS(A40*12+1,MATCH('Cash flow'!P$67,'Cash flow CALC'!$1:$1,0),1,1,"Cash flow CALC")),"-") -> - | Q40: =IF(A40<=ROUNDDOWN(MainForm!$C$11/12,0), INDIRECT(ADDRESS(A40*12+1,MATCH('Cash flow'!Q$67,'Cash flow CALC'!$1:$1,0),1,1,"Cash flow CALC")),"-") -> - | R40: =IF(A40<=ROUNDDOWN(MainForm!$C$11/12,0), VLOOKUP(A40,Premium_suppression,2,FALSE),"-") -> -
A41: 34 | B41: =IF(A41<=ROUNDDOWN(MainForm!$C$11/12,0), SUM(INDIRECT(ADDRESS((A41-1)*12+2,MATCH('Cash flow'!B$67,'Cash flow CALC'!$1:$1,0),1,1,"Cash flow CALC")):INDIRECT(ADDRESS(A41*12+1,MATCH('Cash flow'!B$67,'Cash flow CALC'!$1:$1,0),1,1,"Cash flow CALC"))), "-") -> - | C41: =IF(A41<=ROUNDDOWN(MainForm!$C$11/12,0), VLOOKUP(A41,Indexation_full,2,FALSE), "-") -> - | D41: =IF(A41<=ROUNDDOWN(MainForm!$C$11/12,0), SUM(INDIRECT(ADDRESS((A41-1)*12+2,MATCH('Cash flow'!D$67,'Cash flow CALC'!$1:$1,0),1,1,"Cash flow CALC")):INDIRECT(ADDRESS(A41*12+1,MATCH('Cash flow'!D$67,'Cash flow CALC'!$1:$1,0),1,1,"Cash flow CALC"))), "-") -> - | E41: =IF(A41<=ROUNDDOWN(MainForm!$C$11/12,0), SUM(INDIRECT(ADDRESS(($A$8-1)*12+2,MATCH('Cash flow'!E$67,'Cash flow CALC'!$1:$1,0),1,1,"Cash flow CALC")):INDIRECT(ADDRESS(A41*12+1,MATCH('Cash flow'!E$67,'Cash flow CALC'!$1:$1,0),1,1,"Cash flow CALC"))),"-") -> - | F41: =IF(A41<=ROUNDDOWN(MainForm!$C$11/12,0), SUM(INDIRECT(ADDRESS((A41-1)*12+2,MATCH('Cash flow'!F$67,'Cash flow CALC'!$1:$1,0),1,1,"Cash flow CALC")):INDIRECT(ADDRESS(A41*12+1,MATCH('Cash flow'!F$67,'Cash flow CALC'!$1:$1,0),1,1,"Cash flow CALC"))),"-") -> - | G41: =IF(A41<=ROUNDDOWN(MainForm!$C$11/12,0), SUM(INDIRECT(ADDRESS((A41-1)*12+2,MATCH('Cash flow'!G$67,'Cash flow CALC'!$1:$1,0),1,1,"Cash flow CALC")):INDIRECT(ADDRESS(A41*12+1,MATCH('Cash flow'!G$67,'Cash flow CALC'!$1:$1,0),1,1,"Cash flow CALC"))),"-") -> - | H41: =IF(A41<=ROUNDDOWN(MainForm!$C$11/12,0), SUM(INDIRECT(ADDRESS((A41-1)*12+2,MATCH('Cash flow'!H$67,'Cash flow CALC'!$1:$1,0),1,1,"Cash flow CALC")):INDIRECT(ADDRESS(A41*12+1,MATCH('Cash flow'!H$67,'Cash flow CALC'!$1:$1,0),1,1,"Cash flow CALC"))),"-") -> - | I41: =IF(A41<=ROUNDDOWN(MainForm!$C$11/12,0), SUM(INDIRECT(ADDRESS((A41-1)*12+2,MATCH('Cash flow'!I$67,'Cash flow CALC'!$1:$1,0),1,1,"Cash flow CALC")):INDIRECT(ADDRESS(A41*12+1,MATCH('Cash flow'!I$67,'Cash flow CALC'!$1:$1,0),1,1,"Cash flow CALC"))),"-") -> - | J41: =IF(A41<=ROUNDDOWN(MainForm!$C$11/12,0), SUM(INDIRECT(ADDRESS((A41-1)*12+2,MATCH('Cash flow'!J$67,'Cash flow CALC'!$1:$1,0),1,1,"Cash flow CALC")):INDIRECT(ADDRESS(A41*12+1,MATCH('Cash flow'!J$67,'Cash flow CALC'!$1:$1,0),1,1,"Cash flow CALC"))),"-") -> - | K41: =IF(A41<=ROUNDDOWN(MainForm!$C$11/12,0), INDIRECT(ADDRESS(A41*12+1,MATCH('Cash flow'!K$67,'Cash flow CALC'!$1:$1,0),1,1,"Cash flow CALC")),"-") -> - | L41: =IF(A41<=ROUNDDOWN(MainForm!$C$11/12,0), SUM(INDIRECT(ADDRESS((A41-1)*12+2,MATCH('Cash flow'!L$67,'Cash flow CALC'!$1:$1,0),1,1,"Cash flow CALC")):INDIRECT(ADDRESS(A41*12+1,MATCH('Cash flow'!L$67,'Cash flow CALC'!$1:$1,0),1,1,"Cash flow CALC"))),"-") -> - | M41: =IF(A41<=ROUNDDOWN(MainForm!$C$11/12,0), INDIRECT(ADDRESS(A41*12+1,MATCH('Cash flow'!M$67,'Cash flow CALC'!$1:$1,0),1,1,"Cash flow CALC")),"-") -> - | N41: =IF(A41<=ROUNDDOWN(MainForm!$C$11/12,0), SUM(INDIRECT(ADDRESS((A41-1)*12+2,MATCH('Cash flow'!N$67,'Cash flow CALC'!$1:$1,0),1,1,"Cash flow CALC")):INDIRECT(ADDRESS(A41*12+1,MATCH('Cash flow'!N$67,'Cash flow CALC'!$1:$1,0),1,1,"Cash flow CALC"))),"-") -> - | O41: =IF(A41<=ROUNDDOWN(MainForm!$C$11/12,0), SUM(INDIRECT(ADDRESS((A41-1)*12+2,MATCH('Cash flow'!O$67,'Cash flow CALC'!$1:$1,0),1,1,"Cash flow CALC")):INDIRECT(ADDRESS(A41*12+1,MATCH('Cash flow'!O$67,'Cash flow CALC'!$1:$1,0),1,1,"Cash flow CALC"))),"-") -> - | P41: =IF(A41<=ROUNDDOWN(MainForm!$C$11/12,0), INDIRECT(ADDRESS(A41*12+1,MATCH('Cash flow'!P$67,'Cash flow CALC'!$1:$1,0),1,1,"Cash flow CALC")),"-") -> - | Q41: =IF(A41<=ROUNDDOWN(MainForm!$C$11/12,0), INDIRECT(ADDRESS(A41*12+1,MATCH('Cash flow'!Q$67,'Cash flow CALC'!$1:$1,0),1,1,"Cash flow CALC")),"-") -> - | R41: =IF(A41<=ROUNDDOWN(MainForm!$C$11/12,0), VLOOKUP(A41,Premium_suppression,2,FALSE),"-") -> -
A42: 35 | B42: =IF(A42<=ROUNDDOWN(MainForm!$C$11/12,0), SUM(INDIRECT(ADDRESS((A42-1)*12+2,MATCH('Cash flow'!B$67,'Cash flow CALC'!$1:$1,0),1,1,"Cash flow CALC")):INDIRECT(ADDRESS(A42*12+1,MATCH('Cash flow'!B$67,'Cash flow CALC'!$1:$1,0),1,1,"Cash flow CALC"))), "-") -> - | C42: =IF(A42<=ROUNDDOWN(MainForm!$C$11/12,0), VLOOKUP(A42,Indexation_full,2,FALSE), "-") -> - | D42: =IF(A42<=ROUNDDOWN(MainForm!$C$11/12,0), SUM(INDIRECT(ADDRESS((A42-1)*12+2,MATCH('Cash flow'!D$67,'Cash flow CALC'!$1:$1,0),1,1,"Cash flow CALC")):INDIRECT(ADDRESS(A42*12+1,MATCH('Cash flow'!D$67,'Cash flow CALC'!$1:$1,0),1,1,"Cash flow CALC"))), "-") -> - | E42: =IF(A42<=ROUNDDOWN(MainForm!$C$11/12,0), SUM(INDIRECT(ADDRESS(($A$8-1)*12+2,MATCH('Cash flow'!E$67,'Cash flow CALC'!$1:$1,0),1,1,"Cash flow CALC")):INDIRECT(ADDRESS(A42*12+1,MATCH('Cash flow'!E$67,'Cash flow CALC'!$1:$1,0),1,1,"Cash flow CALC"))),"-") -> - | F42: =IF(A42<=ROUNDDOWN(MainForm!$C$11/12,0), SUM(INDIRECT(ADDRESS((A42-1)*12+2,MATCH('Cash flow'!F$67,'Cash flow CALC'!$1:$1,0),1,1,"Cash flow CALC")):INDIRECT(ADDRESS(A42*12+1,MATCH('Cash flow'!F$67,'Cash flow CALC'!$1:$1,0),1,1,"Cash flow CALC"))),"-") -> - | G42: =IF(A42<=ROUNDDOWN(MainForm!$C$11/12,0), SUM(INDIRECT(ADDRESS((A42-1)*12+2,MATCH('Cash flow'!G$67,'Cash flow CALC'!$1:$1,0),1,1,"Cash flow CALC")):INDIRECT(ADDRESS(A42*12+1,MATCH('Cash flow'!G$67,'Cash flow CALC'!$1:$1,0),1,1,"Cash flow CALC"))),"-") -> - | H42: =IF(A42<=ROUNDDOWN(MainForm!$C$11/12,0), SUM(INDIRECT(ADDRESS((A42-1)*12+2,MATCH('Cash flow'!H$67,'Cash flow CALC'!$1:$1,0),1,1,"Cash flow CALC")):INDIRECT(ADDRESS(A42*12+1,MATCH('Cash flow'!H$67,'Cash flow CALC'!$1:$1,0),1,1,"Cash flow CALC"))),"-") -> - | I42: =IF(A42<=ROUNDDOWN(MainForm!$C$11/12,0), SUM(INDIRECT(ADDRESS((A42-1)*12+2,MATCH('Cash flow'!I$67,'Cash flow CALC'!$1:$1,0),1,1,"Cash flow CALC")):INDIRECT(ADDRESS(A42*12+1,MATCH('Cash flow'!I$67,'Cash flow CALC'!$1:$1,0),1,1,"Cash flow CALC"))),"-") -> - | J42: =IF(A42<=ROUNDDOWN(MainForm!$C$11/12,0), SUM(INDIRECT(ADDRESS((A42-1)*12+2,MATCH('Cash flow'!J$67,'Cash flow CALC'!$1:$1,0),1,1,"Cash flow CALC")):INDIRECT(ADDRESS(A42*12+1,MATCH('Cash flow'!J$67,'Cash flow CALC'!$1:$1,0),1,1,"Cash flow CALC"))),"-") -> - | K42: =IF(A42<=ROUNDDOWN(MainForm!$C$11/12,0), INDIRECT(ADDRESS(A42*12+1,MATCH('Cash flow'!K$67,'Cash flow CALC'!$1:$1,0),1,1,"Cash flow CALC")),"-") -> - | L42: =IF(A42<=ROUNDDOWN(MainForm!$C$11/12,0), SUM(INDIRECT(ADDRESS((A42-1)*12+2,MATCH('Cash flow'!L$67,'Cash flow CALC'!$1:$1,0),1,1,"Cash flow CALC")):INDIRECT(ADDRESS(A42*12+1,MATCH('Cash flow'!L$67,'Cash flow CALC'!$1:$1,0),1,1,"Cash flow CALC"))),"-") -> - | M42: =IF(A42<=ROUNDDOWN(MainForm!$C$11/12,0), INDIRECT(ADDRESS(A42*12+1,MATCH('Cash flow'!M$67,'Cash flow CALC'!$1:$1,0),1,1,"Cash flow CALC")),"-") -> - | N42: =IF(A42<=ROUNDDOWN(MainForm!$C$11/12,0), SUM(INDIRECT(ADDRESS((A42-1)*12+2,MATCH('Cash flow'!N$67,'Cash flow CALC'!$1:$1,0),1,1,"Cash flow CALC")):INDIRECT(ADDRESS(A42*12+1,MATCH('Cash flow'!N$67,'Cash flow CALC'!$1:$1,0),1,1,"Cash flow CALC"))),"-") -> - | O42: =IF(A42<=ROUNDDOWN(MainForm!$C$11/12,0), SUM(INDIRECT(ADDRESS((A42-1)*12+2,MATCH('Cash flow'!O$67,'Cash flow CALC'!$1:$1,0),1,1,"Cash flow CALC")):INDIRECT(ADDRESS(A42*12+1,MATCH('Cash flow'!O$67,'Cash flow CALC'!$1:$1,0),1,1,"Cash flow CALC"))),"-") -> - | P42: =IF(A42<=ROUNDDOWN(MainForm!$C$11/12,0), INDIRECT(ADDRESS(A42*12+1,MATCH('Cash flow'!P$67,'Cash flow CALC'!$1:$1,0),1,1,"Cash flow CALC")),"-") -> - | Q42: =IF(A42<=ROUNDDOWN(MainForm!$C$11/12,0), INDIRECT(ADDRESS(A42*12+1,MATCH('Cash flow'!Q$67,'Cash flow CALC'!$1:$1,0),1,1,"Cash flow CALC")),"-") -> - | R42: =IF(A42<=ROUNDDOWN(MainForm!$C$11/12,0), VLOOKUP(A42,Premium_suppression,2,FALSE),"-") -> -
A43: 36 | B43: =IF(A43<=ROUNDDOWN(MainForm!$C$11/12,0), SUM(INDIRECT(ADDRESS((A43-1)*12+2,MATCH('Cash flow'!B$67,'Cash flow CALC'!$1:$1,0),1,1,"Cash flow CALC")):INDIRECT(ADDRESS(A43*12+1,MATCH('Cash flow'!B$67,'Cash flow CALC'!$1:$1,0),1,1,"Cash flow CALC"))), "-") -> - | C43: =IF(A43<=ROUNDDOWN(MainForm!$C$11/12,0), VLOOKUP(A43,Indexation_full,2,FALSE), "-") -> - | D43: =IF(A43<=ROUNDDOWN(MainForm!$C$11/12,0), SUM(INDIRECT(ADDRESS((A43-1)*12+2,MATCH('Cash flow'!D$67,'Cash flow CALC'!$1:$1,0),1,1,"Cash flow CALC")):INDIRECT(ADDRESS(A43*12+1,MATCH('Cash flow'!D$67,'Cash flow CALC'!$1:$1,0),1,1,"Cash flow CALC"))), "-") -> - | E43: =IF(A43<=ROUNDDOWN(MainForm!$C$11/12,0), SUM(INDIRECT(ADDRESS(($A$8-1)*12+2,MATCH('Cash flow'!E$67,'Cash flow CALC'!$1:$1,0),1,1,"Cash flow CALC")):INDIRECT(ADDRESS(A43*12+1,MATCH('Cash flow'!E$67,'Cash flow CALC'!$1:$1,0),1,1,"Cash flow CALC"))),"-") -> - | F43: =IF(A43<=ROUNDDOWN(MainForm!$C$11/12,0), SUM(INDIRECT(ADDRESS((A43-1)*12+2,MATCH('Cash flow'!F$67,'Cash flow CALC'!$1:$1,0),1,1,"Cash flow CALC")):INDIRECT(ADDRESS(A43*12+1,MATCH('Cash flow'!F$67,'Cash flow CALC'!$1:$1,0),1,1,"Cash flow CALC"))),"-") -> - | G43: =IF(A43<=ROUNDDOWN(MainForm!$C$11/12,0), SUM(INDIRECT(ADDRESS((A43-1)*12+2,MATCH('Cash flow'!G$67,'Cash flow CALC'!$1:$1,0),1,1,"Cash flow CALC")):INDIRECT(ADDRESS(A43*12+1,MATCH('Cash flow'!G$67,'Cash flow CALC'!$1:$1,0),1,1,"Cash flow CALC"))),"-") -> - | H43: =IF(A43<=ROUNDDOWN(MainForm!$C$11/12,0), SUM(INDIRECT(ADDRESS((A43-1)*12+2,MATCH('Cash flow'!H$67,'Cash flow CALC'!$1:$1,0),1,1,"Cash flow CALC")):INDIRECT(ADDRESS(A43*12+1,MATCH('Cash flow'!H$67,'Cash flow CALC'!$1:$1,0),1,1,"Cash flow CALC"))),"-") -> - | I43: =IF(A43<=ROUNDDOWN(MainForm!$C$11/12,0), SUM(INDIRECT(ADDRESS((A43-1)*12+2,MATCH('Cash flow'!I$67,'Cash flow CALC'!$1:$1,0),1,1,"Cash flow CALC")):INDIRECT(ADDRESS(A43*12+1,MATCH('Cash flow'!I$67,'Cash flow CALC'!$1:$1,0),1,1,"Cash flow CALC"))),"-") -> - | J43: =IF(A43<=ROUNDDOWN(MainForm!$C$11/12,0), SUM(INDIRECT(ADDRESS((A43-1)*12+2,MATCH('Cash flow'!J$67,'Cash flow CALC'!$1:$1,0),1,1,"Cash flow CALC")):INDIRECT(ADDRESS(A43*12+1,MATCH('Cash flow'!J$67,'Cash flow CALC'!$1:$1,0),1,1,"Cash flow CALC"))),"-") -> - | K43: =IF(A43<=ROUNDDOWN(MainForm!$C$11/12,0), INDIRECT(ADDRESS(A43*12+1,MATCH('Cash flow'!K$67,'Cash flow CALC'!$1:$1,0),1,1,"Cash flow CALC")),"-") -> - | L43: =IF(A43<=ROUNDDOWN(MainForm!$C$11/12,0), SUM(INDIRECT(ADDRESS((A43-1)*12+2,MATCH('Cash flow'!L$67,'Cash flow CALC'!$1:$1,0),1,1,"Cash flow CALC")):INDIRECT(ADDRESS(A43*12+1,MATCH('Cash flow'!L$67,'Cash flow CALC'!$1:$1,0),1,1,"Cash flow CALC"))),"-") -> - | M43: =IF(A43<=ROUNDDOWN(MainForm!$C$11/12,0), INDIRECT(ADDRESS(A43*12+1,MATCH('Cash flow'!M$67,'Cash flow CALC'!$1:$1,0),1,1,"Cash flow CALC")),"-") -> - | N43: =IF(A43<=ROUNDDOWN(MainForm!$C$11/12,0), SUM(INDIRECT(ADDRESS((A43-1)*12+2,MATCH('Cash flow'!N$67,'Cash flow CALC'!$1:$1,0),1,1,"Cash flow CALC")):INDIRECT(ADDRESS(A43*12+1,MATCH('Cash flow'!N$67,'Cash flow CALC'!$1:$1,0),1,1,"Cash flow CALC"))),"-") -> - | O43: =IF(A43<=ROUNDDOWN(MainForm!$C$11/12,0), SUM(INDIRECT(ADDRESS((A43-1)*12+2,MATCH('Cash flow'!O$67,'Cash flow CALC'!$1:$1,0),1,1,"Cash flow CALC")):INDIRECT(ADDRESS(A43*12+1,MATCH('Cash flow'!O$67,'Cash flow CALC'!$1:$1,0),1,1,"Cash flow CALC"))),"-") -> - | P43: =IF(A43<=ROUNDDOWN(MainForm!$C$11/12,0), INDIRECT(ADDRESS(A43*12+1,MATCH('Cash flow'!P$67,'Cash flow CALC'!$1:$1,0),1,1,"Cash flow CALC")),"-") -> - | Q43: =IF(A43<=ROUNDDOWN(MainForm!$C$11/12,0), INDIRECT(ADDRESS(A43*12+1,MATCH('Cash flow'!Q$67,'Cash flow CALC'!$1:$1,0),1,1,"Cash flow CALC")),"-") -> - | R43: =IF(A43<=ROUNDDOWN(MainForm!$C$11/12,0), VLOOKUP(A43,Premium_suppression,2,FALSE),"-") -> -
A44: 37 | B44: =IF(A44<=ROUNDDOWN(MainForm!$C$11/12,0), SUM(INDIRECT(ADDRESS((A44-1)*12+2,MATCH('Cash flow'!B$67,'Cash flow CALC'!$1:$1,0),1,1,"Cash flow CALC")):INDIRECT(ADDRESS(A44*12+1,MATCH('Cash flow'!B$67,'Cash flow CALC'!$1:$1,0),1,1,"Cash flow CALC"))), "-") -> - | C44: =IF(A44<=ROUNDDOWN(MainForm!$C$11/12,0), VLOOKUP(A44,Indexation_full,2,FALSE), "-") -> - | D44: =IF(A44<=ROUNDDOWN(MainForm!$C$11/12,0), SUM(INDIRECT(ADDRESS((A44-1)*12+2,MATCH('Cash flow'!D$67,'Cash flow CALC'!$1:$1,0),1,1,"Cash flow CALC")):INDIRECT(ADDRESS(A44*12+1,MATCH('Cash flow'!D$67,'Cash flow CALC'!$1:$1,0),1,1,"Cash flow CALC"))), "-") -> - | E44: =IF(A44<=ROUNDDOWN(MainForm!$C$11/12,0), SUM(INDIRECT(ADDRESS(($A$8-1)*12+2,MATCH('Cash flow'!E$67,'Cash flow CALC'!$1:$1,0),1,1,"Cash flow CALC")):INDIRECT(ADDRESS(A44*12+1,MATCH('Cash flow'!E$67,'Cash flow CALC'!$1:$1,0),1,1,"Cash flow CALC"))),"-") -> - | F44: =IF(A44<=ROUNDDOWN(MainForm!$C$11/12,0), SUM(INDIRECT(ADDRESS((A44-1)*12+2,MATCH('Cash flow'!F$67,'Cash flow CALC'!$1:$1,0),1,1,"Cash flow CALC")):INDIRECT(ADDRESS(A44*12+1,MATCH('Cash flow'!F$67,'Cash flow CALC'!$1:$1,0),1,1,"Cash flow CALC"))),"-") -> - | G44: =IF(A44<=ROUNDDOWN(MainForm!$C$11/12,0), SUM(INDIRECT(ADDRESS((A44-1)*12+2,MATCH('Cash flow'!G$67,'Cash flow CALC'!$1:$1,0),1,1,"Cash flow CALC")):INDIRECT(ADDRESS(A44*12+1,MATCH('Cash flow'!G$67,'Cash flow CALC'!$1:$1,0),1,1,"Cash flow CALC"))),"-") -> - | H44: =IF(A44<=ROUNDDOWN(MainForm!$C$11/12,0), SUM(INDIRECT(ADDRESS((A44-1)*12+2,MATCH('Cash flow'!H$67,'Cash flow CALC'!$1:$1,0),1,1,"Cash flow CALC")):INDIRECT(ADDRESS(A44*12+1,MATCH('Cash flow'!H$67,'Cash flow CALC'!$1:$1,0),1,1,"Cash flow CALC"))),"-") -> - | I44: =IF(A44<=ROUNDDOWN(MainForm!$C$11/12,0), SUM(INDIRECT(ADDRESS((A44-1)*12+2,MATCH('Cash flow'!I$67,'Cash flow CALC'!$1:$1,0),1,1,"Cash flow CALC")):INDIRECT(ADDRESS(A44*12+1,MATCH('Cash flow'!I$67,'Cash flow CALC'!$1:$1,0),1,1,"Cash flow CALC"))),"-") -> - | J44: =IF(A44<=ROUNDDOWN(MainForm!$C$11/12,0), SUM(INDIRECT(ADDRESS((A44-1)*12+2,MATCH('Cash flow'!J$67,'Cash flow CALC'!$1:$1,0),1,1,"Cash flow CALC")):INDIRECT(ADDRESS(A44*12+1,MATCH('Cash flow'!J$67,'Cash flow CALC'!$1:$1,0),1,1,"Cash flow CALC"))),"-") -> - | K44: =IF(A44<=ROUNDDOWN(MainForm!$C$11/12,0), INDIRECT(ADDRESS(A44*12+1,MATCH('Cash flow'!K$67,'Cash flow CALC'!$1:$1,0),1,1,"Cash flow CALC")),"-") -> - | L44: =IF(A44<=ROUNDDOWN(MainForm!$C$11/12,0), SUM(INDIRECT(ADDRESS((A44-1)*12+2,MATCH('Cash flow'!L$67,'Cash flow CALC'!$1:$1,0),1,1,"Cash flow CALC")):INDIRECT(ADDRESS(A44*12+1,MATCH('Cash flow'!L$67,'Cash flow CALC'!$1:$1,0),1,1,"Cash flow CALC"))),"-") -> - | M44: =IF(A44<=ROUNDDOWN(MainForm!$C$11/12,0), INDIRECT(ADDRESS(A44*12+1,MATCH('Cash flow'!M$67,'Cash flow CALC'!$1:$1,0),1,1,"Cash flow CALC")),"-") -> - | N44: =IF(A44<=ROUNDDOWN(MainForm!$C$11/12,0), SUM(INDIRECT(ADDRESS((A44-1)*12+2,MATCH('Cash flow'!N$67,'Cash flow CALC'!$1:$1,0),1,1,"Cash flow CALC")):INDIRECT(ADDRESS(A44*12+1,MATCH('Cash flow'!N$67,'Cash flow CALC'!$1:$1,0),1,1,"Cash flow CALC"))),"-") -> - | O44: =IF(A44<=ROUNDDOWN(MainForm!$C$11/12,0), SUM(INDIRECT(ADDRESS((A44-1)*12+2,MATCH('Cash flow'!O$67,'Cash flow CALC'!$1:$1,0),1,1,"Cash flow CALC")):INDIRECT(ADDRESS(A44*12+1,MATCH('Cash flow'!O$67,'Cash flow CALC'!$1:$1,0),1,1,"Cash flow CALC"))),"-") -> - | P44: =IF(A44<=ROUNDDOWN(MainForm!$C$11/12,0), INDIRECT(ADDRESS(A44*12+1,MATCH('Cash flow'!P$67,'Cash flow CALC'!$1:$1,0),1,1,"Cash flow CALC")),"-") -> - | Q44: =IF(A44<=ROUNDDOWN(MainForm!$C$11/12,0), INDIRECT(ADDRESS(A44*12+1,MATCH('Cash flow'!Q$67,'Cash flow CALC'!$1:$1,0),1,1,"Cash flow CALC")),"-") -> - | R44: =IF(A44<=ROUNDDOWN(MainForm!$C$11/12,0), VLOOKUP(A44,Premium_suppression,2,FALSE),"-") -> -
A45: 38 | B45: =IF(A45<=ROUNDDOWN(MainForm!$C$11/12,0), SUM(INDIRECT(ADDRESS((A45-1)*12+2,MATCH('Cash flow'!B$67,'Cash flow CALC'!$1:$1,0),1,1,"Cash flow CALC")):INDIRECT(ADDRESS(A45*12+1,MATCH('Cash flow'!B$67,'Cash flow CALC'!$1:$1,0),1,1,"Cash flow CALC"))), "-") -> - | C45: =IF(A45<=ROUNDDOWN(MainForm!$C$11/12,0), VLOOKUP(A45,Indexation_full,2,FALSE), "-") -> - | D45: =IF(A45<=ROUNDDOWN(MainForm!$C$11/12,0), SUM(INDIRECT(ADDRESS((A45-1)*12+2,MATCH('Cash flow'!D$67,'Cash flow CALC'!$1:$1,0),1,1,"Cash flow CALC")):INDIRECT(ADDRESS(A45*12+1,MATCH('Cash flow'!D$67,'Cash flow CALC'!$1:$1,0),1,1,"Cash flow CALC"))), "-") -> - | E45: =IF(A45<=ROUNDDOWN(MainForm!$C$11/12,0), SUM(INDIRECT(ADDRESS(($A$8-1)*12+2,MATCH('Cash flow'!E$67,'Cash flow CALC'!$1:$1,0),1,1,"Cash flow CALC")):INDIRECT(ADDRESS(A45*12+1,MATCH('Cash flow'!E$67,'Cash flow CALC'!$1:$1,0),1,1,"Cash flow CALC"))),"-") -> - | F45: =IF(A45<=ROUNDDOWN(MainForm!$C$11/12,0), SUM(INDIRECT(ADDRESS((A45-1)*12+2,MATCH('Cash flow'!F$67,'Cash flow CALC'!$1:$1,0),1,1,"Cash flow CALC")):INDIRECT(ADDRESS(A45*12+1,MATCH('Cash flow'!F$67,'Cash flow CALC'!$1:$1,0),1,1,"Cash flow CALC"))),"-") -> - | G45: =IF(A45<=ROUNDDOWN(MainForm!$C$11/12,0), SUM(INDIRECT(ADDRESS((A45-1)*12+2,MATCH('Cash flow'!G$67,'Cash flow CALC'!$1:$1,0),1,1,"Cash flow CALC")):INDIRECT(ADDRESS(A45*12+1,MATCH('Cash flow'!G$67,'Cash flow CALC'!$1:$1,0),1,1,"Cash flow CALC"))),"-") -> - | H45: =IF(A45<=ROUNDDOWN(MainForm!$C$11/12,0), SUM(INDIRECT(ADDRESS((A45-1)*12+2,MATCH('Cash flow'!H$67,'Cash flow CALC'!$1:$1,0),1,1,"Cash flow CALC")):INDIRECT(ADDRESS(A45*12+1,MATCH('Cash flow'!H$67,'Cash flow CALC'!$1:$1,0),1,1,"Cash flow CALC"))),"-") -> - | I45: =IF(A45<=ROUNDDOWN(MainForm!$C$11/12,0), SUM(INDIRECT(ADDRESS((A45-1)*12+2,MATCH('Cash flow'!I$67,'Cash flow CALC'!$1:$1,0),1,1,"Cash flow CALC")):INDIRECT(ADDRESS(A45*12+1,MATCH('Cash flow'!I$67,'Cash flow CALC'!$1:$1,0),1,1,"Cash flow CALC"))),"-") -> - | J45: =IF(A45<=ROUNDDOWN(MainForm!$C$11/12,0), SUM(INDIRECT(ADDRESS((A45-1)*12+2,MATCH('Cash flow'!J$67,'Cash flow CALC'!$1:$1,0),1,1,"Cash flow CALC")):INDIRECT(ADDRESS(A45*12+1,MATCH('Cash flow'!J$67,'Cash flow CALC'!$1:$1,0),1,1,"Cash flow CALC"))),"-") -> - | K45: =IF(A45<=ROUNDDOWN(MainForm!$C$11/12,0), INDIRECT(ADDRESS(A45*12+1,MATCH('Cash flow'!K$67,'Cash flow CALC'!$1:$1,0),1,1,"Cash flow CALC")),"-") -> - | L45: =IF(A45<=ROUNDDOWN(MainForm!$C$11/12,0), SUM(INDIRECT(ADDRESS((A45-1)*12+2,MATCH('Cash flow'!L$67,'Cash flow CALC'!$1:$1,0),1,1,"Cash flow CALC")):INDIRECT(ADDRESS(A45*12+1,MATCH('Cash flow'!L$67,'Cash flow CALC'!$1:$1,0),1,1,"Cash flow CALC"))),"-") -> - | M45: =IF(A45<=ROUNDDOWN(MainForm!$C$11/12,0), INDIRECT(ADDRESS(A45*12+1,MATCH('Cash flow'!M$67,'Cash flow CALC'!$1:$1,0),1,1,"Cash flow CALC")),"-") -> - | N45: =IF(A45<=ROUNDDOWN(MainForm!$C$11/12,0), SUM(INDIRECT(ADDRESS((A45-1)*12+2,MATCH('Cash flow'!N$67,'Cash flow CALC'!$1:$1,0),1,1,"Cash flow CALC")):INDIRECT(ADDRESS(A45*12+1,MATCH('Cash flow'!N$67,'Cash flow CALC'!$1:$1,0),1,1,"Cash flow CALC"))),"-") -> - | O45: =IF(A45<=ROUNDDOWN(MainForm!$C$11/12,0), SUM(INDIRECT(ADDRESS((A45-1)*12+2,MATCH('Cash flow'!O$67,'Cash flow CALC'!$1:$1,0),1,1,"Cash flow CALC")):INDIRECT(ADDRESS(A45*12+1,MATCH('Cash flow'!O$67,'Cash flow CALC'!$1:$1,0),1,1,"Cash flow CALC"))),"-") -> - | P45: =IF(A45<=ROUNDDOWN(MainForm!$C$11/12,0), INDIRECT(ADDRESS(A45*12+1,MATCH('Cash flow'!P$67,'Cash flow CALC'!$1:$1,0),1,1,"Cash flow CALC")),"-") -> - | Q45: =IF(A45<=ROUNDDOWN(MainForm!$C$11/12,0), INDIRECT(ADDRESS(A45*12+1,MATCH('Cash flow'!Q$67,'Cash flow CALC'!$1:$1,0),1,1,"Cash flow CALC")),"-") -> - | R45: =IF(A45<=ROUNDDOWN(MainForm!$C$11/12,0), VLOOKUP(A45,Premium_suppression,2,FALSE),"-") -> -
A46: 39 | B46: =IF(A46<=ROUNDDOWN(MainForm!$C$11/12,0), SUM(INDIRECT(ADDRESS((A46-1)*12+2,MATCH('Cash flow'!B$67,'Cash flow CALC'!$1:$1,0),1,1,"Cash flow CALC")):INDIRECT(ADDRESS(A46*12+1,MATCH('Cash flow'!B$67,'Cash flow CALC'!$1:$1,0),1,1,"Cash flow CALC"))), "-") -> - | C46: =IF(A46<=ROUNDDOWN(MainForm!$C$11/12,0), VLOOKUP(A46,Indexation_full,2,FALSE), "-") -> - | D46: =IF(A46<=ROUNDDOWN(MainForm!$C$11/12,0), SUM(INDIRECT(ADDRESS((A46-1)*12+2,MATCH('Cash flow'!D$67,'Cash flow CALC'!$1:$1,0),1,1,"Cash flow CALC")):INDIRECT(ADDRESS(A46*12+1,MATCH('Cash flow'!D$67,'Cash flow CALC'!$1:$1,0),1,1,"Cash flow CALC"))), "-") -> - | E46: =IF(A46<=ROUNDDOWN(MainForm!$C$11/12,0), SUM(INDIRECT(ADDRESS(($A$8-1)*12+2,MATCH('Cash flow'!E$67,'Cash flow CALC'!$1:$1,0),1,1,"Cash flow CALC")):INDIRECT(ADDRESS(A46*12+1,MATCH('Cash flow'!E$67,'Cash flow CALC'!$1:$1,0),1,1,"Cash flow CALC"))),"-") -> - | F46: =IF(A46<=ROUNDDOWN(MainForm!$C$11/12,0), SUM(INDIRECT(ADDRESS((A46-1)*12+2,MATCH('Cash flow'!F$67,'Cash flow CALC'!$1:$1,0),1,1,"Cash flow CALC")):INDIRECT(ADDRESS(A46*12+1,MATCH('Cash flow'!F$67,'Cash flow CALC'!$1:$1,0),1,1,"Cash flow CALC"))),"-") -> - | G46: =IF(A46<=ROUNDDOWN(MainForm!$C$11/12,0), SUM(INDIRECT(ADDRESS((A46-1)*12+2,MATCH('Cash flow'!G$67,'Cash flow CALC'!$1:$1,0),1,1,"Cash flow CALC")):INDIRECT(ADDRESS(A46*12+1,MATCH('Cash flow'!G$67,'Cash flow CALC'!$1:$1,0),1,1,"Cash flow CALC"))),"-") -> - | H46: =IF(A46<=ROUNDDOWN(MainForm!$C$11/12,0), SUM(INDIRECT(ADDRESS((A46-1)*12+2,MATCH('Cash flow'!H$67,'Cash flow CALC'!$1:$1,0),1,1,"Cash flow CALC")):INDIRECT(ADDRESS(A46*12+1,MATCH('Cash flow'!H$67,'Cash flow CALC'!$1:$1,0),1,1,"Cash flow CALC"))),"-") -> - | I46: =IF(A46<=ROUNDDOWN(MainForm!$C$11/12,0), SUM(INDIRECT(ADDRESS((A46-1)*12+2,MATCH('Cash flow'!I$67,'Cash flow CALC'!$1:$1,0),1,1,"Cash flow CALC")):INDIRECT(ADDRESS(A46*12+1,MATCH('Cash flow'!I$67,'Cash flow CALC'!$1:$1,0),1,1,"Cash flow CALC"))),"-") -> - | J46: =IF(A46<=ROUNDDOWN(MainForm!$C$11/12,0), SUM(INDIRECT(ADDRESS((A46-1)*12+2,MATCH('Cash flow'!J$67,'Cash flow CALC'!$1:$1,0),1,1,"Cash flow CALC")):INDIRECT(ADDRESS(A46*12+1,MATCH('Cash flow'!J$67,'Cash flow CALC'!$1:$1,0),1,1,"Cash flow CALC"))),"-") -> - | K46: =IF(A46<=ROUNDDOWN(MainForm!$C$11/12,0), INDIRECT(ADDRESS(A46*12+1,MATCH('Cash flow'!K$67,'Cash flow CALC'!$1:$1,0),1,1,"Cash flow CALC")),"-") -> - | L46: =IF(A46<=ROUNDDOWN(MainForm!$C$11/12,0), SUM(INDIRECT(ADDRESS((A46-1)*12+2,MATCH('Cash flow'!L$67,'Cash flow CALC'!$1:$1,0),1,1,"Cash flow CALC")):INDIRECT(ADDRESS(A46*12+1,MATCH('Cash flow'!L$67,'Cash flow CALC'!$1:$1,0),1,1,"Cash flow CALC"))),"-") -> - | M46: =IF(A46<=ROUNDDOWN(MainForm!$C$11/12,0), INDIRECT(ADDRESS(A46*12+1,MATCH('Cash flow'!M$67,'Cash flow CALC'!$1:$1,0),1,1,"Cash flow CALC")),"-") -> - | N46: =IF(A46<=ROUNDDOWN(MainForm!$C$11/12,0), SUM(INDIRECT(ADDRESS((A46-1)*12+2,MATCH('Cash flow'!N$67,'Cash flow CALC'!$1:$1,0),1,1,"Cash flow CALC")):INDIRECT(ADDRESS(A46*12+1,MATCH('Cash flow'!N$67,'Cash flow CALC'!$1:$1,0),1,1,"Cash flow CALC"))),"-") -> - | O46: =IF(A46<=ROUNDDOWN(MainForm!$C$11/12,0), SUM(INDIRECT(ADDRESS((A46-1)*12+2,MATCH('Cash flow'!O$67,'Cash flow CALC'!$1:$1,0),1,1,"Cash flow CALC")):INDIRECT(ADDRESS(A46*12+1,MATCH('Cash flow'!O$67,'Cash flow CALC'!$1:$1,0),1,1,"Cash flow CALC"))),"-") -> - | P46: =IF(A46<=ROUNDDOWN(MainForm!$C$11/12,0), INDIRECT(ADDRESS(A46*12+1,MATCH('Cash flow'!P$67,'Cash flow CALC'!$1:$1,0),1,1,"Cash flow CALC")),"-") -> - | Q46: =IF(A46<=ROUNDDOWN(MainForm!$C$11/12,0), INDIRECT(ADDRESS(A46*12+1,MATCH('Cash flow'!Q$67,'Cash flow CALC'!$1:$1,0),1,1,"Cash flow CALC")),"-") -> - | R46: =IF(A46<=ROUNDDOWN(MainForm!$C$11/12,0), VLOOKUP(A46,Premium_suppression,2,FALSE),"-") -> -
A47: 40 | B47: =IF(A47<=ROUNDDOWN(MainForm!$C$11/12,0), SUM(INDIRECT(ADDRESS((A47-1)*12+2,MATCH('Cash flow'!B$67,'Cash flow CALC'!$1:$1,0),1,1,"Cash flow CALC")):INDIRECT(ADDRESS(A47*12+1,MATCH('Cash flow'!B$67,'Cash flow CALC'!$1:$1,0),1,1,"Cash flow CALC"))), "-") -> - | C47: =IF(A47<=ROUNDDOWN(MainForm!$C$11/12,0), VLOOKUP(A47,Indexation_full,2,FALSE), "-") -> - | D47: =IF(A47<=ROUNDDOWN(MainForm!$C$11/12,0), SUM(INDIRECT(ADDRESS((A47-1)*12+2,MATCH('Cash flow'!D$67,'Cash flow CALC'!$1:$1,0),1,1,"Cash flow CALC")):INDIRECT(ADDRESS(A47*12+1,MATCH('Cash flow'!D$67,'Cash flow CALC'!$1:$1,0),1,1,"Cash flow CALC"))), "-") -> - | E47: =IF(A47<=ROUNDDOWN(MainForm!$C$11/12,0), SUM(INDIRECT(ADDRESS(($A$8-1)*12+2,MATCH('Cash flow'!E$67,'Cash flow CALC'!$1:$1,0),1,1,"Cash flow CALC")):INDIRECT(ADDRESS(A47*12+1,MATCH('Cash flow'!E$67,'Cash flow CALC'!$1:$1,0),1,1,"Cash flow CALC"))),"-") -> - | F47: =IF(A47<=ROUNDDOWN(MainForm!$C$11/12,0), SUM(INDIRECT(ADDRESS((A47-1)*12+2,MATCH('Cash flow'!F$67,'Cash flow CALC'!$1:$1,0),1,1,"Cash flow CALC")):INDIRECT(ADDRESS(A47*12+1,MATCH('Cash flow'!F$67,'Cash flow CALC'!$1:$1,0),1,1,"Cash flow CALC"))),"-") -> - | G47: =IF(A47<=ROUNDDOWN(MainForm!$C$11/12,0), SUM(INDIRECT(ADDRESS((A47-1)*12+2,MATCH('Cash flow'!G$67,'Cash flow CALC'!$1:$1,0),1,1,"Cash flow CALC")):INDIRECT(ADDRESS(A47*12+1,MATCH('Cash flow'!G$67,'Cash flow CALC'!$1:$1,0),1,1,"Cash flow CALC"))),"-") -> - | H47: =IF(A47<=ROUNDDOWN(MainForm!$C$11/12,0), SUM(INDIRECT(ADDRESS((A47-1)*12+2,MATCH('Cash flow'!H$67,'Cash flow CALC'!$1:$1,0),1,1,"Cash flow CALC")):INDIRECT(ADDRESS(A47*12+1,MATCH('Cash flow'!H$67,'Cash flow CALC'!$1:$1,0),1,1,"Cash flow CALC"))),"-") -> - | I47: =IF(A47<=ROUNDDOWN(MainForm!$C$11/12,0), SUM(INDIRECT(ADDRESS((A47-1)*12+2,MATCH('Cash flow'!I$67,'Cash flow CALC'!$1:$1,0),1,1,"Cash flow CALC")):INDIRECT(ADDRESS(A47*12+1,MATCH('Cash flow'!I$67,'Cash flow CALC'!$1:$1,0),1,1,"Cash flow CALC"))),"-") -> - | J47: =IF(A47<=ROUNDDOWN(MainForm!$C$11/12,0), SUM(INDIRECT(ADDRESS((A47-1)*12+2,MATCH('Cash flow'!J$67,'Cash flow CALC'!$1:$1,0),1,1,"Cash flow CALC")):INDIRECT(ADDRESS(A47*12+1,MATCH('Cash flow'!J$67,'Cash flow CALC'!$1:$1,0),1,1,"Cash flow CALC"))),"-") -> - | K47: =IF(A47<=ROUNDDOWN(MainForm!$C$11/12,0), INDIRECT(ADDRESS(A47*12+1,MATCH('Cash flow'!K$67,'Cash flow CALC'!$1:$1,0),1,1,"Cash flow CALC")),"-") -> - | L47: =IF(A47<=ROUNDDOWN(MainForm!$C$11/12,0), SUM(INDIRECT(ADDRESS((A47-1)*12+2,MATCH('Cash flow'!L$67,'Cash flow CALC'!$1:$1,0),1,1,"Cash flow CALC")):INDIRECT(ADDRESS(A47*12+1,MATCH('Cash flow'!L$67,'Cash flow CALC'!$1:$1,0),1,1,"Cash flow CALC"))),"-") -> - | M47: =IF(A47<=ROUNDDOWN(MainForm!$C$11/12,0), INDIRECT(ADDRESS(A47*12+1,MATCH('Cash flow'!M$67,'Cash flow CALC'!$1:$1,0),1,1,"Cash flow CALC")),"-") -> - | N47: =IF(A47<=ROUNDDOWN(MainForm!$C$11/12,0), SUM(INDIRECT(ADDRESS((A47-1)*12+2,MATCH('Cash flow'!N$67,'Cash flow CALC'!$1:$1,0),1,1,"Cash flow CALC")):INDIRECT(ADDRESS(A47*12+1,MATCH('Cash flow'!N$67,'Cash flow CALC'!$1:$1,0),1,1,"Cash flow CALC"))),"-") -> - | O47: =IF(A47<=ROUNDDOWN(MainForm!$C$11/12,0), SUM(INDIRECT(ADDRESS((A47-1)*12+2,MATCH('Cash flow'!O$67,'Cash flow CALC'!$1:$1,0),1,1,"Cash flow CALC")):INDIRECT(ADDRESS(A47*12+1,MATCH('Cash flow'!O$67,'Cash flow CALC'!$1:$1,0),1,1,"Cash flow CALC"))),"-") -> - | P47: =IF(A47<=ROUNDDOWN(MainForm!$C$11/12,0), INDIRECT(ADDRESS(A47*12+1,MATCH('Cash flow'!P$67,'Cash flow CALC'!$1:$1,0),1,1,"Cash flow CALC")),"-") -> - | Q47: =IF(A47<=ROUNDDOWN(MainForm!$C$11/12,0), INDIRECT(ADDRESS(A47*12+1,MATCH('Cash flow'!Q$67,'Cash flow CALC'!$1:$1,0),1,1,"Cash flow CALC")),"-") -> - | R47: =IF(A47<=ROUNDDOWN(MainForm!$C$11/12,0), VLOOKUP(A47,Premium_suppression,2,FALSE),"-") -> -
A48: 41 | B48: =IF(A48<=ROUNDDOWN(MainForm!$C$11/12,0), SUM(INDIRECT(ADDRESS((A48-1)*12+2,MATCH('Cash flow'!B$67,'Cash flow CALC'!$1:$1,0),1,1,"Cash flow CALC")):INDIRECT(ADDRESS(A48*12+1,MATCH('Cash flow'!B$67,'Cash flow CALC'!$1:$1,0),1,1,"Cash flow CALC"))), "-") -> - | C48: =IF(A48<=ROUNDDOWN(MainForm!$C$11/12,0), VLOOKUP(A48,Indexation_full,2,FALSE), "-") -> - | D48: =IF(A48<=ROUNDDOWN(MainForm!$C$11/12,0), SUM(INDIRECT(ADDRESS((A48-1)*12+2,MATCH('Cash flow'!D$67,'Cash flow CALC'!$1:$1,0),1,1,"Cash flow CALC")):INDIRECT(ADDRESS(A48*12+1,MATCH('Cash flow'!D$67,'Cash flow CALC'!$1:$1,0),1,1,"Cash flow CALC"))), "-") -> - | E48: =IF(A48<=ROUNDDOWN(MainForm!$C$11/12,0), SUM(INDIRECT(ADDRESS(($A$8-1)*12+2,MATCH('Cash flow'!E$67,'Cash flow CALC'!$1:$1,0),1,1,"Cash flow CALC")):INDIRECT(ADDRESS(A48*12+1,MATCH('Cash flow'!E$67,'Cash flow CALC'!$1:$1,0),1,1,"Cash flow CALC"))),"-") -> - | F48: =IF(A48<=ROUNDDOWN(MainForm!$C$11/12,0), SUM(INDIRECT(ADDRESS((A48-1)*12+2,MATCH('Cash flow'!F$67,'Cash flow CALC'!$1:$1,0),1,1,"Cash flow CALC")):INDIRECT(ADDRESS(A48*12+1,MATCH('Cash flow'!F$67,'Cash flow CALC'!$1:$1,0),1,1,"Cash flow CALC"))),"-") -> - | G48: =IF(A48<=ROUNDDOWN(MainForm!$C$11/12,0), SUM(INDIRECT(ADDRESS((A48-1)*12+2,MATCH('Cash flow'!G$67,'Cash flow CALC'!$1:$1,0),1,1,"Cash flow CALC")):INDIRECT(ADDRESS(A48*12+1,MATCH('Cash flow'!G$67,'Cash flow CALC'!$1:$1,0),1,1,"Cash flow CALC"))),"-") -> - | H48: =IF(A48<=ROUNDDOWN(MainForm!$C$11/12,0), SUM(INDIRECT(ADDRESS((A48-1)*12+2,MATCH('Cash flow'!H$67,'Cash flow CALC'!$1:$1,0),1,1,"Cash flow CALC")):INDIRECT(ADDRESS(A48*12+1,MATCH('Cash flow'!H$67,'Cash flow CALC'!$1:$1,0),1,1,"Cash flow CALC"))),"-") -> - | I48: =IF(A48<=ROUNDDOWN(MainForm!$C$11/12,0), SUM(INDIRECT(ADDRESS((A48-1)*12+2,MATCH('Cash flow'!I$67,'Cash flow CALC'!$1:$1,0),1,1,"Cash flow CALC")):INDIRECT(ADDRESS(A48*12+1,MATCH('Cash flow'!I$67,'Cash flow CALC'!$1:$1,0),1,1,"Cash flow CALC"))),"-") -> - | J48: =IF(A48<=ROUNDDOWN(MainForm!$C$11/12,0), SUM(INDIRECT(ADDRESS((A48-1)*12+2,MATCH('Cash flow'!J$67,'Cash flow CALC'!$1:$1,0),1,1,"Cash flow CALC")):INDIRECT(ADDRESS(A48*12+1,MATCH('Cash flow'!J$67,'Cash flow CALC'!$1:$1,0),1,1,"Cash flow CALC"))),"-") -> - | K48: =IF(A48<=ROUNDDOWN(MainForm!$C$11/12,0), INDIRECT(ADDRESS(A48*12+1,MATCH('Cash flow'!K$67,'Cash flow CALC'!$1:$1,0),1,1,"Cash flow CALC")),"-") -> - | L48: =IF(A48<=ROUNDDOWN(MainForm!$C$11/12,0), SUM(INDIRECT(ADDRESS((A48-1)*12+2,MATCH('Cash flow'!L$67,'Cash flow CALC'!$1:$1,0),1,1,"Cash flow CALC")):INDIRECT(ADDRESS(A48*12+1,MATCH('Cash flow'!L$67,'Cash flow CALC'!$1:$1,0),1,1,"Cash flow CALC"))),"-") -> - | M48: =IF(A48<=ROUNDDOWN(MainForm!$C$11/12,0), INDIRECT(ADDRESS(A48*12+1,MATCH('Cash flow'!M$67,'Cash flow CALC'!$1:$1,0),1,1,"Cash flow CALC")),"-") -> - | N48: =IF(A48<=ROUNDDOWN(MainForm!$C$11/12,0), SUM(INDIRECT(ADDRESS((A48-1)*12+2,MATCH('Cash flow'!N$67,'Cash flow CALC'!$1:$1,0),1,1,"Cash flow CALC")):INDIRECT(ADDRESS(A48*12+1,MATCH('Cash flow'!N$67,'Cash flow CALC'!$1:$1,0),1,1,"Cash flow CALC"))),"-") -> - | O48: =IF(A48<=ROUNDDOWN(MainForm!$C$11/12,0), SUM(INDIRECT(ADDRESS((A48-1)*12+2,MATCH('Cash flow'!O$67,'Cash flow CALC'!$1:$1,0),1,1,"Cash flow CALC")):INDIRECT(ADDRESS(A48*12+1,MATCH('Cash flow'!O$67,'Cash flow CALC'!$1:$1,0),1,1,"Cash flow CALC"))),"-") -> - | P48: =IF(A48<=ROUNDDOWN(MainForm!$C$11/12,0), INDIRECT(ADDRESS(A48*12+1,MATCH('Cash flow'!P$67,'Cash flow CALC'!$1:$1,0),1,1,"Cash flow CALC")),"-") -> - | Q48: =IF(A48<=ROUNDDOWN(MainForm!$C$11/12,0), INDIRECT(ADDRESS(A48*12+1,MATCH('Cash flow'!Q$67,'Cash flow CALC'!$1:$1,0),1,1,"Cash flow CALC")),"-") -> - | R48: =IF(A48<=ROUNDDOWN(MainForm!$C$11/12,0), VLOOKUP(A48,Premium_suppression,2,FALSE),"-") -> -
A49: 42 | B49: =IF(A49<=ROUNDDOWN(MainForm!$C$11/12,0), SUM(INDIRECT(ADDRESS((A49-1)*12+2,MATCH('Cash flow'!B$67,'Cash flow CALC'!$1:$1,0),1,1,"Cash flow CALC")):INDIRECT(ADDRESS(A49*12+1,MATCH('Cash flow'!B$67,'Cash flow CALC'!$1:$1,0),1,1,"Cash flow CALC"))), "-") -> - | C49: =IF(A49<=ROUNDDOWN(MainForm!$C$11/12,0), VLOOKUP(A49,Indexation_full,2,FALSE), "-") -> - | D49: =IF(A49<=ROUNDDOWN(MainForm!$C$11/12,0), SUM(INDIRECT(ADDRESS((A49-1)*12+2,MATCH('Cash flow'!D$67,'Cash flow CALC'!$1:$1,0),1,1,"Cash flow CALC")):INDIRECT(ADDRESS(A49*12+1,MATCH('Cash flow'!D$67,'Cash flow CALC'!$1:$1,0),1,1,"Cash flow CALC"))), "-") -> - | E49: =IF(A49<=ROUNDDOWN(MainForm!$C$11/12,0), SUM(INDIRECT(ADDRESS(($A$8-1)*12+2,MATCH('Cash flow'!E$67,'Cash flow CALC'!$1:$1,0),1,1,"Cash flow CALC")):INDIRECT(ADDRESS(A49*12+1,MATCH('Cash flow'!E$67,'Cash flow CALC'!$1:$1,0),1,1,"Cash flow CALC"))),"-") -> - | F49: =IF(A49<=ROUNDDOWN(MainForm!$C$11/12,0), SUM(INDIRECT(ADDRESS((A49-1)*12+2,MATCH('Cash flow'!F$67,'Cash flow CALC'!$1:$1,0),1,1,"Cash flow CALC")):INDIRECT(ADDRESS(A49*12+1,MATCH('Cash flow'!F$67,'Cash flow CALC'!$1:$1,0),1,1,"Cash flow CALC"))),"-") -> - | G49: =IF(A49<=ROUNDDOWN(MainForm!$C$11/12,0), SUM(INDIRECT(ADDRESS((A49-1)*12+2,MATCH('Cash flow'!G$67,'Cash flow CALC'!$1:$1,0),1,1,"Cash flow CALC")):INDIRECT(ADDRESS(A49*12+1,MATCH('Cash flow'!G$67,'Cash flow CALC'!$1:$1,0),1,1,"Cash flow CALC"))),"-") -> - | H49: =IF(A49<=ROUNDDOWN(MainForm!$C$11/12,0), SUM(INDIRECT(ADDRESS((A49-1)*12+2,MATCH('Cash flow'!H$67,'Cash flow CALC'!$1:$1,0),1,1,"Cash flow CALC")):INDIRECT(ADDRESS(A49*12+1,MATCH('Cash flow'!H$67,'Cash flow CALC'!$1:$1,0),1,1,"Cash flow CALC"))),"-") -> - | I49: =IF(A49<=ROUNDDOWN(MainForm!$C$11/12,0), SUM(INDIRECT(ADDRESS((A49-1)*12+2,MATCH('Cash flow'!I$67,'Cash flow CALC'!$1:$1,0),1,1,"Cash flow CALC")):INDIRECT(ADDRESS(A49*12+1,MATCH('Cash flow'!I$67,'Cash flow CALC'!$1:$1,0),1,1,"Cash flow CALC"))),"-") -> - | J49: =IF(A49<=ROUNDDOWN(MainForm!$C$11/12,0), SUM(INDIRECT(ADDRESS((A49-1)*12+2,MATCH('Cash flow'!J$67,'Cash flow CALC'!$1:$1,0),1,1,"Cash flow CALC")):INDIRECT(ADDRESS(A49*12+1,MATCH('Cash flow'!J$67,'Cash flow CALC'!$1:$1,0),1,1,"Cash flow CALC"))),"-") -> - | K49: =IF(A49<=ROUNDDOWN(MainForm!$C$11/12,0), INDIRECT(ADDRESS(A49*12+1,MATCH('Cash flow'!K$67,'Cash flow CALC'!$1:$1,0),1,1,"Cash flow CALC")),"-") -> - | L49: =IF(A49<=ROUNDDOWN(MainForm!$C$11/12,0), SUM(INDIRECT(ADDRESS((A49-1)*12+2,MATCH('Cash flow'!L$67,'Cash flow CALC'!$1:$1,0),1,1,"Cash flow CALC")):INDIRECT(ADDRESS(A49*12+1,MATCH('Cash flow'!L$67,'Cash flow CALC'!$1:$1,0),1,1,"Cash flow CALC"))),"-") -> - | M49: =IF(A49<=ROUNDDOWN(MainForm!$C$11/12,0), INDIRECT(ADDRESS(A49*12+1,MATCH('Cash flow'!M$67,'Cash flow CALC'!$1:$1,0),1,1,"Cash flow CALC")),"-") -> - | N49: =IF(A49<=ROUNDDOWN(MainForm!$C$11/12,0), SUM(INDIRECT(ADDRESS((A49-1)*12+2,MATCH('Cash flow'!N$67,'Cash flow CALC'!$1:$1,0),1,1,"Cash flow CALC")):INDIRECT(ADDRESS(A49*12+1,MATCH('Cash flow'!N$67,'Cash flow CALC'!$1:$1,0),1,1,"Cash flow CALC"))),"-") -> - | O49: =IF(A49<=ROUNDDOWN(MainForm!$C$11/12,0), SUM(INDIRECT(ADDRESS((A49-1)*12+2,MATCH('Cash flow'!O$67,'Cash flow CALC'!$1:$1,0),1,1,"Cash flow CALC")):INDIRECT(ADDRESS(A49*12+1,MATCH('Cash flow'!O$67,'Cash flow CALC'!$1:$1,0),1,1,"Cash flow CALC"))),"-") -> - | P49: =IF(A49<=ROUNDDOWN(MainForm!$C$11/12,0), INDIRECT(ADDRESS(A49*12+1,MATCH('Cash flow'!P$67,'Cash flow CALC'!$1:$1,0),1,1,"Cash flow CALC")),"-") -> - | Q49: =IF(A49<=ROUNDDOWN(MainForm!$C$11/12,0), INDIRECT(ADDRESS(A49*12+1,MATCH('Cash flow'!Q$67,'Cash flow CALC'!$1:$1,0),1,1,"Cash flow CALC")),"-") -> - | R49: =IF(A49<=ROUNDDOWN(MainForm!$C$11/12,0), VLOOKUP(A49,Premium_suppression,2,FALSE),"-") -> -
A50: 43 | B50: =IF(A50<=ROUNDDOWN(MainForm!$C$11/12,0), SUM(INDIRECT(ADDRESS((A50-1)*12+2,MATCH('Cash flow'!B$67,'Cash flow CALC'!$1:$1,0),1,1,"Cash flow CALC")):INDIRECT(ADDRESS(A50*12+1,MATCH('Cash flow'!B$67,'Cash flow CALC'!$1:$1,0),1,1,"Cash flow CALC"))), "-") -> - | C50: =IF(A50<=ROUNDDOWN(MainForm!$C$11/12,0), VLOOKUP(A50,Indexation_full,2,FALSE), "-") -> - | D50: =IF(A50<=ROUNDDOWN(MainForm!$C$11/12,0), SUM(INDIRECT(ADDRESS((A50-1)*12+2,MATCH('Cash flow'!D$67,'Cash flow CALC'!$1:$1,0),1,1,"Cash flow CALC")):INDIRECT(ADDRESS(A50*12+1,MATCH('Cash flow'!D$67,'Cash flow CALC'!$1:$1,0),1,1,"Cash flow CALC"))), "-") -> - | E50: =IF(A50<=ROUNDDOWN(MainForm!$C$11/12,0), SUM(INDIRECT(ADDRESS(($A$8-1)*12+2,MATCH('Cash flow'!E$67,'Cash flow CALC'!$1:$1,0),1,1,"Cash flow CALC")):INDIRECT(ADDRESS(A50*12+1,MATCH('Cash flow'!E$67,'Cash flow CALC'!$1:$1,0),1,1,"Cash flow CALC"))),"-") -> - | F50: =IF(A50<=ROUNDDOWN(MainForm!$C$11/12,0), SUM(INDIRECT(ADDRESS((A50-1)*12+2,MATCH('Cash flow'!F$67,'Cash flow CALC'!$1:$1,0),1,1,"Cash flow CALC")):INDIRECT(ADDRESS(A50*12+1,MATCH('Cash flow'!F$67,'Cash flow CALC'!$1:$1,0),1,1,"Cash flow CALC"))),"-") -> - | G50: =IF(A50<=ROUNDDOWN(MainForm!$C$11/12,0), SUM(INDIRECT(ADDRESS((A50-1)*12+2,MATCH('Cash flow'!G$67,'Cash flow CALC'!$1:$1,0),1,1,"Cash flow CALC")):INDIRECT(ADDRESS(A50*12+1,MATCH('Cash flow'!G$67,'Cash flow CALC'!$1:$1,0),1,1,"Cash flow CALC"))),"-") -> - | H50: =IF(A50<=ROUNDDOWN(MainForm!$C$11/12,0), SUM(INDIRECT(ADDRESS((A50-1)*12+2,MATCH('Cash flow'!H$67,'Cash flow CALC'!$1:$1,0),1,1,"Cash flow CALC")):INDIRECT(ADDRESS(A50*12+1,MATCH('Cash flow'!H$67,'Cash flow CALC'!$1:$1,0),1,1,"Cash flow CALC"))),"-") -> - | I50: =IF(A50<=ROUNDDOWN(MainForm!$C$11/12,0), SUM(INDIRECT(ADDRESS((A50-1)*12+2,MATCH('Cash flow'!I$67,'Cash flow CALC'!$1:$1,0),1,1,"Cash flow CALC")):INDIRECT(ADDRESS(A50*12+1,MATCH('Cash flow'!I$67,'Cash flow CALC'!$1:$1,0),1,1,"Cash flow CALC"))),"-") -> - | J50: =IF(A50<=ROUNDDOWN(MainForm!$C$11/12,0), SUM(INDIRECT(ADDRESS((A50-1)*12+2,MATCH('Cash flow'!J$67,'Cash flow CALC'!$1:$1,0),1,1,"Cash flow CALC")):INDIRECT(ADDRESS(A50*12+1,MATCH('Cash flow'!J$67,'Cash flow CALC'!$1:$1,0),1,1,"Cash flow CALC"))),"-") -> - | K50: =IF(A50<=ROUNDDOWN(MainForm!$C$11/12,0), INDIRECT(ADDRESS(A50*12+1,MATCH('Cash flow'!K$67,'Cash flow CALC'!$1:$1,0),1,1,"Cash flow CALC")),"-") -> - | L50: =IF(A50<=ROUNDDOWN(MainForm!$C$11/12,0), SUM(INDIRECT(ADDRESS((A50-1)*12+2,MATCH('Cash flow'!L$67,'Cash flow CALC'!$1:$1,0),1,1,"Cash flow CALC")):INDIRECT(ADDRESS(A50*12+1,MATCH('Cash flow'!L$67,'Cash flow CALC'!$1:$1,0),1,1,"Cash flow CALC"))),"-") -> - | M50: =IF(A50<=ROUNDDOWN(MainForm!$C$11/12,0), INDIRECT(ADDRESS(A50*12+1,MATCH('Cash flow'!M$67,'Cash flow CALC'!$1:$1,0),1,1,"Cash flow CALC")),"-") -> - | N50: =IF(A50<=ROUNDDOWN(MainForm!$C$11/12,0), SUM(INDIRECT(ADDRESS((A50-1)*12+2,MATCH('Cash flow'!N$67,'Cash flow CALC'!$1:$1,0),1,1,"Cash flow CALC")):INDIRECT(ADDRESS(A50*12+1,MATCH('Cash flow'!N$67,'Cash flow CALC'!$1:$1,0),1,1,"Cash flow CALC"))),"-") -> - | O50: =IF(A50<=ROUNDDOWN(MainForm!$C$11/12,0), SUM(INDIRECT(ADDRESS((A50-1)*12+2,MATCH('Cash flow'!O$67,'Cash flow CALC'!$1:$1,0),1,1,"Cash flow CALC")):INDIRECT(ADDRESS(A50*12+1,MATCH('Cash flow'!O$67,'Cash flow CALC'!$1:$1,0),1,1,"Cash flow CALC"))),"-") -> - | P50: =IF(A50<=ROUNDDOWN(MainForm!$C$11/12,0), INDIRECT(ADDRESS(A50*12+1,MATCH('Cash flow'!P$67,'Cash flow CALC'!$1:$1,0),1,1,"Cash flow CALC")),"-") -> - | Q50: =IF(A50<=ROUNDDOWN(MainForm!$C$11/12,0), INDIRECT(ADDRESS(A50*12+1,MATCH('Cash flow'!Q$67,'Cash flow CALC'!$1:$1,0),1,1,"Cash flow CALC")),"-") -> - | R50: =IF(A50<=ROUNDDOWN(MainForm!$C$11/12,0), VLOOKUP(A50,Premium_suppression,2,FALSE),"-") -> -
A51: 44 | B51: =IF(A51<=ROUNDDOWN(MainForm!$C$11/12,0), SUM(INDIRECT(ADDRESS((A51-1)*12+2,MATCH('Cash flow'!B$67,'Cash flow CALC'!$1:$1,0),1,1,"Cash flow CALC")):INDIRECT(ADDRESS(A51*12+1,MATCH('Cash flow'!B$67,'Cash flow CALC'!$1:$1,0),1,1,"Cash flow CALC"))), "-") -> - | C51: =IF(A51<=ROUNDDOWN(MainForm!$C$11/12,0), VLOOKUP(A51,Indexation_full,2,FALSE), "-") -> - | D51: =IF(A51<=ROUNDDOWN(MainForm!$C$11/12,0), SUM(INDIRECT(ADDRESS((A51-1)*12+2,MATCH('Cash flow'!D$67,'Cash flow CALC'!$1:$1,0),1,1,"Cash flow CALC")):INDIRECT(ADDRESS(A51*12+1,MATCH('Cash flow'!D$67,'Cash flow CALC'!$1:$1,0),1,1,"Cash flow CALC"))), "-") -> - | E51: =IF(A51<=ROUNDDOWN(MainForm!$C$11/12,0), SUM(INDIRECT(ADDRESS(($A$8-1)*12+2,MATCH('Cash flow'!E$67,'Cash flow CALC'!$1:$1,0),1,1,"Cash flow CALC")):INDIRECT(ADDRESS(A51*12+1,MATCH('Cash flow'!E$67,'Cash flow CALC'!$1:$1,0),1,1,"Cash flow CALC"))),"-") -> - | F51: =IF(A51<=ROUNDDOWN(MainForm!$C$11/12,0), SUM(INDIRECT(ADDRESS((A51-1)*12+2,MATCH('Cash flow'!F$67,'Cash flow CALC'!$1:$1,0),1,1,"Cash flow CALC")):INDIRECT(ADDRESS(A51*12+1,MATCH('Cash flow'!F$67,'Cash flow CALC'!$1:$1,0),1,1,"Cash flow CALC"))),"-") -> - | G51: =IF(A51<=ROUNDDOWN(MainForm!$C$11/12,0), SUM(INDIRECT(ADDRESS((A51-1)*12+2,MATCH('Cash flow'!G$67,'Cash flow CALC'!$1:$1,0),1,1,"Cash flow CALC")):INDIRECT(ADDRESS(A51*12+1,MATCH('Cash flow'!G$67,'Cash flow CALC'!$1:$1,0),1,1,"Cash flow CALC"))),"-") -> - | H51: =IF(A51<=ROUNDDOWN(MainForm!$C$11/12,0), SUM(INDIRECT(ADDRESS((A51-1)*12+2,MATCH('Cash flow'!H$67,'Cash flow CALC'!$1:$1,0),1,1,"Cash flow CALC")):INDIRECT(ADDRESS(A51*12+1,MATCH('Cash flow'!H$67,'Cash flow CALC'!$1:$1,0),1,1,"Cash flow CALC"))),"-") -> - | I51: =IF(A51<=ROUNDDOWN(MainForm!$C$11/12,0), SUM(INDIRECT(ADDRESS((A51-1)*12+2,MATCH('Cash flow'!I$67,'Cash flow CALC'!$1:$1,0),1,1,"Cash flow CALC")):INDIRECT(ADDRESS(A51*12+1,MATCH('Cash flow'!I$67,'Cash flow CALC'!$1:$1,0),1,1,"Cash flow CALC"))),"-") -> - | J51: =IF(A51<=ROUNDDOWN(MainForm!$C$11/12,0), SUM(INDIRECT(ADDRESS((A51-1)*12+2,MATCH('Cash flow'!J$67,'Cash flow CALC'!$1:$1,0),1,1,"Cash flow CALC")):INDIRECT(ADDRESS(A51*12+1,MATCH('Cash flow'!J$67,'Cash flow CALC'!$1:$1,0),1,1,"Cash flow CALC"))),"-") -> - | K51: =IF(A51<=ROUNDDOWN(MainForm!$C$11/12,0), INDIRECT(ADDRESS(A51*12+1,MATCH('Cash flow'!K$67,'Cash flow CALC'!$1:$1,0),1,1,"Cash flow CALC")),"-") -> - | L51: =IF(A51<=ROUNDDOWN(MainForm!$C$11/12,0), SUM(INDIRECT(ADDRESS((A51-1)*12+2,MATCH('Cash flow'!L$67,'Cash flow CALC'!$1:$1,0),1,1,"Cash flow CALC")):INDIRECT(ADDRESS(A51*12+1,MATCH('Cash flow'!L$67,'Cash flow CALC'!$1:$1,0),1,1,"Cash flow CALC"))),"-") -> - | M51: =IF(A51<=ROUNDDOWN(MainForm!$C$11/12,0), INDIRECT(ADDRESS(A51*12+1,MATCH('Cash flow'!M$67,'Cash flow CALC'!$1:$1,0),1,1,"Cash flow CALC")),"-") -> - | N51: =IF(A51<=ROUNDDOWN(MainForm!$C$11/12,0), SUM(INDIRECT(ADDRESS((A51-1)*12+2,MATCH('Cash flow'!N$67,'Cash flow CALC'!$1:$1,0),1,1,"Cash flow CALC")):INDIRECT(ADDRESS(A51*12+1,MATCH('Cash flow'!N$67,'Cash flow CALC'!$1:$1,0),1,1,"Cash flow CALC"))),"-") -> - | O51: =IF(A51<=ROUNDDOWN(MainForm!$C$11/12,0), SUM(INDIRECT(ADDRESS((A51-1)*12+2,MATCH('Cash flow'!O$67,'Cash flow CALC'!$1:$1,0),1,1,"Cash flow CALC")):INDIRECT(ADDRESS(A51*12+1,MATCH('Cash flow'!O$67,'Cash flow CALC'!$1:$1,0),1,1,"Cash flow CALC"))),"-") -> - | P51: =IF(A51<=ROUNDDOWN(MainForm!$C$11/12,0), INDIRECT(ADDRESS(A51*12+1,MATCH('Cash flow'!P$67,'Cash flow CALC'!$1:$1,0),1,1,"Cash flow CALC")),"-") -> - | Q51: =IF(A51<=ROUNDDOWN(MainForm!$C$11/12,0), INDIRECT(ADDRESS(A51*12+1,MATCH('Cash flow'!Q$67,'Cash flow CALC'!$1:$1,0),1,1,"Cash flow CALC")),"-") -> - | R51: =IF(A51<=ROUNDDOWN(MainForm!$C$11/12,0), VLOOKUP(A51,Premium_suppression,2,FALSE),"-") -> -
A52: 45 | B52: =IF(A52<=ROUNDDOWN(MainForm!$C$11/12,0), SUM(INDIRECT(ADDRESS((A52-1)*12+2,MATCH('Cash flow'!B$67,'Cash flow CALC'!$1:$1,0),1,1,"Cash flow CALC")):INDIRECT(ADDRESS(A52*12+1,MATCH('Cash flow'!B$67,'Cash flow CALC'!$1:$1,0),1,1,"Cash flow CALC"))), "-") -> - | C52: =IF(A52<=ROUNDDOWN(MainForm!$C$11/12,0), VLOOKUP(A52,Indexation_full,2,FALSE), "-") -> - | D52: =IF(A52<=ROUNDDOWN(MainForm!$C$11/12,0), SUM(INDIRECT(ADDRESS((A52-1)*12+2,MATCH('Cash flow'!D$67,'Cash flow CALC'!$1:$1,0),1,1,"Cash flow CALC")):INDIRECT(ADDRESS(A52*12+1,MATCH('Cash flow'!D$67,'Cash flow CALC'!$1:$1,0),1,1,"Cash flow CALC"))), "-") -> - | E52: =IF(A52<=ROUNDDOWN(MainForm!$C$11/12,0), SUM(INDIRECT(ADDRESS(($A$8-1)*12+2,MATCH('Cash flow'!E$67,'Cash flow CALC'!$1:$1,0),1,1,"Cash flow CALC")):INDIRECT(ADDRESS(A52*12+1,MATCH('Cash flow'!E$67,'Cash flow CALC'!$1:$1,0),1,1,"Cash flow CALC"))),"-") -> - | F52: =IF(A52<=ROUNDDOWN(MainForm!$C$11/12,0), SUM(INDIRECT(ADDRESS((A52-1)*12+2,MATCH('Cash flow'!F$67,'Cash flow CALC'!$1:$1,0),1,1,"Cash flow CALC")):INDIRECT(ADDRESS(A52*12+1,MATCH('Cash flow'!F$67,'Cash flow CALC'!$1:$1,0),1,1,"Cash flow CALC"))),"-") -> - | G52: =IF(A52<=ROUNDDOWN(MainForm!$C$11/12,0), SUM(INDIRECT(ADDRESS((A52-1)*12+2,MATCH('Cash flow'!G$67,'Cash flow CALC'!$1:$1,0),1,1,"Cash flow CALC")):INDIRECT(ADDRESS(A52*12+1,MATCH('Cash flow'!G$67,'Cash flow CALC'!$1:$1,0),1,1,"Cash flow CALC"))),"-") -> - | H52: =IF(A52<=ROUNDDOWN(MainForm!$C$11/12,0), SUM(INDIRECT(ADDRESS((A52-1)*12+2,MATCH('Cash flow'!H$67,'Cash flow CALC'!$1:$1,0),1,1,"Cash flow CALC")):INDIRECT(ADDRESS(A52*12+1,MATCH('Cash flow'!H$67,'Cash flow CALC'!$1:$1,0),1,1,"Cash flow CALC"))),"-") -> - | I52: =IF(A52<=ROUNDDOWN(MainForm!$C$11/12,0), SUM(INDIRECT(ADDRESS((A52-1)*12+2,MATCH('Cash flow'!I$67,'Cash flow CALC'!$1:$1,0),1,1,"Cash flow CALC")):INDIRECT(ADDRESS(A52*12+1,MATCH('Cash flow'!I$67,'Cash flow CALC'!$1:$1,0),1,1,"Cash flow CALC"))),"-") -> - | J52: =IF(A52<=ROUNDDOWN(MainForm!$C$11/12,0), SUM(INDIRECT(ADDRESS((A52-1)*12+2,MATCH('Cash flow'!J$67,'Cash flow CALC'!$1:$1,0),1,1,"Cash flow CALC")):INDIRECT(ADDRESS(A52*12+1,MATCH('Cash flow'!J$67,'Cash flow CALC'!$1:$1,0),1,1,"Cash flow CALC"))),"-") -> - | K52: =IF(A52<=ROUNDDOWN(MainForm!$C$11/12,0), INDIRECT(ADDRESS(A52*12+1,MATCH('Cash flow'!K$67,'Cash flow CALC'!$1:$1,0),1,1,"Cash flow CALC")),"-") -> - | L52: =IF(A52<=ROUNDDOWN(MainForm!$C$11/12,0), SUM(INDIRECT(ADDRESS((A52-1)*12+2,MATCH('Cash flow'!L$67,'Cash flow CALC'!$1:$1,0),1,1,"Cash flow CALC")):INDIRECT(ADDRESS(A52*12+1,MATCH('Cash flow'!L$67,'Cash flow CALC'!$1:$1,0),1,1,"Cash flow CALC"))),"-") -> - | M52: =IF(A52<=ROUNDDOWN(MainForm!$C$11/12,0), INDIRECT(ADDRESS(A52*12+1,MATCH('Cash flow'!M$67,'Cash flow CALC'!$1:$1,0),1,1,"Cash flow CALC")),"-") -> - | N52: =IF(A52<=ROUNDDOWN(MainForm!$C$11/12,0), SUM(INDIRECT(ADDRESS((A52-1)*12+2,MATCH('Cash flow'!N$67,'Cash flow CALC'!$1:$1,0),1,1,"Cash flow CALC")):INDIRECT(ADDRESS(A52*12+1,MATCH('Cash flow'!N$67,'Cash flow CALC'!$1:$1,0),1,1,"Cash flow CALC"))),"-") -> - | O52: =IF(A52<=ROUNDDOWN(MainForm!$C$11/12,0), SUM(INDIRECT(ADDRESS((A52-1)*12+2,MATCH('Cash flow'!O$67,'Cash flow CALC'!$1:$1,0),1,1,"Cash flow CALC")):INDIRECT(ADDRESS(A52*12+1,MATCH('Cash flow'!O$67,'Cash flow CALC'!$1:$1,0),1,1,"Cash flow CALC"))),"-") -> - | P52: =IF(A52<=ROUNDDOWN(MainForm!$C$11/12,0), INDIRECT(ADDRESS(A52*12+1,MATCH('Cash flow'!P$67,'Cash flow CALC'!$1:$1,0),1,1,"Cash flow CALC")),"-") -> - | Q52: =IF(A52<=ROUNDDOWN(MainForm!$C$11/12,0), INDIRECT(ADDRESS(A52*12+1,MATCH('Cash flow'!Q$67,'Cash flow CALC'!$1:$1,0),1,1,"Cash flow CALC")),"-") -> - | R52: =IF(A52<=ROUNDDOWN(MainForm!$C$11/12,0), VLOOKUP(A52,Premium_suppression,2,FALSE),"-") -> -
A53: 46 | B53: =IF(A53<=ROUNDDOWN(MainForm!$C$11/12,0), SUM(INDIRECT(ADDRESS((A53-1)*12+2,MATCH('Cash flow'!B$67,'Cash flow CALC'!$1:$1,0),1,1,"Cash flow CALC")):INDIRECT(ADDRESS(A53*12+1,MATCH('Cash flow'!B$67,'Cash flow CALC'!$1:$1,0),1,1,"Cash flow CALC"))), "-") -> - | C53: =IF(A53<=ROUNDDOWN(MainForm!$C$11/12,0), VLOOKUP(A53,Indexation_full,2,FALSE), "-") -> - | D53: =IF(A53<=ROUNDDOWN(MainForm!$C$11/12,0), SUM(INDIRECT(ADDRESS((A53-1)*12+2,MATCH('Cash flow'!D$67,'Cash flow CALC'!$1:$1,0),1,1,"Cash flow CALC")):INDIRECT(ADDRESS(A53*12+1,MATCH('Cash flow'!D$67,'Cash flow CALC'!$1:$1,0),1,1,"Cash flow CALC"))), "-") -> - | E53: =IF(A53<=ROUNDDOWN(MainForm!$C$11/12,0), SUM(INDIRECT(ADDRESS(($A$8-1)*12+2,MATCH('Cash flow'!E$67,'Cash flow CALC'!$1:$1,0),1,1,"Cash flow CALC")):INDIRECT(ADDRESS(A53*12+1,MATCH('Cash flow'!E$67,'Cash flow CALC'!$1:$1,0),1,1,"Cash flow CALC"))),"-") -> - | F53: =IF(A53<=ROUNDDOWN(MainForm!$C$11/12,0), SUM(INDIRECT(ADDRESS((A53-1)*12+2,MATCH('Cash flow'!F$67,'Cash flow CALC'!$1:$1,0),1,1,"Cash flow CALC")):INDIRECT(ADDRESS(A53*12+1,MATCH('Cash flow'!F$67,'Cash flow CALC'!$1:$1,0),1,1,"Cash flow CALC"))),"-") -> - | G53: =IF(A53<=ROUNDDOWN(MainForm!$C$11/12,0), SUM(INDIRECT(ADDRESS((A53-1)*12+2,MATCH('Cash flow'!G$67,'Cash flow CALC'!$1:$1,0),1,1,"Cash flow CALC")):INDIRECT(ADDRESS(A53*12+1,MATCH('Cash flow'!G$67,'Cash flow CALC'!$1:$1,0),1,1,"Cash flow CALC"))),"-") -> - | H53: =IF(A53<=ROUNDDOWN(MainForm!$C$11/12,0), SUM(INDIRECT(ADDRESS((A53-1)*12+2,MATCH('Cash flow'!H$67,'Cash flow CALC'!$1:$1,0),1,1,"Cash flow CALC")):INDIRECT(ADDRESS(A53*12+1,MATCH('Cash flow'!H$67,'Cash flow CALC'!$1:$1,0),1,1,"Cash flow CALC"))),"-") -> - | I53: =IF(A53<=ROUNDDOWN(MainForm!$C$11/12,0), SUM(INDIRECT(ADDRESS((A53-1)*12+2,MATCH('Cash flow'!I$67,'Cash flow CALC'!$1:$1,0),1,1,"Cash flow CALC")):INDIRECT(ADDRESS(A53*12+1,MATCH('Cash flow'!I$67,'Cash flow CALC'!$1:$1,0),1,1,"Cash flow CALC"))),"-") -> - | J53: =IF(A53<=ROUNDDOWN(MainForm!$C$11/12,0), SUM(INDIRECT(ADDRESS((A53-1)*12+2,MATCH('Cash flow'!J$67,'Cash flow CALC'!$1:$1,0),1,1,"Cash flow CALC")):INDIRECT(ADDRESS(A53*12+1,MATCH('Cash flow'!J$67,'Cash flow CALC'!$1:$1,0),1,1,"Cash flow CALC"))),"-") -> - | K53: =IF(A53<=ROUNDDOWN(MainForm!$C$11/12,0), INDIRECT(ADDRESS(A53*12+1,MATCH('Cash flow'!K$67,'Cash flow CALC'!$1:$1,0),1,1,"Cash flow CALC")),"-") -> - | L53: =IF(A53<=ROUNDDOWN(MainForm!$C$11/12,0), SUM(INDIRECT(ADDRESS((A53-1)*12+2,MATCH('Cash flow'!L$67,'Cash flow CALC'!$1:$1,0),1,1,"Cash flow CALC")):INDIRECT(ADDRESS(A53*12+1,MATCH('Cash flow'!L$67,'Cash flow CALC'!$1:$1,0),1,1,"Cash flow CALC"))),"-") -> - | M53: =IF(A53<=ROUNDDOWN(MainForm!$C$11/12,0), INDIRECT(ADDRESS(A53*12+1,MATCH('Cash flow'!M$67,'Cash flow CALC'!$1:$1,0),1,1,"Cash flow CALC")),"-") -> - | N53: =IF(A53<=ROUNDDOWN(MainForm!$C$11/12,0), SUM(INDIRECT(ADDRESS((A53-1)*12+2,MATCH('Cash flow'!N$67,'Cash flow CALC'!$1:$1,0),1,1,"Cash flow CALC")):INDIRECT(ADDRESS(A53*12+1,MATCH('Cash flow'!N$67,'Cash flow CALC'!$1:$1,0),1,1,"Cash flow CALC"))),"-") -> - | O53: =IF(A53<=ROUNDDOWN(MainForm!$C$11/12,0), SUM(INDIRECT(ADDRESS((A53-1)*12+2,MATCH('Cash flow'!O$67,'Cash flow CALC'!$1:$1,0),1,1,"Cash flow CALC")):INDIRECT(ADDRESS(A53*12+1,MATCH('Cash flow'!O$67,'Cash flow CALC'!$1:$1,0),1,1,"Cash flow CALC"))),"-") -> - | P53: =IF(A53<=ROUNDDOWN(MainForm!$C$11/12,0), INDIRECT(ADDRESS(A53*12+1,MATCH('Cash flow'!P$67,'Cash flow CALC'!$1:$1,0),1,1,"Cash flow CALC")),"-") -> - | Q53: =IF(A53<=ROUNDDOWN(MainForm!$C$11/12,0), INDIRECT(ADDRESS(A53*12+1,MATCH('Cash flow'!Q$67,'Cash flow CALC'!$1:$1,0),1,1,"Cash flow CALC")),"-") -> - | R53: =IF(A53<=ROUNDDOWN(MainForm!$C$11/12,0), VLOOKUP(A53,Premium_suppression,2,FALSE),"-") -> -
A54: 47 | B54: =IF(A54<=ROUNDDOWN(MainForm!$C$11/12,0), SUM(INDIRECT(ADDRESS((A54-1)*12+2,MATCH('Cash flow'!B$67,'Cash flow CALC'!$1:$1,0),1,1,"Cash flow CALC")):INDIRECT(ADDRESS(A54*12+1,MATCH('Cash flow'!B$67,'Cash flow CALC'!$1:$1,0),1,1,"Cash flow CALC"))), "-") -> - | C54: =IF(A54<=ROUNDDOWN(MainForm!$C$11/12,0), VLOOKUP(A54,Indexation_full,2,FALSE), "-") -> - | D54: =IF(A54<=ROUNDDOWN(MainForm!$C$11/12,0), SUM(INDIRECT(ADDRESS((A54-1)*12+2,MATCH('Cash flow'!D$67,'Cash flow CALC'!$1:$1,0),1,1,"Cash flow CALC")):INDIRECT(ADDRESS(A54*12+1,MATCH('Cash flow'!D$67,'Cash flow CALC'!$1:$1,0),1,1,"Cash flow CALC"))), "-") -> - | E54: =IF(A54<=ROUNDDOWN(MainForm!$C$11/12,0), SUM(INDIRECT(ADDRESS(($A$8-1)*12+2,MATCH('Cash flow'!E$67,'Cash flow CALC'!$1:$1,0),1,1,"Cash flow CALC")):INDIRECT(ADDRESS(A54*12+1,MATCH('Cash flow'!E$67,'Cash flow CALC'!$1:$1,0),1,1,"Cash flow CALC"))),"-") -> - | F54: =IF(A54<=ROUNDDOWN(MainForm!$C$11/12,0), SUM(INDIRECT(ADDRESS((A54-1)*12+2,MATCH('Cash flow'!F$67,'Cash flow CALC'!$1:$1,0),1,1,"Cash flow CALC")):INDIRECT(ADDRESS(A54*12+1,MATCH('Cash flow'!F$67,'Cash flow CALC'!$1:$1,0),1,1,"Cash flow CALC"))),"-") -> - | G54: =IF(A54<=ROUNDDOWN(MainForm!$C$11/12,0), SUM(INDIRECT(ADDRESS((A54-1)*12+2,MATCH('Cash flow'!G$67,'Cash flow CALC'!$1:$1,0),1,1,"Cash flow CALC")):INDIRECT(ADDRESS(A54*12+1,MATCH('Cash flow'!G$67,'Cash flow CALC'!$1:$1,0),1,1,"Cash flow CALC"))),"-") -> - | H54: =IF(A54<=ROUNDDOWN(MainForm!$C$11/12,0), SUM(INDIRECT(ADDRESS((A54-1)*12+2,MATCH('Cash flow'!H$67,'Cash flow CALC'!$1:$1,0),1,1,"Cash flow CALC")):INDIRECT(ADDRESS(A54*12+1,MATCH('Cash flow'!H$67,'Cash flow CALC'!$1:$1,0),1,1,"Cash flow CALC"))),"-") -> - | I54: =IF(A54<=ROUNDDOWN(MainForm!$C$11/12,0), SUM(INDIRECT(ADDRESS((A54-1)*12+2,MATCH('Cash flow'!I$67,'Cash flow CALC'!$1:$1,0),1,1,"Cash flow CALC")):INDIRECT(ADDRESS(A54*12+1,MATCH('Cash flow'!I$67,'Cash flow CALC'!$1:$1,0),1,1,"Cash flow CALC"))),"-") -> - | J54: =IF(A54<=ROUNDDOWN(MainForm!$C$11/12,0), SUM(INDIRECT(ADDRESS((A54-1)*12+2,MATCH('Cash flow'!J$67,'Cash flow CALC'!$1:$1,0),1,1,"Cash flow CALC")):INDIRECT(ADDRESS(A54*12+1,MATCH('Cash flow'!J$67,'Cash flow CALC'!$1:$1,0),1,1,"Cash flow CALC"))),"-") -> - | K54: =IF(A54<=ROUNDDOWN(MainForm!$C$11/12,0), INDIRECT(ADDRESS(A54*12+1,MATCH('Cash flow'!K$67,'Cash flow CALC'!$1:$1,0),1,1,"Cash flow CALC")),"-") -> - | L54: =IF(A54<=ROUNDDOWN(MainForm!$C$11/12,0), SUM(INDIRECT(ADDRESS((A54-1)*12+2,MATCH('Cash flow'!L$67,'Cash flow CALC'!$1:$1,0),1,1,"Cash flow CALC")):INDIRECT(ADDRESS(A54*12+1,MATCH('Cash flow'!L$67,'Cash flow CALC'!$1:$1,0),1,1,"Cash flow CALC"))),"-") -> - | M54: =IF(A54<=ROUNDDOWN(MainForm!$C$11/12,0), INDIRECT(ADDRESS(A54*12+1,MATCH('Cash flow'!M$67,'Cash flow CALC'!$1:$1,0),1,1,"Cash flow CALC")),"-") -> - | N54: =IF(A54<=ROUNDDOWN(MainForm!$C$11/12,0), SUM(INDIRECT(ADDRESS((A54-1)*12+2,MATCH('Cash flow'!N$67,'Cash flow CALC'!$1:$1,0),1,1,"Cash flow CALC")):INDIRECT(ADDRESS(A54*12+1,MATCH('Cash flow'!N$67,'Cash flow CALC'!$1:$1,0),1,1,"Cash flow CALC"))),"-") -> - | O54: =IF(A54<=ROUNDDOWN(MainForm!$C$11/12,0), SUM(INDIRECT(ADDRESS((A54-1)*12+2,MATCH('Cash flow'!O$67,'Cash flow CALC'!$1:$1,0),1,1,"Cash flow CALC")):INDIRECT(ADDRESS(A54*12+1,MATCH('Cash flow'!O$67,'Cash flow CALC'!$1:$1,0),1,1,"Cash flow CALC"))),"-") -> - | P54: =IF(A54<=ROUNDDOWN(MainForm!$C$11/12,0), INDIRECT(ADDRESS(A54*12+1,MATCH('Cash flow'!P$67,'Cash flow CALC'!$1:$1,0),1,1,"Cash flow CALC")),"-") -> - | Q54: =IF(A54<=ROUNDDOWN(MainForm!$C$11/12,0), INDIRECT(ADDRESS(A54*12+1,MATCH('Cash flow'!Q$67,'Cash flow CALC'!$1:$1,0),1,1,"Cash flow CALC")),"-") -> - | R54: =IF(A54<=ROUNDDOWN(MainForm!$C$11/12,0), VLOOKUP(A54,Premium_suppression,2,FALSE),"-") -> -
A55: * A Kiegészítő biztosítások és a mindenkor aktuális éves díj arányát állandónak feltételezve
A56: ** A bónusz jóváírások változhatnak az éves díj módosítása, értékkövetés módosítása, díjszüneteltetés, rendszeres egységekből történő visszavásárlás esetén
A57: *** A Biztosító az ügyfél által megadott "Nettó hozamérték számlaérték számításhoz" értékkel számol, és az itt megjelenő értékek elérése a "Nettó hozamérték számlaérték számításhoz" értékek folyamatos teljesülése esetén lehetséges. A tényleges hozamra vonatkozóan a Biztosító semmi nemű garanciát nem vállal, és az itt feltüntetett értékek jövőbeni teljesülése tekintetében semmilyen felelősséggel nem tartozik.
A59: **** A feltüntetett értékek a következő értékek változatlanságát feltételezve kerültek kiszámításra: ügyfél által megadott "Nettó hozamérték számlaérték számításhoz" értéke, a rendszeres díjak értékkövetéssel növelt érteke, a megadott eseti díjbefizetések értéke, az értékkövetés mértéke, a bónusz jóváírások értéke, illetve a hozam mértéke. A Biztosító nem vállal semmilyen felelősséget arra vonatkozóan, hogy a "Nettó hozamérték számlaérték számításhoz" az ügyfél által megadott értékek teljesülni fognak a szerződés tekintetében. A modell figyelembe veszi a szerződésre vonatkozó alábbi költséglevonásokat: első időszakban esedékes elvonás, szerződéskötési költség, számlakezelési költség, csekkes díjfizetéshez kapcsolódó költség, és a kiegészítő biztosítások esetleges költségei. A modell nem veszi figyelembe a kifizetéssel járó feltételek szerinti bármilyen költségeket (pld. pénzkivonási, visszavásárlási). A modell állandónak feltételezi az aktuális éves rendszeres díj és a kiegészítő biztosítások arányát, a devizaárfolyamot, valamint nem számol a költségek változásával. A mutatott számlaérték a szerződés kezdeti időszakában a termék feltételeinek megfelelően eltérhet a tényleges visszavásárlási értéktől. A számítás nem veszi figyelembe a Befektetési politika esetleges jövőbeli változásait, és annak alapján jeleníti meg az adatokat, hogy a díjfizetésben, indexálásban nem lesz eltérés, pénzkivonásra semmilyen formában nem kerül sor és a hűségbónusz is kifizetésre kerül, valamint levonja a költségeket szintén változatlan formában. A táblázat adatai nagyszámú feltételezésen alapulnak, míg a valóságot a feltételezéstől eltérő tényleges körülmények és az ügyfél jövőbeni döntései is befolyásolják, így a várható számlaérték teljesüléséért az AXA Biztosító Zrt. semminemű felelősséget nem vállal.
B67: ="Premium_HUF" -> Premium_HUF | D67: ="Premium_Currency" -> Premium_Currency | E67: ="Premium_Currency" -> Premium_Currency | F67: ="AR" -> AR | G67: ="INIT" -> INIT | H67: ="ADMIN_FEE AVG" -> ADMIN_FEE AVG | I67: ="POSTAL_SLIP" -> POSTAL_SLIP | J67: ="RIDER" -> RIDER | K67: ="BONUS" -> BONUS | L67: ="YIELD AVG" -> YIELD AVG | M67: ="RESERVE_EOM AVG" -> RESERVE_EOM AVG | N67: ="TAX CREDIT" -> TAX CREDIT | O67: ="TOPUP PREMIUM" -> TOPUP PREMIUM | P67: ="TOPUP_BOM AVG" -> TOPUP_BOM AVG | Q67: ="GRAPH AVG" -> GRAPH AVG

Sheet Funds (hidden)
A1: HUF | B1: Hozam | C1: Szórás | D1: Megfontolt | E1: Kiegyensúlyozott | F1: Dinamikus | G1: Rendszeres allokáció | H1: Szórásnégyzet | I1: Eseti allokáció | J1: Szórásnégyzet | L1: Rendszeres díjakra
A2: Arany | B2: 0.129168553 | C2: 0.2198 | G2: =IF(AND(Devizanem="HUF",OR($G$24="Dinamikus",$G$24="Kiegyensúlyozott",$G$24="Megfontolt")),VLOOKUP(A2,MainForm!$B$117:$D$129,2,FALSE), IF(AND(Devizanem="HUF",$G$24="Egyéni"),VLOOKUP(A2,MainForm!$B$117:$D$129,3,FALSE),0)) -> 0 | H2: =$C2^2 -> 0.04831204 | I2: =IF(AND(Devizanem="HUF",OR($I$24="Dinamikus",$I$24="Kiegyensúlyozott",$I$24="Megfontolt")),VLOOKUP(A2,MainForm!$B$142:$D$154,2,FALSE), IF(AND(Devizanem="HUF",$I$24="Egyéni"),VLOOKUP(A2,MainForm!$B$142:$D$154,3,FALSE),0)) -> 0 | J2: =$C2^2 -> 0.04831204 | K2: =IFERROR(IF(AND(Devizanem="HUF",MATCH($G$24,$D$1:$F$1,0)>0),VLOOKUP(A2,MainForm!$B$117:$C$129,2,FALSE),0),"egyéni") -> 0 | L2: Súlyozott szórásnégyzet | M2: =SUMPRODUCT(G2:G22,H2:H22) -> 0.006655364
A3: Auróra | B3: 0.1345190183 | C3: 0.2558 | E3: 0.05 | F3: 0.09 | G3: =IF(AND(Devizanem="HUF",OR($G$24="Dinamikus",$G$24="Kiegyensúlyozott",$G$24="Megfontolt")),VLOOKUP(A3,MainForm!$B$117:$D$129,2,FALSE), IF(AND(Devizanem="HUF",$G$24="Egyéni"),VLOOKUP(A3,MainForm!$B$117:$D$129,3,FALSE),0)) -> 0 | H3: =$C3^2 -> 0.06543364 | I3: =IF(AND(Devizanem="HUF",OR($I$24="Dinamikus",$I$24="Kiegyensúlyozott",$I$24="Megfontolt")),VLOOKUP(A3,MainForm!$B$142:$D$154,2,FALSE), IF(AND(Devizanem="HUF",$I$24="Egyéni"),VLOOKUP(A3,MainForm!$B$142:$D$154,3,FALSE),0)) -> 0 | J3: 0.06543364 | L3: Standard súlyozott szórás | M3: =M2^(1/2) -> 0.08158041432
A4: Ázsiai | B4: 0.1141980814 | C4: 0.2536 | E4: 0.05 | F4: 0.09 | G4: =IF(AND(Devizanem="HUF",OR($G$24="Dinamikus",$G$24="Kiegyensúlyozott",$G$24="Megfontolt")),VLOOKUP(A4,MainForm!$B$117:$D$129,2,FALSE), IF(AND(Devizanem="HUF",$G$24="Egyéni"),VLOOKUP(A4,MainForm!$B$117:$D$129,3,FALSE),0)) -> 0 | H4: 0.06431296 | I4: =IF(AND(Devizanem="HUF",OR($I$24="Dinamikus",$I$24="Kiegyensúlyozott",$I$24="Megfontolt")),VLOOKUP(A4,MainForm!$B$142:$D$154,2,FALSE), IF(AND(Devizanem="HUF",$I$24="Egyéni"),VLOOKUP(A4,MainForm!$B$142:$D$154,3,FALSE),0)) -> 0 | J4: 0.06431296 | L4: Átlagos várható hozam | M4: =SUMPRODUCT(G2:G22,B2:B22) -> 0.07839
A5: Best Selection | B5: 0.0844 | C5: 0.0803 | G5: =IF(AND(Devizanem="HUF",OR($G$24="Dinamikus",$G$24="Kiegyensúlyozott",$G$24="Megfontolt")),VLOOKUP(A5,MainForm!$B$117:$D$129,2,FALSE), IF(AND(Devizanem="HUF",$G$24="Egyéni"),VLOOKUP(A5,MainForm!$B$117:$D$129,3,FALSE),0)) -> 0 | H5: 0.00644809 | I5: =IF(AND(Devizanem="HUF",OR($I$24="Dinamikus",$I$24="Kiegyensúlyozott",$I$24="Megfontolt")),VLOOKUP(A5,MainForm!$B$142:$D$154,2,FALSE), IF(AND(Devizanem="HUF",$I$24="Egyéni"),VLOOKUP(A5,MainForm!$B$142:$D$154,3,FALSE),0)) -> 0 | J5: 0.00644809 | L5: Számolt hozam | M5: =MainForm!$C$168 -> 0.04 | N5: =LN(1+M5) -> 0.03922071315 | S5: Átlagos éves hozam (spot) | X5: Forward hozamok
A6: Dél Csillagai | B6: 0.2135 | C6: 0.24 | E6: 0.05 | F6: 0.09 | G6: =IF(AND(Devizanem="HUF",OR($G$24="Dinamikus",$G$24="Kiegyensúlyozott",$G$24="Megfontolt")),VLOOKUP(A6,MainForm!$B$117:$D$129,2,FALSE), IF(AND(Devizanem="HUF",$G$24="Egyéni"),VLOOKUP(A6,MainForm!$B$117:$D$129,3,FALSE),0)) -> 0 | H6: 0.0576 | I6: =IF(AND(Devizanem="HUF",OR($I$24="Dinamikus",$I$24="Kiegyensúlyozott",$I$24="Megfontolt")),VLOOKUP(A6,MainForm!$B$142:$D$154,2,FALSE), IF(AND(Devizanem="HUF",$I$24="Egyéni"),VLOOKUP(A6,MainForm!$B$142:$D$154,3,FALSE),0)) -> 0 | J6: 0.0576 | M6: 20 | S6: 0.05 | T6: 0.25 | U6: 0.5 | V6: 0.75 | W6: 0.95 | X6: =+S6 -> 0.05 | Y6: =+T6 -> 0.25 | Z6: 0.5 | AA6: 0.75 | AB6: =+W6 -> 0.95
A7: Fashion Bond | B7: 0.079 | C7: 0.0682 | G7: =IF(AND(Devizanem="HUF",OR($G$24="Dinamikus",$G$24="Kiegyensúlyozott",$G$24="Megfontolt")),VLOOKUP(A7,MainForm!$B$117:$D$129,2,FALSE), IF(AND(Devizanem="HUF",$G$24="Egyéni"),VLOOKUP(A7,MainForm!$B$117:$D$129,3,FALSE),0)) -> 0 | H7: 0.00465124 | I7: =IF(AND(Devizanem="HUF",OR($I$24="Dinamikus",$I$24="Kiegyensúlyozott",$I$24="Megfontolt")),VLOOKUP(A7,MainForm!$B$142:$D$154,2,FALSE), IF(AND(Devizanem="HUF",$I$24="Egyéni"),VLOOKUP(A7,MainForm!$B$142:$D$154,3,FALSE),0)) -> 0 | J7: 0.00465124 | L7: 0.05 | M7: =NORMINV(L7,$N$5*$M$6,$M$6^(1/2)*$M$3)/$M$6 -> 0.00921539987 | N7: =EXP(M7)-1 -> 0.009257992402 | O7: HOZAM_05 | R7: 1 | S7: =EXP(NORMINV(S$6,$N$5*$R7,$R7^(1/2)*$M$3)/$R7)-1 -> -0.09059717143 | T7: =EXP(NORMINV(T$6,$N$5*$R7,$R7^(1/2)*$M$3)/$R7)-1 -> -0.0156802053 | U7: 0.04 | V7: 0.09882987808 | W7: 0.1893519198 | X7: =+S7 -> -0.09059717143 | Y7: -0.0156802053 | Z7: 0.04 | AA7: 0.09882987808 | AB7: =+W7 -> 0.1893519198
A8: Globális részvény | B8: 0.0782 | C8: 0.1614 | D8: 0.2 | E8: 0.35 | F8: 0.35 | G8: =IF(AND(Devizanem="HUF",OR($G$24="Dinamikus",$G$24="Kiegyensúlyozott",$G$24="Megfontolt")),VLOOKUP(A8,MainForm!$B$117:$D$129,2,FALSE), IF(AND(Devizanem="HUF",$G$24="Egyéni"),VLOOKUP(A8,MainForm!$B$117:$D$129,3,FALSE),0)) -> 0.2 | H8: 0.02604996 | I8: =IF(AND(Devizanem="HUF",OR($I$24="Dinamikus",$I$24="Kiegyensúlyozott",$I$24="Megfontolt")),VLOOKUP(A8,MainForm!$B$142:$D$154,2,FALSE), IF(AND(Devizanem="HUF",$I$24="Egyéni"),VLOOKUP(A8,MainForm!$B$142:$D$154,3,FALSE),0)) -> 0.2 | J8: 0.02604996 | L8: 0.25 | M8: =NORMINV(L8,$N$5*$M$6,$M$6^(1/2)*$M$3)/$M$6 -> 0.02691671483 | N8: =EXP(M8)-1 -> 0.02728224183 | O8: HOZAM_25 | R8: 2 | S8: =EXP(NORMINV(S$6,$N$5*$R8,$R8^(1/2)*$M$3)/$R8)-1 -> -0.05414350564 | T8: 0.0003121028321 | U8: 0.04 | V8: 0.0812625349 | W8: 0.1435138485 | X8: =+(1+S8)^$R8/(1+S7)^$R7-1 -> -0.0162285845 | Y8: =+(1+T8)^$R8/(1+T7)^$R7-1 -> 0.01656423905 | Z8: 0.04 | AA8: 0.06397604643 | AB8: 0.09944239379
A9: Hazai kötvény | B9: 0.079 | C9: 0.0682 | D9: 0.3 | E9: 0.25 | F9: 0.2 | G9: =IF(AND(Devizanem="HUF",OR($G$24="Dinamikus",$G$24="Kiegyensúlyozott",$G$24="Megfontolt")),VLOOKUP(A9,MainForm!$B$117:$D$129,2,FALSE), IF(AND(Devizanem="HUF",$G$24="Egyéni"),VLOOKUP(A9,MainForm!$B$117:$D$129,3,FALSE),0)) -> 0.3 | H9: 0.00465124 | I9: =IF(AND(Devizanem="HUF",OR($I$24="Dinamikus",$I$24="Kiegyensúlyozott",$I$24="Megfontolt")),VLOOKUP(A9,MainForm!$B$142:$D$154,2,FALSE), IF(AND(Devizanem="HUF",$I$24="Egyéni"),VLOOKUP(A9,MainForm!$B$142:$D$154,3,FALSE),0)) -> 0.3 | J9: 0.00465124 | L9: 0.5 | M9: =NORMINV(L9,$N$5*$M$6,$M$6^(1/2)*$M$3)/$M$6 -> 0.03922071315 | N9: =EXP(M9)-1 -> 0.04 | O9: HOZAM_AVG | R9: 3 | S9: -0.03753027957 | T9: 0.007479760798 | U9: 0.04 | V9: 0.07356995355 | W9: 0.1237756129 | X9: =+(1+S9)^$R9/(1+S8)^$R8-1 -> -0.003423307447 | Y9: 0.02196952261 | Z9: 0.04 | AA9: 0.05834858679 | AB9: 0.08531536818
A10: Ingatlan | B10: 0.0065 | C10: 0.1353 | G10: =IF(AND(Devizanem="HUF",OR($G$24="Dinamikus",$G$24="Kiegyensúlyozott",$G$24="Megfontolt")),VLOOKUP(A10,MainForm!$B$117:$D$129,2,FALSE), IF(AND(Devizanem="HUF",$G$24="Egyéni"),VLOOKUP(A10,MainForm!$B$117:$D$129,3,FALSE),0)) -> 0 | H10: 0.01830609 | I10: =IF(AND(Devizanem="HUF",OR($I$24="Dinamikus",$I$24="Kiegyensúlyozott",$I$24="Megfontolt")),VLOOKUP(A10,MainForm!$B$142:$D$154,2,FALSE), IF(AND(Devizanem="HUF",$I$24="Egyéni"),VLOOKUP(A10,MainForm!$B$142:$D$154,3,FALSE),0)) -> 0 | J10: 0.01830609 | L10: 0.75 | M10: =NORMINV(L10,$N$5*$M$6,$M$6^(1/2)*$M$3)/$M$6 -> 0.05152471147 | N10: =EXP(M10)-1 -> 0.05287520407 | O10: HOZAM_75 | R10: 4 | S10: -0.02748833338 | T10: 0.01177694502 | U10: 0.04 | V10: 0.06901032418 | W10: 0.1121717478 | X10: 0.003270526229 | Y10: 0.02477878293 | Z10: 0.04 | AA10: 0.05544730044 | AB10: 0.07807413028
A11: Iránytű | B11: 0.0956 | C11: 0.1478 | G11: =IF(AND(Devizanem="HUF",OR($G$24="Dinamikus",$G$24="Kiegyensúlyozott",$G$24="Megfontolt")),VLOOKUP(A11,MainForm!$B$117:$D$129,2,FALSE), IF(AND(Devizanem="HUF",$G$24="Egyéni"),VLOOKUP(A11,MainForm!$B$117:$D$129,3,FALSE),0)) -> 0 | H11: 0.02184484 | I11: =IF(AND(Devizanem="HUF",OR($I$24="Dinamikus",$I$24="Kiegyensúlyozott",$I$24="Megfontolt")),VLOOKUP(A11,MainForm!$B$142:$D$154,2,FALSE), IF(AND(Devizanem="HUF",$I$24="Egyéni"),VLOOKUP(A11,MainForm!$B$142:$D$154,3,FALSE),0)) -> 0 | J11: 0.02184484 | L11: 0.95 | M11: =NORMINV(L11,$N$5*$M$6,$M$6^(1/2)*$M$3)/$M$6 -> 0.06922602644 | N11: =EXP(M11)-1 -> 0.07167840943 | O11: HOZAM_95 | R11: 5 | S11: -0.02057529305 | T11: 0.01472000421 | U11: 0.04 | V11: 0.06590980321 | W11: 0.1043217435 | X11: 0.007571783136 | Y11: 0.0265780981 | Z11: 0.04 | AA11: 0.05359738534 | AB11: 0.07347190354
A12: Kincskereső | B12: 0.0174 | C12: 0.1858 | F12: 0.08 | G12: =IF(AND(Devizanem="HUF",OR($G$24="Dinamikus",$G$24="Kiegyensúlyozott",$G$24="Megfontolt")),VLOOKUP(A12,MainForm!$B$117:$D$129,2,FALSE), IF(AND(Devizanem="HUF",$G$24="Egyéni"),VLOOKUP(A12,MainForm!$B$117:$D$129,3,FALSE),0)) -> 0 | H12: 0.03452164 | I12: =IF(AND(Devizanem="HUF",OR($I$24="Dinamikus",$I$24="Kiegyensúlyozott",$I$24="Megfontolt")),VLOOKUP(A12,MainForm!$B$142:$D$154,2,FALSE), IF(AND(Devizanem="HUF",$I$24="Egyéni"),VLOOKUP(A12,MainForm!$B$142:$D$154,3,FALSE),0)) -> 0 | J12: 0.03452164 | L12: Eseti díjakra | R12: 6 | S12: -0.01544079273 | T12: 0.01689797086 | U12: 0.04 | V12: 0.06362686424 | W12: 0.09856267862 | X12: 0.0106382959 | Y12: 0.02785812603 | Z12: 0.04 | AA12: 0.0522853034 | AB12: 0.07021473893
A13: Pénzpiaci | B13: 0.0781 | C13: 0.01 | D13: 0.5 | E13: 0.25 | F13: 0.1 | G13: =IF(AND(Devizanem="HUF",OR($G$24="Dinamikus",$G$24="Kiegyensúlyozott",$G$24="Megfontolt")),VLOOKUP(A13,MainForm!$B$117:$D$129,2,FALSE), IF(AND(Devizanem="HUF",$G$24="Egyéni"),VLOOKUP(A13,MainForm!$B$117:$D$129,3,FALSE),0)) -> 0.5 | H13: 0.0001 | I13: =IF(AND(Devizanem="HUF",OR($I$24="Dinamikus",$I$24="Kiegyensúlyozott",$I$24="Megfontolt")),VLOOKUP(A13,MainForm!$B$142:$D$154,2,FALSE), IF(AND(Devizanem="HUF",$I$24="Egyéni"),VLOOKUP(A13,MainForm!$B$142:$D$154,3,FALSE),0)) -> 0.5 | J13: 0.0001 | L13: Súlyozott szórásnégyzet | M13: =SUMPRODUCT(I2:I22,J2:J22) -> 0.006655364 | R13: 7 | S13: -0.01143167929 | T13: 0.0185939135 | U13: 0.04 | V13: 0.06185594245 | W13: 0.09410748588 | X13: 0.01296816383 | Y13: 0.02882913168 | Z13: 0.04 | AA13: 0.05129215989 | AB13: 0.06775320156
A14: Vogue | B14: 0.1224 | C14: 0.1728 | G14: =IF(AND(Devizanem="HUF",OR($G$24="Dinamikus",$G$24="Kiegyensúlyozott",$G$24="Megfontolt")),VLOOKUP(A14,MainForm!$B$117:$D$129,2,FALSE), IF(AND(Devizanem="HUF",$G$24="Egyéni"),VLOOKUP(A14,MainForm!$B$117:$D$129,3,FALSE),0)) -> 0 | H14: 0.02985984 | I14: =IF(AND(Devizanem="HUF",OR($I$24="Dinamikus",$I$24="Kiegyensúlyozott",$I$24="Megfontolt")),VLOOKUP(A14,MainForm!$B$142:$D$154,2,FALSE), IF(AND(Devizanem="HUF",$I$24="Egyéni"),VLOOKUP(A14,MainForm!$B$142:$D$154,3,FALSE),0)) -> 0 | J14: 0.02985984 | L14: Standard súlyozott szórás | M14: =M13^(1/2) -> 0.08158041432 | R14: 8 | S14: -0.008188145798 | T14: 0.01996303215 | U14: 0.04 | V14: 0.06043059004 | W14: 0.09052941384 | X14: 0.01481653273 | Y14: 0.02959852892 | Z14: 0.04 | AA14: 0.05050655146 | AB14: 0.06580841474
A15: EUR | B15: Hozam | C15: Szórás | D15: Megfontolt | E15: Kiegyensúlyozott | F15: Dinamikus | G15: Rendszeres allokáció | H15: Szórásnégyzet | I15: Eseti allokáció | J15: Szórásnégyzet | L15: Átlagos várható hozam | M15: =SUMPRODUCT(I2:I22,B2:B22) -> 0.07839 | R15: 9 | S15: -0.005493422638 | T15: 0.02109848654 | U15: 0.04 | V15: 0.05925139862 | W15: 0.08757450641 | X15: 0.01632961378 | Y15: 0.03022774494 | Z15: 0.04 | AA15: 0.04986495007 | AB15: 0.06422167113
A16: Auróra | B16: 0.1496 | C16: 0.2685 | E16: 0.05 | F16: 0.11 | G16: =IF(AND(Devizanem="EUR",OR($G$25="Dinamikus",$G$25="Kiegyensúlyozott",$G$25="Megfontolt")),VLOOKUP(A16,MainForm!$B$132:$D$138,2,FALSE), IF(AND(Devizanem="EUR",$G$25="Egyéni"),VLOOKUP(A16,MainForm!$B$132:$D$138,3,FALSE),0)) -> 0 | H16: 0.07209225 | I16: =IF(AND(Devizanem="EUR",OR($I$25="Dinamikus",$I$25="Kiegyensúlyozott",$I$25="Megfontolt")),VLOOKUP(A16,MainForm!$B$157:$D$163,2,FALSE), IF(AND(Devizanem="EUR",$I$25="Egyéni"),VLOOKUP(A16,MainForm!$B$157:$D$163,3,FALSE),0)) -> 0 | J16: 0.07209225 | K16: =IF(AND(Devizanem="EUR",MATCH($G$25,$D$1:$F$1,0)>0),VLOOKUP(A16,MainForm!$B$132:$C$138,2,FALSE),0) -> 0 | L16: Számolt hozam | M16: =MainForm!$C$171 -> 0.06 | N16: =LN(1+M16) -> 0.05826890812 | R16: 10 | S16: -0.003208051008 | T16: 0.02206003412 | U16: 0.04 | V16: 0.05825486164 | W16: 0.08508099518 | X16: 0.01759807754 | Y16: 0.03075481096 | Z16: 0.04 | AA16: 0.04932811227 | AB16: 0.06289508979
A17: Ázsiai | B17: 0.1175 | C17: 0.2336 | E17: 0.05 | F17: 0.12 | G17: =IF(AND(Devizanem="EUR",OR($G$25="Dinamikus",$G$25="Kiegyensúlyozott",$G$25="Megfontolt")),VLOOKUP(A17,MainForm!$B$132:$D$138,2,FALSE), IF(AND(Devizanem="EUR",$G$25="Egyéni"),VLOOKUP(A17,MainForm!$B$132:$D$138,3,FALSE),0)) -> 0 | H17: 0.05456896 | I17: =IF(AND(Devizanem="EUR",OR($I$25="Dinamikus",$I$25="Kiegyensúlyozott",$I$25="Megfontolt")),VLOOKUP(A17,MainForm!$B$157:$D$163,2,FALSE), IF(AND(Devizanem="EUR",$I$25="Egyéni"),VLOOKUP(A17,MainForm!$B$157:$D$163,3,FALSE),0)) -> 0 | J17: 0.05456896 | M17: 3 | R17: 11 | S17: -0.00123767647 | T17: 0.02288800628 | U17: 0.04 | V17: 0.05739826194 | W17: 0.08294032977 | X17: 0.01868156218 | Y17: 0.03120470849 | Z17: 0.04 | AA17: 0.04887030781 | AB17: 0.061764579
A18: Best Selection | B18: 0.0491 | C18: 0.0842 | G18: =IF(AND(Devizanem="EUR",OR($G$25="Dinamikus",$G$25="Kiegyensúlyozott",$G$25="Megfontolt")),VLOOKUP(A18,MainForm!$B$132:$D$138,2,FALSE), IF(AND(Devizanem="EUR",$G$25="Egyéni"),VLOOKUP(A18,MainForm!$B$132:$D$138,3,FALSE),0)) -> 0 | H18: 0.00708964 | I18: =IF(AND(Devizanem="EUR",OR($I$25="Dinamikus",$I$25="Kiegyensúlyozott",$I$25="Megfontolt")),VLOOKUP(A18,MainForm!$B$157:$D$163,2,FALSE), IF(AND(Devizanem="EUR",$I$25="Egyéni"),VLOOKUP(A18,MainForm!$B$157:$D$163,3,FALSE),0)) -> 0 | J18: 0.00708964 | L18: 0.05 | M18: =NORMINV(L18,$N$16*$M$17,$M$17^(1/2)*$M$14)/$M$17 -> -0.01920447764 | N18: =EXP(M18)-1 -> -0.01902124649 | O18: T_HOZAM_05 | R18: 12 | S18: 0.0004841374284 | T18: 0.02361074204 | U18: 0.04 | V18: 0.05665166999 | W18: 0.08107661035 | X18: 0.0196211294 | Y18: 0.0315946184 | Z18: 0.04 | AA18: 0.04847386823 | AB18: 0.06078617715
A19: Brüsszel | B19: 0.0424 | C19: 0.0535 | D19: 0.8 | E19: 0.5 | F19: 0.3 | G19: =IF(AND(Devizanem="EUR",OR($G$25="Dinamikus",$G$25="Kiegyensúlyozott",$G$25="Megfontolt")),VLOOKUP(A19,MainForm!$B$132:$D$138,2,FALSE), IF(AND(Devizanem="EUR",$G$25="Egyéni"),VLOOKUP(A19,MainForm!$B$132:$D$138,3,FALSE),0)) -> 0 | H19: 0.00286225 | I19: =IF(AND(Devizanem="EUR",OR($I$25="Dinamikus",$I$25="Kiegyensúlyozott",$I$25="Megfontolt")),VLOOKUP(A19,MainForm!$B$157:$D$163,2,FALSE), IF(AND(Devizanem="EUR",$I$25="Egyéni"),VLOOKUP(A19,MainForm!$B$157:$D$163,3,FALSE),0)) -> 0 | J19: 0.00286225 | L19: 0.25 | M19: =NORMINV(L19,$N$16*$M$17,$M$17^(1/2)*$M$14)/$M$17 -> 0.02650012107 | N19: =EXP(M19)-1 -> 0.02685437158 | O19: T_HOZAM_25 | R19: 13 | S19: 0.002005711213 | T19: 0.02424881602 | U19: 0.04 | V19: 0.05599341008 | W19: 0.07943496519 | X19: 0.02044610417 | Y19: 0.03193679901 | Z19: 0.04 | AA19: 0.04812620408 | AB19: 0.05992858964
A20: Dél Csillagai | B20: 0.1912 | C20: 0.2618 | E20: 0.05 | F20: 0.12 | G20: =IF(AND(Devizanem="EUR",OR($G$25="Dinamikus",$G$25="Kiegyensúlyozott",$G$25="Megfontolt")),VLOOKUP(A20,MainForm!$B$132:$D$138,2,FALSE), IF(AND(Devizanem="EUR",$G$25="Egyéni"),VLOOKUP(A20,MainForm!$B$132:$D$138,3,FALSE),0)) -> 0 | H20: 0.06853924 | I20: =IF(AND(Devizanem="EUR",OR($I$25="Dinamikus",$I$25="Kiegyensúlyozott",$I$25="Megfontolt")),VLOOKUP(A20,MainForm!$B$157:$D$163,2,FALSE), IF(AND(Devizanem="EUR",$I$25="Egyéni"),VLOOKUP(A20,MainForm!$B$157:$D$163,3,FALSE),0)) -> 0 | J20: 0.06853924 | L20: 0.5 | M20: =NORMINV(L20,$N$16*$M$17,$M$17^(1/2)*$M$14)/$M$17 -> 0.05826890812 | N20: =EXP(M20)-1 -> 0.06 | O20: T_HOZAM_AVG | R20: 14 | S20: 0.003363147016 | T20: 0.02481757624 | U20: 0.04 | V20: 0.05540734768 | W20: 0.0779746129 | X20: 0.02117806652 | Y20: 0.03224026359 | Z20: 0.04 | AA20: 0.04781806925 | AB20: 0.0591688516
A21: Globális részvény | B21: 0.0573 | C21: 0.1593 | D21: 0.2 | E21: 0.35 | F21: 0.35 | G21: =IF(AND(Devizanem="EUR",OR($G$25="Dinamikus",$G$25="Kiegyensúlyozott",$G$25="Megfontolt")),VLOOKUP(A21,MainForm!$B$132:$D$138,2,FALSE), IF(AND(Devizanem="EUR",$G$25="Egyéni"),VLOOKUP(A21,MainForm!$B$132:$D$138,3,FALSE),0)) -> 0 | H21: 0.02537649 | I21: =IF(AND(Devizanem="EUR",OR($I$25="Dinamikus",$I$25="Kiegyensúlyozott",$I$25="Megfontolt")),VLOOKUP(A21,MainForm!$B$157:$D$163,2,FALSE), IF(AND(Devizanem="EUR",$I$25="Egyéni"),VLOOKUP(A21,MainForm!$B$157:$D$163,3,FALSE),0)) -> 0 | J21: 0.02537649 | L21: 0.75 | M21: =NORMINV(L21,$N$16*$M$17,$M$17^(1/2)*$M$14)/$M$17 -> 0.09003769518 | N21: =EXP(M21)-1 -> 0.09421552958 | O21: T_HOZAM_75 | R21: 15 | S21: 0.004584036447 | T21: 0.02532873646 | U21: 0.04 | V21: 0.05488119228 | W21: 0.07666453055 | X21: 0.02183329933 | Y21: 0.032511808 | Z21: 0.04 | AA21: 0.04754249939 | AB21: 0.05848967803
A22: Iránytű | B22: 0.1271 | C22: 0.1379 | G22: =IF(AND(Devizanem="EUR",OR($G$25="Dinamikus",$G$25="Kiegyensúlyozott",$G$25="Megfontolt")),VLOOKUP(A22,MainForm!$B$132:$D$138,2,FALSE), IF(AND(Devizanem="EUR",$G$25="Egyéni"),VLOOKUP(A22,MainForm!$B$132:$D$138,3,FALSE),0)) -> 0 | H22: 0.01901641 | I22: =IF(AND(Devizanem="EUR",OR($I$25="Dinamikus",$I$25="Kiegyensúlyozott",$I$25="Megfontolt")),VLOOKUP(A22,MainForm!$B$157:$D$163,2,FALSE), IF(AND(Devizanem="EUR",$I$25="Egyéni"),VLOOKUP(A22,MainForm!$B$157:$D$163,3,FALSE),0)) -> 0 | J22: 0.01901641 | L22: 0.95 | M22: =NORMINV(L22,$N$16*$M$17,$M$17^(1/2)*$M$14)/$M$17 -> 0.1357422939 | N22: =EXP(M22)-1 -> 0.1453866824 | O22: T_HOZAM_95 | R22: 16 | S22: 0.00568987928 | T22: 0.02579141292 | U22: 0.04 | V22: 0.05440539507 | W22: 0.07548064496 | X22: 0.02242435186 | Y22: 0.03275666644 | Z22: 0.04 | AA22: 0.04729413535 | AB22: 0.05787777651
G23: =SUM(G2:G22) -> 1 | I23: =SUM(I2:I22) -> 1 | R23: 17 | S23: 0.006697711433 | T23: 0.0262128211 | U23: 0.04 | V23: 0.05397240978 | W23: 0.07440395236 | X23: 0.02296107369 | Y23: 0.03297894468 | Z23: 0.04 | AA23: 0.04706877674 | AB23: 0.05732273477
G24: =MainForm!C116 -> Megfontolt | I24: =MainForm!C141 -> Megfontolt | R24: 18 | S24: 0.007621230721 | T24: 0.02659875679 | U24: 0.04 | V24: 0.05357618334 | W24: 0.07341922443 | X24: 0.02345131867 | Y24: =+(1+T24)^$R24/(1+T23)^$R23-1 -> 0.03318191485 | Z24: =+(1+U24)^$R24/(1+U23)^$R23-1 -> 0.04 | AA24: =+(1+V24)^$R24/(1+V23)^$R23-1 -> 0.04686307847 | AB24: =+(1+W24)^$R24/(1+W23)^$R23-1 -> 0.056816265
G25: =MainForm!C131 -> Megfontolt | I25: =MainForm!C156 -> Megfontolt | R25: 19 | S25: 0.008471593844 | T25: 0.02695393627 | U25: 0.04 | V25: 0.05321179636 | W25: 0.07251409618 | X25: 0.02390143674 | Y25: 0.03336822127 | Z25: 0.04 | AA25: 0.04667433905 | AB25: 0.05635167721
R26: 20 | S26: 0.009257992402 | T26: 0.02728224183 | U26: 0.04 | V26: 0.05287520407 | W26: 0.07167840943 | X26: 0.02431662521 | Y26: 0.0335400273 | Z26: 0.04 | AA26: 0.0465003497 | AB26: 0.0559235039
R27: 21 | S27: 0.009988076897 | T27: 0.02758690234 | U27: 0.04 | V27: 0.05256304604 | W27: 0.07090373118 | X27: 0.02470118469 | Y27: 0.03369912233 | Z27: 0.04 | AA27: 0.04633928445 | AB27: 0.05552722702
R28: 22 | S28: 0.01066827398 | T28: 0.0278706282 | U28: 0.04 | V28: 0.05227250427 | W28: 0.07018299461 | X28: 0.02505870871 | Y28: 0.033847001 | Z28: 0.04 | AA28: 0.04618961892 | AB28: 0.05515907607
R29: 23 | S29: 0.01130402733 | T29: 0.02813571372 | U29: 0.04 | V29: 0.05200119553 | W29: 0.06951022717 | X29: 0.02539222662 | Y29: 0.03398492286 | Z29: 0.04 | AA29: 0.04605006909 | AB29: 0.05481587623
R30: 24 | S30: 0.01189998298 | T30: 0.02838411583 | U30: 0.04 | V30: 0.05174708881 | W30: 0.06888034212 | X30: 0.02570431259 | Y30: 0.03411395787 | Z30: 0.04 | AA30: 0.04591954472 | AB30: 0.05449493262
R31: 25 | S31: 0.01246013368 | T31: 0.02861751529 | U31: 0.04 | V31: 0.0515084411 | W31: 0.06828897655 | X31: 0.02599717003 | Y31: 0.03423502159 | Z31: 0.04 | AA31: 0.04579711325 | AB31: 0.05419394088
R32: 26 | S32: 0.01298793246 | T32: 0.0288373649 | U32: 0.04 | V32: 0.05128374697 | W32: 0.06773236417 | X32: =+(1+S32)^$R32/(1+S31)^$R31-1 -> 0.0262726975 | Y32: =+(1+T32)^$R32/(1+T31)^$R31-1 -> 0.03434890269 | Z32: =+(1+U32)^$R32/(1+U31)^$R31-1 -> 0.04 | AA32: =+(1+V32)^$R32/(1+V31)^$R31-1 -> 0.04568197171 | AB32: =+(1+W32)^$R32/(1+W31)^$R31-1 -> 0.05391091728
R33: 27 | S33: =EXP(NORMINV(S$6,$N$5*$R33,$R33^(1/2)*$M$3)/$R33)-1 -> 0.01348638303 | T33: 0.02904492776 | U33: 0.04 | V33: 0.05107169845 | W33: 0.06720723446 | X33: 0.02653254095 | Y33: 0.03445628475 | Z33: 0.04 | AA33: 0.04557342436 | AB33: 0.05364414361
R34: 28 | S34: 0.01395811232 | T34: 0.02924130798 | U34: 0.04 | V34: 0.05087115297 | W34: 0.06671073179 | X34: 0.02677813535 | Y34: 0.03455776355 | Z34: 0.04 | AA34: 0.04547086504 | AB34: 0.05339212315
R35: 29 | S35: 0.01440542914 | T35: 0.02942747554 | U35: 0.04 | V35: 0.05068110741 | W35: 0.06624035019 | X35: 0.02701073824 | Y35: 0.03465386111 | Z35: 0.04 | AA35: 0.04537376282 | AB35: 0.05315354526
R36: 30 | S36: 0.0148303721 | T36: 0.02960428654 | U36: 0.04 | V36: 0.05050067695 | W36: 0.06579388017 | X36: 0.02723145701 | Y36: 0.03474503698 | Z36: 0.04 | AA36: 0.0452816504 | AB36: 0.05292725667
R37: 31 | S37: 0.015234749 | T37: 0.02977249982 | U37: 0.04 | V37: 0.05032907773 | W37: 0.06536936513 | X37: 0.02744127118 | Y37: 0.0348316976 | Z37: 0.04 | AA37: 0.04519411467 | AB37: 0.052712238
R38: 32 | S38: 0.01562016934 | T38: 0.02993279074 | U38: 0.04 | V38: 0.05016561248 | W38: 0.06496506534 | X38: 0.02764105078 | Y38: 0.03491420389 | Z38: 0.04 | AA38: 0.04511078884 | AB38: 0.05250758442
R39: 33 | S39: 0.01598807151 | T39: 0.03008576262 | U39: 0.04 | V39: 0.05000965866 | W39: 0.06457942798 | X39: 0.02783157162 | Y39: 0.03499287762 | Z39: 0.04 | AA39: 0.04503134601 | AB39: 0.05231248958
R40: 34 | S40: 0.01633974545 | T40: 0.03023195634 | U40: 0.04 | V40: 0.04986065841 | W40: 0.06421106214 | X40: 0.02801352801 | Y40: 0.03506800671 | Z40: 0.04 | AA40: 0.04495549373 | AB40: 0.05212623232
R41: 35 | S41: 0.01667635184 | T41: 0.03037185841 | U41: 0.04 | V41: 0.04971811018 | W41: 0.06385871771 | X41: 0.02818754347 | Y41: 0.03513984968 | Z41: 0.04 | AA41: 0.04488296952 | AB41: 0.05194816536
R42: 36 | S42: 0.01699893828 | T42: 0.0305059078 | U42: 0.04 | V42: 0.04958156165 | W42: 0.06352126762 | X42: 0.02835417971 | Y42: 0.03520863939 | Z42: 0.04 | AA42: 0.04481353695 | AB42: 0.05177770592
R43: 37 | S43: 0.01730845305 | T43: 0.03063450173 | U43: 0.04 | V43: 0.04945060366 | W43: 0.06319769265 | X43: 0.02851394433 | Y43: 0.03527458623 | Z43: 0.04 | AA43: 0.04474698248 | AB43: 0.05161432761
R44: 38 | S44: 0.01760575697 | T44: 0.0307580007 | U44: 0.04 | V44: 0.04932486507 | W44: 0.06288706858 | X44: 0.02866729734 | Y44: 0.03533788083 | Z44: 0.04 | AA44: 0.04468311266 | AB44: 0.05145755367
R45: 39 | S45: 0.01789163344 | T45: 0.03087673267 | U45: 0.04 | V45: 0.04920400832 | W45: 0.06258855507 | X45: 0.02881465674 | Y45: 0.0353986964 | Z45: 0.04 | AA45: 0.04462175176 | AB45: 0.05130695108
R46: 40 | S46: 0.01816679722 | T46: 0.0309909968 | U46: 0.04 | V46: 0.04908772565 | W46: 0.06230138614 | X46: 0.02895640331 | Y46: 0.03545719069 | Z46: 0.04 | AA46: 0.04456273975 | AB46: 0.05116212555
R47: 41 | S47: 0.01843190194 | T47: 0.0311010666 | U47: 0.04 | V47: 0.04897573578 | W47: 0.06202486189 | X47: 0.02909288481 | Y47: 0.03551350777 | Z47: 0.04 | AA47: 0.04450593053 | AB47: 0.05102271715
R48: 42 | S48: 0.01868754672 | T48: 0.03120719267 | U48: 0.04 | V48: 0.04886778107 | W48: 0.06175834139 | X48: 0.02922441955 | Y48: 0.03556777946 | Z48: 0.04 | AA48: 0.0444511904 | AB48: 0.05088839659
R49: 43 | S49: 0.01893428182 | T49: 0.03130960517 | U49: 0.04 | V49: 0.04876362499 | W49: 0.06150123644 | X49: 0.02935129952 | Y49: 0.0356201267 | Z49: 0.04 | AA49: 0.04439839678 | AB49: 0.05075886192
R50: 44 | S50: 0.01917261368 | T50: 0.03140851583 | U50: 0.04 | V50: 0.04866304999 | W50: 0.0612530061 | X50: 0.02947379311 | Y50: 0.03567066063 | Z50: 0.04 | AA50: 0.04434743699 | AB50: 0.0506338357
R51: 45 | S51: 0.01940300931 | T51: 0.0315041199 | U51: 0.04 | V51: 0.04856585556 | W51: 0.06101315193 | X51: 0.02959214754 | Y51: 0.03571948361 | Z51: 0.04 | AA51: 0.0442982073 | AB51: 0.05051306246
R52: 46 | S52: 0.01962590016 | T52: 0.03159659768 | U52: 0.04 | V52: 0.04847185657 | W52: 0.0607812138 | X52: 0.02970659095 | Y52: 0.03576669009 | Z52: 0.04 | AA52: 0.04425061199 | AB52: 0.05039630659
R53: 47 | S53: 0.0198416855 | T53: 0.03168611601 | U53: 0.04 | V53: 0.04838088176 | W53: 0.06055676619 | X53: 0.02981733424 | Y53: 0.03581236736 | Z53: 0.04 | AA53: 0.0442045626 | AB53: 0.0502833503

Sheet Cash flow CALC (hidden)
A1: Év | B1: Hónap | C1: DATE | D1: STOP | E1: Premium index | F1: Premium_HUF | G1: Premium suppression | H1: Premium_Currency | I1: AR | J1: INIT | K1: POSTAL_SLIP | L1: RIDER | M1: RIDER RATIO | N1: ACCUM SURRENDER | O1: TOPUP SURRENDER | P1: LOYALTY BONUS BASE | Q1: BONUS | R1: RESERVE_BOM 5% | S1: ADMIN_FEE 5% | T1: YIELD_VECTOR 5% | U1: YIELD 5% | V1: RESERVE_EOM 5% | W1: RESERVE_BOM 25% | X1: ADMIN_FEE 25% | Y1: YIELD_VECTOR 25% | Z1: YIELD 25% | AA1: RESERVE_EOM 25% | AB1: RESERVE_BOM AVG | AC1: ADMIN_FEE AVG | AD1: YIELD_VECTOR AVG | AE1: YIELD AVG | AF1: RESERVE_EOM AVG | AG1: RESERVE_BOM 75% | AH1: ADMIN_FEE 75% | AI1: YIELD_VECTOR 75% | AJ1: YIELD 75% | AK1: RESERVE_EOM 75% | AL1: RESERVE_BOM 95% | AM1: ADMIN_FEE 95% | AN1: YIELD_VECTOR 95% | AO1: YIELD 95% | AP1: RESERVE_EOM 95% | AQ1: TOPUP PREMIUM | AR1: TAX CREDIT | AS1: TOPUP_RES_BOM 5% | AT1: T YIELD 5% | AU1: TOPUP_BOM 5% | AV1: TOPUP_RES_BOM 25% | AW1: T YIELD 25% | AX1: TOPUP_BOM 25% | AY1: TOPUP_RES_BOM AVG | AZ1: T YIELD AVG | BA1: TOPUP_BOM AVG | BB1: TOPUP_RES_BOM 75% | BC1: T YIELD 75% | BD1: TOPUP_BOM 75% | BE1: TOPUP_RES_BOM 95% | BF1: T YIELD 95% | BG1: TOPUP_BOM 95% | BH1: BLANK | BI1: 0.2 | BJ1: 0.5 | BK1: 0.2 | BL1: GRAPH AVG | BM1: 1 | BN1: DV
A2: 1 | B2: 1 | C2: =TODAY() -> 2014-02-18 | D2: =IF(C2>MainForm!$C$10,"igen","nem") -> nem | E2: =IF(B1=12,1+VLOOKUP(A2,Indexation_full,2,FALSE),1) -> 1 | F2: =IF(G2="Igen",0, IF(MOD(B2-1,VLOOKUP(MainForm!$C$30,'CF parameters'!$A$1:$C$5,3,FALSE)),0,MainForm!$C$29)*PRODUCT($E$2:E2)) -> 25000 | G2: =VLOOKUP(A2,Premium_suppression,2,FALSE) -> Nem | H2: =F2/Exhange_rate -> 25000 | I2: =(VLOOKUP(A2,'CF parameters'!$M$1:$N$5,2,FALSE)*MainForm!$C$31/12)/Exhange_rate -> 12500 | J2: =(VLOOKUP(A2,'CF parameters'!$M$1:$O$5,3,FALSE)*MainForm!$C$31/12)/Exhange_rate -> 2500 | K2: ='CF parameters'!$D$6 -> 300 | L2: =SUMIFS(H:H,A:A,A2)*Rider_ratio/12 -> 0 | M2: =Rider_ratio -> 0 | N2: 0 | O2: 0 | P2: =SUM($H$2:H2)/A2 -> 25000 | Q2: =(VLOOKUP(MainForm!C31,'CF parameters'!J2:K6,2,TRUE)*MainForm!C31)/Exhange_rate -> 60000 | R2: =$H2+$Q2 -> 85000 | S2: =MIN(MAX((R2-($I2+$J2+$K2+$L2))*Admin_fee,Admin_fee_MIN),Admin_fee_MAX) -> 300 | T2: =((1+VLOOKUP($A2,YIELD_VECTORS,7,FALSE))^(1/12)-1) -> -0.007882694592 | U2: =(R2-($I2+$J2+$K2+$L2+S2))*T2 -> -547.0590047 | V2: =R2-($I2+$J2+$K2+$L2+S2)+(U2) -> 68852.941 | W2: =$H2+$Q2 -> 85000 | X2: =MIN(MAX((W2-($I2+$J2+$K2+$L2))*Admin_fee,Admin_fee_MIN),Admin_fee_MAX) -> 300 | Y2: =((1+VLOOKUP($A2,YIELD_VECTORS,8,FALSE))^(1/12)-1) -> -0.001316169764 | Z2: =(W2-($I2+$J2+$K2+$L2+X2))*Y2 -> -91.34218165 | AA2: =W2-($I2+$J2+$K2+$L2+X2)+(Z2) -> 69308.65782 | AB2: =$H2+$Q2 -> 85000 | AC2: =MIN(MAX((AB2-($I2+$J2+$K2+$L2))*Admin_fee,Admin_fee_MIN),Admin_fee_MAX) -> 300 | AD2: =((1+VLOOKUP($A2,YIELD_VECTORS,9,FALSE))^(1/12)-1) -> 0.003273739782 | AE2: =(AB2-($I2+$J2+$K2+$L2+AC2))*AD2 -> 227.1975409 | AF2: =AB2-($I2+$J2+$K2+$L2+AC2)+(AE2) -> 69627.19754 | AG2: =$H2+$Q2 -> 85000 | AH2: =MIN(MAX((AG2-($I2+$J2+$K2+$L2))*Admin_fee,Admin_fee_MIN),Admin_fee_MAX) -> 300 | AI2: =((1+VLOOKUP($A2,YIELD_VECTORS,10,FALSE))^(1/12)-1) -> 0.007884744363 | AJ2: =(AG2-($I2+$J2+$K2+$L2+AH2))*AI2 -> 547.2012588 | AK2: =AG2-($I2+$J2+$K2+$L2+AH2)+(AJ2) -> 69947.20126 | AL2: =$H2+$Q2 -> 85000 | AM2: =MIN(MAX((AL2-($I2+$J2+$K2+$L2))*Admin_fee,Admin_fee_MIN),Admin_fee_MAX) -> 300 | AN2: =((1+VLOOKUP($A2,YIELD_VECTORS,11,FALSE))^(1/12)-1) -> 0.01455562911 | AO2: =(AL2-($I2+$J2+$K2+$L2+AM2))*AN2 -> 1010.16066 | AP2: =AL2-($I2+$J2+$K2+$L2+AM2)+(AO2) -> 70410.16066 | AQ2: =IF(AND(A2=1,B2=1),MainForm!$C$48, IF(B2=1,VLOOKUP(A2-1,Topup,2,FALSE), 0)) /Exhange_rate -> 0 | AR2: =IF(ROW()=2,0, MIN( IF(AND(MONTH(C1)=6,TAX="Igen"), SUM(IF(YEAR($C$2:$C$565)=YEAR(C1)-1,$H$2:$H$565,0))+ SUM(IF(YEAR($C$2:$C$565)=YEAR(C1)-1,$AQ$2:$AQ$565,0))- SUM(IF(YEAR($C$2:$C$565)=YEAR(C1)-1,$L$2:$L$565,0)), 0)*0.2, 130000/Exhange_rate)) -> 0 | AS2: =SUM($AQ2:$AR2) -> 0 | AT2: =AS2*((1+T_HOZAM_05)^(1/12)-1) -> 0 | AU2: =AS2+AT2-$O2 -> 0 | AV2: =SUM($AQ2:$AR2) -> 0 | AW2: =AV2*((1+T_HOZAM_25)^(1/12)-1) -> 0 | AX2: =AV2+AW2-$O2 -> 0 | AY2: =SUM($AQ2:$AR2) -> 0 | AZ2: =AY2*((1+T_HOZAM_AVG)^(1/12)-1) -> 0 | BA2: =AY2+AZ2-$O2 -> 0 | BB2: =SUM($AQ2:$AR2) -> 0 | BC2: =BB2*((1+T_HOZAM_75)^(1/12)-1) -> 0 | BD2: =BB2+BC2-$O2 -> 0 | BE2: =SUM($AQ2:$AR2) -> 0 | BF2: =BE2*((1+T_HOZAM_95)^(1/12)-1) -> 0 | BG2: =BE2+BF2-$O2 -> 0 | BH2: =IF(D2="Nem",V2+AU2,0) -> 68852.941 | BI2: =IF(D2="Nem",(AA2+AX2)-(V2+AU2),0) -> 455.716823 | BJ2: =IF(D2="Nem",(AK2+BD2)-(AF2+BA2),0) -> 320.0037179 | BK2: =IF(D2="Nem",(AP2+BG2)-(AK2+BD2),0) -> 462.9594012 | BL2: =IF(D2="Nem",AF2+BA2,0) -> 69627.19754 | BM2: =BM1/((1+VLOOKUP(A2,Indexation_full,2,FALSE))^(1/12)) -> 0.9967369426 | BN2: =+BL2*BM2 -> 69400
A3: 1 | B3: 2 | C3: =EDATE(C2,1) -> 2014-03-18 | D3: =IF(C3>MainForm!$C$10,"igen","nem") -> nem | E3: 1 | F3: =IF(G3="Igen",0, IF(MOD(B3-1,VLOOKUP(MainForm!$C$30,'CF parameters'!$A$1:$C$5,3,FALSE)),0,MainForm!$C$29)*PRODUCT($E$2:E3)) -> 25000 | G3: Nem | H3: 25000 | I3: =(VLOOKUP(A3,'CF parameters'!$M$1:$N$5,2,FALSE)*MainForm!$C$31/12)/Exhange_rate -> 12500 | J3: =(VLOOKUP(A3,'CF parameters'!$M$1:$O$5,3,FALSE)*MainForm!$C$31/12)/Exhange_rate -> 2500 | K3: ='CF parameters'!$D$6 -> 300 | L3: 0 | M3: 0 | N3: 0 | O3: 0 | P3: =SUM($H$2:H3)/A3 -> 50000 | Q3: =(IF(B3=12,IFERROR(VLOOKUP(A3,'CF parameters'!$G$1:$H$6,2,FALSE),0),0)*P3) -> 0 | R3: =V2+$H3 -> 93852.941 | S3: 300 | T3: -0.007882694592 | U3: =(R3-($I3+$J3+$K3+$L3+S3))*T3 -> -616.8440348 | V3: =R3-($I3+$J3+$K3+$L3+S3+$N3)+(U3+$Q3) -> 77636.09696 | W3: =AA2+$H3 -> 94308.65782 | X3: 300 | Y3: -0.001316169764 | Z3: =(W3-($I3+$J3+$K3+$L3+X3))*Y3 -> -103.5939556 | AA3: =W3-($I3+$J3+$K3+$L3+X3+$N3)+(Z3+$Q3) -> 78605.06386 | AB3: =AF2+$H3 -> 94627.19754 | AC3: 300 | AD3: 0.003273739782 | AE3: =(AB3-($I3+$J3+$K3+$L3+AC3))*AD3 -> 258.7144805 | AF3: =AB3-($I3+$J3+$K3+$L3+AC3+$N3)+(AE3+$Q3) -> 79285.91202 | AG3: =AK2+$H3 -> 94947.20126 | AH3: 300 | AI3: 0.007884744363 | AJ3: =(AG3-($I3+$J3+$K3+$L3+AH3))*AI3 -> 625.6323979 | AK3: =AG3-($I3+$J3+$K3+$L3+AH3+$N3)+(AJ3+$Q3) -> 79972.83366 | AL3: =AP2+$H3 -> 95410.16066 | AM3: 300 | AN3: 0.01455562911 | AO3: 1161.687098 | AP3: =AL3-($I3+$J3+$K3+$L3+AM3+$N3)+(AO3+$Q3) -> 80971.84776 | AQ3: =IF(AND(A3=1,B3=1),MainForm!$C$48, IF(B3=1,VLOOKUP(A3-1,Topup,2,FALSE), 0)) /Exhange_rate -> 0 | AR3: =IF(ROW()=2,0, MIN( IF(AND(MONTH(C2)=6,TAX="Igen"), SUM(IF(YEAR($C$2:$C$565)=YEAR(C2)-1,$H$2:$H$565,0))+ SUM(IF(YEAR($C$2:$C$565)=YEAR(C2)-1,$AQ$2:$AQ$565,0))- SUM(IF(YEAR($C$2:$C$565)=YEAR(C2)-1,$L$2:$L$565,0)), 0)*0.2, 130000/Exhange_rate)) -> 0 | AS3: =AU2+SUM($AQ3:$AR3) -> 0 | AT3: 0 | AU3: 0 | AV3: =AX2+SUM($AQ3:$AR3) -> 0 | AW3: 0 | AX3: 0 | AY3: =BA2+SUM($AQ3:$AR3) -> 0 | AZ3: 0 | BA3: 0 | BB3: =BD2+SUM($AQ3:$AR3) -> 0 | BC3: 0 | BD3: 0 | BE3: =BG2+SUM($AQ3:$AR3) -> 0 | BF3: 0 | BG3: 0 | BH3: 77636.09696 | BI3: 968.9669021 | BJ3: 686.9216353 | BK3: 999.0141009 | BL3: 79285.91202 | BM3: 0.9934845328 | BN3: 78769.32726
A4: 1 | B4: 3 | C4: =EDATE(C3,1) -> 2014-04-18 | D4: =IF(C4>MainForm!$C$10,"igen","nem") -> nem | E4: 1 | F4: =IF(G4="Igen",0, IF(MOD(B4-1,VLOOKUP(MainForm!$C$30,'CF parameters'!$A$1:$C$5,3,FALSE)),0,MainForm!$C$29)*PRODUCT($E$2:E4)) -> 25000 | G4: Nem | H4: 25000 | I4: =(VLOOKUP(A4,'CF parameters'!$M$1:$N$5,2,FALSE)*MainForm!$C$31/12)/Exhange_rate -> 12500 | J4: =(VLOOKUP(A4,'CF parameters'!$M$1:$O$5,3,FALSE)*MainForm!$C$31/12)/Exhange_rate -> 2500 | K4: ='CF parameters'!$D$6 -> 300 | L4: 0 | M4: 0 | N4: 0 | O4: 0 | P4: =SUM($H$2:H4)/A4 -> 75000 | Q4: =(IF(B4=12,IFERROR(VLOOKUP(A4,'CF parameters'!$G$1:$H$6,2,FALSE),0),0)*P4) -> 0 | R4: =V3+$H4 -> 102636.097 | S4: 300 | T4: -0.007882694592 | U4: -686.0789708 | V4: =R4-($I4+$J4+$K4+$L4+S4+N4)+(U4+$Q4) -> 86350.01799 | W4: =AA3+$H4 -> 103605.0639 | X4: 300 | Y4: -0.001316169764 | Z4: =(W4-($I4+$J4+$K4+$L4+X4))*Y4 -> -115.8296042 | AA4: 87889.23426 | AB4: =AF3+$H4 -> 104285.912 | AC4: =MIN(MAX((AB4-($I4+$J4+$K4+$L4))*Admin_fee,Admin_fee_MIN),Admin_fee_MAX) -> 300 | AD4: 0.003273739782 | AE4: =(AB4-($I4+$J4+$K4+$L4+AC4))*AD4 -> 290.3345983 | AF4: 88976.24662 | AG4: =AK3+$H4 -> 104972.8337 | AH4: =MIN(MAX((AG4-($I4+$J4+$K4+$L4))*Admin_fee,Admin_fee_MIN),Admin_fee_MAX) -> 300 | AI4: 0.007884744363 | AJ4: =(AG4-($I4+$J4+$K4+$L4+AH4))*AI4 -> 704.6819464 | AK4: 90077.5156 | AL4: 105971.8478 | AM4: =MIN(MAX((AL4-($I4+$J4+$K4+$L4))*Admin_fee,Admin_fee_MIN),Admin_fee_MAX) -> 300 | AN4: 0.01455562911 | AO4: 1315.419098 | AP4: 91687.26686 | AQ4: =IF(AND(A4=1,B4=1),MainForm!$C$48, IF(B4=1,VLOOKUP(A4-1,Topup,2,FALSE), 0)) /Exhange_rate -> 0 | AR4: =IF(ROW()=2,0, MIN( IF(AND(MONTH(C3)=6,TAX="Igen"), SUM(IF(YEAR($C$2:$C$565)=YEAR(C3)-1,$H$2:$H$565,0))+ SUM(IF(YEAR($C$2:$C$565)=YEAR(C3)-1,$AQ$2:$AQ$565,0))- SUM(IF(YEAR($C$2:$C$565)=YEAR(C3)-1,$L$2:$L$565,0)), 0)*0.2, 130000/Exhange_rate)) -> 0 | AS4: =AU3+SUM($AQ4:$AR4) -> 0 | AT4: 0 | AU4: 0 | AV4: =AX3+SUM($AQ4:$AR4) -> 0 | AW4: 0 | AX4: 0 | AY4: =BA3+SUM($AQ4:$AR4) -> 0 | AZ4: 0 | BA4: 0 | BB4: =BD3+SUM($AQ4:$AR4) -> 0 | BC4: 0 | BD4: 0 | BE4: =BG3+SUM($AQ4:$AR4) -> 0 | BF4: 0 | BG4: 0 | BH4: 86350.01799 | BI4: 1539.216269 | BJ4: 1101.268983 | BK4: 1609.751252 | BL4: 88976.24662 | BM4: 0.9902427357 | BN4: 88108.08187
A5: 1 | B5: 4 | C5: =EDATE(C4,1) -> 2014-05-18 | D5: =IF(C5>MainForm!$C$10,"igen","nem") -> nem | E5: 1 | F5: =IF(G5="Igen",0, IF(MOD(B5-1,VLOOKUP(MainForm!$C$30,'CF parameters'!$A$1:$C$5,3,FALSE)),0,MainForm!$C$29)*PRODUCT($E$2:E5)) -> 25000 | G5: Nem | H5: 25000 | I5: =(VLOOKUP(A5,'CF parameters'!$M$1:$N$5,2,FALSE)*MainForm!$C$31/12)/Exhange_rate -> 12500 | J5: =(VLOOKUP(A5,'CF parameters'!$M$1:$O$5,3,FALSE)*MainForm!$C$31/12)/Exhange_rate -> 2500 | K5: ='CF parameters'!$D$6 -> 300 | L5: 0 | M5: 0 | N5: 0 | O5: 0 | P5: =SUM($H$2:H5)/A5 -> 100000 | Q5: =(IF(B5=12,IFERROR(VLOOKUP(A5,'CF parameters'!$G$1:$H$6,2,FALSE),0),0)*P5) -> 0 | R5: 111350.018 | S5: 300 | T5: -0.007882694592 | U5: -754.7681489 | V5: 94995.24984 | W5: 112889.2343 | X5: 300 | Y5: -0.001316169764 | Z5: -128.0491485 | AA5: 97161.18511 | AB5: 113976.2466 | AC5: 300 | AD5: 0.003273739782 | AE5: 322.0582322 | AF5: 98698.30485 | AG5: 115077.5156 | AH5: 300 | AI5: 0.007884744363 | AJ5: 784.3547804 | AK5: 100261.8704 | AL5: 116687.2669 | AM5: 300 | AN5: 0.01455562911 | AO5: 1471.388764 | AP5: 102558.6556 | AQ5: =IF(AND(A5=1,B5=1),MainForm!$C$48, IF(B5=1,VLOOKUP(A5-1,Topup,2,FALSE), 0)) /Exhange_rate -> 0 | AR5: =IF(ROW()=2,0, MIN( IF(AND(MONTH(C4)=6,TAX="Igen"), SUM(IF(YEAR($C$2:$C$565)=YEAR(C4)-1,$H$2:$H$565,0))+ SUM(IF(YEAR($C$2:$C$565)=YEAR(C4)-1,$AQ$2:$AQ$565,0))- SUM(IF(YEAR($C$2:$C$565)=YEAR(C4)-1,$L$2:$L$565,0)), 0)*0.2, 130000/Exhange_rate)) -> 0 | AS5: 0 | AT5: 0 | AU5: 0 | AV5: 0 | AW5: 0 | AX5: 0 | AY5: 0 | AZ5: 0 | BA5: 0 | BB5: 0 | BC5: 0 | BD5: 0 | BE5: 0 | BF5: 0 | BG5: 0 | BH5: 94995.24984 | BI5: 2165.935269 | BJ5: 1563.565532 | BK5: 2296.785236 | BL5: 98698.30485 | BM5: 0.9870115169 | BN5: 97416.36358
A6: 1 | B6: 5 | C6: =EDATE(C5,1) -> 2014-06-18 | D6: =IF(C6>MainForm!$C$10,"igen","nem") -> nem | E6: 1 | F6: =IF(G6="Igen",0, IF(MOD(B6-1,VLOOKUP(MainForm!$C$30,'CF parameters'!$A$1:$C$5,3,FALSE)),0,MainForm!$C$29)*PRODUCT($E$2:E6)) -> 25000 | G6: Nem | H6: 25000 | I6: =(VLOOKUP(A6,'CF parameters'!$M$1:$N$5,2,FALSE)*MainForm!$C$31/12)/Exhange_rate -> 12500 | J6: =(VLOOKUP(A6,'CF parameters'!$M$1:$O$5,3,FALSE)*MainForm!$C$31/12)/Exhange_rate -> 2500 | K6: ='CF parameters'!$D$6 -> 300 | L6: 0 | M6: 0 | N6: 0 | O6: 0 | P6: =SUM($H$2:H6)/A6 -> 125000 | Q6: =(IF(B6=12,IFERROR(VLOOKUP(A6,'CF parameters'!$G$1:$H$6,2,FALSE),0),0)*P6) -> 0 | R6: 119995.2498 | S6: 300 | T6: -0.007882694592 | U6: -822.9158713 | V6: 103572.334 | W6: 122161.1851 | X6: 300 | Y6: -0.001316169764 | Z6: -140.2526099 | AA6: 106420.9325 | AB6: 123698.3049 | AC6: 300 | AD6: 0.003273739782 | AE6: 353.885721 | AF6: 108452.1906 | AG6: 125261.8704 | AH6: 300 | AI6: 0.007884744363 | AJ6: 864.6558144 | AK6: 110526.5262 | AL6: 127558.6556 | AM6: 300 | AN6: 0.01455562911 | AO6: 1629.628666 | AP6: 113588.2843 | AQ6: =IF(AND(A6=1,B6=1),MainForm!$C$48, IF(B6=1,VLOOKUP(A6-1,Topup,2,FALSE), 0)) /Exhange_rate -> 0 | AR6: =IF(ROW()=2,0, MIN( IF(AND(MONTH(C5)=6,TAX="Igen"), SUM(IF(YEAR($C$2:$C$565)=YEAR(C5)-1,$H$2:$H$565,0))+ SUM(IF(YEAR($C$2:$C$565)=YEAR(C5)-1,$AQ$2:$AQ$565,0))- SUM(IF(YEAR($C$2:$C$565)=YEAR(C5)-1,$L$2:$L$565,0)), 0)*0.2, 130000/Exhange_rate)) -> 0 | AS6: 0 | AT6: 0 | AU6: 0 | AV6: 0 | AW6: 0 | AX6: 0 | AY6: 0 | AZ6: 0 | BA6: 0 | BB6: 0 | BC6: 0 | BD6: 0 | BE6: 0 | BF6: 0 | BG6: 0 | BH6: 103572.334 | BI6: 2848.598531 | BJ6: 2074.335625 | BK6: 3061.758088 | BL6: 108452.1906 | BM6: 0.9837908417 | BN6: 106694.2718
A7: 1 | B7: 6 | C7: =EDATE(C6,1) -> 2014-07-18 | D7: =IF(C7>MainForm!$C$10,"igen","nem") -> nem | E7: 1 | F7: =IF(G7="Igen",0, IF(MOD(B7-1,VLOOKUP(MainForm!$C$30,'CF parameters'!$A$1:$C$5,3,FALSE)),0,MainForm!$C$29)*PRODUCT($E$2:E7)) -> 25000 | G7: Nem | H7: 25000 | I7: =(VLOOKUP(A7,'CF parameters'!$M$1:$N$5,2,FALSE)*MainForm!$C$31/12)/Exhange_rate -> 12500 | J7: =(VLOOKUP(A7,'CF parameters'!$M$1:$O$5,3,FALSE)*MainForm!$C$31/12)/Exhange_rate -> 2500 | K7: ='CF parameters'!$D$6 -> 300 | L7: 0 | M7: 0 | N7: 0 | O7: 0 | P7: =SUM($H$2:H7)/A7 -> 150000 | Q7: =(IF(B7=12,IFERROR(VLOOKUP(A7,'CF parameters'!$G$1:$H$6,2,FALSE),0),0)*P7) -> 0 | R7: 128572.334 | S7: 300 | T7: -0.007882694592 | U7: -890.526406 | V7: 112081.8076 | W7: 131420.9325 | X7: 300 | Y7: -0.001316169764 | Z7: -152.4400094 | AA7: 115668.4925 | AB7: 133452.1906 | AC7: 300 | AD7: 0.003273739782 | AE7: 385.8174047 | AF7: 118238.008 | AG7: 135526.5262 | AH7: 300 | AI7: 0.007884744363 | AJ7: 945.5900014 | AK7: 120872.1162 | AL7: 138588.2843 | AM7: 300 | AN7: 0.01455562911 | AO7: 1790.171851 | AP7: 124778.4561 | AQ7: =IF(AND(A7=1,B7=1),MainForm!$C$48, IF(B7=1,VLOOKUP(A7-1,Topup,2,FALSE), 0)) /Exhange_rate -> 0 | AR7: =IF(ROW()=2,0, MIN( IF(AND(MONTH(C6)=6,TAX="Igen"), SUM(IF(YEAR($C$2:$C$565)=YEAR(C6)-1,$H$2:$H$565,0))+ SUM(IF(YEAR($C$2:$C$565)=YEAR(C6)-1,$AQ$2:$AQ$565,0))- SUM(IF(YEAR($C$2:$C$565)=YEAR(C6)-1,$L$2:$L$565,0)), 0)*0.2, 130000/Exhange_rate)) -> 0 | AS7: 0 | AT7: 0 | AU7: 0 | AV7: 0 | AW7: 0 | AX7: 0 | AY7: 0 | AZ7: 0 | BA7: 0 | BB7: 0 | BC7: 0 | BD7: 0 | BE7: 0 | BF7: 0 | BG7: 0 | BH7: 112081.8076 | BI7: 3586.684927 | BJ7: 2634.108222 | BK7: 3906.339937 | BL7: 118238.008 | BM7: 0.9805806757 | BN7: 115941.9058
A8: 1 | B8: 7 | C8: =EDATE(C7,1) -> 2014-08-18 | D8: =IF(C8>MainForm!$C$10,"igen","nem") -> nem | E8: 1 | F8: =IF(G8="Igen",0, IF(MOD(B8-1,VLOOKUP(MainForm!$C$30,'CF parameters'!$A$1:$C$5,3,FALSE)),0,MainForm!$C$29)*PRODUCT($E$2:E8)) -> 25000 | G8: Nem | H8: 25000 | I8: =(VLOOKUP(A8,'CF parameters'!$M$1:$N$5,2,FALSE)*MainForm!$C$31/12)/Exhange_rate -> 12500 | J8: =(VLOOKUP(A8,'CF parameters'!$M$1:$O$5,3,FALSE)*MainForm!$C$31/12)/Exhange_rate -> 2500 | K8: ='CF parameters'!$D$6 -> 300 | L8: 0 | M8: 0 | N8: 0 | O8: 0 | P8: =SUM($H$2:H8)/A8 -> 175000 | Q8: =(IF(B8=12,IFERROR(VLOOKUP(A8,'CF parameters'!$G$1:$H$6,2,FALSE),0),0)*P8) -> 0 | R8: 137081.8076 | S8: 300 | T8: -0.007882694592 | U8: -957.6039874 | V8: 120524.2036 | W8: 140668.4925 | X8: 300 | Y8: -0.001316169764 | Z8: -164.6113683 | AA8: 124903.8811 | AB8: 143238.008 | AC8: 300 | AD8: 0.003273739782 | AE8: 417.8536244 | AF8: 128055.8616 | AG8: 145872.1162 | AH8: 300 | AI8: 0.007884744363 | AJ8: 1027.162334 | AK8: 131299.2785 | AL8: 149778.4561 | AM8: 300 | AN8: 0.01455562911 | AO8: 1953.051842 | AP8: 136131.508 | AQ8: =IF(AND(A8=1,B8=1),MainForm!$C$48, IF(B8=1,VLOOKUP(A8-1,Topup,2,FALSE), 0)) /Exhange_rate -> 0 | AR8: =IF(ROW()=2,0, MIN( IF(AND(MONTH(C7)=6,TAX="Igen"), SUM(IF(YEAR($C$2:$C$565)=YEAR(C7)-1,$H$2:$H$565,0))+ SUM(IF(YEAR($C$2:$C$565)=YEAR(C7)-1,$AQ$2:$AQ$565,0))- SUM(IF(YEAR($C$2:$C$565)=YEAR(C7)-1,$L$2:$L$565,0)), 0)*0.2, 130000/Exhange_rate)) -> 0 | AS8: 0 | AT8: 0 | AU8: 0 | AV8: 0 | AW8: 0 | AX8: 0 | AY8: 0 | AZ8: 0 | BA8: 0 | BB8: 0 | BC8: 0 | BD8: 0 | BE8: 0 | BF8: 0 | BG8: 0 | BH8: 120524.2036 | BI8: 4379.677546 | BJ8: 3243.416931 | BK8: 4832.229445 | BL8: 128055.8616 | BM8: 0.9773809847 | BN8: 125159.3641
A9: 1 | B9: 8 | C9: 2014-09-18 | D9: =IF(C9>MainForm!$C$10,"igen","nem") -> nem | E9: 1 | F9: =IF(G9="Igen",0, IF(MOD(B9-1,VLOOKUP(MainForm!$C$30,'CF parameters'!$A$1:$C$5,3,FALSE)),0,MainForm!$C$29)*PRODUCT($E$2:E9)) -> 25000 | G9: Nem | H9: 25000 | I9: =(VLOOKUP(A9,'CF parameters'!$M$1:$N$5,2,FALSE)*MainForm!$C$31/12)/Exhange_rate -> 12500 | J9: =(VLOOKUP(A9,'CF parameters'!$M$1:$O$5,3,FALSE)*MainForm!$C$31/12)/Exhange_rate -> 2500 | K9: ='CF parameters'!$D$6 -> 300 | L9: 0 | M9: 0 | N9: 0 | O9: 0 | P9: =SUM($H$2:H9)/A9 -> 200000 | Q9: =(IF(B9=12,IFERROR(VLOOKUP(A9,'CF parameters'!$G$1:$H$6,2,FALSE),0),0)*P9) -> 0 | R9: 145524.2036 | S9: 300 | T9: -0.007882694592 | U9: -1024.152817 | V9: 128900.0508 | W9: 149903.8811 | X9: 300 | Y9: -0.001316169764 | Z9: -176.7667076 | AA9: 134127.1144 | AB9: 153055.8616 | AC9: 300 | AD9: 0.003273739782 | AE9: 449.9947224 | AF9: 137905.8563 | AG9: 156299.2785 | AH9: 300 | AI9: 0.007884744363 | AJ9: 1109.377843 | AK9: 141808.6564 | AL9: 161131.508 | AM9: 300 | AN9: 0.01455562911 | AO9: 2118.302653 | AP9: 147649.8106 | AQ9: =IF(AND(A9=1,B9=1),MainForm!$C$48, IF(B9=1,VLOOKUP(A9-1,Topup,2,FALSE), 0)) /Exhange_rate -> 0 | AR9: =IF(ROW()=2,0, MIN( IF(AND(MONTH(C8)=6,TAX="Igen"), SUM(IF(YEAR($C$2:$C$565)=YEAR(C8)-1,$H$2:$H$565,0))+ SUM(IF(YEAR($C$2:$C$565)=YEAR(C8)-1,$AQ$2:$AQ$565,0))- SUM(IF(YEAR($C$2:$C$565)=YEAR(C8)-1,$L$2:$L$565,0)), 0)*0.2, 130000/Exhange_rate)) -> 0 | AS9: 0 | AT9: 0 | AU9: 0 | AV9: 0 | AW9: 0 | AX9: 0 | AY9: 0 | AZ9: 0 | BA9: 0 | BB9: 0 | BC9: 0 | BD9: 0 | BE9: 0 | BF9: 0 | BG9: 0 | BH9: 128900.0508 | BI9: 5227.063655 | BJ9: 3902.800052 | BK9: 5841.154255 | BL9: 137905.8563 | BM9: 0.9741917344 | BN9: 134346.7454
A10: 1 | B10: 9 | C10: 2014-10-18 | D10: =IF(C10>MainForm!$C$10,"igen","nem") -> nem | E10: 1 | F10: =IF(G10="Igen",0, IF(MOD(B10-1,VLOOKUP(MainForm!$C$30,'CF parameters'!$A$1:$C$5,3,FALSE)),0,MainForm!$C$29)*PRODUCT($E$2:E10)) -> 25000 | G10: Nem | H10: 25000 | I10: =(VLOOKUP(A10,'CF parameters'!$M$1:$N$5,2,FALSE)*MainForm!$C$31/12)/Exhange_rate -> 12500 | J10: =(VLOOKUP(A10,'CF parameters'!$M$1:$O$5,3,FALSE)*MainForm!$C$31/12)/Exhange_rate -> 2500 | K10: ='CF parameters'!$D$6 -> 300 | L10: 0 | M10: 0 | N10: 0 | O10: 0 | P10: =SUM($H$2:H10)/A10 -> 225000 | Q10: =(IF(B10=12,IFERROR(VLOOKUP(A10,'CF parameters'!$G$1:$H$6,2,FALSE),0),0)*P10) -> 0 | R10: 153900.0508 | S10: 300 | T10: -0.007882694592 | U10: -1090.177062 | V10: 137209.8737 | W10: 159127.1144 | X10: 300 | Y10: -0.001316169764 | Z10: -188.9060484 | AA10: 143338.2084 | AB10: 162905.8563 | AC10: 300 | AD10: 0.003273739782 | AE10: 482.241042 | AF10: 147788.0974 | AG10: 166808.6564 | AH10: 300 | AI10: 0.007884744363 | AJ10: 1192.241601 | AK10: 152400.898 | AL10: 172649.8106 | AM10: 300 | AN10: 0.01455562911 | AO10: 2285.958795 | AP10: 159335.7694 | AQ10: =IF(AND(A10=1,B10=1),MainForm!$C$48, IF(B10=1,VLOOKUP(A10-1,Topup,2,FALSE), 0)) /Exhange_rate -> 0 | AR10: =IF(ROW()=2,0, MIN( IF(AND(MONTH(C9)=6,TAX="Igen"), SUM(IF(YEAR($C$2:$C$565)=YEAR(C9)-1,$H$2:$H$565,0))+ SUM(IF(YEAR($C$2:$C$565)=YEAR(C9)-1,$AQ$2:$AQ$565,0))- SUM(IF(YEAR($C$2:$C$565)=YEAR(C9)-1,$L$2:$L$565,0)), 0)*0.2, 130000/Exhange_rate)) -> 0 | AS10: 0 | AT10: 0 | AU10: 0 | AV10: 0 | AW10: 0 | AX10: 0 | AY10: 0 | AZ10: 0 | BA10: 0 | BB10: 0 | BC10: 0 | BD10: 0 | BE10: 0 | BF10: 0 | BG10: 0 | BH10: 137209.8737 | BI10: 6128.334669 | BJ10: 4612.800611 | BK10: 6934.871449 | BL10: 147788.0974 | BM10: 0.9710128909 | BN10: 143504.1477
A11: 1 | B11: 10 | C11: 2014-11-18 | D11: =IF(C11>MainForm!$C$10,"igen","nem") -> nem | E11: 1 | F11: =IF(G11="Igen",0, IF(MOD(B11-1,VLOOKUP(MainForm!$C$30,'CF parameters'!$A$1:$C$5,3,FALSE)),0,MainForm!$C$29)*PRODUCT($E$2:E11)) -> 25000 | G11: Nem | H11: 25000 | I11: =(VLOOKUP(A11,'CF parameters'!$M$1:$N$5,2,FALSE)*MainForm!$C$31/12)/Exhange_rate -> 12500 | J11: =(VLOOKUP(A11,'CF parameters'!$M$1:$O$5,3,FALSE)*MainForm!$C$31/12)/Exhange_rate -> 2500 | K11: ='CF parameters'!$D$6 -> 300 | L11: 0 | M11: 0 | N11: 0 | O11: 0 | P11: =SUM($H$2:H11)/A11 -> 250000 | Q11: =(IF(B11=12,IFERROR(VLOOKUP(A11,'CF parameters'!$G$1:$H$6,2,FALSE),0),0)*P11) -> 0 | R11: 162209.8737 | S11: 300 | T11: -0.007882694592 | U11: -1155.680858 | V11: 145454.1928 | W11: 168338.2084 | X11: 300 | Y11: -0.001316169764 | Z11: -201.0294117 | AA11: 152537.179 | AB11: 172788.0974 | AC11: 300 | AD11: 0.003273739782 | AE11: 514.5929276 | AF11: 157702.6903 | AG11: 177400.898 | AH11: 300 | AI11: 0.007884744363 | AJ11: 1275.758718 | AK11: 163076.6567 | AL11: 184335.7694 | AM11: 300 | AN11: 0.01455562911 | AO11: 2456.055277 | AP11: 171191.8247 | AQ11: =IF(AND(A11=1,B11=1),MainForm!$C$48, IF(B11=1,VLOOKUP(A11-1,Topup,2,FALSE), 0)) /Exhange_rate -> 0 | AR11: =IF(ROW()=2,0, MIN( IF(AND(MONTH(C10)=6,TAX="Igen"), SUM(IF(YEAR($C$2:$C$565)=YEAR(C10)-1,$H$2:$H$565,0))+ SUM(IF(YEAR($C$2:$C$565)=YEAR(C10)-1,$AQ$2:$AQ$565,0))- SUM(IF(YEAR($C$2:$C$565)=YEAR(C10)-1,$L$2:$L$565,0)), 0)*0.2, 130000/Exhange_rate)) -> 0 | AS11: 0 | AT11: 0 | AU11: 0 | AV11: 0 | AW11: 0 | AX11: 0 | AY11: 0 | AZ11: 0 | BA11: 0 | BB11: 0 | BC11: 0 | BD11: 0 | BE11: 0 | BF11: 0 | BG11: 0 | BH11: 145454.1928 | BI11: 7082.986116 | BJ11: 5373.966402 | BK11: 8115.168007 | BL11: 157702.6903 | BM11: 0.9678444201 | BN11: 152631.6688
